Workbook

Sheet U7-U9 H + F
E3: =SUBTOTAL(3,F6:F670) -> 86 | J3: Uchizy | L3: Vesoul | N3: Andelot-Morval | P3: Montceau | R3: Montbard | T3: Les Fourgs | V3: Mesvres | X3: Pont de Roide | AA3: Joker
A4: POINTS TOTAUX | C4: AVEC JOKER
A5: Point | B5: Classement | C5: Point | D5: Classement | E5: N° | F5: NOM | G5: Prénom | H5: Club | I5: Sexe | J5: Clt | K5: pts | L5: Clt | M5: pts | N5: Clt | O5: pts | P5: Clt | Q5: pts | R5: Clt | S5: pts | T5: Clt | U5: pts | V5: Clt | W5: pts | X5: Clt | Y5: pts | Z5: Points clubs
A6: =K6+M6+O6+S6+U6+W6+Y6+Q6+AC6/10000 -> 1206.0204 | B6: =IF(E6,RANK(A6,$A$6:$A$211),"") -> 1 | C6: =A6-MINA(K6,M6,O6,S6,U6,W6,Y6,Q6) -> 1107.0204 | D6: =IF(E6,RANK(C6,$C$6:$C$211),"") -> 1 | E6: 1216 | F6: PARRAIN SIMON | G6: Gabin | H6: PULSION VTT | I6: H(U9) | J6: 3 | K6: =LOOKUP(J6,Paramètres!$A$3:$A$102,Paramètres!$B$3:$B$102) -> 144 | L6: 2 | M6: =LOOKUP(L6,Paramètres!$A$3:$A$102,Paramètres!$B$3:$B$102) -> 147 | N6: 2 | O6: =LOOKUP(N6,Paramètres!$A$3:$A$102,Paramètres!$B$3:$B$102) -> 147 | P6: 2 | Q6: =LOOKUP(P6,Paramètres!$A$3:$A$102,Paramètres!$B$3:$B$102) -> 147 | R6: 2 | S6: =LOOKUP(R6,Paramètres!$A$3:$A$102,Paramètres!$B$3:$B$102) -> 147 | T6: 18 | U6: =LOOKUP(T6,Paramètres!$A$3:$A$102,Paramètres!$B$3:$B$102) -> 99 | V6: 1 | W6: =LOOKUP(V6,Paramètres!$A$3:$A$102,Paramètres!$B$3:$B$102) -> 150 | X6: 1 | Y6: =LOOKUP(X6,Paramètres!$A$3:$A$102,Paramètres!$B$3:$B$102)*Paramètres!$H$5 -> 225 | Z6: =IFERROR(VLOOKUP(J6,Paramètres!$D$3:$E$7,2,FALSE),0)+IFERROR(VLOOKUP(L6,Paramètres!$D$3:$E$7,2,FALSE),0)+IFERROR(VLOOKUP(N6,Paramètres!$D$3:$E$7,2,FALSE),0)+IFERROR(VLOOKUP(P6,Paramètres!$D$3:$E$7,2,FALSE),0)+IFERROR(VLOOKUP(R6,Paramètres!$D$3:$E$7,2,FALSE),0)+IFERROR(VLOOKUP(T6,Paramètres!$D$3:$E$7,2,FALSE),0)+IFERROR(VLOOKUP(V6,Paramètres!$D$3:$E$7,2,FALSE),0)+IFERROR(VLOOKUP(X6,Paramètres!$D$3:$E$7,2,FALSE),0) -> 29 | AA6: =MINA(K6,M6,O6,S6,Y6,U6,W6,Q6) -> 99 | AB6: =Classement(J6:Y6,$J$5:$Y$5) -> |001|001|002|002|002|002|003|018 | AC6: =COUNTIF($AB$6:$AB$211,">"&AB6) -> 204
A7: 1069.5203 | B7: 3 | C7: 1069.5203 | D7: 2 | E7: 1222 | F7: VAUTIER GABRIEL | G7: Eliott | H7: VELO SPORT CLUB BEAUNOIS | I7: H(U9) | J7: 8 | K7: =LOOKUP(J7,Paramètres!$A$3:$A$102,Paramètres!$B$3:$B$102) -> 129 | L7: 1 | M7: =LOOKUP(L7,Paramètres!$A$3:$A$102,Paramètres!$B$3:$B$102) -> 150 | N7: 4 | O7: =LOOKUP(N7,Paramètres!$A$3:$A$102,Paramètres!$B$3:$B$102) -> 141 | P7: 3 | Q7: =LOOKUP(P7,Paramètres!$A$3:$A$102,Paramètres!$B$3:$B$102) -> 144 | R7: 1 | S7: =LOOKUP(R7,Paramètres!$A$3:$A$102,Paramètres!$B$3:$B$102) -> 150 | T7: 3 | U7: =LOOKUP(T7,Paramètres!$A$3:$A$102,Paramètres!$B$3:$B$102) -> 144 | W7: =LOOKUP(V7,Paramètres!$A$3:$A$102,Paramètres!$B$3:$B$102) -> 0 | X7: 4 | Y7: =LOOKUP(X7,Paramètres!$A$3:$A$102,Paramètres!$B$3:$B$102)*Paramètres!$H$5 -> 211.5 | Z7: =IFERROR(VLOOKUP(J7,Paramètres!$D$3:$E$7,2,FALSE),0)+IFERROR(VLOOKUP(L7,Paramètres!$D$3:$E$7,2,FALSE),0)+IFERROR(VLOOKUP(N7,Paramètres!$D$3:$E$7,2,FALSE),0)+IFERROR(VLOOKUP(P7,Paramètres!$D$3:$E$7,2,FALSE),0)+IFERROR(VLOOKUP(R7,Paramètres!$D$3:$E$7,2,FALSE),0)+IFERROR(VLOOKUP(T7,Paramètres!$D$3:$E$7,2,FALSE),0)+IFERROR(VLOOKUP(V7,Paramètres!$D$3:$E$7,2,FALSE),0)+IFERROR(VLOOKUP(X7,Paramètres!$D$3:$E$7,2,FALSE),0) -> 20 | AA7: 0 | AB7: =Classement(J7:Y7,$J$5:$Y$5) -> |001|001|003|003|004|004|008|999 | AC7: =COUNTIF($AB$6:$AB$211,">"&AB7) -> 203
A8: 999.0198 | B8: 4 | C8: 999.0198 | D8: 3 | E8: 1212 | F8: BEPOIX | G8: Elise | H8: LES FOURGS SINGLETRACK | I8: F(U9) | J8: 4 | K8: =LOOKUP(J8,Paramètres!$A$3:$A$102,Paramètres!$B$3:$B$102) -> 141 | L8: 4 | M8: =LOOKUP(L8,Paramètres!$A$3:$A$102,Paramètres!$B$3:$B$102) -> 141 | N8: 19 | O8: =LOOKUP(N8,Paramètres!$A$3:$A$102,Paramètres!$B$3:$B$102) -> 96 | P8: 8 | Q8: =LOOKUP(P8,Paramètres!$A$3:$A$102,Paramètres!$B$3:$B$102) -> 129 | S8: =LOOKUP(R8,Paramètres!$A$3:$A$102,Paramètres!$B$3:$B$102) -> 0 | T8: 5 | U8: =LOOKUP(T8,Paramètres!$A$3:$A$102,Paramètres!$B$3:$B$102) -> 138 | V8: 2 | W8: =LOOKUP(V8,Paramètres!$A$3:$A$102,Paramètres!$B$3:$B$102) -> 147 | X8: 5 | Y8: =LOOKUP(X8,Paramètres!$A$3:$A$102,Paramètres!$B$3:$B$102)*Paramètres!$H$5 -> 207 | Z8: =IFERROR(VLOOKUP(J8,Paramètres!$D$3:$E$7,2,FALSE),0)+IFERROR(VLOOKUP(L8,Paramètres!$D$3:$E$7,2,FALSE),0)+IFERROR(VLOOKUP(N8,Paramètres!$D$3:$E$7,2,FALSE),0)+IFERROR(VLOOKUP(P8,Paramètres!$D$3:$E$7,2,FALSE),0)+IFERROR(VLOOKUP(R8,Paramètres!$D$3:$E$7,2,FALSE),0)+IFERROR(VLOOKUP(T8,Paramètres!$D$3:$E$7,2,FALSE),0)+IFERROR(VLOOKUP(V8,Paramètres!$D$3:$E$7,2,FALSE),0)+IFERROR(VLOOKUP(X8,Paramètres!$D$3:$E$7,2,FALSE),0) -> 10 | AA8: 0 | AB8: |002|004|004|005|005|008|019|999 | AC8: 198
A9: 1108.5192 | B9: 2 | C9: 994.5192 | D9: 4 | E9: 1217 | F9: JACQUET | G9: Tessa | H9: U.C. MOREZ | I9: F(U9) | J9: 13 | K9: =LOOKUP(J9,Paramètres!$A$3:$A$102,Paramètres!$B$3:$B$102) -> 114 | L9: 11 | M9: =LOOKUP(L9,Paramètres!$A$3:$A$102,Paramètres!$B$3:$B$102) -> 120 | N9: 8 | O9: =LOOKUP(N9,Paramètres!$A$3:$A$102,Paramètres!$B$3:$B$102) -> 129 | P9: 5 | Q9: =LOOKUP(P9,Paramètres!$A$3:$A$102,Paramètres!$B$3:$B$102) -> 138 | R9: 5 | S9: =LOOKUP(R9,Paramètres!$A$3:$A$102,Paramètres!$B$3:$B$102) -> 138 | T9: 9 | U9: =LOOKUP(T9,Paramètres!$A$3:$A$102,Paramètres!$B$3:$B$102) -> 126 | V9: 4 | W9: =LOOKUP(V9,Paramètres!$A$3:$A$102,Paramètres!$B$3:$B$102) -> 141 | X9: 6 | Y9: =LOOKUP(X9,Paramètres!$A$3:$A$102,Paramètres!$B$3:$B$102)*Paramètres!$H$5 -> 202.5 | Z9: =IFERROR(VLOOKUP(J9,Paramètres!$D$3:$E$7,2,FALSE),0)+IFERROR(VLOOKUP(L9,Paramètres!$D$3:$E$7,2,FALSE),0)+IFERROR(VLOOKUP(N9,Paramètres!$D$3:$E$7,2,FALSE),0)+IFERROR(VLOOKUP(P9,Paramètres!$D$3:$E$7,2,FALSE),0)+IFERROR(VLOOKUP(R9,Paramètres!$D$3:$E$7,2,FALSE),0)+IFERROR(VLOOKUP(T9,Paramètres!$D$3:$E$7,2,FALSE),0)+IFERROR(VLOOKUP(V9,Paramètres!$D$3:$E$7,2,FALSE),0)+IFERROR(VLOOKUP(X9,Paramètres!$D$3:$E$7,2,FALSE),0) -> 4 | AA9: 114 | AB9: |004|005|005|006|008|009|011|013 | AC9: 192
A10: 958.5182 | B10: 5 | C10: 883.5182 | D10: 5 | E10: 1215 | F10: BIGARNET | G10: Alice | H10: PULSION VTT | I10: F(U9) | J10: 26 | K10: =LOOKUP(J10,Paramètres!$A$3:$A$102,Paramètres!$B$3:$B$102) -> 75 | L10: 18 | M10: =LOOKUP(L10,Paramètres!$A$3:$A$102,Paramètres!$B$3:$B$102) -> 99 | N10: 15 | O10: =LOOKUP(N10,Paramètres!$A$3:$A$102,Paramètres!$B$3:$B$102) -> 108 | P10: 7 | Q10: =LOOKUP(P10,Paramètres!$A$3:$A$102,Paramètres!$B$3:$B$102) -> 132 | R10: 7 | S10: =LOOKUP(R10,Paramètres!$A$3:$A$102,Paramètres!$B$3:$B$102) -> 132 | T10: 17 | U10: =LOOKUP(T10,Paramètres!$A$3:$A$102,Paramètres!$B$3:$B$102) -> 102 | V10: 6 | W10: =LOOKUP(V10,Paramètres!$A$3:$A$102,Paramètres!$B$3:$B$102) -> 135 | X10: 12 | Y10: =LOOKUP(X10,Paramètres!$A$3:$A$102,Paramètres!$B$3:$B$102)*Paramètres!$H$5 -> 175.5 | Z10: =IFERROR(VLOOKUP(J10,Paramètres!$D$3:$E$7,2,FALSE),0)+IFERROR(VLOOKUP(L10,Paramètres!$D$3:$E$7,2,FALSE),0)+IFERROR(VLOOKUP(N10,Paramètres!$D$3:$E$7,2,FALSE),0)+IFERROR(VLOOKUP(P10,Paramètres!$D$3:$E$7,2,FALSE),0)+IFERROR(VLOOKUP(R10,Paramètres!$D$3:$E$7,2,FALSE),0)+IFERROR(VLOOKUP(T10,Paramètres!$D$3:$E$7,2,FALSE),0)+IFERROR(VLOOKUP(V10,Paramètres!$D$3:$E$7,2,FALSE),0)+IFERROR(VLOOKUP(X10,Paramètres!$D$3:$E$7,2,FALSE),0) -> 0 | AA10: 75 | AB10: |006|007|007|012|015|017|018|026 | AC10: 182
A11: 828.0199 | B11: 7 | C11: 828.0199 | D11: 6 | E11: 1211 | F11: BEPOIX | G11: Camille | H11: LES FOURGS SINGLETRACK | I11: H(U7) | J11: 23 | K11: =LOOKUP(J11,Paramètres!$A$3:$A$102,Paramètres!$B$3:$B$102) -> 84 | L11: 23 | M11: =LOOKUP(L11,Paramètres!$A$3:$A$102,Paramètres!$B$3:$B$102) -> 84 | N11: 22 | O11: =LOOKUP(N11,Paramètres!$A$3:$A$102,Paramètres!$B$3:$B$102) -> 87 | P11: 14 | Q11: =LOOKUP(P11,Paramètres!$A$3:$A$102,Paramètres!$B$3:$B$102) -> 111 | S11: =LOOKUP(R11,Paramètres!$A$3:$A$102,Paramètres!$B$3:$B$102) -> 0 | T11: 3 | U11: =LOOKUP(T11,Paramètres!$A$3:$A$102,Paramètres!$B$3:$B$102) -> 144 | V11: 2 | W11: =LOOKUP(V11,Paramètres!$A$3:$A$102,Paramètres!$B$3:$B$102) -> 147 | X11: 13 | Y11: =LOOKUP(X11,Paramètres!$A$3:$A$102,Paramètres!$B$3:$B$102)*Paramètres!$H$5 -> 171 | Z11: =IFERROR(VLOOKUP(J11,Paramètres!$D$3:$E$7,2,FALSE),0)+IFERROR(VLOOKUP(L11,Paramètres!$D$3:$E$7,2,FALSE),0)+IFERROR(VLOOKUP(N11,Paramètres!$D$3:$E$7,2,FALSE),0)+IFERROR(VLOOKUP(P11,Paramètres!$D$3:$E$7,2,FALSE),0)+IFERROR(VLOOKUP(R11,Paramètres!$D$3:$E$7,2,FALSE),0)+IFERROR(VLOOKUP(T11,Paramètres!$D$3:$E$7,2,FALSE),0)+IFERROR(VLOOKUP(V11,Paramètres!$D$3:$E$7,2,FALSE),0)+IFERROR(VLOOKUP(X11,Paramètres!$D$3:$E$7,2,FALSE),0) -> 7 | AA11: 0 | AB11: |002|003|013|014|022|023|023|999 | AC11: 199
A12: 840.0185 | B12: 6 | C12: 768.0185 | D12: 7 | E12: 1203 | F12: CASTANEDO | G12: Milan | H12: MONTCEAU VTT | I12: H(U7) | J12: 25 | K12: =LOOKUP(J12,Paramètres!$A$3:$A$102,Paramètres!$B$3:$B$102) -> 78 | L12: 27 | M12: =LOOKUP(L12,Paramètres!$A$3:$A$102,Paramètres!$B$3:$B$102) -> 72 | N12: 24 | O12: =LOOKUP(N12,Paramètres!$A$3:$A$102,Paramètres!$B$3:$B$102) -> 81 | P12: 25 | Q12: =LOOKUP(P12,Paramètres!$A$3:$A$102,Paramètres!$B$3:$B$102) -> 78 | R12: 12 | S12: =LOOKUP(R12,Paramètres!$A$3:$A$102,Paramètres!$B$3:$B$102) -> 117 | T12: 10 | U12: =LOOKUP(T12,Paramètres!$A$3:$A$102,Paramètres!$B$3:$B$102) -> 123 | V12: 5 | W12: =LOOKUP(V12,Paramètres!$A$3:$A$102,Paramètres!$B$3:$B$102) -> 138 | X12: 17 | Y12: =LOOKUP(X12,Paramètres!$A$3:$A$102,Paramètres!$B$3:$B$102)*Paramètres!$H$5 -> 153 | Z12: =IFERROR(VLOOKUP(J12,Paramètres!$D$3:$E$7,2,FALSE),0)+IFERROR(VLOOKUP(L12,Paramètres!$D$3:$E$7,2,FALSE),0)+IFERROR(VLOOKUP(N12,Paramètres!$D$3:$E$7,2,FALSE),0)+IFERROR(VLOOKUP(P12,Paramètres!$D$3:$E$7,2,FALSE),0)+IFERROR(VLOOKUP(R12,Paramètres!$D$3:$E$7,2,FALSE),0)+IFERROR(VLOOKUP(T12,Paramètres!$D$3:$E$7,2,FALSE),0)+IFERROR(VLOOKUP(V12,Paramètres!$D$3:$E$7,2,FALSE),0)+IFERROR(VLOOKUP(X12,Paramètres!$D$3:$E$7,2,FALSE),0) -> 1 | AA12: 72 | AB12: |005|010|012|017|024|025|025|027 | AC12: 185
A13: 756.0181 | B13: 8 | C13: 756.0181 | D13: 8 | E13: 1214 | F13: RENAULT | G13: Lancelot | H13: MONTBARD VTT 21 | I13: H(U9) | J13: 9 | K13: =LOOKUP(J13,Paramètres!$A$3:$A$102,Paramètres!$B$3:$B$102) -> 126 | L13: 9 | M13: =LOOKUP(L13,Paramètres!$A$3:$A$102,Paramètres!$B$3:$B$102) -> 126 | N13: 13 | O13: =LOOKUP(N13,Paramètres!$A$3:$A$102,Paramètres!$B$3:$B$102) -> 114 | P13: 10 | Q13: =LOOKUP(P13,Paramètres!$A$3:$A$102,Paramètres!$B$3:$B$102) -> 123 | R13: 6 | S13: =LOOKUP(R13,Paramètres!$A$3:$A$102,Paramètres!$B$3:$B$102) -> 135 | U13: =LOOKUP(T13,Paramètres!$A$3:$A$102,Paramètres!$B$3:$B$102) -> 0 | V13: 7 | W13: =LOOKUP(V13,Paramètres!$A$3:$A$102,Paramètres!$B$3:$B$102) -> 132 | Y13: =LOOKUP(X13,Paramètres!$A$3:$A$102,Paramètres!$B$3:$B$102)*Paramètres!$H$5 -> 0 | Z13: =IFERROR(VLOOKUP(J13,Paramètres!$D$3:$E$7,2,FALSE),0)+IFERROR(VLOOKUP(L13,Paramètres!$D$3:$E$7,2,FALSE),0)+IFERROR(VLOOKUP(N13,Paramètres!$D$3:$E$7,2,FALSE),0)+IFERROR(VLOOKUP(P13,Paramètres!$D$3:$E$7,2,FALSE),0)+IFERROR(VLOOKUP(R13,Paramètres!$D$3:$E$7,2,FALSE),0)+IFERROR(VLOOKUP(T13,Paramètres!$D$3:$E$7,2,FALSE),0)+IFERROR(VLOOKUP(V13,Paramètres!$D$3:$E$7,2,FALSE),0)+IFERROR(VLOOKUP(X13,Paramètres!$D$3:$E$7,2,FALSE),0) -> 0 | AA13: 0 | AB13: |006|007|009|009|010|013|999|999 | AC13: 181
A14: 736.52 | B14: 9 | C14: 736.52 | D14: 9 | E14: 1227 | F14: RAVIER | G14: Simon | H14: LES FOURGS SINGLETRACK | I14: H(U9) | K14: =LOOKUP(J14,Paramètres!$A$3:$A$102,Paramètres!$B$3:$B$102) -> 0 | L14: 3 | M14: =LOOKUP(L14,Paramètres!$A$3:$A$102,Paramètres!$B$3:$B$102) -> 144 | N14: 12 | O14: =LOOKUP(N14,Paramètres!$A$3:$A$102,Paramètres!$B$3:$B$102) -> 117 | Q14: =LOOKUP(P14,Paramètres!$A$3:$A$102,Paramètres!$B$3:$B$102) -> 0 | S14: =LOOKUP(R14,Paramètres!$A$3:$A$102,Paramètres!$B$3:$B$102) -> 0 | T14: 14 | U14: =LOOKUP(T14,Paramètres!$A$3:$A$102,Paramètres!$B$3:$B$102) -> 111 | V14: 3 | W14: =LOOKUP(V14,Paramètres!$A$3:$A$102,Paramètres!$B$3:$B$102) -> 144 | X14: 2 | Y14: =LOOKUP(X14,Paramètres!$A$3:$A$102,Paramètres!$B$3:$B$102)*Paramètres!$H$5 -> 220.5 | Z14: =IFERROR(VLOOKUP(J14,Paramètres!$D$3:$E$7,2,FALSE),0)+IFERROR(VLOOKUP(L14,Paramètres!$D$3:$E$7,2,FALSE),0)+IFERROR(VLOOKUP(N14,Paramètres!$D$3:$E$7,2,FALSE),0)+IFERROR(VLOOKUP(P14,Paramètres!$D$3:$E$7,2,FALSE),0)+IFERROR(VLOOKUP(R14,Paramètres!$D$3:$E$7,2,FALSE),0)+IFERROR(VLOOKUP(T14,Paramètres!$D$3:$E$7,2,FALSE),0)+IFERROR(VLOOKUP(V14,Paramètres!$D$3:$E$7,2,FALSE),0)+IFERROR(VLOOKUP(X14,Paramètres!$D$3:$E$7,2,FALSE),0) -> 10 | AA14: 0 | AB14: |002|003|003|012|014|999|999|999 | AC14: 200
A15: 664.5194 | B15: 10 | C15: 664.5194 | D15: 10 | E15: 1247 | F15: FIORE | G15: Milo | H15: MESVRIN VTT | I15: H(U7) | K15: =LOOKUP(J15,Paramètres!$A$3:$A$102,Paramètres!$B$3:$B$102) -> 0 | M15: =LOOKUP(L15,Paramètres!$A$3:$A$102,Paramètres!$B$3:$B$102) -> 0 | O15: =LOOKUP(N15,Paramètres!$A$3:$A$102,Paramètres!$B$3:$B$102) -> 0 | P15: 16 | Q15: =LOOKUP(P15,Paramètres!$A$3:$A$102,Paramètres!$B$3:$B$102) -> 105 | R15: 11 | S15: =LOOKUP(R15,Paramètres!$A$3:$A$102,Paramètres!$B$3:$B$102) -> 120 | T15: 5 | U15: =LOOKUP(T15,Paramètres!$A$3:$A$102,Paramètres!$B$3:$B$102) -> 138 | V15: 3 | W15: =LOOKUP(V15,Paramètres!$A$3:$A$102,Paramètres!$B$3:$B$102) -> 144 | X15: 16 | Y15: =LOOKUP(X15,Paramètres!$A$3:$A$102,Paramètres!$B$3:$B$102)*Paramètres!$H$5 -> 157.5 | Z15: =IFERROR(VLOOKUP(J15,Paramètres!$D$3:$E$7,2,FALSE),0)+IFERROR(VLOOKUP(L15,Paramètres!$D$3:$E$7,2,FALSE),0)+IFERROR(VLOOKUP(N15,Paramètres!$D$3:$E$7,2,FALSE),0)+IFERROR(VLOOKUP(P15,Paramètres!$D$3:$E$7,2,FALSE),0)+IFERROR(VLOOKUP(R15,Paramètres!$D$3:$E$7,2,FALSE),0)+IFERROR(VLOOKUP(T15,Paramètres!$D$3:$E$7,2,FALSE),0)+IFERROR(VLOOKUP(V15,Paramètres!$D$3:$E$7,2,FALSE),0)+IFERROR(VLOOKUP(X15,Paramètres!$D$3:$E$7,2,FALSE),0) -> 4 | AA15: 0 | AB15: |003|005|011|016|016|999|999|999 | AC15: 194
A16: 648.019 | B16: 11 | C16: 648.019 | D16: 11 | E16: 1213 | F16: POURCHET | G16: Rose | H16: LES FOURGS SINGLETRACK | I16: F(U7) | J16: 21 | K16: =LOOKUP(J16,Paramètres!$A$3:$A$102,Paramètres!$B$3:$B$102) -> 90 | L16: 28 | M16: =LOOKUP(L16,Paramètres!$A$3:$A$102,Paramètres!$B$3:$B$102) -> 69 | N16: 20 | O16: =LOOKUP(N16,Paramètres!$A$3:$A$102,Paramètres!$B$3:$B$102) -> 93 | P16: 20 | Q16: =LOOKUP(P16,Paramètres!$A$3:$A$102,Paramètres!$B$3:$B$102) -> 93 | S16: =LOOKUP(R16,Paramètres!$A$3:$A$102,Paramètres!$B$3:$B$102) -> 0 | T16: 4 | U16: =LOOKUP(T16,Paramètres!$A$3:$A$102,Paramètres!$B$3:$B$102) -> 141 | W16: =LOOKUP(V16,Paramètres!$A$3:$A$102,Paramètres!$B$3:$B$102) -> 0 | X16: 15 | Y16: =LOOKUP(X16,Paramètres!$A$3:$A$102,Paramètres!$B$3:$B$102)*Paramètres!$H$5 -> 162 | Z16: =IFERROR(VLOOKUP(J16,Paramètres!$D$3:$E$7,2,FALSE),0)+IFERROR(VLOOKUP(L16,Paramètres!$D$3:$E$7,2,FALSE),0)+IFERROR(VLOOKUP(N16,Paramètres!$D$3:$E$7,2,FALSE),0)+IFERROR(VLOOKUP(P16,Paramètres!$D$3:$E$7,2,FALSE),0)+IFERROR(VLOOKUP(R16,Paramètres!$D$3:$E$7,2,FALSE),0)+IFERROR(VLOOKUP(T16,Paramètres!$D$3:$E$7,2,FALSE),0)+IFERROR(VLOOKUP(V16,Paramètres!$D$3:$E$7,2,FALSE),0)+IFERROR(VLOOKUP(X16,Paramètres!$D$3:$E$7,2,FALSE),0) -> 2 | AA16: 0 | AB16: |004|015|020|020|021|028|999|999 | AC16: 190
A17: 619.5173 | B17: 12 | C17: 619.5173 | D17: 12 | E17: 1271 | F17: COMBEAU | G17: Maël | H17: VELO SPORT CLUB BEAUNOIS | I17: H(U9) | K17: =LOOKUP(J17,Paramètres!$A$3:$A$102,Paramètres!$B$3:$B$102) -> 0 | M17: =LOOKUP(L17,Paramètres!$A$3:$A$102,Paramètres!$B$3:$B$102) -> 0 | O17: =LOOKUP(N17,Paramètres!$A$3:$A$102,Paramètres!$B$3:$B$102) -> 0 | P17: 15 | Q17: =LOOKUP(P17,Paramètres!$A$3:$A$102,Paramètres!$B$3:$B$102) -> 108 | R17: 8 | S17: =LOOKUP(R17,Paramètres!$A$3:$A$102,Paramètres!$B$3:$B$102) -> 129 | T17: 23 | U17: =LOOKUP(T17,Paramètres!$A$3:$A$102,Paramètres!$B$3:$B$102) -> 84 | V17: 13 | W17: =LOOKUP(V17,Paramètres!$A$3:$A$102,Paramètres!$B$3:$B$102) -> 114 | X17: 10 | Y17: =LOOKUP(X17,Paramètres!$A$3:$A$102,Paramètres!$B$3:$B$102)*Paramètres!$H$5 -> 184.5 | Z17: =IFERROR(VLOOKUP(J17,Paramètres!$D$3:$E$7,2,FALSE),0)+IFERROR(VLOOKUP(L17,Paramètres!$D$3:$E$7,2,FALSE),0)+IFERROR(VLOOKUP(N17,Paramètres!$D$3:$E$7,2,FALSE),0)+IFERROR(VLOOKUP(P17,Paramètres!$D$3:$E$7,2,FALSE),0)+IFERROR(VLOOKUP(R17,Paramètres!$D$3:$E$7,2,FALSE),0)+IFERROR(VLOOKUP(T17,Paramètres!$D$3:$E$7,2,FALSE),0)+IFERROR(VLOOKUP(V17,Paramètres!$D$3:$E$7,2,FALSE),0)+IFERROR(VLOOKUP(X17,Paramètres!$D$3:$E$7,2,FALSE),0) -> 0 | AA17: 0 | AB17: |008|010|013|015|023|999|999|999 | AC17: 173
A18: 597.0205 | B18: 13 | C18: 597.0205 | D18: 13 | E18: 1223 | F18: GANEVAL | G18: Marin | H18: VTT ORGELET | I18: H(U9) | J18: 2 | K18: =LOOKUP(J18,Paramètres!$A$3:$A$102,Paramètres!$B$3:$B$102) -> 147 | M18: =LOOKUP(L18,Paramètres!$A$3:$A$102,Paramètres!$B$3:$B$102) -> 0 | N18: 1 | O18: =LOOKUP(N18,Paramètres!$A$3:$A$102,Paramètres!$B$3:$B$102) -> 150 | P18: 1 | Q18: =LOOKUP(P18,Paramètres!$A$3:$A$102,Paramètres!$B$3:$B$102) -> 150 | S18: =LOOKUP(R18,Paramètres!$A$3:$A$102,Paramètres!$B$3:$B$102) -> 0 | T18: 1 | U18: =LOOKUP(T18,Paramètres!$A$3:$A$102,Paramètres!$B$3:$B$102) -> 150 | W18: =LOOKUP(V18,Paramètres!$A$3:$A$102,Paramètres!$B$3:$B$102) -> 0 | Y18: =LOOKUP(X18,Paramètres!$A$3:$A$102,Paramètres!$B$3:$B$102)*Paramètres!$H$5 -> 0 | Z18: =IFERROR(VLOOKUP(J18,Paramètres!$D$3:$E$7,2,FALSE),0)+IFERROR(VLOOKUP(L18,Paramètres!$D$3:$E$7,2,FALSE),0)+IFERROR(VLOOKUP(N18,Paramètres!$D$3:$E$7,2,FALSE),0)+IFERROR(VLOOKUP(P18,Paramètres!$D$3:$E$7,2,FALSE),0)+IFERROR(VLOOKUP(R18,Paramètres!$D$3:$E$7,2,FALSE),0)+IFERROR(VLOOKUP(T18,Paramètres!$D$3:$E$7,2,FALSE),0)+IFERROR(VLOOKUP(V18,Paramètres!$D$3:$E$7,2,FALSE),0)+IFERROR(VLOOKUP(X18,Paramètres!$D$3:$E$7,2,FALSE),0) -> 19 | AA18: 0 | AB18: |001|001|001|002|999|999|999|999 | AC18: 205
A19: 483.0195 | B19: 14 | C19: 483.0195 | D19: 14 | E19: 1252 | F19: CARETTI | G19: Valerian | H19: LES FOURGS SINGLETRACK | I19: H(U9) | K19: =LOOKUP(J19,Paramètres!$A$3:$A$102,Paramètres!$B$3:$B$102) -> 0 | M19: =LOOKUP(L19,Paramètres!$A$3:$A$102,Paramètres!$B$3:$B$102) -> 0 | N19: 9 | O19: =LOOKUP(N19,Paramètres!$A$3:$A$102,Paramètres!$B$3:$B$102) -> 126 | Q19: =LOOKUP(P19,Paramètres!$A$3:$A$102,Paramètres!$B$3:$B$102) -> 0 | S19: =LOOKUP(R19,Paramètres!$A$3:$A$102,Paramètres!$B$3:$B$102) -> 0 | T19: 4 | U19: =LOOKUP(T19,Paramètres!$A$3:$A$102,Paramètres!$B$3:$B$102) -> 141 | W19: =LOOKUP(V19,Paramètres!$A$3:$A$102,Paramètres!$B$3:$B$102) -> 0 | X19: 3 | Y19: =LOOKUP(X19,Paramètres!$A$3:$A$102,Paramètres!$B$3:$B$102)*Paramètres!$H$5 -> 216 | Z19: =IFERROR(VLOOKUP(J19,Paramètres!$D$3:$E$7,2,FALSE),0)+IFERROR(VLOOKUP(L19,Paramètres!$D$3:$E$7,2,FALSE),0)+IFERROR(VLOOKUP(N19,Paramètres!$D$3:$E$7,2,FALSE),0)+IFERROR(VLOOKUP(P19,Paramètres!$D$3:$E$7,2,FALSE),0)+IFERROR(VLOOKUP(R19,Paramètres!$D$3:$E$7,2,FALSE),0)+IFERROR(VLOOKUP(T19,Paramètres!$D$3:$E$7,2,FALSE),0)+IFERROR(VLOOKUP(V19,Paramètres!$D$3:$E$7,2,FALSE),0)+IFERROR(VLOOKUP(X19,Paramètres!$D$3:$E$7,2,FALSE),0) -> 5 | AA19: 0 | AB19: |003|004|009|999|999|999|999|999 | AC19: 195
A20: 441.0202 | B20: 15 | C20: 441.0202 | D20: 15 | E20: 1241 | F20: MARTINET | G20: Maxence | H20: MESVRIN VTT | I20: H(U7) | K20: =LOOKUP(J20,Paramètres!$A$3:$A$102,Paramètres!$B$3:$B$102) -> 0 | M20: =LOOKUP(L20,Paramètres!$A$3:$A$102,Paramètres!$B$3:$B$102) -> 0 | O20: =LOOKUP(N20,Paramètres!$A$3:$A$102,Paramètres!$B$3:$B$102) -> 0 | P20: 4 | Q20: =LOOKUP(P20,Paramètres!$A$3:$A$102,Paramètres!$B$3:$B$102) -> 141 | S20: =LOOKUP(R20,Paramètres!$A$3:$A$102,Paramètres!$B$3:$B$102) -> 0 | T20: 1 | U20: =LOOKUP(T20,Paramètres!$A$3:$A$102,Paramètres!$B$3:$B$102) -> 150 | V20: 1 | W20: =LOOKUP(V20,Paramètres!$A$3:$A$102,Paramètres!$B$3:$B$102) -> 150 | Y20: =LOOKUP(X20,Paramètres!$A$3:$A$102,Paramètres!$B$3:$B$102)*Paramètres!$H$5 -> 0 | Z20: =IFERROR(VLOOKUP(J20,Paramètres!$D$3:$E$7,2,FALSE),0)+IFERROR(VLOOKUP(L20,Paramètres!$D$3:$E$7,2,FALSE),0)+IFERROR(VLOOKUP(N20,Paramètres!$D$3:$E$7,2,FALSE),0)+IFERROR(VLOOKUP(P20,Paramètres!$D$3:$E$7,2,FALSE),0)+IFERROR(VLOOKUP(R20,Paramètres!$D$3:$E$7,2,FALSE),0)+IFERROR(VLOOKUP(T20,Paramètres!$D$3:$E$7,2,FALSE),0)+IFERROR(VLOOKUP(V20,Paramètres!$D$3:$E$7,2,FALSE),0)+IFERROR(VLOOKUP(X20,Paramètres!$D$3:$E$7,2,FALSE),0) -> 12 | AA20: 0 | AB20: |001|001|004|999|999|999|999|999 | AC20: 202
A21: 423.0201 | B21: 16 | C21: 423.0201 | D21: 16 | E21: 1220 | F21: LACOMBE | G21: Rafaël | H21: VELO CLUB DOLOIS | I21: H(U9) | J21: 1 | K21: =LOOKUP(J21,Paramètres!$A$3:$A$102,Paramètres!$B$3:$B$102) -> 150 | M21: =LOOKUP(L21,Paramètres!$A$3:$A$102,Paramètres!$B$3:$B$102) -> 0 | N21: 3 | O21: =LOOKUP(N21,Paramètres!$A$3:$A$102,Paramètres!$B$3:$B$102) -> 144 | Q21: =LOOKUP(P21,Paramètres!$A$3:$A$102,Paramètres!$B$3:$B$102) -> 0 | S21: =LOOKUP(R21,Paramètres!$A$3:$A$102,Paramètres!$B$3:$B$102) -> 0 | T21: 8 | U21: =LOOKUP(T21,Paramètres!$A$3:$A$102,Paramètres!$B$3:$B$102) -> 129 | W21: =LOOKUP(V21,Paramètres!$A$3:$A$102,Paramètres!$B$3:$B$102) -> 0 | Y21: =LOOKUP(X21,Paramètres!$A$3:$A$102,Paramètres!$B$3:$B$102)*Paramètres!$H$5 -> 0 | Z21: =IFERROR(VLOOKUP(J21,Paramètres!$D$3:$E$7,2,FALSE),0)+IFERROR(VLOOKUP(L21,Paramètres!$D$3:$E$7,2,FALSE),0)+IFERROR(VLOOKUP(N21,Paramètres!$D$3:$E$7,2,FALSE),0)+IFERROR(VLOOKUP(P21,Paramètres!$D$3:$E$7,2,FALSE),0)+IFERROR(VLOOKUP(R21,Paramètres!$D$3:$E$7,2,FALSE),0)+IFERROR(VLOOKUP(T21,Paramètres!$D$3:$E$7,2,FALSE),0)+IFERROR(VLOOKUP(V21,Paramètres!$D$3:$E$7,2,FALSE),0)+IFERROR(VLOOKUP(X21,Paramètres!$D$3:$E$7,2,FALSE),0) -> 8 | AA21: 0 | AB21: |001|003|008|999|999|999|999|999 | AC21: 201
A22: 423.0163 | B22: 17 | C22: 423.0163 | D22: 17 | E22: 1201 | F22: LE LANN | G22: Alix | H22: AVENIR CYCLISTE CHALONNAIS | I22: F(U9) | J22: 22 | K22: =LOOKUP(J22,Paramètres!$A$3:$A$102,Paramètres!$B$3:$B$102) -> 87 | M22: =LOOKUP(L22,Paramètres!$A$3:$A$102,Paramètres!$B$3:$B$102) -> 0 | O22: =LOOKUP(N22,Paramètres!$A$3:$A$102,Paramètres!$B$3:$B$102) -> 0 | P22: 19 | Q22: =LOOKUP(P22,Paramètres!$A$3:$A$102,Paramètres!$B$3:$B$102) -> 96 | R22: 10 | S22: =LOOKUP(R22,Paramètres!$A$3:$A$102,Paramètres!$B$3:$B$102) -> 123 | U22: =LOOKUP(T22,Paramètres!$A$3:$A$102,Paramètres!$B$3:$B$102) -> 0 | V22: 12 | W22: =LOOKUP(V22,Paramètres!$A$3:$A$102,Paramètres!$B$3:$B$102) -> 117 | Y22: =LOOKUP(X22,Paramètres!$A$3:$A$102,Paramètres!$B$3:$B$102)*Paramètres!$H$5 -> 0 | Z22: =IFERROR(VLOOKUP(J22,Paramètres!$D$3:$E$7,2,FALSE),0)+IFERROR(VLOOKUP(L22,Paramètres!$D$3:$E$7,2,FALSE),0)+IFERROR(VLOOKUP(N22,Paramètres!$D$3:$E$7,2,FALSE),0)+IFERROR(VLOOKUP(P22,Paramètres!$D$3:$E$7,2,FALSE),0)+IFERROR(VLOOKUP(R22,Paramètres!$D$3:$E$7,2,FALSE),0)+IFERROR(VLOOKUP(T22,Paramètres!$D$3:$E$7,2,FALSE),0)+IFERROR(VLOOKUP(V22,Paramètres!$D$3:$E$7,2,FALSE),0)+IFERROR(VLOOKUP(X22,Paramètres!$D$3:$E$7,2,FALSE),0) -> 0 | AA22: 0 | AB22: |010|012|019|022|999|999|999|999 | AC22: 163
A23: 417.018 | B23: 18 | C23: 417.018 | D23: 18 | E23: 1232 | F23: DURAND | G23: Zachary | H23: LES FOURGS SINGLETRACK | I23: H(U7) | K23: =LOOKUP(J23,Paramètres!$A$3:$A$102,Paramètres!$B$3:$B$102) -> 0 | L23: 17 | M23: =LOOKUP(L23,Paramètres!$A$3:$A$102,Paramètres!$B$3:$B$102) -> 102 | O23: =LOOKUP(N23,Paramètres!$A$3:$A$102,Paramètres!$B$3:$B$102) -> 0 | Q23: =LOOKUP(P23,Paramètres!$A$3:$A$102,Paramètres!$B$3:$B$102) -> 0 | S23: =LOOKUP(R23,Paramètres!$A$3:$A$102,Paramètres!$B$3:$B$102) -> 0 | T23: 6 | U23: =LOOKUP(T23,Paramètres!$A$3:$A$102,Paramètres!$B$3:$B$102) -> 135 | W23: =LOOKUP(V23,Paramètres!$A$3:$A$102,Paramètres!$B$3:$B$102) -> 0 | X23: 11 | Y23: =LOOKUP(X23,Paramètres!$A$3:$A$102,Paramètres!$B$3:$B$102)*Paramètres!$H$5 -> 180 | Z23: =IFERROR(VLOOKUP(J23,Paramètres!$D$3:$E$7,2,FALSE),0)+IFERROR(VLOOKUP(L23,Paramètres!$D$3:$E$7,2,FALSE),0)+IFERROR(VLOOKUP(N23,Paramètres!$D$3:$E$7,2,FALSE),0)+IFERROR(VLOOKUP(P23,Paramètres!$D$3:$E$7,2,FALSE),0)+IFERROR(VLOOKUP(R23,Paramètres!$D$3:$E$7,2,FALSE),0)+IFERROR(VLOOKUP(T23,Paramètres!$D$3:$E$7,2,FALSE),0)+IFERROR(VLOOKUP(V23,Paramètres!$D$3:$E$7,2,FALSE),0)+IFERROR(VLOOKUP(X23,Paramètres!$D$3:$E$7,2,FALSE),0) -> 0 | AA23: 0 | AB23: |006|011|017|999|999|999|999|999 | AC23: 180
A24: 378.0187 | B24: 19 | C24: 378.0187 | D24: 19 | E24: 1225 | F24: COMPAGNON | G24: Paul | H24: VTT CONLIEGE | I24: H(U9) | J24: 5 | K24: =LOOKUP(J24,Paramètres!$A$3:$A$102,Paramètres!$B$3:$B$102) -> 138 | L24: 7 | M24: =LOOKUP(L24,Paramètres!$A$3:$A$102,Paramètres!$B$3:$B$102) -> 132 | O24: =LOOKUP(N24,Paramètres!$A$3:$A$102,Paramètres!$B$3:$B$102) -> 0 | Q24: =LOOKUP(P24,Paramètres!$A$3:$A$102,Paramètres!$B$3:$B$102) -> 0 | S24: =LOOKUP(R24,Paramètres!$A$3:$A$102,Paramètres!$B$3:$B$102) -> 0 | T24: 15 | U24: =LOOKUP(T24,Paramètres!$A$3:$A$102,Paramètres!$B$3:$B$102) -> 108 | W24: =LOOKUP(V24,Paramètres!$A$3:$A$102,Paramètres!$B$3:$B$102) -> 0 | Y24: =LOOKUP(X24,Paramètres!$A$3:$A$102,Paramètres!$B$3:$B$102)*Paramètres!$H$5 -> 0 | Z24: =IFERROR(VLOOKUP(J24,Paramètres!$D$3:$E$7,2,FALSE),0)+IFERROR(VLOOKUP(L24,Paramètres!$D$3:$E$7,2,FALSE),0)+IFERROR(VLOOKUP(N24,Paramètres!$D$3:$E$7,2,FALSE),0)+IFERROR(VLOOKUP(P24,Paramètres!$D$3:$E$7,2,FALSE),0)+IFERROR(VLOOKUP(R24,Paramètres!$D$3:$E$7,2,FALSE),0)+IFERROR(VLOOKUP(T24,Paramètres!$D$3:$E$7,2,FALSE),0)+IFERROR(VLOOKUP(V24,Paramètres!$D$3:$E$7,2,FALSE),0)+IFERROR(VLOOKUP(X24,Paramètres!$D$3:$E$7,2,FALSE),0) -> 1 | AA24: 0 | AB24: |005|007|015|999|999|999|999|999 | AC24: 187
A25: 366.0168 | B25: 20 | C25: 366.0168 | D25: 20 | E25: 1259 | F25: RISCAGLI | G25: Julien | H25: VELO SPORT CLUB BEAUNOIS | I25: H(U9) | K25: =LOOKUP(J25,Paramètres!$A$3:$A$102,Paramètres!$B$3:$B$102) -> 0 | M25: =LOOKUP(L25,Paramètres!$A$3:$A$102,Paramètres!$B$3:$B$102) -> 0 | N25: 11 | O25: =LOOKUP(N25,Paramètres!$A$3:$A$102,Paramètres!$B$3:$B$102) -> 120 | P25: 11 | Q25: =LOOKUP(P25,Paramètres!$A$3:$A$102,Paramètres!$B$3:$B$102) -> 120 | S25: =LOOKUP(R25,Paramètres!$A$3:$A$102,Paramètres!$B$3:$B$102) -> 0 | U25: =LOOKUP(T25,Paramètres!$A$3:$A$102,Paramètres!$B$3:$B$102) -> 0 | V25: 9 | W25: =LOOKUP(V25,Paramètres!$A$3:$A$102,Paramètres!$B$3:$B$102) -> 126 | Y25: =LOOKUP(X25,Paramètres!$A$3:$A$102,Paramètres!$B$3:$B$102)*Paramètres!$H$5 -> 0 | Z25: =IFERROR(VLOOKUP(J25,Paramètres!$D$3:$E$7,2,FALSE),0)+IFERROR(VLOOKUP(L25,Paramètres!$D$3:$E$7,2,FALSE),0)+IFERROR(VLOOKUP(N25,Paramètres!$D$3:$E$7,2,FALSE),0)+IFERROR(VLOOKUP(P25,Paramètres!$D$3:$E$7,2,FALSE),0)+IFERROR(VLOOKUP(R25,Paramètres!$D$3:$E$7,2,FALSE),0)+IFERROR(VLOOKUP(T25,Paramètres!$D$3:$E$7,2,FALSE),0)+IFERROR(VLOOKUP(V25,Paramètres!$D$3:$E$7,2,FALSE),0)+IFERROR(VLOOKUP(X25,Paramètres!$D$3:$E$7,2,FALSE),0) -> 0 | AA25: 0 | AB25: |009|011|011|999|999|999|999|999 | AC25: 168
A26: 345.0177 | B26: 21 | C26: 345.0177 | D26: 21 | E26: 1224 | F26: TISSOT | G26: Gabin | H26: VTT ORGELET | I26: H(U9) | J26: 18 | K26: =LOOKUP(J26,Paramètres!$A$3:$A$102,Paramètres!$B$3:$B$102) -> 99 | L26: 13 | M26: =LOOKUP(L26,Paramètres!$A$3:$A$102,Paramètres!$B$3:$B$102) -> 114 | N26: 7 | O26: =LOOKUP(N26,Paramètres!$A$3:$A$102,Paramètres!$B$3:$B$102) -> 132 | Q26: =LOOKUP(P26,Paramètres!$A$3:$A$102,Paramètres!$B$3:$B$102) -> 0 | S26: =LOOKUP(R26,Paramètres!$A$3:$A$102,Paramètres!$B$3:$B$102) -> 0 | U26: =LOOKUP(T26,Paramètres!$A$3:$A$102,Paramètres!$B$3:$B$102) -> 0 | W26: =LOOKUP(V26,Paramètres!$A$3:$A$102,Paramètres!$B$3:$B$102) -> 0 | Y26: =LOOKUP(X26,Paramètres!$A$3:$A$102,Paramètres!$B$3:$B$102)*Paramètres!$H$5 -> 0 | Z26: =IFERROR(VLOOKUP(J26,Paramètres!$D$3:$E$7,2,FALSE),0)+IFERROR(VLOOKUP(L26,Paramètres!$D$3:$E$7,2,FALSE),0)+IFERROR(VLOOKUP(N26,Paramètres!$D$3:$E$7,2,FALSE),0)+IFERROR(VLOOKUP(P26,Paramètres!$D$3:$E$7,2,FALSE),0)+IFERROR(VLOOKUP(R26,Paramètres!$D$3:$E$7,2,FALSE),0)+IFERROR(VLOOKUP(T26,Paramètres!$D$3:$E$7,2,FALSE),0)+IFERROR(VLOOKUP(V26,Paramètres!$D$3:$E$7,2,FALSE),0)+IFERROR(VLOOKUP(X26,Paramètres!$D$3:$E$7,2,FALSE),0) -> 0 | AA26: 0 | AB26: |007|013|018|999|999|999|999|999 | AC26: 177
A27: 342.0191 | B27: 22 | C27: 342.0191 | D27: 22 | E27: 1270 | F27: BONDOUX | G27: Lou | H27: MESVRIN VTT | I27: H(U7) | K27: =LOOKUP(J27,Paramètres!$A$3:$A$102,Paramètres!$B$3:$B$102) -> 0 | M27: =LOOKUP(L27,Paramètres!$A$3:$A$102,Paramètres!$B$3:$B$102) -> 0 | O27: =LOOKUP(N27,Paramètres!$A$3:$A$102,Paramètres!$B$3:$B$102) -> 0 | P27: 23 | Q27: =LOOKUP(P27,Paramètres!$A$3:$A$102,Paramètres!$B$3:$B$102) -> 84 | S27: =LOOKUP(R27,Paramètres!$A$3:$A$102,Paramètres!$B$3:$B$102) -> 0 | T27: 12 | U27: =LOOKUP(T27,Paramètres!$A$3:$A$102,Paramètres!$B$3:$B$102) -> 117 | V27: 4 | W27: =LOOKUP(V27,Paramètres!$A$3:$A$102,Paramètres!$B$3:$B$102) -> 141 | Y27: =LOOKUP(X27,Paramètres!$A$3:$A$102,Paramètres!$B$3:$B$102)*Paramètres!$H$5 -> 0 | Z27: =IFERROR(VLOOKUP(J27,Paramètres!$D$3:$E$7,2,FALSE),0)+IFERROR(VLOOKUP(L27,Paramètres!$D$3:$E$7,2,FALSE),0)+IFERROR(VLOOKUP(N27,Paramètres!$D$3:$E$7,2,FALSE),0)+IFERROR(VLOOKUP(P27,Paramètres!$D$3:$E$7,2,FALSE),0)+IFERROR(VLOOKUP(R27,Paramètres!$D$3:$E$7,2,FALSE),0)+IFERROR(VLOOKUP(T27,Paramètres!$D$3:$E$7,2,FALSE),0)+IFERROR(VLOOKUP(V27,Paramètres!$D$3:$E$7,2,FALSE),0)+IFERROR(VLOOKUP(X27,Paramètres!$D$3:$E$7,2,FALSE),0) -> 2 | AA27: 0 | AB27: |004|012|023|999|999|999|999|999 | AC27: 191
A28: 336.0186 | B28: 23 | C28: 336.0186 | D28: 23 | E28: 1262 | F28: LHENRY MARQUIS | G28: Alix | H28: MESVRIN VTT | I28: H(U9) | K28: =LOOKUP(J28,Paramètres!$A$3:$A$102,Paramètres!$B$3:$B$102) -> 0 | M28: =LOOKUP(L28,Paramètres!$A$3:$A$102,Paramètres!$B$3:$B$102) -> 0 | O28: =LOOKUP(N28,Paramètres!$A$3:$A$102,Paramètres!$B$3:$B$102) -> 0 | Q28: =LOOKUP(P28,Paramètres!$A$3:$A$102,Paramètres!$B$3:$B$102) -> 0 | S28: =LOOKUP(R28,Paramètres!$A$3:$A$102,Paramètres!$B$3:$B$102) -> 0 | U28: =LOOKUP(T28,Paramètres!$A$3:$A$102,Paramètres!$B$3:$B$102) -> 0 | V28: 5 | W28: =LOOKUP(V28,Paramètres!$A$3:$A$102,Paramètres!$B$3:$B$102) -> 138 | X28: 7 | Y28: =LOOKUP(X28,Paramètres!$A$3:$A$102,Paramètres!$B$3:$B$102)*Paramètres!$H$5 -> 198 | Z28: =IFERROR(VLOOKUP(J28,Paramètres!$D$3:$E$7,2,FALSE),0)+IFERROR(VLOOKUP(L28,Paramètres!$D$3:$E$7,2,FALSE),0)+IFERROR(VLOOKUP(N28,Paramètres!$D$3:$E$7,2,FALSE),0)+IFERROR(VLOOKUP(P28,Paramètres!$D$3:$E$7,2,FALSE),0)+IFERROR(VLOOKUP(R28,Paramètres!$D$3:$E$7,2,FALSE),0)+IFERROR(VLOOKUP(T28,Paramètres!$D$3:$E$7,2,FALSE),0)+IFERROR(VLOOKUP(V28,Paramètres!$D$3:$E$7,2,FALSE),0)+IFERROR(VLOOKUP(X28,Paramètres!$D$3:$E$7,2,FALSE),0) -> 1 | AA28: 0 | AB28: |005|007|999|999|999|999|999|999 | AC28: 186
A29: 321.0154 | B29: 24 | C29: 321.0154 | D29: 24 | E29: 1219 | F29: OFFNER | G29: Paul | H29: U.C. MOREZ | I29: H(U9) | J29: 12 | K29: =LOOKUP(J29,Paramètres!$A$3:$A$102,Paramètres!$B$3:$B$102) -> 117 | L29: 16 | M29: =LOOKUP(L29,Paramètres!$A$3:$A$102,Paramètres!$B$3:$B$102) -> 105 | N29: 18 | O29: =LOOKUP(N29,Paramètres!$A$3:$A$102,Paramètres!$B$3:$B$102) -> 99 | Q29: =LOOKUP(P29,Paramètres!$A$3:$A$102,Paramètres!$B$3:$B$102) -> 0 | S29: =LOOKUP(R29,Paramètres!$A$3:$A$102,Paramètres!$B$3:$B$102) -> 0 | U29: =LOOKUP(T29,Paramètres!$A$3:$A$102,Paramètres!$B$3:$B$102) -> 0 | W29: =LOOKUP(V29,Paramètres!$A$3:$A$102,Paramètres!$B$3:$B$102) -> 0 | Y29: =LOOKUP(X29,Paramètres!$A$3:$A$102,Paramètres!$B$3:$B$102)*Paramètres!$H$5 -> 0 | Z29: =IFERROR(VLOOKUP(J29,Paramètres!$D$3:$E$7,2,FALSE),0)+IFERROR(VLOOKUP(L29,Paramètres!$D$3:$E$7,2,FALSE),0)+IFERROR(VLOOKUP(N29,Paramètres!$D$3:$E$7,2,FALSE),0)+IFERROR(VLOOKUP(P29,Paramètres!$D$3:$E$7,2,FALSE),0)+IFERROR(VLOOKUP(R29,Paramètres!$D$3:$E$7,2,FALSE),0)+IFERROR(VLOOKUP(T29,Paramètres!$D$3:$E$7,2,FALSE),0)+IFERROR(VLOOKUP(V29,Paramètres!$D$3:$E$7,2,FALSE),0)+IFERROR(VLOOKUP(X29,Paramètres!$D$3:$E$7,2,FALSE),0) -> 0 | AA29: 0 | AB29: |012|016|018|999|999|999|999|999 | AC29: 154
A30: 315.0157 | B30: 25 | C30: 315.0157 | D30: 25 | E30: 1204 | F30: GAUTHIER | G30: Pablo | H30: MONTCEAU VTT | I30: H(U9) | J30: 16 | K30: =LOOKUP(J30,Paramètres!$A$3:$A$102,Paramètres!$B$3:$B$102) -> 105 | L30: 21 | M30: =LOOKUP(L30,Paramètres!$A$3:$A$102,Paramètres!$B$3:$B$102) -> 90 | O30: =LOOKUP(N30,Paramètres!$A$3:$A$102,Paramètres!$B$3:$B$102) -> 0 | Q30: =LOOKUP(P30,Paramètres!$A$3:$A$102,Paramètres!$B$3:$B$102) -> 0 | S30: =LOOKUP(R30,Paramètres!$A$3:$A$102,Paramètres!$B$3:$B$102) -> 0 | U30: =LOOKUP(T30,Paramètres!$A$3:$A$102,Paramètres!$B$3:$B$102) -> 0 | V30: 11 | W30: =LOOKUP(V30,Paramètres!$A$3:$A$102,Paramètres!$B$3:$B$102) -> 120 | Y30: =LOOKUP(X30,Paramètres!$A$3:$A$102,Paramètres!$B$3:$B$102)*Paramètres!$H$5 -> 0 | Z30: =IFERROR(VLOOKUP(J30,Paramètres!$D$3:$E$7,2,FALSE),0)+IFERROR(VLOOKUP(L30,Paramètres!$D$3:$E$7,2,FALSE),0)+IFERROR(VLOOKUP(N30,Paramètres!$D$3:$E$7,2,FALSE),0)+IFERROR(VLOOKUP(P30,Paramètres!$D$3:$E$7,2,FALSE),0)+IFERROR(VLOOKUP(R30,Paramètres!$D$3:$E$7,2,FALSE),0)+IFERROR(VLOOKUP(T30,Paramètres!$D$3:$E$7,2,FALSE),0)+IFERROR(VLOOKUP(V30,Paramètres!$D$3:$E$7,2,FALSE),0)+IFERROR(VLOOKUP(X30,Paramètres!$D$3:$E$7,2,FALSE),0) -> 0 | AA30: 0 | AB30: |011|016|021|999|999|999|999|999 | AC30: 157
A31: 276.0144 | B31: 26 | C31: 276.0144 | D31: 26 | E31: 1210 | F31: FEDERICI | G31: Paul | H31: VC CHAROLLAIS | I31: H(U9) | J31: 24 | K31: =LOOKUP(J31,Paramètres!$A$3:$A$102,Paramètres!$B$3:$B$102) -> 81 | M31: =LOOKUP(L31,Paramètres!$A$3:$A$102,Paramètres!$B$3:$B$102) -> 0 | O31: =LOOKUP(N31,Paramètres!$A$3:$A$102,Paramètres!$B$3:$B$102) -> 0 | P31: 22 | Q31: =LOOKUP(P31,Paramètres!$A$3:$A$102,Paramètres!$B$3:$B$102) -> 87 | S31: =LOOKUP(R31,Paramètres!$A$3:$A$102,Paramètres!$B$3:$B$102) -> 0 | U31: =LOOKUP(T31,Paramètres!$A$3:$A$102,Paramètres!$B$3:$B$102) -> 0 | V31: 15 | W31: =LOOKUP(V31,Paramètres!$A$3:$A$102,Paramètres!$B$3:$B$102) -> 108 | Y31: =LOOKUP(X31,Paramètres!$A$3:$A$102,Paramètres!$B$3:$B$102)*Paramètres!$H$5 -> 0 | Z31: =IFERROR(VLOOKUP(J31,Paramètres!$D$3:$E$7,2,FALSE),0)+IFERROR(VLOOKUP(L31,Paramètres!$D$3:$E$7,2,FALSE),0)+IFERROR(VLOOKUP(N31,Paramètres!$D$3:$E$7,2,FALSE),0)+IFERROR(VLOOKUP(P31,Paramètres!$D$3:$E$7,2,FALSE),0)+IFERROR(VLOOKUP(R31,Paramètres!$D$3:$E$7,2,FALSE),0)+IFERROR(VLOOKUP(T31,Paramètres!$D$3:$E$7,2,FALSE),0)+IFERROR(VLOOKUP(V31,Paramètres!$D$3:$E$7,2,FALSE),0)+IFERROR(VLOOKUP(X31,Paramètres!$D$3:$E$7,2,FALSE),0) -> 0 | AA31: 0 | AB31: |015|022|024|999|999|999|999|999 | AC31: 144
A32: 273.0188 | B32: 27 | C32: 273.0188 | D32: 27 | E32: 1237 | F32: ISABEY | G32: Aurèl | H32: U.C. MOREZ | I32: H(U9) | K32: =LOOKUP(J32,Paramètres!$A$3:$A$102,Paramètres!$B$3:$B$102) -> 0 | L32: 5 | M32: =LOOKUP(L32,Paramètres!$A$3:$A$102,Paramètres!$B$3:$B$102) -> 138 | O32: =LOOKUP(N32,Paramètres!$A$3:$A$102,Paramètres!$B$3:$B$102) -> 0 | Q32: =LOOKUP(P32,Paramètres!$A$3:$A$102,Paramètres!$B$3:$B$102) -> 0 | S32: =LOOKUP(R32,Paramètres!$A$3:$A$102,Paramètres!$B$3:$B$102) -> 0 | T32: 6 | U32: =LOOKUP(T32,Paramètres!$A$3:$A$102,Paramètres!$B$3:$B$102) -> 135 | W32: =LOOKUP(V32,Paramètres!$A$3:$A$102,Paramètres!$B$3:$B$102) -> 0 | Y32: =LOOKUP(X32,Paramètres!$A$3:$A$102,Paramètres!$B$3:$B$102)*Paramètres!$H$5 -> 0 | Z32: =IFERROR(VLOOKUP(J32,Paramètres!$D$3:$E$7,2,FALSE),0)+IFERROR(VLOOKUP(L32,Paramètres!$D$3:$E$7,2,FALSE),0)+IFERROR(VLOOKUP(N32,Paramètres!$D$3:$E$7,2,FALSE),0)+IFERROR(VLOOKUP(P32,Paramètres!$D$3:$E$7,2,FALSE),0)+IFERROR(VLOOKUP(R32,Paramètres!$D$3:$E$7,2,FALSE),0)+IFERROR(VLOOKUP(T32,Paramètres!$D$3:$E$7,2,FALSE),0)+IFERROR(VLOOKUP(V32,Paramètres!$D$3:$E$7,2,FALSE),0)+IFERROR(VLOOKUP(X32,Paramètres!$D$3:$E$7,2,FALSE),0) -> 1 | AA32: 0 | AB32: |005|006|999|999|999|999|999|999 | AC32: 188
A33: 270.0183 | B33: 28 | C33: 270.0183 | D33: 28 | E33: 1209 | F33: WARTAK | G33: Léo | H33: PASSE PARTOUT VTT MACON | I33: H(U9) | J33: 6 | K33: =LOOKUP(J33,Paramètres!$A$3:$A$102,Paramètres!$B$3:$B$102) -> 135 | M33: =LOOKUP(L33,Paramètres!$A$3:$A$102,Paramètres!$B$3:$B$102) -> 0 | O33: =LOOKUP(N33,Paramètres!$A$3:$A$102,Paramètres!$B$3:$B$102) -> 0 | P33: 6 | Q33: =LOOKUP(P33,Paramètres!$A$3:$A$102,Paramètres!$B$3:$B$102) -> 135 | S33: =LOOKUP(R33,Paramètres!$A$3:$A$102,Paramètres!$B$3:$B$102) -> 0 | U33: =LOOKUP(T33,Paramètres!$A$3:$A$102,Paramètres!$B$3:$B$102) -> 0 | W33: =LOOKUP(V33,Paramètres!$A$3:$A$102,Paramètres!$B$3:$B$102) -> 0 | Y33: =LOOKUP(X33,Paramètres!$A$3:$A$102,Paramètres!$B$3:$B$102)*Paramètres!$H$5 -> 0 | Z33: =IFERROR(VLOOKUP(J33,Paramètres!$D$3:$E$7,2,FALSE),0)+IFERROR(VLOOKUP(L33,Paramètres!$D$3:$E$7,2,FALSE),0)+IFERROR(VLOOKUP(N33,Paramètres!$D$3:$E$7,2,FALSE),0)+IFERROR(VLOOKUP(P33,Paramètres!$D$3:$E$7,2,FALSE),0)+IFERROR(VLOOKUP(R33,Paramètres!$D$3:$E$7,2,FALSE),0)+IFERROR(VLOOKUP(T33,Paramètres!$D$3:$E$7,2,FALSE),0)+IFERROR(VLOOKUP(V33,Paramètres!$D$3:$E$7,2,FALSE),0)+IFERROR(VLOOKUP(X33,Paramètres!$D$3:$E$7,2,FALSE),0) -> 0 | AA33: 0 | AB33: |006|006|999|999|999|999|999|999 | AC33: 183
A34: 258.0184 | B34: 29 | C34: 258.0184 | D34: 29 | E34: 1251 | F34: BOUHIN | G34: Mathéo | H34: VTT MASSIF JURA | I34: H(U9) | K34: =LOOKUP(J34,Paramètres!$A$3:$A$102,Paramètres!$B$3:$B$102) -> 0 | M34: =LOOKUP(L34,Paramètres!$A$3:$A$102,Paramètres!$B$3:$B$102) -> 0 | N34: 5 | O34: =LOOKUP(N34,Paramètres!$A$3:$A$102,Paramètres!$B$3:$B$102) -> 138 | Q34: =LOOKUP(P34,Paramètres!$A$3:$A$102,Paramètres!$B$3:$B$102) -> 0 | S34: =LOOKUP(R34,Paramètres!$A$3:$A$102,Paramètres!$B$3:$B$102) -> 0 | T34: 11 | U34: =LOOKUP(T34,Paramètres!$A$3:$A$102,Paramètres!$B$3:$B$102) -> 120 | W34: =LOOKUP(V34,Paramètres!$A$3:$A$102,Paramètres!$B$3:$B$102) -> 0 | Y34: =LOOKUP(X34,Paramètres!$A$3:$A$102,Paramètres!$B$3:$B$102)*Paramètres!$H$5 -> 0 | Z34: =IFERROR(VLOOKUP(J34,Paramètres!$D$3:$E$7,2,FALSE),0)+IFERROR(VLOOKUP(L34,Paramètres!$D$3:$E$7,2,FALSE),0)+IFERROR(VLOOKUP(N34,Paramètres!$D$3:$E$7,2,FALSE),0)+IFERROR(VLOOKUP(P34,Paramètres!$D$3:$E$7,2,FALSE),0)+IFERROR(VLOOKUP(R34,Paramètres!$D$3:$E$7,2,FALSE),0)+IFERROR(VLOOKUP(T34,Paramètres!$D$3:$E$7,2,FALSE),0)+IFERROR(VLOOKUP(V34,Paramètres!$D$3:$E$7,2,FALSE),0)+IFERROR(VLOOKUP(X34,Paramètres!$D$3:$E$7,2,FALSE),0) -> 1 | AA34: 0 | AB34: |005|011|999|999|999|999|999|999 | AC34: 184
A35: 255.0141 | B35: 30 | C35: 255.0141 | D35: 30 | E35: 1246 | F35: BOUDOT | G35: Adèle | H35: MESVRIN VTT | I35: F(U9) | K35: =LOOKUP(J35,Paramètres!$A$3:$A$102,Paramètres!$B$3:$B$102) -> 0 | M35: =LOOKUP(L35,Paramètres!$A$3:$A$102,Paramètres!$B$3:$B$102) -> 0 | O35: =LOOKUP(N35,Paramètres!$A$3:$A$102,Paramètres!$B$3:$B$102) -> 0 | P35: 24 | Q35: =LOOKUP(P35,Paramètres!$A$3:$A$102,Paramètres!$B$3:$B$102) -> 81 | S35: =LOOKUP(R35,Paramètres!$A$3:$A$102,Paramètres!$B$3:$B$102) -> 0 | T35: 28 | U35: =LOOKUP(T35,Paramètres!$A$3:$A$102,Paramètres!$B$3:$B$102) -> 69 | V35: 16 | W35: =LOOKUP(V35,Paramètres!$A$3:$A$102,Paramètres!$B$3:$B$102) -> 105 | Y35: =LOOKUP(X35,Paramètres!$A$3:$A$102,Paramètres!$B$3:$B$102)*Paramètres!$H$5 -> 0 | Z35: =IFERROR(VLOOKUP(J35,Paramètres!$D$3:$E$7,2,FALSE),0)+IFERROR(VLOOKUP(L35,Paramètres!$D$3:$E$7,2,FALSE),0)+IFERROR(VLOOKUP(N35,Paramètres!$D$3:$E$7,2,FALSE),0)+IFERROR(VLOOKUP(P35,Paramètres!$D$3:$E$7,2,FALSE),0)+IFERROR(VLOOKUP(R35,Paramètres!$D$3:$E$7,2,FALSE),0)+IFERROR(VLOOKUP(T35,Paramètres!$D$3:$E$7,2,FALSE),0)+IFERROR(VLOOKUP(V35,Paramètres!$D$3:$E$7,2,FALSE),0)+IFERROR(VLOOKUP(X35,Paramètres!$D$3:$E$7,2,FALSE),0) -> 0 | AA35: 0 | AB35: |016|024|028|999|999|999|999|999 | AC35: 141
A36: 249.0179 | B36: 31 | C36: 249.0179 | D36: 31 | E36: 1255 | F36: GAILLARD | G36: Charlie | H36: VTT MASSIF JURA | I36: H(U9) | K36: =LOOKUP(J36,Paramètres!$A$3:$A$102,Paramètres!$B$3:$B$102) -> 0 | M36: =LOOKUP(L36,Paramètres!$A$3:$A$102,Paramètres!$B$3:$B$102) -> 0 | N36: 6 | O36: =LOOKUP(N36,Paramètres!$A$3:$A$102,Paramètres!$B$3:$B$102) -> 135 | Q36: =LOOKUP(P36,Paramètres!$A$3:$A$102,Paramètres!$B$3:$B$102) -> 0 | S36: =LOOKUP(R36,Paramètres!$A$3:$A$102,Paramètres!$B$3:$B$102) -> 0 | T36: 13 | U36: =LOOKUP(T36,Paramètres!$A$3:$A$102,Paramètres!$B$3:$B$102) -> 114 | W36: =LOOKUP(V36,Paramètres!$A$3:$A$102,Paramètres!$B$3:$B$102) -> 0 | Y36: =LOOKUP(X36,Paramètres!$A$3:$A$102,Paramètres!$B$3:$B$102)*Paramètres!$H$5 -> 0 | Z36: =IFERROR(VLOOKUP(J36,Paramètres!$D$3:$E$7,2,FALSE),0)+IFERROR(VLOOKUP(L36,Paramètres!$D$3:$E$7,2,FALSE),0)+IFERROR(VLOOKUP(N36,Paramètres!$D$3:$E$7,2,FALSE),0)+IFERROR(VLOOKUP(P36,Paramètres!$D$3:$E$7,2,FALSE),0)+IFERROR(VLOOKUP(R36,Paramètres!$D$3:$E$7,2,FALSE),0)+IFERROR(VLOOKUP(T36,Paramètres!$D$3:$E$7,2,FALSE),0)+IFERROR(VLOOKUP(V36,Paramètres!$D$3:$E$7,2,FALSE),0)+IFERROR(VLOOKUP(X36,Paramètres!$D$3:$E$7,2,FALSE),0) -> 0 | AA36: 0 | AB36: |006|013|999|999|999|999|999|999 | AC36: 179
A37: 240.013 | B37: 32 | C37: 240.013 | D37: 32 | E37: 1228 | F37: DITLECADET | G37: Emmie | H37: VELO CLUB ORNANS | I37: F(U9) | K37: =LOOKUP(J37,Paramètres!$A$3:$A$102,Paramètres!$B$3:$B$102) -> 0 | L37: 26 | M37: =LOOKUP(L37,Paramètres!$A$3:$A$102,Paramètres!$B$3:$B$102) -> 75 | N37: 21 | O37: =LOOKUP(N37,Paramètres!$A$3:$A$102,Paramètres!$B$3:$B$102) -> 90 | Q37: =LOOKUP(P37,Paramètres!$A$3:$A$102,Paramètres!$B$3:$B$102) -> 0 | S37: =LOOKUP(R37,Paramètres!$A$3:$A$102,Paramètres!$B$3:$B$102) -> 0 | T37: 26 | U37: =LOOKUP(T37,Paramètres!$A$3:$A$102,Paramètres!$B$3:$B$102) -> 75 | W37: =LOOKUP(V37,Paramètres!$A$3:$A$102,Paramètres!$B$3:$B$102) -> 0 | Y37: =LOOKUP(X37,Paramètres!$A$3:$A$102,Paramètres!$B$3:$B$102)*Paramètres!$H$5 -> 0 | Z37: =IFERROR(VLOOKUP(J37,Paramètres!$D$3:$E$7,2,FALSE),0)+IFERROR(VLOOKUP(L37,Paramètres!$D$3:$E$7,2,FALSE),0)+IFERROR(VLOOKUP(N37,Paramètres!$D$3:$E$7,2,FALSE),0)+IFERROR(VLOOKUP(P37,Paramètres!$D$3:$E$7,2,FALSE),0)+IFERROR(VLOOKUP(R37,Paramètres!$D$3:$E$7,2,FALSE),0)+IFERROR(VLOOKUP(T37,Paramètres!$D$3:$E$7,2,FALSE),0)+IFERROR(VLOOKUP(V37,Paramètres!$D$3:$E$7,2,FALSE),0)+IFERROR(VLOOKUP(X37,Paramètres!$D$3:$E$7,2,FALSE),0) -> 0 | AA37: 0 | AB37: |021|026|026|999|999|999|999|999 | AC37: 130
A38: =K38+M38+O38+S38+U38+W38+Y38+Q38+AC38/10000 -> 222.0156 | B38: =IF(E38,RANK(A38,$A$6:$A$211),"") -> 33 | C38: =A38-MINA(K38,M38,O38,S38,U38,W38,Y38,Q38) -> 222.0156 | D38: =IF(E38,RANK(C38,$C$6:$C$211),"") -> 33 | E38: 1218 | F38: MASSENOT | G38: Aymeric | H38: U.C. MOREZ | I38: H(U9) | J38: 11 | K38: =LOOKUP(J38,Paramètres!$A$3:$A$102,Paramètres!$B$3:$B$102) -> 120 | M38: =LOOKUP(L38,Paramètres!$A$3:$A$102,Paramètres!$B$3:$B$102) -> 0 | N38: 17 | O38: =LOOKUP(N38,Paramètres!$A$3:$A$102,Paramètres!$B$3:$B$102) -> 102 | Q38: =LOOKUP(P38,Paramètres!$A$3:$A$102,Paramètres!$B$3:$B$102) -> 0 | S38: =LOOKUP(R38,Paramètres!$A$3:$A$102,Paramètres!$B$3:$B$102) -> 0 | U38: =LOOKUP(T38,Paramètres!$A$3:$A$102,Paramètres!$B$3:$B$102) -> 0 | W38: =LOOKUP(V38,Paramètres!$A$3:$A$102,Paramètres!$B$3:$B$102) -> 0 | Y38: =LOOKUP(X38,Paramètres!$A$3:$A$102,Paramètres!$B$3:$B$102)*Paramètres!$H$5 -> 0 | Z38: =IFERROR(VLOOKUP(J38,Paramètres!$D$3:$E$7,2,FALSE),0)+IFERROR(VLOOKUP(L38,Paramètres!$D$3:$E$7,2,FALSE),0)+IFERROR(VLOOKUP(N38,Paramètres!$D$3:$E$7,2,FALSE),0)+IFERROR(VLOOKUP(P38,Paramètres!$D$3:$E$7,2,FALSE),0)+IFERROR(VLOOKUP(R38,Paramètres!$D$3:$E$7,2,FALSE),0)+IFERROR(VLOOKUP(T38,Paramètres!$D$3:$E$7,2,FALSE),0)+IFERROR(VLOOKUP(V38,Paramètres!$D$3:$E$7,2,FALSE),0)+IFERROR(VLOOKUP(X38,Paramètres!$D$3:$E$7,2,FALSE),0) -> 0 | AA38: =MINA(K38,M38,O38,S38,Y38,U38,W38,Q38) -> 0 | AB38: |011|017|999|999|999|999|999|999 | AC38: 156
A39: 213.0153 | B39: 34 | C39: 213.0153 | D39: 34 | E39: 1207 | F39: PERRIER MICHON | G39: Maxence | H39: PASSE PARTOUT VTT MACON | I39: H(U7) | J39: 19 | K39: =LOOKUP(J39,Paramètres!$A$3:$A$102,Paramètres!$B$3:$B$102) -> 96 | M39: =LOOKUP(L39,Paramètres!$A$3:$A$102,Paramètres!$B$3:$B$102) -> 0 | O39: =LOOKUP(N39,Paramètres!$A$3:$A$102,Paramètres!$B$3:$B$102) -> 0 | P39: 12 | Q39: =LOOKUP(P39,Paramètres!$A$3:$A$102,Paramètres!$B$3:$B$102) -> 117 | S39: =LOOKUP(R39,Paramètres!$A$3:$A$102,Paramètres!$B$3:$B$102) -> 0 | U39: =LOOKUP(T39,Paramètres!$A$3:$A$102,Paramètres!$B$3:$B$102) -> 0 | W39: =LOOKUP(V39,Paramètres!$A$3:$A$102,Paramètres!$B$3:$B$102) -> 0 | Y39: =LOOKUP(X39,Paramètres!$A$3:$A$102,Paramètres!$B$3:$B$102)*Paramètres!$H$5 -> 0 | Z39: =IFERROR(VLOOKUP(J39,Paramètres!$D$3:$E$7,2,FALSE),0)+IFERROR(VLOOKUP(L39,Paramètres!$D$3:$E$7,2,FALSE),0)+IFERROR(VLOOKUP(N39,Paramètres!$D$3:$E$7,2,FALSE),0)+IFERROR(VLOOKUP(P39,Paramètres!$D$3:$E$7,2,FALSE),0)+IFERROR(VLOOKUP(R39,Paramètres!$D$3:$E$7,2,FALSE),0)+IFERROR(VLOOKUP(T39,Paramètres!$D$3:$E$7,2,FALSE),0)+IFERROR(VLOOKUP(V39,Paramètres!$D$3:$E$7,2,FALSE),0)+IFERROR(VLOOKUP(X39,Paramètres!$D$3:$E$7,2,FALSE),0) -> 0 | AA39: 0 | AB39: |012|019|999|999|999|999|999|999 | AC39: 153
A40: 210.0162 | B40: 35 | C40: 210.0162 | D40: 35 | E40: 1282 | F40: DE SMET | G40: Mahé | H40: VTT MASSIF JURA | I40: H(U9) | K40: =LOOKUP(J40,Paramètres!$A$3:$A$102,Paramètres!$B$3:$B$102) -> 0 | M40: =LOOKUP(L40,Paramètres!$A$3:$A$102,Paramètres!$B$3:$B$102) -> 0 | O40: =LOOKUP(N40,Paramètres!$A$3:$A$102,Paramètres!$B$3:$B$102) -> 0 | Q40: =LOOKUP(P40,Paramètres!$A$3:$A$102,Paramètres!$B$3:$B$102) -> 0 | S40: =LOOKUP(R40,Paramètres!$A$3:$A$102,Paramètres!$B$3:$B$102) -> 0 | T40: 22 | U40: =LOOKUP(T40,Paramètres!$A$3:$A$102,Paramètres!$B$3:$B$102) -> 87 | V40: 10 | W40: =LOOKUP(V40,Paramètres!$A$3:$A$102,Paramètres!$B$3:$B$102) -> 123 | Y40: =LOOKUP(X40,Paramètres!$A$3:$A$102,Paramètres!$B$3:$B$102)*Paramètres!$H$5 -> 0 | Z40: =IFERROR(VLOOKUP(J40,Paramètres!$D$3:$E$7,2,FALSE),0)+IFERROR(VLOOKUP(L40,Paramètres!$D$3:$E$7,2,FALSE),0)+IFERROR(VLOOKUP(N40,Paramètres!$D$3:$E$7,2,FALSE),0)+IFERROR(VLOOKUP(P40,Paramètres!$D$3:$E$7,2,FALSE),0)+IFERROR(VLOOKUP(R40,Paramètres!$D$3:$E$7,2,FALSE),0)+IFERROR(VLOOKUP(T40,Paramètres!$D$3:$E$7,2,FALSE),0)+IFERROR(VLOOKUP(V40,Paramètres!$D$3:$E$7,2,FALSE),0)+IFERROR(VLOOKUP(X40,Paramètres!$D$3:$E$7,2,FALSE),0) -> 0 | AA40: 0 | AB40: |010|022|999|999|999|999|999|999 | AC40: 162
A41: 204.0149 | B41: 36 | C41: 204.0149 | D41: 36 | E41: 1221 | F41: ZIEGLER | G41: Raphaël | H41: VELO CLUB DOLOIS | I41: H(U9) | J41: 14 | K41: =LOOKUP(J41,Paramètres!$A$3:$A$102,Paramètres!$B$3:$B$102) -> 111 | L41: 20 | M41: =LOOKUP(L41,Paramètres!$A$3:$A$102,Paramètres!$B$3:$B$102) -> 93 | O41: =LOOKUP(N41,Paramètres!$A$3:$A$102,Paramètres!$B$3:$B$102) -> 0 | Q41: =LOOKUP(P41,Paramètres!$A$3:$A$102,Paramètres!$B$3:$B$102) -> 0 | S41: =LOOKUP(R41,Paramètres!$A$3:$A$102,Paramètres!$B$3:$B$102) -> 0 | U41: =LOOKUP(T41,Paramètres!$A$3:$A$102,Paramètres!$B$3:$B$102) -> 0 | W41: =LOOKUP(V41,Paramètres!$A$3:$A$102,Paramètres!$B$3:$B$102) -> 0 | Y41: =LOOKUP(X41,Paramètres!$A$3:$A$102,Paramètres!$B$3:$B$102)*Paramètres!$H$5 -> 0 | Z41: =IFERROR(VLOOKUP(J41,Paramètres!$D$3:$E$7,2,FALSE),0)+IFERROR(VLOOKUP(L41,Paramètres!$D$3:$E$7,2,FALSE),0)+IFERROR(VLOOKUP(N41,Paramètres!$D$3:$E$7,2,FALSE),0)+IFERROR(VLOOKUP(P41,Paramètres!$D$3:$E$7,2,FALSE),0)+IFERROR(VLOOKUP(R41,Paramètres!$D$3:$E$7,2,FALSE),0)+IFERROR(VLOOKUP(T41,Paramètres!$D$3:$E$7,2,FALSE),0)+IFERROR(VLOOKUP(V41,Paramètres!$D$3:$E$7,2,FALSE),0)+IFERROR(VLOOKUP(X41,Paramètres!$D$3:$E$7,2,FALSE),0) -> 0 | AA41: 0 | AB41: |014|020|999|999|999|999|999|999 | AC41: 149
A42: 204.0138 | B42: 37 | C42: 204.0138 | D42: 37 | E42: 1272 | F42: FAISY | G42: Théo | H42: VC CHAROLLAIS | I42: H(U9) | K42: =LOOKUP(J42,Paramètres!$A$3:$A$102,Paramètres!$B$3:$B$102) -> 0 | M42: =LOOKUP(L42,Paramètres!$A$3:$A$102,Paramètres!$B$3:$B$102) -> 0 | O42: =LOOKUP(N42,Paramètres!$A$3:$A$102,Paramètres!$B$3:$B$102) -> 0 | P42: 17 | Q42: =LOOKUP(P42,Paramètres!$A$3:$A$102,Paramètres!$B$3:$B$102) -> 102 | S42: =LOOKUP(R42,Paramètres!$A$3:$A$102,Paramètres!$B$3:$B$102) -> 0 | U42: =LOOKUP(T42,Paramètres!$A$3:$A$102,Paramètres!$B$3:$B$102) -> 0 | V42: 17 | W42: =LOOKUP(V42,Paramètres!$A$3:$A$102,Paramètres!$B$3:$B$102) -> 102 | Y42: =LOOKUP(X42,Paramètres!$A$3:$A$102,Paramètres!$B$3:$B$102)*Paramètres!$H$5 -> 0 | Z42: =IFERROR(VLOOKUP(J42,Paramètres!$D$3:$E$7,2,FALSE),0)+IFERROR(VLOOKUP(L42,Paramètres!$D$3:$E$7,2,FALSE),0)+IFERROR(VLOOKUP(N42,Paramètres!$D$3:$E$7,2,FALSE),0)+IFERROR(VLOOKUP(P42,Paramètres!$D$3:$E$7,2,FALSE),0)+IFERROR(VLOOKUP(R42,Paramètres!$D$3:$E$7,2,FALSE),0)+IFERROR(VLOOKUP(T42,Paramètres!$D$3:$E$7,2,FALSE),0)+IFERROR(VLOOKUP(V42,Paramètres!$D$3:$E$7,2,FALSE),0)+IFERROR(VLOOKUP(X42,Paramètres!$D$3:$E$7,2,FALSE),0) -> 0 | AA42: 0 | AB42: |017|017|999|999|999|999|999|999 | AC42: 138
A43: 193.5169 | B43: 38 | C43: 193.5169 | D43: 38 | E43: 1284 | F43: CLEMENT | G43: Carmen | H43: TEAM COBRA CYCLING | I43: F(U9) | K43: =LOOKUP(J43,Paramètres!$A$3:$A$102,Paramètres!$B$3:$B$102) -> 0 | M43: =LOOKUP(L43,Paramètres!$A$3:$A$102,Paramètres!$B$3:$B$102) -> 0 | O43: =LOOKUP(N43,Paramètres!$A$3:$A$102,Paramètres!$B$3:$B$102) -> 0 | Q43: =LOOKUP(P43,Paramètres!$A$3:$A$102,Paramètres!$B$3:$B$102) -> 0 | S43: =LOOKUP(R43,Paramètres!$A$3:$A$102,Paramètres!$B$3:$B$102) -> 0 | U43: =LOOKUP(T43,Paramètres!$A$3:$A$102,Paramètres!$B$3:$B$102) -> 0 | W43: =LOOKUP(V43,Paramètres!$A$3:$A$102,Paramètres!$B$3:$B$102) -> 0 | X43: 8 | Y43: =LOOKUP(X43,Paramètres!$A$3:$A$102,Paramètres!$B$3:$B$102)*Paramètres!$H$5 -> 193.5 | Z43: =IFERROR(VLOOKUP(J43,Paramètres!$D$3:$E$7,2,FALSE),0)+IFERROR(VLOOKUP(L43,Paramètres!$D$3:$E$7,2,FALSE),0)+IFERROR(VLOOKUP(N43,Paramètres!$D$3:$E$7,2,FALSE),0)+IFERROR(VLOOKUP(P43,Paramètres!$D$3:$E$7,2,FALSE),0)+IFERROR(VLOOKUP(R43,Paramètres!$D$3:$E$7,2,FALSE),0)+IFERROR(VLOOKUP(T43,Paramètres!$D$3:$E$7,2,FALSE),0)+IFERROR(VLOOKUP(V43,Paramètres!$D$3:$E$7,2,FALSE),0)+IFERROR(VLOOKUP(X43,Paramètres!$D$3:$E$7,2,FALSE),0) -> 0 | AA43: 0 | AB43: |008|999|999|999|999|999|999|999 | AC43: 169
A44: 189.0164 | B44: 39 | C44: 189.0164 | D44: 39 | E44: 1305 | F44: MUSSIO | G44: Gino | H44: AVENIR CYLISTE RUDIPONTAIN | I44: H(U9) | K44: =LOOKUP(J44,Paramètres!$A$3:$A$102,Paramètres!$B$3:$B$102) -> 0 | M44: =LOOKUP(L44,Paramètres!$A$3:$A$102,Paramètres!$B$3:$B$102) -> 0 | O44: =LOOKUP(N44,Paramètres!$A$3:$A$102,Paramètres!$B$3:$B$102) -> 0 | Q44: =LOOKUP(P44,Paramètres!$A$3:$A$102,Paramètres!$B$3:$B$102) -> 0 | S44: =LOOKUP(R44,Paramètres!$A$3:$A$102,Paramètres!$B$3:$B$102) -> 0 | U44: =LOOKUP(T44,Paramètres!$A$3:$A$102,Paramètres!$B$3:$B$102) -> 0 | W44: =LOOKUP(V44,Paramètres!$A$3:$A$102,Paramètres!$B$3:$B$102) -> 0 | X44: 9 | Y44: =LOOKUP(X44,Paramètres!$A$3:$A$102,Paramètres!$B$3:$B$102)*Paramètres!$H$5 -> 189 | Z44: =IFERROR(VLOOKUP(J44,Paramètres!$D$3:$E$7,2,FALSE),0)+IFERROR(VLOOKUP(L44,Paramètres!$D$3:$E$7,2,FALSE),0)+IFERROR(VLOOKUP(N44,Paramètres!$D$3:$E$7,2,FALSE),0)+IFERROR(VLOOKUP(P44,Paramètres!$D$3:$E$7,2,FALSE),0)+IFERROR(VLOOKUP(R44,Paramètres!$D$3:$E$7,2,FALSE),0)+IFERROR(VLOOKUP(T44,Paramètres!$D$3:$E$7,2,FALSE),0)+IFERROR(VLOOKUP(V44,Paramètres!$D$3:$E$7,2,FALSE),0)+IFERROR(VLOOKUP(X44,Paramètres!$D$3:$E$7,2,FALSE),0) -> 0 | AA44: 0 | AB44: |009|999|999|999|999|999|999|999 | AC44: 164
A45: 166.5145 | B45: 40 | C45: 166.5145 | D45: 40 | E45: 1306 | F45: BILLOD MOREL | G45: Marius | H45: BMX BESANCON | I45: H(U9) | K45: =LOOKUP(J45,Paramètres!$A$3:$A$102,Paramètres!$B$3:$B$102) -> 0 | M45: =LOOKUP(L45,Paramètres!$A$3:$A$102,Paramètres!$B$3:$B$102) -> 0 | O45: =LOOKUP(N45,Paramètres!$A$3:$A$102,Paramètres!$B$3:$B$102) -> 0 | Q45: =LOOKUP(P45,Paramètres!$A$3:$A$102,Paramètres!$B$3:$B$102) -> 0 | S45: =LOOKUP(R45,Paramètres!$A$3:$A$102,Paramètres!$B$3:$B$102) -> 0 | U45: =LOOKUP(T45,Paramètres!$A$3:$A$102,Paramètres!$B$3:$B$102) -> 0 | W45: =LOOKUP(V45,Paramètres!$A$3:$A$102,Paramètres!$B$3:$B$102) -> 0 | X45: 14 | Y45: =LOOKUP(X45,Paramètres!$A$3:$A$102,Paramètres!$B$3:$B$102)*Paramètres!$H$5 -> 166.5 | Z45: =IFERROR(VLOOKUP(J45,Paramètres!$D$3:$E$7,2,FALSE),0)+IFERROR(VLOOKUP(L45,Paramètres!$D$3:$E$7,2,FALSE),0)+IFERROR(VLOOKUP(N45,Paramètres!$D$3:$E$7,2,FALSE),0)+IFERROR(VLOOKUP(P45,Paramètres!$D$3:$E$7,2,FALSE),0)+IFERROR(VLOOKUP(R45,Paramètres!$D$3:$E$7,2,FALSE),0)+IFERROR(VLOOKUP(T45,Paramètres!$D$3:$E$7,2,FALSE),0)+IFERROR(VLOOKUP(V45,Paramètres!$D$3:$E$7,2,FALSE),0)+IFERROR(VLOOKUP(X45,Paramètres!$D$3:$E$7,2,FALSE),0) -> 0 | AA45: 0 | AB45: |014|999|999|999|999|999|999|999 | AC45: 145
A46: 147.0196 | B46: 41 | C46: 147.0196 | D46: 41 | E46: 1280 | F46: BIANCHI | G46: Sacha | H46: VC VTT MONT D'OR | I46: H(U9) | K46: =LOOKUP(J46,Paramètres!$A$3:$A$102,Paramètres!$B$3:$B$102) -> 0 | M46: =LOOKUP(L46,Paramètres!$A$3:$A$102,Paramètres!$B$3:$B$102) -> 0 | O46: =LOOKUP(N46,Paramètres!$A$3:$A$102,Paramètres!$B$3:$B$102) -> 0 | Q46: =LOOKUP(P46,Paramètres!$A$3:$A$102,Paramètres!$B$3:$B$102) -> 0 | S46: =LOOKUP(R46,Paramètres!$A$3:$A$102,Paramètres!$B$3:$B$102) -> 0 | T46: 2 | U46: =LOOKUP(T46,Paramètres!$A$3:$A$102,Paramètres!$B$3:$B$102) -> 147 | W46: =LOOKUP(V46,Paramètres!$A$3:$A$102,Paramètres!$B$3:$B$102) -> 0 | Y46: =LOOKUP(X46,Paramètres!$A$3:$A$102,Paramètres!$B$3:$B$102)*Paramètres!$H$5 -> 0 | Z46: =IFERROR(VLOOKUP(J46,Paramètres!$D$3:$E$7,2,FALSE),0)+IFERROR(VLOOKUP(L46,Paramètres!$D$3:$E$7,2,FALSE),0)+IFERROR(VLOOKUP(N46,Paramètres!$D$3:$E$7,2,FALSE),0)+IFERROR(VLOOKUP(P46,Paramètres!$D$3:$E$7,2,FALSE),0)+IFERROR(VLOOKUP(R46,Paramètres!$D$3:$E$7,2,FALSE),0)+IFERROR(VLOOKUP(T46,Paramètres!$D$3:$E$7,2,FALSE),0)+IFERROR(VLOOKUP(V46,Paramètres!$D$3:$E$7,2,FALSE),0)+IFERROR(VLOOKUP(X46,Paramètres!$D$3:$E$7,2,FALSE),0) -> 4 | AA46: 0 | AB46: |002|999|999|999|999|999|999|999 | AC46: 196
A47: 147.0196 | B47: 41 | C47: 147.0196 | D47: 41 | E47: 1290 | F47: REPECAUD | G47: Basile | H47: U.C. MOREZ | I47: H(U7) | K47: =LOOKUP(J47,Paramètres!$A$3:$A$102,Paramètres!$B$3:$B$102) -> 0 | M47: =LOOKUP(L47,Paramètres!$A$3:$A$102,Paramètres!$B$3:$B$102) -> 0 | O47: =LOOKUP(N47,Paramètres!$A$3:$A$102,Paramètres!$B$3:$B$102) -> 0 | Q47: =LOOKUP(P47,Paramètres!$A$3:$A$102,Paramètres!$B$3:$B$102) -> 0 | S47: =LOOKUP(R47,Paramètres!$A$3:$A$102,Paramètres!$B$3:$B$102) -> 0 | T47: 2 | U47: =LOOKUP(T47,Paramètres!$A$3:$A$102,Paramètres!$B$3:$B$102) -> 147 | W47: =LOOKUP(V47,Paramètres!$A$3:$A$102,Paramètres!$B$3:$B$102) -> 0 | Y47: =LOOKUP(X47,Paramètres!$A$3:$A$102,Paramètres!$B$3:$B$102)*Paramètres!$H$5 -> 0 | Z47: =IFERROR(VLOOKUP(J47,Paramètres!$D$3:$E$7,2,FALSE),0)+IFERROR(VLOOKUP(L47,Paramètres!$D$3:$E$7,2,FALSE),0)+IFERROR(VLOOKUP(N47,Paramètres!$D$3:$E$7,2,FALSE),0)+IFERROR(VLOOKUP(P47,Paramètres!$D$3:$E$7,2,FALSE),0)+IFERROR(VLOOKUP(R47,Paramètres!$D$3:$E$7,2,FALSE),0)+IFERROR(VLOOKUP(T47,Paramètres!$D$3:$E$7,2,FALSE),0)+IFERROR(VLOOKUP(V47,Paramètres!$D$3:$E$7,2,FALSE),0)+IFERROR(VLOOKUP(X47,Paramètres!$D$3:$E$7,2,FALSE),0) -> 4 | AA47: 0 | AB47: |002|999|999|999|999|999|999|999 | AC47: 196
A48: 144.0193 | B48: 43 | C48: 144.0193 | D48: 43 | E48: 1278 | F48: MILLOT | G48: Rémi | I48: H(U9) | K48: =LOOKUP(J48,Paramètres!$A$3:$A$102,Paramètres!$B$3:$B$102) -> 0 | M48: =LOOKUP(L48,Paramètres!$A$3:$A$102,Paramètres!$B$3:$B$102) -> 0 | O48: =LOOKUP(N48,Paramètres!$A$3:$A$102,Paramètres!$B$3:$B$102) -> 0 | Q48: =LOOKUP(P48,Paramètres!$A$3:$A$102,Paramètres!$B$3:$B$102) -> 0 | R48: 3 | S48: =LOOKUP(R48,Paramètres!$A$3:$A$102,Paramètres!$B$3:$B$102) -> 144 | U48: =LOOKUP(T48,Paramètres!$A$3:$A$102,Paramètres!$B$3:$B$102) -> 0 | W48: =LOOKUP(V48,Paramètres!$A$3:$A$102,Paramètres!$B$3:$B$102) -> 0 | Y48: =LOOKUP(X48,Paramètres!$A$3:$A$102,Paramètres!$B$3:$B$102)*Paramètres!$H$5 -> 0 | Z48: =IFERROR(VLOOKUP(J48,Paramètres!$D$3:$E$7,2,FALSE),0)+IFERROR(VLOOKUP(L48,Paramètres!$D$3:$E$7,2,FALSE),0)+IFERROR(VLOOKUP(N48,Paramètres!$D$3:$E$7,2,FALSE),0)+IFERROR(VLOOKUP(P48,Paramètres!$D$3:$E$7,2,FALSE),0)+IFERROR(VLOOKUP(R48,Paramètres!$D$3:$E$7,2,FALSE),0)+IFERROR(VLOOKUP(T48,Paramètres!$D$3:$E$7,2,FALSE),0)+IFERROR(VLOOKUP(V48,Paramètres!$D$3:$E$7,2,FALSE),0)+IFERROR(VLOOKUP(X48,Paramètres!$D$3:$E$7,2,FALSE),0) -> 3 | AA48: 0 | AB48: |003|999|999|999|999|999|999|999 | AC48: 193
A49: 141.0189 | B49: 44 | C49: 141.0189 | D49: 44 | E49: 1277 | F49: GEORGES | G49: Tao | I49: H(U9) | K49: =LOOKUP(J49,Paramètres!$A$3:$A$102,Paramètres!$B$3:$B$102) -> 0 | M49: =LOOKUP(L49,Paramètres!$A$3:$A$102,Paramètres!$B$3:$B$102) -> 0 | O49: =LOOKUP(N49,Paramètres!$A$3:$A$102,Paramètres!$B$3:$B$102) -> 0 | Q49: =LOOKUP(P49,Paramètres!$A$3:$A$102,Paramètres!$B$3:$B$102) -> 0 | R49: 4 | S49: =LOOKUP(R49,Paramètres!$A$3:$A$102,Paramètres!$B$3:$B$102) -> 141 | U49: =LOOKUP(T49,Paramètres!$A$3:$A$102,Paramètres!$B$3:$B$102) -> 0 | W49: =LOOKUP(V49,Paramètres!$A$3:$A$102,Paramètres!$B$3:$B$102) -> 0 | Y49: =LOOKUP(X49,Paramètres!$A$3:$A$102,Paramètres!$B$3:$B$102)*Paramètres!$H$5 -> 0 | Z49: =IFERROR(VLOOKUP(J49,Paramètres!$D$3:$E$7,2,FALSE),0)+IFERROR(VLOOKUP(L49,Paramètres!$D$3:$E$7,2,FALSE),0)+IFERROR(VLOOKUP(N49,Paramètres!$D$3:$E$7,2,FALSE),0)+IFERROR(VLOOKUP(P49,Paramètres!$D$3:$E$7,2,FALSE),0)+IFERROR(VLOOKUP(R49,Paramètres!$D$3:$E$7,2,FALSE),0)+IFERROR(VLOOKUP(T49,Paramètres!$D$3:$E$7,2,FALSE),0)+IFERROR(VLOOKUP(V49,Paramètres!$D$3:$E$7,2,FALSE),0)+IFERROR(VLOOKUP(X49,Paramètres!$D$3:$E$7,2,FALSE),0) -> 2 | AA49: 0 | AB49: |004|999|999|999|999|999|999|999 | AC49: 189
A50: 135.0178 | B50: 45 | C50: 135.0178 | D50: 45 | E50: 1234 | F50: PORTMANN | G50: Adrien | H50: ROUE D'OR NOIDANS | I50: H(U9) | K50: =LOOKUP(J50,Paramètres!$A$3:$A$102,Paramètres!$B$3:$B$102) -> 0 | L50: 6 | M50: =LOOKUP(L50,Paramètres!$A$3:$A$102,Paramètres!$B$3:$B$102) -> 135 | O50: =LOOKUP(N50,Paramètres!$A$3:$A$102,Paramètres!$B$3:$B$102) -> 0 | Q50: =LOOKUP(P50,Paramètres!$A$3:$A$102,Paramètres!$B$3:$B$102) -> 0 | S50: =LOOKUP(R50,Paramètres!$A$3:$A$102,Paramètres!$B$3:$B$102) -> 0 | U50: =LOOKUP(T50,Paramètres!$A$3:$A$102,Paramètres!$B$3:$B$102) -> 0 | W50: =LOOKUP(V50,Paramètres!$A$3:$A$102,Paramètres!$B$3:$B$102) -> 0 | Y50: =LOOKUP(X50,Paramètres!$A$3:$A$102,Paramètres!$B$3:$B$102)*Paramètres!$H$5 -> 0 | Z50: =IFERROR(VLOOKUP(J50,Paramètres!$D$3:$E$7,2,FALSE),0)+IFERROR(VLOOKUP(L50,Paramètres!$D$3:$E$7,2,FALSE),0)+IFERROR(VLOOKUP(N50,Paramètres!$D$3:$E$7,2,FALSE),0)+IFERROR(VLOOKUP(P50,Paramètres!$D$3:$E$7,2,FALSE),0)+IFERROR(VLOOKUP(R50,Paramètres!$D$3:$E$7,2,FALSE),0)+IFERROR(VLOOKUP(T50,Paramètres!$D$3:$E$7,2,FALSE),0)+IFERROR(VLOOKUP(V50,Paramètres!$D$3:$E$7,2,FALSE),0)+IFERROR(VLOOKUP(X50,Paramètres!$D$3:$E$7,2,FALSE),0) -> 0 | AA50: 0 | AB50: |006|999|999|999|999|999|999|999 | AC50: 178
A51: 132.0174 | B51: 46 | C51: 132.0174 | D51: 46 | E51: 1200 | F51: ALEXANDRE | G51: Paul | H51: AVENIR CYCLISTE CHALONNAIS | I51: H(U9) | J51: 7 | K51: =LOOKUP(J51,Paramètres!$A$3:$A$102,Paramètres!$B$3:$B$102) -> 132 | M51: =LOOKUP(L51,Paramètres!$A$3:$A$102,Paramètres!$B$3:$B$102) -> 0 | O51: =LOOKUP(N51,Paramètres!$A$3:$A$102,Paramètres!$B$3:$B$102) -> 0 | Q51: =LOOKUP(P51,Paramètres!$A$3:$A$102,Paramètres!$B$3:$B$102) -> 0 | S51: =LOOKUP(R51,Paramètres!$A$3:$A$102,Paramètres!$B$3:$B$102) -> 0 | U51: =LOOKUP(T51,Paramètres!$A$3:$A$102,Paramètres!$B$3:$B$102) -> 0 | W51: =LOOKUP(V51,Paramètres!$A$3:$A$102,Paramètres!$B$3:$B$102) -> 0 | Y51: =LOOKUP(X51,Paramètres!$A$3:$A$102,Paramètres!$B$3:$B$102)*Paramètres!$H$5 -> 0 | Z51: =IFERROR(VLOOKUP(J51,Paramètres!$D$3:$E$7,2,FALSE),0)+IFERROR(VLOOKUP(L51,Paramètres!$D$3:$E$7,2,FALSE),0)+IFERROR(VLOOKUP(N51,Paramètres!$D$3:$E$7,2,FALSE),0)+IFERROR(VLOOKUP(P51,Paramètres!$D$3:$E$7,2,FALSE),0)+IFERROR(VLOOKUP(R51,Paramètres!$D$3:$E$7,2,FALSE),0)+IFERROR(VLOOKUP(T51,Paramètres!$D$3:$E$7,2,FALSE),0)+IFERROR(VLOOKUP(V51,Paramètres!$D$3:$E$7,2,FALSE),0)+IFERROR(VLOOKUP(X51,Paramètres!$D$3:$E$7,2,FALSE),0) -> 0 | AA51: 0 | AB51: |007|999|999|999|999|999|999|999 | AC51: 174
A52: 132.0174 | B52: 46 | C52: 132.0174 | D52: 46 | E52: 1244 | F52: PERRETTE | G52: Noé | H52: VTT CYCLO DIGES PUISAYE | I52: H(U9) | K52: =LOOKUP(J52,Paramètres!$A$3:$A$102,Paramètres!$B$3:$B$102) -> 0 | M52: =LOOKUP(L52,Paramètres!$A$3:$A$102,Paramètres!$B$3:$B$102) -> 0 | O52: =LOOKUP(N52,Paramètres!$A$3:$A$102,Paramètres!$B$3:$B$102) -> 0 | Q52: =LOOKUP(P52,Paramètres!$A$3:$A$102,Paramètres!$B$3:$B$102) -> 0 | S52: =LOOKUP(R52,Paramètres!$A$3:$A$102,Paramètres!$B$3:$B$102) -> 0 | T52: 7 | U52: =LOOKUP(T52,Paramètres!$A$3:$A$102,Paramètres!$B$3:$B$102) -> 132 | W52: =LOOKUP(V52,Paramètres!$A$3:$A$102,Paramètres!$B$3:$B$102) -> 0 | Y52: =LOOKUP(X52,Paramètres!$A$3:$A$102,Paramètres!$B$3:$B$102)*Paramètres!$H$5 -> 0 | Z52: =IFERROR(VLOOKUP(J52,Paramètres!$D$3:$E$7,2,FALSE),0)+IFERROR(VLOOKUP(L52,Paramètres!$D$3:$E$7,2,FALSE),0)+IFERROR(VLOOKUP(N52,Paramètres!$D$3:$E$7,2,FALSE),0)+IFERROR(VLOOKUP(P52,Paramètres!$D$3:$E$7,2,FALSE),0)+IFERROR(VLOOKUP(R52,Paramètres!$D$3:$E$7,2,FALSE),0)+IFERROR(VLOOKUP(T52,Paramètres!$D$3:$E$7,2,FALSE),0)+IFERROR(VLOOKUP(V52,Paramètres!$D$3:$E$7,2,FALSE),0)+IFERROR(VLOOKUP(X52,Paramètres!$D$3:$E$7,2,FALSE),0) -> 0 | AA52: 0 | AB52: |007|999|999|999|999|999|999|999 | AC52: 174
A53: 132.0174 | B53: 46 | C53: 132.0174 | D53: 46 | E53: 1286 | F53: MARTIMORT | G53: Alix | H53: CC BELFORT MIOTTE | I53: F(U7) | K53: =LOOKUP(J53,Paramètres!$A$3:$A$102,Paramètres!$B$3:$B$102) -> 0 | M53: =LOOKUP(L53,Paramètres!$A$3:$A$102,Paramètres!$B$3:$B$102) -> 0 | O53: =LOOKUP(N53,Paramètres!$A$3:$A$102,Paramètres!$B$3:$B$102) -> 0 | Q53: =LOOKUP(P53,Paramètres!$A$3:$A$102,Paramètres!$B$3:$B$102) -> 0 | S53: =LOOKUP(R53,Paramètres!$A$3:$A$102,Paramètres!$B$3:$B$102) -> 0 | T53: 7 | U53: =LOOKUP(T53,Paramètres!$A$3:$A$102,Paramètres!$B$3:$B$102) -> 132 | W53: =LOOKUP(V53,Paramètres!$A$3:$A$102,Paramètres!$B$3:$B$102) -> 0 | Y53: =LOOKUP(X53,Paramètres!$A$3:$A$102,Paramètres!$B$3:$B$102)*Paramètres!$H$5 -> 0 | Z53: =IFERROR(VLOOKUP(J53,Paramètres!$D$3:$E$7,2,FALSE),0)+IFERROR(VLOOKUP(L53,Paramètres!$D$3:$E$7,2,FALSE),0)+IFERROR(VLOOKUP(N53,Paramètres!$D$3:$E$7,2,FALSE),0)+IFERROR(VLOOKUP(P53,Paramètres!$D$3:$E$7,2,FALSE),0)+IFERROR(VLOOKUP(R53,Paramètres!$D$3:$E$7,2,FALSE),0)+IFERROR(VLOOKUP(T53,Paramètres!$D$3:$E$7,2,FALSE),0)+IFERROR(VLOOKUP(V53,Paramètres!$D$3:$E$7,2,FALSE),0)+IFERROR(VLOOKUP(X53,Paramètres!$D$3:$E$7,2,FALSE),0) -> 0 | AA53: 0 | AB53: |007|999|999|999|999|999|999|999 | AC53: 174
A54: 129.0169 | B54: 49 | C54: 129.0169 | D54: 49 | E54: 1233 | F54: EMOND | G54: Clovis | H54: ROUE D'OR NOIDANS | I54: H(U9) | K54: =LOOKUP(J54,Paramètres!$A$3:$A$102,Paramètres!$B$3:$B$102) -> 0 | L54: 8 | M54: =LOOKUP(L54,Paramètres!$A$3:$A$102,Paramètres!$B$3:$B$102) -> 129 | O54: =LOOKUP(N54,Paramètres!$A$3:$A$102,Paramètres!$B$3:$B$102) -> 0 | Q54: =LOOKUP(P54,Paramètres!$A$3:$A$102,Paramètres!$B$3:$B$102) -> 0 | S54: =LOOKUP(R54,Paramètres!$A$3:$A$102,Paramètres!$B$3:$B$102) -> 0 | U54: =LOOKUP(T54,Paramètres!$A$3:$A$102,Paramètres!$B$3:$B$102) -> 0 | W54: =LOOKUP(V54,Paramètres!$A$3:$A$102,Paramètres!$B$3:$B$102) -> 0 | Y54: =LOOKUP(X54,Paramètres!$A$3:$A$102,Paramètres!$B$3:$B$102)*Paramètres!$H$5 -> 0 | Z54: =IFERROR(VLOOKUP(J54,Paramètres!$D$3:$E$7,2,FALSE),0)+IFERROR(VLOOKUP(L54,Paramètres!$D$3:$E$7,2,FALSE),0)+IFERROR(VLOOKUP(N54,Paramètres!$D$3:$E$7,2,FALSE),0)+IFERROR(VLOOKUP(P54,Paramètres!$D$3:$E$7,2,FALSE),0)+IFERROR(VLOOKUP(R54,Paramètres!$D$3:$E$7,2,FALSE),0)+IFERROR(VLOOKUP(T54,Paramètres!$D$3:$E$7,2,FALSE),0)+IFERROR(VLOOKUP(V54,Paramètres!$D$3:$E$7,2,FALSE),0)+IFERROR(VLOOKUP(X54,Paramètres!$D$3:$E$7,2,FALSE),0) -> 0 | AA54: 0 | AB54: |008|999|999|999|999|999|999|999 | AC54: 169
A55: 129.0169 | B55: 49 | C55: 129.0169 | D55: 49 | E55: 1291 | F55: RUOTTE | G55: Émile | H55: U.C. MOREZ | I55: H(U7) | K55: =LOOKUP(J55,Paramètres!$A$3:$A$102,Paramètres!$B$3:$B$102) -> 0 | M55: =LOOKUP(L55,Paramètres!$A$3:$A$102,Paramètres!$B$3:$B$102) -> 0 | O55: =LOOKUP(N55,Paramètres!$A$3:$A$102,Paramètres!$B$3:$B$102) -> 0 | Q55: =LOOKUP(P55,Paramètres!$A$3:$A$102,Paramètres!$B$3:$B$102) -> 0 | S55: =LOOKUP(R55,Paramètres!$A$3:$A$102,Paramètres!$B$3:$B$102) -> 0 | T55: 8 | U55: =LOOKUP(T55,Paramètres!$A$3:$A$102,Paramètres!$B$3:$B$102) -> 129 | W55: =LOOKUP(V55,Paramètres!$A$3:$A$102,Paramètres!$B$3:$B$102) -> 0 | Y55: =LOOKUP(X55,Paramètres!$A$3:$A$102,Paramètres!$B$3:$B$102)*Paramètres!$H$5 -> 0 | Z55: =IFERROR(VLOOKUP(J55,Paramètres!$D$3:$E$7,2,FALSE),0)+IFERROR(VLOOKUP(L55,Paramètres!$D$3:$E$7,2,FALSE),0)+IFERROR(VLOOKUP(N55,Paramètres!$D$3:$E$7,2,FALSE),0)+IFERROR(VLOOKUP(P55,Paramètres!$D$3:$E$7,2,FALSE),0)+IFERROR(VLOOKUP(R55,Paramètres!$D$3:$E$7,2,FALSE),0)+IFERROR(VLOOKUP(T55,Paramètres!$D$3:$E$7,2,FALSE),0)+IFERROR(VLOOKUP(V55,Paramètres!$D$3:$E$7,2,FALSE),0)+IFERROR(VLOOKUP(X55,Paramètres!$D$3:$E$7,2,FALSE),0) -> 0 | AA55: 0 | AB55: |008|999|999|999|999|999|999|999 | AC55: 169
A56: 129.0169 | B56: 49 | C56: 129.0169 | D56: 49 | E56: 1299 | F56: LABOURE | G56: Anouk | H56: MESVRIN VTT | I56: F(U9) | K56: =LOOKUP(J56,Paramètres!$A$3:$A$102,Paramètres!$B$3:$B$102) -> 0 | M56: =LOOKUP(L56,Paramètres!$A$3:$A$102,Paramètres!$B$3:$B$102) -> 0 | O56: =LOOKUP(N56,Paramètres!$A$3:$A$102,Paramètres!$B$3:$B$102) -> 0 | Q56: =LOOKUP(P56,Paramètres!$A$3:$A$102,Paramètres!$B$3:$B$102) -> 0 | S56: =LOOKUP(R56,Paramètres!$A$3:$A$102,Paramètres!$B$3:$B$102) -> 0 | U56: =LOOKUP(T56,Paramètres!$A$3:$A$102,Paramètres!$B$3:$B$102) -> 0 | V56: 8 | W56: =LOOKUP(V56,Paramètres!$A$3:$A$102,Paramètres!$B$3:$B$102) -> 129 | Y56: =LOOKUP(X56,Paramètres!$A$3:$A$102,Paramètres!$B$3:$B$102)*Paramètres!$H$5 -> 0 | Z56: =IFERROR(VLOOKUP(J56,Paramètres!$D$3:$E$7,2,FALSE),0)+IFERROR(VLOOKUP(L56,Paramètres!$D$3:$E$7,2,FALSE),0)+IFERROR(VLOOKUP(N56,Paramètres!$D$3:$E$7,2,FALSE),0)+IFERROR(VLOOKUP(P56,Paramètres!$D$3:$E$7,2,FALSE),0)+IFERROR(VLOOKUP(R56,Paramètres!$D$3:$E$7,2,FALSE),0)+IFERROR(VLOOKUP(T56,Paramètres!$D$3:$E$7,2,FALSE),0)+IFERROR(VLOOKUP(V56,Paramètres!$D$3:$E$7,2,FALSE),0)+IFERROR(VLOOKUP(X56,Paramètres!$D$3:$E$7,2,FALSE),0) -> 0 | AA56: 0 | AB56: |008|999|999|999|999|999|999|999 | AC56: 169
A57: 126.0164 | B57: 52 | C57: 126.0164 | D57: 52 | E57: 1245 | F57: PETIT | G57: Oscar | H57: VTT CYCLO DIGES PUISAYE | I57: H(U9) | K57: =LOOKUP(J57,Paramètres!$A$3:$A$102,Paramètres!$B$3:$B$102) -> 0 | M57: =LOOKUP(L57,Paramètres!$A$3:$A$102,Paramètres!$B$3:$B$102) -> 0 | O57: =LOOKUP(N57,Paramètres!$A$3:$A$102,Paramètres!$B$3:$B$102) -> 0 | P57: 9 | Q57: =LOOKUP(P57,Paramètres!$A$3:$A$102,Paramètres!$B$3:$B$102) -> 126 | S57: =LOOKUP(R57,Paramètres!$A$3:$A$102,Paramètres!$B$3:$B$102) -> 0 | U57: =LOOKUP(T57,Paramètres!$A$3:$A$102,Paramètres!$B$3:$B$102) -> 0 | W57: =LOOKUP(V57,Paramètres!$A$3:$A$102,Paramètres!$B$3:$B$102) -> 0 | Y57: =LOOKUP(X57,Paramètres!$A$3:$A$102,Paramètres!$B$3:$B$102)*Paramètres!$H$5 -> 0 | Z57: =IFERROR(VLOOKUP(J57,Paramètres!$D$3:$E$7,2,FALSE),0)+IFERROR(VLOOKUP(L57,Paramètres!$D$3:$E$7,2,FALSE),0)+IFERROR(VLOOKUP(N57,Paramètres!$D$3:$E$7,2,FALSE),0)+IFERROR(VLOOKUP(P57,Paramètres!$D$3:$E$7,2,FALSE),0)+IFERROR(VLOOKUP(R57,Paramètres!$D$3:$E$7,2,FALSE),0)+IFERROR(VLOOKUP(T57,Paramètres!$D$3:$E$7,2,FALSE),0)+IFERROR(VLOOKUP(V57,Paramètres!$D$3:$E$7,2,FALSE),0)+IFERROR(VLOOKUP(X57,Paramètres!$D$3:$E$7,2,FALSE),0) -> 0 | AA57: 0 | AB57: |009|999|999|999|999|999|999|999 | AC57: 164
A58: 126.0164 | B58: 52 | C58: 126.0164 | D58: 52 | E58: 1276 | F58: GENARD | G58: Emile | I58: H(U9) | K58: =LOOKUP(J58,Paramètres!$A$3:$A$102,Paramètres!$B$3:$B$102) -> 0 | M58: =LOOKUP(L58,Paramètres!$A$3:$A$102,Paramètres!$B$3:$B$102) -> 0 | O58: =LOOKUP(N58,Paramètres!$A$3:$A$102,Paramètres!$B$3:$B$102) -> 0 | Q58: =LOOKUP(P58,Paramètres!$A$3:$A$102,Paramètres!$B$3:$B$102) -> 0 | R58: 9 | S58: =LOOKUP(R58,Paramètres!$A$3:$A$102,Paramètres!$B$3:$B$102) -> 126 | U58: =LOOKUP(T58,Paramètres!$A$3:$A$102,Paramètres!$B$3:$B$102) -> 0 | W58: =LOOKUP(V58,Paramètres!$A$3:$A$102,Paramètres!$B$3:$B$102) -> 0 | Y58: =LOOKUP(X58,Paramètres!$A$3:$A$102,Paramètres!$B$3:$B$102)*Paramètres!$H$5 -> 0 | Z58: =IFERROR(VLOOKUP(J58,Paramètres!$D$3:$E$7,2,FALSE),0)+IFERROR(VLOOKUP(L58,Paramètres!$D$3:$E$7,2,FALSE),0)+IFERROR(VLOOKUP(N58,Paramètres!$D$3:$E$7,2,FALSE),0)+IFERROR(VLOOKUP(P58,Paramètres!$D$3:$E$7,2,FALSE),0)+IFERROR(VLOOKUP(R58,Paramètres!$D$3:$E$7,2,FALSE),0)+IFERROR(VLOOKUP(T58,Paramètres!$D$3:$E$7,2,FALSE),0)+IFERROR(VLOOKUP(V58,Paramètres!$D$3:$E$7,2,FALSE),0)+IFERROR(VLOOKUP(X58,Paramètres!$D$3:$E$7,2,FALSE),0) -> 0 | AA58: 0 | AB58: |009|999|999|999|999|999|999|999 | AC58: 164
A59: 126.0164 | B59: 52 | C59: 126.0164 | D59: 52 | E59: 1288 | F59: MOUILLEBOUCHE | G59: Timothé | H59: LES FOURGS SINGLETRACK | I59: H(U7) | K59: =LOOKUP(J59,Paramètres!$A$3:$A$102,Paramètres!$B$3:$B$102) -> 0 | M59: =LOOKUP(L59,Paramètres!$A$3:$A$102,Paramètres!$B$3:$B$102) -> 0 | O59: =LOOKUP(N59,Paramètres!$A$3:$A$102,Paramètres!$B$3:$B$102) -> 0 | Q59: =LOOKUP(P59,Paramètres!$A$3:$A$102,Paramètres!$B$3:$B$102) -> 0 | S59: =LOOKUP(R59,Paramètres!$A$3:$A$102,Paramètres!$B$3:$B$102) -> 0 | T59: 9 | U59: =LOOKUP(T59,Paramètres!$A$3:$A$102,Paramètres!$B$3:$B$102) -> 126 | W59: =LOOKUP(V59,Paramètres!$A$3:$A$102,Paramètres!$B$3:$B$102) -> 0 | Y59: =LOOKUP(X59,Paramètres!$A$3:$A$102,Paramètres!$B$3:$B$102)*Paramètres!$H$5 -> 0 | Z59: =IFERROR(VLOOKUP(J59,Paramètres!$D$3:$E$7,2,FALSE),0)+IFERROR(VLOOKUP(L59,Paramètres!$D$3:$E$7,2,FALSE),0)+IFERROR(VLOOKUP(N59,Paramètres!$D$3:$E$7,2,FALSE),0)+IFERROR(VLOOKUP(P59,Paramètres!$D$3:$E$7,2,FALSE),0)+IFERROR(VLOOKUP(R59,Paramètres!$D$3:$E$7,2,FALSE),0)+IFERROR(VLOOKUP(T59,Paramètres!$D$3:$E$7,2,FALSE),0)+IFERROR(VLOOKUP(V59,Paramètres!$D$3:$E$7,2,FALSE),0)+IFERROR(VLOOKUP(X59,Paramètres!$D$3:$E$7,2,FALSE),0) -> 0 | AA59: 0 | AB59: |009|999|999|999|999|999|999|999 | AC59: 164
A60: 123.0158 | B60: 55 | C60: 123.0158 | D60: 55 | E60: 1206 | F60: DOUVRE | G60: Paul | H60: PASSE PARTOUT VTT MACON | I60: H(U9) | J60: 10 | K60: =LOOKUP(J60,Paramètres!$A$3:$A$102,Paramètres!$B$3:$B$102) -> 123 | M60: =LOOKUP(L60,Paramètres!$A$3:$A$102,Paramètres!$B$3:$B$102) -> 0 | O60: =LOOKUP(N60,Paramètres!$A$3:$A$102,Paramètres!$B$3:$B$102) -> 0 | Q60: =LOOKUP(P60,Paramètres!$A$3:$A$102,Paramètres!$B$3:$B$102) -> 0 | S60: =LOOKUP(R60,Paramètres!$A$3:$A$102,Paramètres!$B$3:$B$102) -> 0 | U60: =LOOKUP(T60,Paramètres!$A$3:$A$102,Paramètres!$B$3:$B$102) -> 0 | W60: =LOOKUP(V60,Paramètres!$A$3:$A$102,Paramètres!$B$3:$B$102) -> 0 | Y60: =LOOKUP(X60,Paramètres!$A$3:$A$102,Paramètres!$B$3:$B$102)*Paramètres!$H$5 -> 0 | Z60: =IFERROR(VLOOKUP(J60,Paramètres!$D$3:$E$7,2,FALSE),0)+IFERROR(VLOOKUP(L60,Paramètres!$D$3:$E$7,2,FALSE),0)+IFERROR(VLOOKUP(N60,Paramètres!$D$3:$E$7,2,FALSE),0)+IFERROR(VLOOKUP(P60,Paramètres!$D$3:$E$7,2,FALSE),0)+IFERROR(VLOOKUP(R60,Paramètres!$D$3:$E$7,2,FALSE),0)+IFERROR(VLOOKUP(T60,Paramètres!$D$3:$E$7,2,FALSE),0)+IFERROR(VLOOKUP(V60,Paramètres!$D$3:$E$7,2,FALSE),0)+IFERROR(VLOOKUP(X60,Paramètres!$D$3:$E$7,2,FALSE),0) -> 0 | AA60: 0 | AB60: |010|999|999|999|999|999|999|999 | AC60: 158
A61: 123.0158 | B61: 55 | C61: 123.0158 | D61: 55 | E61: 1236 | F61: MOURLOT ROMIAN | G61: Arya | H61: ROUE D'OR NOIDANS | I61: F(U9) | K61: =LOOKUP(J61,Paramètres!$A$3:$A$102,Paramètres!$B$3:$B$102) -> 0 | L61: 10 | M61: =LOOKUP(L61,Paramètres!$A$3:$A$102,Paramètres!$B$3:$B$102) -> 123 | O61: =LOOKUP(N61,Paramètres!$A$3:$A$102,Paramètres!$B$3:$B$102) -> 0 | Q61: =LOOKUP(P61,Paramètres!$A$3:$A$102,Paramètres!$B$3:$B$102) -> 0 | S61: =LOOKUP(R61,Paramètres!$A$3:$A$102,Paramètres!$B$3:$B$102) -> 0 | U61: =LOOKUP(T61,Paramètres!$A$3:$A$102,Paramètres!$B$3:$B$102) -> 0 | W61: =LOOKUP(V61,Paramètres!$A$3:$A$102,Paramètres!$B$3:$B$102) -> 0 | Y61: =LOOKUP(X61,Paramètres!$A$3:$A$102,Paramètres!$B$3:$B$102)*Paramètres!$H$5 -> 0 | Z61: =IFERROR(VLOOKUP(J61,Paramètres!$D$3:$E$7,2,FALSE),0)+IFERROR(VLOOKUP(L61,Paramètres!$D$3:$E$7,2,FALSE),0)+IFERROR(VLOOKUP(N61,Paramètres!$D$3:$E$7,2,FALSE),0)+IFERROR(VLOOKUP(P61,Paramètres!$D$3:$E$7,2,FALSE),0)+IFERROR(VLOOKUP(R61,Paramètres!$D$3:$E$7,2,FALSE),0)+IFERROR(VLOOKUP(T61,Paramètres!$D$3:$E$7,2,FALSE),0)+IFERROR(VLOOKUP(V61,Paramètres!$D$3:$E$7,2,FALSE),0)+IFERROR(VLOOKUP(X61,Paramètres!$D$3:$E$7,2,FALSE),0) -> 0 | AA61: 0 | AB61: |010|999|999|999|999|999|999|999 | AC61: 158
A62: 123.0158 | B62: 55 | C62: 123.0158 | D62: 55 | E62: 1256 | F62: GOULY RIVERA | G62: Diego | H62: PULSION VTT | I62: H(U9) | K62: =LOOKUP(J62,Paramètres!$A$3:$A$102,Paramètres!$B$3:$B$102) -> 0 | M62: =LOOKUP(L62,Paramètres!$A$3:$A$102,Paramètres!$B$3:$B$102) -> 0 | N62: 10 | O62: =LOOKUP(N62,Paramètres!$A$3:$A$102,Paramètres!$B$3:$B$102) -> 123 | Q62: =LOOKUP(P62,Paramètres!$A$3:$A$102,Paramètres!$B$3:$B$102) -> 0 | S62: =LOOKUP(R62,Paramètres!$A$3:$A$102,Paramètres!$B$3:$B$102) -> 0 | U62: =LOOKUP(T62,Paramètres!$A$3:$A$102,Paramètres!$B$3:$B$102) -> 0 | W62: =LOOKUP(V62,Paramètres!$A$3:$A$102,Paramètres!$B$3:$B$102) -> 0 | Y62: =LOOKUP(X62,Paramètres!$A$3:$A$102,Paramètres!$B$3:$B$102)*Paramètres!$H$5 -> 0 | Z62: =IFERROR(VLOOKUP(J62,Paramètres!$D$3:$E$7,2,FALSE),0)+IFERROR(VLOOKUP(L62,Paramètres!$D$3:$E$7,2,FALSE),0)+IFERROR(VLOOKUP(N62,Paramètres!$D$3:$E$7,2,FALSE),0)+IFERROR(VLOOKUP(P62,Paramètres!$D$3:$E$7,2,FALSE),0)+IFERROR(VLOOKUP(R62,Paramètres!$D$3:$E$7,2,FALSE),0)+IFERROR(VLOOKUP(T62,Paramètres!$D$3:$E$7,2,FALSE),0)+IFERROR(VLOOKUP(V62,Paramètres!$D$3:$E$7,2,FALSE),0)+IFERROR(VLOOKUP(X62,Paramètres!$D$3:$E$7,2,FALSE),0) -> 0 | AA62: 0 | AB62: |010|999|999|999|999|999|999|999 | AC62: 158
A63: 123.0158 | B63: 55 | C63: 123.0158 | D63: 55 | E63: 1281 | F63: BOURGET | G63: Paul | H63: U.C. MOREZ | I63: H(U9) | K63: =LOOKUP(J63,Paramètres!$A$3:$A$102,Paramètres!$B$3:$B$102) -> 0 | M63: =LOOKUP(L63,Paramètres!$A$3:$A$102,Paramètres!$B$3:$B$102) -> 0 | O63: =LOOKUP(N63,Paramètres!$A$3:$A$102,Paramètres!$B$3:$B$102) -> 0 | Q63: =LOOKUP(P63,Paramètres!$A$3:$A$102,Paramètres!$B$3:$B$102) -> 0 | S63: =LOOKUP(R63,Paramètres!$A$3:$A$102,Paramètres!$B$3:$B$102) -> 0 | T63: 10 | U63: =LOOKUP(T63,Paramètres!$A$3:$A$102,Paramètres!$B$3:$B$102) -> 123 | W63: =LOOKUP(V63,Paramètres!$A$3:$A$102,Paramètres!$B$3:$B$102) -> 0 | Y63: =LOOKUP(X63,Paramètres!$A$3:$A$102,Paramètres!$B$3:$B$102)*Paramètres!$H$5 -> 0 | Z63: =IFERROR(VLOOKUP(J63,Paramètres!$D$3:$E$7,2,FALSE),0)+IFERROR(VLOOKUP(L63,Paramètres!$D$3:$E$7,2,FALSE),0)+IFERROR(VLOOKUP(N63,Paramètres!$D$3:$E$7,2,FALSE),0)+IFERROR(VLOOKUP(P63,Paramètres!$D$3:$E$7,2,FALSE),0)+IFERROR(VLOOKUP(R63,Paramètres!$D$3:$E$7,2,FALSE),0)+IFERROR(VLOOKUP(T63,Paramètres!$D$3:$E$7,2,FALSE),0)+IFERROR(VLOOKUP(V63,Paramètres!$D$3:$E$7,2,FALSE),0)+IFERROR(VLOOKUP(X63,Paramètres!$D$3:$E$7,2,FALSE),0) -> 0 | AA63: 0 | AB63: |010|999|999|999|999|999|999|999 | AC63: 158
A64: 120.0155 | B64: 59 | C64: 120.0155 | D64: 59 | E64: 1289 | F64: REGAD | G64: Apolline | H64: U.C. MOREZ | I64: F(U7) | K64: =LOOKUP(J64,Paramètres!$A$3:$A$102,Paramètres!$B$3:$B$102) -> 0 | M64: =LOOKUP(L64,Paramètres!$A$3:$A$102,Paramètres!$B$3:$B$102) -> 0 | O64: =LOOKUP(N64,Paramètres!$A$3:$A$102,Paramètres!$B$3:$B$102) -> 0 | Q64: =LOOKUP(P64,Paramètres!$A$3:$A$102,Paramètres!$B$3:$B$102) -> 0 | S64: =LOOKUP(R64,Paramètres!$A$3:$A$102,Paramètres!$B$3:$B$102) -> 0 | T64: 11 | U64: =LOOKUP(T64,Paramètres!$A$3:$A$102,Paramètres!$B$3:$B$102) -> 120 | W64: =LOOKUP(V64,Paramètres!$A$3:$A$102,Paramètres!$B$3:$B$102) -> 0 | Y64: =LOOKUP(X64,Paramètres!$A$3:$A$102,Paramètres!$B$3:$B$102)*Paramètres!$H$5 -> 0 | Z64: =IFERROR(VLOOKUP(J64,Paramètres!$D$3:$E$7,2,FALSE),0)+IFERROR(VLOOKUP(L64,Paramètres!$D$3:$E$7,2,FALSE),0)+IFERROR(VLOOKUP(N64,Paramètres!$D$3:$E$7,2,FALSE),0)+IFERROR(VLOOKUP(P64,Paramètres!$D$3:$E$7,2,FALSE),0)+IFERROR(VLOOKUP(R64,Paramètres!$D$3:$E$7,2,FALSE),0)+IFERROR(VLOOKUP(T64,Paramètres!$D$3:$E$7,2,FALSE),0)+IFERROR(VLOOKUP(V64,Paramètres!$D$3:$E$7,2,FALSE),0)+IFERROR(VLOOKUP(X64,Paramètres!$D$3:$E$7,2,FALSE),0) -> 0 | AA64: 0 | AB64: |011|999|999|999|999|999|999|999 | AC64: 155
A65: 117.0151 | B65: 60 | C65: 117.0151 | D65: 60 | E65: 1226 | F65: MUNIER | G65: Noé | I65: H(U9) | K65: =LOOKUP(J65,Paramètres!$A$3:$A$102,Paramètres!$B$3:$B$102) -> 0 | L65: 12 | M65: =LOOKUP(L65,Paramètres!$A$3:$A$102,Paramètres!$B$3:$B$102) -> 117 | O65: =LOOKUP(N65,Paramètres!$A$3:$A$102,Paramètres!$B$3:$B$102) -> 0 | Q65: =LOOKUP(P65,Paramètres!$A$3:$A$102,Paramètres!$B$3:$B$102) -> 0 | S65: =LOOKUP(R65,Paramètres!$A$3:$A$102,Paramètres!$B$3:$B$102) -> 0 | U65: =LOOKUP(T65,Paramètres!$A$3:$A$102,Paramètres!$B$3:$B$102) -> 0 | W65: =LOOKUP(V65,Paramètres!$A$3:$A$102,Paramètres!$B$3:$B$102) -> 0 | Y65: =LOOKUP(X65,Paramètres!$A$3:$A$102,Paramètres!$B$3:$B$102)*Paramètres!$H$5 -> 0 | Z65: =IFERROR(VLOOKUP(J65,Paramètres!$D$3:$E$7,2,FALSE),0)+IFERROR(VLOOKUP(L65,Paramètres!$D$3:$E$7,2,FALSE),0)+IFERROR(VLOOKUP(N65,Paramètres!$D$3:$E$7,2,FALSE),0)+IFERROR(VLOOKUP(P65,Paramètres!$D$3:$E$7,2,FALSE),0)+IFERROR(VLOOKUP(R65,Paramètres!$D$3:$E$7,2,FALSE),0)+IFERROR(VLOOKUP(T65,Paramètres!$D$3:$E$7,2,FALSE),0)+IFERROR(VLOOKUP(V65,Paramètres!$D$3:$E$7,2,FALSE),0)+IFERROR(VLOOKUP(X65,Paramètres!$D$3:$E$7,2,FALSE),0) -> 0 | AA65: 0 | AB65: |012|999|999|999|999|999|999|999 | AC65: 151
A66: 117.0151 | B66: 60 | C66: 117.0151 | D66: 60 | E66: 1287 | F66: MARTIMORT | G66: Côme | H66: CC BELFORT MIOTTE | I66: H(U9) | K66: =LOOKUP(J66,Paramètres!$A$3:$A$102,Paramètres!$B$3:$B$102) -> 0 | M66: =LOOKUP(L66,Paramètres!$A$3:$A$102,Paramètres!$B$3:$B$102) -> 0 | O66: =LOOKUP(N66,Paramètres!$A$3:$A$102,Paramètres!$B$3:$B$102) -> 0 | Q66: =LOOKUP(P66,Paramètres!$A$3:$A$102,Paramètres!$B$3:$B$102) -> 0 | S66: =LOOKUP(R66,Paramètres!$A$3:$A$102,Paramètres!$B$3:$B$102) -> 0 | T66: 12 | U66: =LOOKUP(T66,Paramètres!$A$3:$A$102,Paramètres!$B$3:$B$102) -> 117 | W66: =LOOKUP(V66,Paramètres!$A$3:$A$102,Paramètres!$B$3:$B$102) -> 0 | Y66: =LOOKUP(X66,Paramètres!$A$3:$A$102,Paramètres!$B$3:$B$102)*Paramètres!$H$5 -> 0 | Z66: =IFERROR(VLOOKUP(J66,Paramètres!$D$3:$E$7,2,FALSE),0)+IFERROR(VLOOKUP(L66,Paramètres!$D$3:$E$7,2,FALSE),0)+IFERROR(VLOOKUP(N66,Paramètres!$D$3:$E$7,2,FALSE),0)+IFERROR(VLOOKUP(P66,Paramètres!$D$3:$E$7,2,FALSE),0)+IFERROR(VLOOKUP(R66,Paramètres!$D$3:$E$7,2,FALSE),0)+IFERROR(VLOOKUP(T66,Paramètres!$D$3:$E$7,2,FALSE),0)+IFERROR(VLOOKUP(V66,Paramètres!$D$3:$E$7,2,FALSE),0)+IFERROR(VLOOKUP(X66,Paramètres!$D$3:$E$7,2,FALSE),0) -> 0 | AA66: 0 | AB66: |012|999|999|999|999|999|999|999 | AC66: 151
A67: 114.015 | B67: 62 | C67: 114.015 | D67: 62 | E67: 1275 | F67: LARGE | G67: Noah | H67: VC CHAROLLAIS | I67: H(U9) | K67: =LOOKUP(J67,Paramètres!$A$3:$A$102,Paramètres!$B$3:$B$102) -> 0 | M67: =LOOKUP(L67,Paramètres!$A$3:$A$102,Paramètres!$B$3:$B$102) -> 0 | O67: =LOOKUP(N67,Paramètres!$A$3:$A$102,Paramètres!$B$3:$B$102) -> 0 | P67: 13 | Q67: =LOOKUP(P67,Paramètres!$A$3:$A$102,Paramètres!$B$3:$B$102) -> 114 | S67: =LOOKUP(R67,Paramètres!$A$3:$A$102,Paramètres!$B$3:$B$102) -> 0 | U67: =LOOKUP(T67,Paramètres!$A$3:$A$102,Paramètres!$B$3:$B$102) -> 0 | W67: =LOOKUP(V67,Paramètres!$A$3:$A$102,Paramètres!$B$3:$B$102) -> 0 | Y67: =LOOKUP(X67,Paramètres!$A$3:$A$102,Paramètres!$B$3:$B$102)*Paramètres!$H$5 -> 0 | Z67: =IFERROR(VLOOKUP(J67,Paramètres!$D$3:$E$7,2,FALSE),0)+IFERROR(VLOOKUP(L67,Paramètres!$D$3:$E$7,2,FALSE),0)+IFERROR(VLOOKUP(N67,Paramètres!$D$3:$E$7,2,FALSE),0)+IFERROR(VLOOKUP(P67,Paramètres!$D$3:$E$7,2,FALSE),0)+IFERROR(VLOOKUP(R67,Paramètres!$D$3:$E$7,2,FALSE),0)+IFERROR(VLOOKUP(T67,Paramètres!$D$3:$E$7,2,FALSE),0)+IFERROR(VLOOKUP(V67,Paramètres!$D$3:$E$7,2,FALSE),0)+IFERROR(VLOOKUP(X67,Paramètres!$D$3:$E$7,2,FALSE),0) -> 0 | AA67: 0 | AB67: |013|999|999|999|999|999|999|999 | AC67: 150
A68: 111.0145 | B68: 63 | C68: 111.0145 | D68: 63 | E68: 1235 | F68: MOURLOT ROMIAN | G68: Camille | H68: ROUE D'OR NOIDANS | I68: H(U7) | K68: =LOOKUP(J68,Paramètres!$A$3:$A$102,Paramètres!$B$3:$B$102) -> 0 | L68: 14 | M68: =LOOKUP(L68,Paramètres!$A$3:$A$102,Paramètres!$B$3:$B$102) -> 111 | O68: =LOOKUP(N68,Paramètres!$A$3:$A$102,Paramètres!$B$3:$B$102) -> 0 | Q68: =LOOKUP(P68,Paramètres!$A$3:$A$102,Paramètres!$B$3:$B$102) -> 0 | S68: =LOOKUP(R68,Paramètres!$A$3:$A$102,Paramètres!$B$3:$B$102) -> 0 | U68: =LOOKUP(T68,Paramètres!$A$3:$A$102,Paramètres!$B$3:$B$102) -> 0 | W68: =LOOKUP(V68,Paramètres!$A$3:$A$102,Paramètres!$B$3:$B$102) -> 0 | Y68: =LOOKUP(X68,Paramètres!$A$3:$A$102,Paramètres!$B$3:$B$102)*Paramètres!$H$5 -> 0 | Z68: =IFERROR(VLOOKUP(J68,Paramètres!$D$3:$E$7,2,FALSE),0)+IFERROR(VLOOKUP(L68,Paramètres!$D$3:$E$7,2,FALSE),0)+IFERROR(VLOOKUP(N68,Paramètres!$D$3:$E$7,2,FALSE),0)+IFERROR(VLOOKUP(P68,Paramètres!$D$3:$E$7,2,FALSE),0)+IFERROR(VLOOKUP(R68,Paramètres!$D$3:$E$7,2,FALSE),0)+IFERROR(VLOOKUP(T68,Paramètres!$D$3:$E$7,2,FALSE),0)+IFERROR(VLOOKUP(V68,Paramètres!$D$3:$E$7,2,FALSE),0)+IFERROR(VLOOKUP(X68,Paramètres!$D$3:$E$7,2,FALSE),0) -> 0 | AA68: 0 | AB68: |014|999|999|999|999|999|999|999 | AC68: 145
A69: 111.0145 | B69: 63 | C69: 111.0145 | D69: 63 | E69: 1254 | F69: FIEUX | G69: Auguste | H69: VTT ORGELET | I69: H(U9) | K69: =LOOKUP(J69,Paramètres!$A$3:$A$102,Paramètres!$B$3:$B$102) -> 0 | M69: =LOOKUP(L69,Paramètres!$A$3:$A$102,Paramètres!$B$3:$B$102) -> 0 | N69: 14 | O69: =LOOKUP(N69,Paramètres!$A$3:$A$102,Paramètres!$B$3:$B$102) -> 111 | Q69: =LOOKUP(P69,Paramètres!$A$3:$A$102,Paramètres!$B$3:$B$102) -> 0 | S69: =LOOKUP(R69,Paramètres!$A$3:$A$102,Paramètres!$B$3:$B$102) -> 0 | U69: =LOOKUP(T69,Paramètres!$A$3:$A$102,Paramètres!$B$3:$B$102) -> 0 | W69: =LOOKUP(V69,Paramètres!$A$3:$A$102,Paramètres!$B$3:$B$102) -> 0 | Y69: =LOOKUP(X69,Paramètres!$A$3:$A$102,Paramètres!$B$3:$B$102)*Paramètres!$H$5 -> 0 | Z69: =IFERROR(VLOOKUP(J69,Paramètres!$D$3:$E$7,2,FALSE),0)+IFERROR(VLOOKUP(L69,Paramètres!$D$3:$E$7,2,FALSE),0)+IFERROR(VLOOKUP(N69,Paramètres!$D$3:$E$7,2,FALSE),0)+IFERROR(VLOOKUP(P69,Paramètres!$D$3:$E$7,2,FALSE),0)+IFERROR(VLOOKUP(R69,Paramètres!$D$3:$E$7,2,FALSE),0)+IFERROR(VLOOKUP(T69,Paramètres!$D$3:$E$7,2,FALSE),0)+IFERROR(VLOOKUP(V69,Paramètres!$D$3:$E$7,2,FALSE),0)+IFERROR(VLOOKUP(X69,Paramètres!$D$3:$E$7,2,FALSE),0) -> 0 | AA69: 0 | AB69: |014|999|999|999|999|999|999|999 | AC69: 145
A70: =K70+M70+O70+S70+U70+W70+Y70+Q70+AC70/10000 -> 111.0145 | B70: =IF(E70,RANK(A70,$A$6:$A$211),"") -> 63 | C70: =A70-MINA(K70,M70,O70,S70,U70,W70,Y70,Q70) -> 111.0145 | D70: =IF(E70,RANK(C70,$C$6:$C$211),"") -> 63 | E70: 1297 | F70: SCHAEFFER | G70: Esteban | H70: MESVRIN VTT | I70: H(U9) | K70: =LOOKUP(J70,Paramètres!$A$3:$A$102,Paramètres!$B$3:$B$102) -> 0 | M70: =LOOKUP(L70,Paramètres!$A$3:$A$102,Paramètres!$B$3:$B$102) -> 0 | O70: =LOOKUP(N70,Paramètres!$A$3:$A$102,Paramètres!$B$3:$B$102) -> 0 | Q70: =LOOKUP(P70,Paramètres!$A$3:$A$102,Paramètres!$B$3:$B$102) -> 0 | S70: =LOOKUP(R70,Paramètres!$A$3:$A$102,Paramètres!$B$3:$B$102) -> 0 | U70: =LOOKUP(T70,Paramètres!$A$3:$A$102,Paramètres!$B$3:$B$102) -> 0 | V70: 14 | W70: =LOOKUP(V70,Paramètres!$A$3:$A$102,Paramètres!$B$3:$B$102) -> 111 | Y70: =LOOKUP(X70,Paramètres!$A$3:$A$102,Paramètres!$B$3:$B$102)*Paramètres!$H$5 -> 0 | Z70: =IFERROR(VLOOKUP(J70,Paramètres!$D$3:$E$7,2,FALSE),0)+IFERROR(VLOOKUP(L70,Paramètres!$D$3:$E$7,2,FALSE),0)+IFERROR(VLOOKUP(N70,Paramètres!$D$3:$E$7,2,FALSE),0)+IFERROR(VLOOKUP(P70,Paramètres!$D$3:$E$7,2,FALSE),0)+IFERROR(VLOOKUP(R70,Paramètres!$D$3:$E$7,2,FALSE),0)+IFERROR(VLOOKUP(T70,Paramètres!$D$3:$E$7,2,FALSE),0)+IFERROR(VLOOKUP(V70,Paramètres!$D$3:$E$7,2,FALSE),0)+IFERROR(VLOOKUP(X70,Paramètres!$D$3:$E$7,2,FALSE),0) -> 0 | AA70: =MINA(K70,M70,O70,S70,Y70,U70,W70,Q70) -> 0 | AB70: |014|999|999|999|999|999|999|999 | AC70: 145
A71: 108.0142 | B71: 66 | C71: 108.0142 | D71: 66 | E71: 1208 | F71: PETRILLO | G71: Gabin | H71: PASSE PARTOUT VTT MACON | I71: H(U7) | J71: 15 | K71: =LOOKUP(J71,Paramètres!$A$3:$A$102,Paramètres!$B$3:$B$102) -> 108 | M71: =LOOKUP(L71,Paramètres!$A$3:$A$102,Paramètres!$B$3:$B$102) -> 0 | O71: =LOOKUP(N71,Paramètres!$A$3:$A$102,Paramètres!$B$3:$B$102) -> 0 | Q71: =LOOKUP(P71,Paramètres!$A$3:$A$102,Paramètres!$B$3:$B$102) -> 0 | S71: =LOOKUP(R71,Paramètres!$A$3:$A$102,Paramètres!$B$3:$B$102) -> 0 | U71: =LOOKUP(T71,Paramètres!$A$3:$A$102,Paramètres!$B$3:$B$102) -> 0 | W71: =LOOKUP(V71,Paramètres!$A$3:$A$102,Paramètres!$B$3:$B$102) -> 0 | Y71: =LOOKUP(X71,Paramètres!$A$3:$A$102,Paramètres!$B$3:$B$102)*Paramètres!$H$5 -> 0 | Z71: =IFERROR(VLOOKUP(J71,Paramètres!$D$3:$E$7,2,FALSE),0)+IFERROR(VLOOKUP(L71,Paramètres!$D$3:$E$7,2,FALSE),0)+IFERROR(VLOOKUP(N71,Paramètres!$D$3:$E$7,2,FALSE),0)+IFERROR(VLOOKUP(P71,Paramètres!$D$3:$E$7,2,FALSE),0)+IFERROR(VLOOKUP(R71,Paramètres!$D$3:$E$7,2,FALSE),0)+IFERROR(VLOOKUP(T71,Paramètres!$D$3:$E$7,2,FALSE),0)+IFERROR(VLOOKUP(V71,Paramètres!$D$3:$E$7,2,FALSE),0)+IFERROR(VLOOKUP(X71,Paramètres!$D$3:$E$7,2,FALSE),0) -> 0 | AA71: 0 | AB71: =Classement(J71:Y71,$J$5:$Y$5) -> |015|999|999|999|999|999|999|999 | AC71: =COUNTIF($AB$6:$AB$211,">"&AB71) -> 142
A72: 108.0142 | B72: 66 | C72: 108.0142 | D72: 66 | E72: 1231 | F72: JEANNIN OBHOLTZ | G72: Arthur | H72: CC BELFORT MIOTTE | I72: H(U9) | K72: =LOOKUP(J72,Paramètres!$A$3:$A$102,Paramètres!$B$3:$B$102) -> 0 | L72: 15 | M72: =LOOKUP(L72,Paramètres!$A$3:$A$102,Paramètres!$B$3:$B$102) -> 108 | O72: =LOOKUP(N72,Paramètres!$A$3:$A$102,Paramètres!$B$3:$B$102) -> 0 | Q72: =LOOKUP(P72,Paramètres!$A$3:$A$102,Paramètres!$B$3:$B$102) -> 0 | S72: =LOOKUP(R72,Paramètres!$A$3:$A$102,Paramètres!$B$3:$B$102) -> 0 | U72: =LOOKUP(T72,Paramètres!$A$3:$A$102,Paramètres!$B$3:$B$102) -> 0 | W72: =LOOKUP(V72,Paramètres!$A$3:$A$102,Paramètres!$B$3:$B$102) -> 0 | Y72: =LOOKUP(X72,Paramètres!$A$3:$A$102,Paramètres!$B$3:$B$102)*Paramètres!$H$5 -> 0 | Z72: =IFERROR(VLOOKUP(J72,Paramètres!$D$3:$E$7,2,FALSE),0)+IFERROR(VLOOKUP(L72,Paramètres!$D$3:$E$7,2,FALSE),0)+IFERROR(VLOOKUP(N72,Paramètres!$D$3:$E$7,2,FALSE),0)+IFERROR(VLOOKUP(P72,Paramètres!$D$3:$E$7,2,FALSE),0)+IFERROR(VLOOKUP(R72,Paramètres!$D$3:$E$7,2,FALSE),0)+IFERROR(VLOOKUP(T72,Paramètres!$D$3:$E$7,2,FALSE),0)+IFERROR(VLOOKUP(V72,Paramètres!$D$3:$E$7,2,FALSE),0)+IFERROR(VLOOKUP(X72,Paramètres!$D$3:$E$7,2,FALSE),0) -> 0 | AA72: 0 | AB72: |015|999|999|999|999|999|999|999 | AC72: 142
A73: 105.0139 | B73: 68 | C73: 105.0139 | D73: 68 | E73: 1240 | F73: DURAND | G73: Lucien | H73: LES FOURGS SINGLETRACK | I73: H(U9) | K73: =LOOKUP(J73,Paramètres!$A$3:$A$102,Paramètres!$B$3:$B$102) -> 0 | M73: =LOOKUP(L73,Paramètres!$A$3:$A$102,Paramètres!$B$3:$B$102) -> 0 | O73: =LOOKUP(N73,Paramètres!$A$3:$A$102,Paramètres!$B$3:$B$102) -> 0 | Q73: =LOOKUP(P73,Paramètres!$A$3:$A$102,Paramètres!$B$3:$B$102) -> 0 | S73: =LOOKUP(R73,Paramètres!$A$3:$A$102,Paramètres!$B$3:$B$102) -> 0 | T73: 16 | U73: =LOOKUP(T73,Paramètres!$A$3:$A$102,Paramètres!$B$3:$B$102) -> 105 | W73: =LOOKUP(V73,Paramètres!$A$3:$A$102,Paramètres!$B$3:$B$102) -> 0 | Y73: =LOOKUP(X73,Paramètres!$A$3:$A$102,Paramètres!$B$3:$B$102)*Paramètres!$H$5 -> 0 | Z73: =IFERROR(VLOOKUP(J73,Paramètres!$D$3:$E$7,2,FALSE),0)+IFERROR(VLOOKUP(L73,Paramètres!$D$3:$E$7,2,FALSE),0)+IFERROR(VLOOKUP(N73,Paramètres!$D$3:$E$7,2,FALSE),0)+IFERROR(VLOOKUP(P73,Paramètres!$D$3:$E$7,2,FALSE),0)+IFERROR(VLOOKUP(R73,Paramètres!$D$3:$E$7,2,FALSE),0)+IFERROR(VLOOKUP(T73,Paramètres!$D$3:$E$7,2,FALSE),0)+IFERROR(VLOOKUP(V73,Paramètres!$D$3:$E$7,2,FALSE),0)+IFERROR(VLOOKUP(X73,Paramètres!$D$3:$E$7,2,FALSE),0) -> 0 | AA73: 0 | AB73: |016|999|999|999|999|999|999|999 | AC73: 139
A74: 105.0139 | B74: 68 | C74: 105.0139 | D74: 68 | E74: 1257 | F74: GUYONNOT | G74: Colin | H74: PULSION VTT | I74: H(U9) | K74: =LOOKUP(J74,Paramètres!$A$3:$A$102,Paramètres!$B$3:$B$102) -> 0 | M74: =LOOKUP(L74,Paramètres!$A$3:$A$102,Paramètres!$B$3:$B$102) -> 0 | N74: 16 | O74: =LOOKUP(N74,Paramètres!$A$3:$A$102,Paramètres!$B$3:$B$102) -> 105 | Q74: =LOOKUP(P74,Paramètres!$A$3:$A$102,Paramètres!$B$3:$B$102) -> 0 | S74: =LOOKUP(R74,Paramètres!$A$3:$A$102,Paramètres!$B$3:$B$102) -> 0 | U74: =LOOKUP(T74,Paramètres!$A$3:$A$102,Paramètres!$B$3:$B$102) -> 0 | W74: =LOOKUP(V74,Paramètres!$A$3:$A$102,Paramètres!$B$3:$B$102) -> 0 | Y74: =LOOKUP(X74,Paramètres!$A$3:$A$102,Paramètres!$B$3:$B$102)*Paramètres!$H$5 -> 0 | Z74: =IFERROR(VLOOKUP(J74,Paramètres!$D$3:$E$7,2,FALSE),0)+IFERROR(VLOOKUP(L74,Paramètres!$D$3:$E$7,2,FALSE),0)+IFERROR(VLOOKUP(N74,Paramètres!$D$3:$E$7,2,FALSE),0)+IFERROR(VLOOKUP(P74,Paramètres!$D$3:$E$7,2,FALSE),0)+IFERROR(VLOOKUP(R74,Paramètres!$D$3:$E$7,2,FALSE),0)+IFERROR(VLOOKUP(T74,Paramètres!$D$3:$E$7,2,FALSE),0)+IFERROR(VLOOKUP(V74,Paramètres!$D$3:$E$7,2,FALSE),0)+IFERROR(VLOOKUP(X74,Paramètres!$D$3:$E$7,2,FALSE),0) -> 0 | AA74: 0 | AB74: |016|999|999|999|999|999|999|999 | AC74: 139
A75: 102.0137 | B75: 70 | C75: 102.0137 | D75: 70 | E75: 1202 | F75: MAUDRICH | G75: Amaury | H75: AVENIR CYCLISTE CHALONNAIS | I75: H(U9) | J75: 17 | K75: =LOOKUP(J75,Paramètres!$A$3:$A$102,Paramètres!$B$3:$B$102) -> 102 | M75: =LOOKUP(L75,Paramètres!$A$3:$A$102,Paramètres!$B$3:$B$102) -> 0 | O75: =LOOKUP(N75,Paramètres!$A$3:$A$102,Paramètres!$B$3:$B$102) -> 0 | Q75: =LOOKUP(P75,Paramètres!$A$3:$A$102,Paramètres!$B$3:$B$102) -> 0 | S75: =LOOKUP(R75,Paramètres!$A$3:$A$102,Paramètres!$B$3:$B$102) -> 0 | U75: =LOOKUP(T75,Paramètres!$A$3:$A$102,Paramètres!$B$3:$B$102) -> 0 | W75: =LOOKUP(V75,Paramètres!$A$3:$A$102,Paramètres!$B$3:$B$102) -> 0 | Y75: =LOOKUP(X75,Paramètres!$A$3:$A$102,Paramètres!$B$3:$B$102)*Paramètres!$H$5 -> 0 | Z75: =IFERROR(VLOOKUP(J75,Paramètres!$D$3:$E$7,2,FALSE),0)+IFERROR(VLOOKUP(L75,Paramètres!$D$3:$E$7,2,FALSE),0)+IFERROR(VLOOKUP(N75,Paramètres!$D$3:$E$7,2,FALSE),0)+IFERROR(VLOOKUP(P75,Paramètres!$D$3:$E$7,2,FALSE),0)+IFERROR(VLOOKUP(R75,Paramètres!$D$3:$E$7,2,FALSE),0)+IFERROR(VLOOKUP(T75,Paramètres!$D$3:$E$7,2,FALSE),0)+IFERROR(VLOOKUP(V75,Paramètres!$D$3:$E$7,2,FALSE),0)+IFERROR(VLOOKUP(X75,Paramètres!$D$3:$E$7,2,FALSE),0) -> 0 | AA75: 0 | AB75: |017|999|999|999|999|999|999|999 | AC75: 137
A76: 99.0135 | B76: 71 | C76: 99.0135 | D76: 71 | E76: 1274 | F76: JANET | G76: Alessio | H76: AVENIR CYCLISTE CHALONNAIS | I76: H(U9) | K76: =LOOKUP(J76,Paramètres!$A$3:$A$102,Paramètres!$B$3:$B$102) -> 0 | M76: =LOOKUP(L76,Paramètres!$A$3:$A$102,Paramètres!$B$3:$B$102) -> 0 | O76: =LOOKUP(N76,Paramètres!$A$3:$A$102,Paramètres!$B$3:$B$102) -> 0 | P76: 18 | Q76: =LOOKUP(P76,Paramètres!$A$3:$A$102,Paramètres!$B$3:$B$102) -> 99 | S76: =LOOKUP(R76,Paramètres!$A$3:$A$102,Paramètres!$B$3:$B$102) -> 0 | U76: =LOOKUP(T76,Paramètres!$A$3:$A$102,Paramètres!$B$3:$B$102) -> 0 | W76: =LOOKUP(V76,Paramètres!$A$3:$A$102,Paramètres!$B$3:$B$102) -> 0 | Y76: =LOOKUP(X76,Paramètres!$A$3:$A$102,Paramètres!$B$3:$B$102)*Paramètres!$H$5 -> 0 | Z76: =IFERROR(VLOOKUP(J76,Paramètres!$D$3:$E$7,2,FALSE),0)+IFERROR(VLOOKUP(L76,Paramètres!$D$3:$E$7,2,FALSE),0)+IFERROR(VLOOKUP(N76,Paramètres!$D$3:$E$7,2,FALSE),0)+IFERROR(VLOOKUP(P76,Paramètres!$D$3:$E$7,2,FALSE),0)+IFERROR(VLOOKUP(R76,Paramètres!$D$3:$E$7,2,FALSE),0)+IFERROR(VLOOKUP(T76,Paramètres!$D$3:$E$7,2,FALSE),0)+IFERROR(VLOOKUP(V76,Paramètres!$D$3:$E$7,2,FALSE),0)+IFERROR(VLOOKUP(X76,Paramètres!$D$3:$E$7,2,FALSE),0) -> 0 | AA76: 0 | AB76: |018|999|999|999|999|999|999|999 | AC76: 135
A77: 99.0135 | B77: 71 | C77: 99.0135 | D77: 71 | E77: 1298 | F77: BOURDIEU NORMAND | G77: Emma | H77: VELO SPORT CLUB BEAUNOIS | I77: F(U9) | K77: =LOOKUP(J77,Paramètres!$A$3:$A$102,Paramètres!$B$3:$B$102) -> 0 | M77: =LOOKUP(L77,Paramètres!$A$3:$A$102,Paramètres!$B$3:$B$102) -> 0 | O77: =LOOKUP(N77,Paramètres!$A$3:$A$102,Paramètres!$B$3:$B$102) -> 0 | Q77: =LOOKUP(P77,Paramètres!$A$3:$A$102,Paramètres!$B$3:$B$102) -> 0 | S77: =LOOKUP(R77,Paramètres!$A$3:$A$102,Paramètres!$B$3:$B$102) -> 0 | U77: =LOOKUP(T77,Paramètres!$A$3:$A$102,Paramètres!$B$3:$B$102) -> 0 | V77: 18 | W77: =LOOKUP(V77,Paramètres!$A$3:$A$102,Paramètres!$B$3:$B$102) -> 99 | Y77: =LOOKUP(X77,Paramètres!$A$3:$A$102,Paramètres!$B$3:$B$102)*Paramètres!$H$5 -> 0 | Z77: =IFERROR(VLOOKUP(J77,Paramètres!$D$3:$E$7,2,FALSE),0)+IFERROR(VLOOKUP(L77,Paramètres!$D$3:$E$7,2,FALSE),0)+IFERROR(VLOOKUP(N77,Paramètres!$D$3:$E$7,2,FALSE),0)+IFERROR(VLOOKUP(P77,Paramètres!$D$3:$E$7,2,FALSE),0)+IFERROR(VLOOKUP(R77,Paramètres!$D$3:$E$7,2,FALSE),0)+IFERROR(VLOOKUP(T77,Paramètres!$D$3:$E$7,2,FALSE),0)+IFERROR(VLOOKUP(V77,Paramètres!$D$3:$E$7,2,FALSE),0)+IFERROR(VLOOKUP(X77,Paramètres!$D$3:$E$7,2,FALSE),0) -> 0 | AA77: 0 | AB77: |018|999|999|999|999|999|999|999 | AC77: 135
A78: 96.0133 | B78: 73 | C78: 96.0133 | D78: 73 | E78: 1238 | F78: MANTION | G78: Julian | H78: CCPVHS | I78: H(U9) | K78: =LOOKUP(J78,Paramètres!$A$3:$A$102,Paramètres!$B$3:$B$102) -> 0 | L78: 19 | M78: =LOOKUP(L78,Paramètres!$A$3:$A$102,Paramètres!$B$3:$B$102) -> 96 | O78: =LOOKUP(N78,Paramètres!$A$3:$A$102,Paramètres!$B$3:$B$102) -> 0 | Q78: =LOOKUP(P78,Paramètres!$A$3:$A$102,Paramètres!$B$3:$B$102) -> 0 | S78: =LOOKUP(R78,Paramètres!$A$3:$A$102,Paramètres!$B$3:$B$102) -> 0 | U78: =LOOKUP(T78,Paramètres!$A$3:$A$102,Paramètres!$B$3:$B$102) -> 0 | W78: =LOOKUP(V78,Paramètres!$A$3:$A$102,Paramètres!$B$3:$B$102) -> 0 | Y78: =LOOKUP(X78,Paramètres!$A$3:$A$102,Paramètres!$B$3:$B$102)*Paramètres!$H$5 -> 0 | Z78: =IFERROR(VLOOKUP(J78,Paramètres!$D$3:$E$7,2,FALSE),0)+IFERROR(VLOOKUP(L78,Paramètres!$D$3:$E$7,2,FALSE),0)+IFERROR(VLOOKUP(N78,Paramètres!$D$3:$E$7,2,FALSE),0)+IFERROR(VLOOKUP(P78,Paramètres!$D$3:$E$7,2,FALSE),0)+IFERROR(VLOOKUP(R78,Paramètres!$D$3:$E$7,2,FALSE),0)+IFERROR(VLOOKUP(T78,Paramètres!$D$3:$E$7,2,FALSE),0)+IFERROR(VLOOKUP(V78,Paramètres!$D$3:$E$7,2,FALSE),0)+IFERROR(VLOOKUP(X78,Paramètres!$D$3:$E$7,2,FALSE),0) -> 0 | AA78: 0 | AB78: |019|999|999|999|999|999|999|999 | AC78: 133
A79: 96.0133 | B79: 73 | C79: 96.0133 | D79: 73 | E79: 1292 | F79: SANCET | G79: Côme | H79: U.C. MOREZ | I79: H(U9) | K79: =LOOKUP(J79,Paramètres!$A$3:$A$102,Paramètres!$B$3:$B$102) -> 0 | M79: =LOOKUP(L79,Paramètres!$A$3:$A$102,Paramètres!$B$3:$B$102) -> 0 | O79: =LOOKUP(N79,Paramètres!$A$3:$A$102,Paramètres!$B$3:$B$102) -> 0 | Q79: =LOOKUP(P79,Paramètres!$A$3:$A$102,Paramètres!$B$3:$B$102) -> 0 | S79: =LOOKUP(R79,Paramètres!$A$3:$A$102,Paramètres!$B$3:$B$102) -> 0 | T79: 19 | U79: =LOOKUP(T79,Paramètres!$A$3:$A$102,Paramètres!$B$3:$B$102) -> 96 | W79: =LOOKUP(V79,Paramètres!$A$3:$A$102,Paramètres!$B$3:$B$102) -> 0 | Y79: =LOOKUP(X79,Paramètres!$A$3:$A$102,Paramètres!$B$3:$B$102)*Paramètres!$H$5 -> 0 | Z79: =IFERROR(VLOOKUP(J79,Paramètres!$D$3:$E$7,2,FALSE),0)+IFERROR(VLOOKUP(L79,Paramètres!$D$3:$E$7,2,FALSE),0)+IFERROR(VLOOKUP(N79,Paramètres!$D$3:$E$7,2,FALSE),0)+IFERROR(VLOOKUP(P79,Paramètres!$D$3:$E$7,2,FALSE),0)+IFERROR(VLOOKUP(R79,Paramètres!$D$3:$E$7,2,FALSE),0)+IFERROR(VLOOKUP(T79,Paramètres!$D$3:$E$7,2,FALSE),0)+IFERROR(VLOOKUP(V79,Paramètres!$D$3:$E$7,2,FALSE),0)+IFERROR(VLOOKUP(X79,Paramètres!$D$3:$E$7,2,FALSE),0) -> 0 | AA79: 0 | AB79: |019|999|999|999|999|999|999|999 | AC79: 133
A80: 93.0131 | B80: 75 | C80: 93.0131 | D80: 75 | E80: 1205 | F80: BROSSARD | G80: Martin | H80: PASSE PARTOUT VTT MACON | I80: H(U7) | J80: 20 | K80: =LOOKUP(J80,Paramètres!$A$3:$A$102,Paramètres!$B$3:$B$102) -> 93 | M80: =LOOKUP(L80,Paramètres!$A$3:$A$102,Paramètres!$B$3:$B$102) -> 0 | O80: =LOOKUP(N80,Paramètres!$A$3:$A$102,Paramètres!$B$3:$B$102) -> 0 | Q80: =LOOKUP(P80,Paramètres!$A$3:$A$102,Paramètres!$B$3:$B$102) -> 0 | S80: =LOOKUP(R80,Paramètres!$A$3:$A$102,Paramètres!$B$3:$B$102) -> 0 | U80: =LOOKUP(T80,Paramètres!$A$3:$A$102,Paramètres!$B$3:$B$102) -> 0 | W80: =LOOKUP(V80,Paramètres!$A$3:$A$102,Paramètres!$B$3:$B$102) -> 0 | Y80: =LOOKUP(X80,Paramètres!$A$3:$A$102,Paramètres!$B$3:$B$102)*Paramètres!$H$5 -> 0 | Z80: =IFERROR(VLOOKUP(J80,Paramètres!$D$3:$E$7,2,FALSE),0)+IFERROR(VLOOKUP(L80,Paramètres!$D$3:$E$7,2,FALSE),0)+IFERROR(VLOOKUP(N80,Paramètres!$D$3:$E$7,2,FALSE),0)+IFERROR(VLOOKUP(P80,Paramètres!$D$3:$E$7,2,FALSE),0)+IFERROR(VLOOKUP(R80,Paramètres!$D$3:$E$7,2,FALSE),0)+IFERROR(VLOOKUP(T80,Paramètres!$D$3:$E$7,2,FALSE),0)+IFERROR(VLOOKUP(V80,Paramètres!$D$3:$E$7,2,FALSE),0)+IFERROR(VLOOKUP(X80,Paramètres!$D$3:$E$7,2,FALSE),0) -> 0 | AA80: 0 | AB80: |020|999|999|999|999|999|999|999 | AC80: 131
A81: 93.0131 | B81: 75 | C81: 93.0131 | D81: 75 | E81: 1294 | F81: VALLET | G81: Lucien | H81: LES FOURGS SINGLETRACK | I81: H(U9) | K81: =LOOKUP(J81,Paramètres!$A$3:$A$102,Paramètres!$B$3:$B$102) -> 0 | M81: =LOOKUP(L81,Paramètres!$A$3:$A$102,Paramètres!$B$3:$B$102) -> 0 | O81: =LOOKUP(N81,Paramètres!$A$3:$A$102,Paramètres!$B$3:$B$102) -> 0 | Q81: =LOOKUP(P81,Paramètres!$A$3:$A$102,Paramètres!$B$3:$B$102) -> 0 | S81: =LOOKUP(R81,Paramètres!$A$3:$A$102,Paramètres!$B$3:$B$102) -> 0 | T81: 20 | U81: =LOOKUP(T81,Paramètres!$A$3:$A$102,Paramètres!$B$3:$B$102) -> 93 | W81: =LOOKUP(V81,Paramètres!$A$3:$A$102,Paramètres!$B$3:$B$102) -> 0 | Y81: =LOOKUP(X81,Paramètres!$A$3:$A$102,Paramètres!$B$3:$B$102)*Paramètres!$H$5 -> 0 | Z81: =IFERROR(VLOOKUP(J81,Paramètres!$D$3:$E$7,2,FALSE),0)+IFERROR(VLOOKUP(L81,Paramètres!$D$3:$E$7,2,FALSE),0)+IFERROR(VLOOKUP(N81,Paramètres!$D$3:$E$7,2,FALSE),0)+IFERROR(VLOOKUP(P81,Paramètres!$D$3:$E$7,2,FALSE),0)+IFERROR(VLOOKUP(R81,Paramètres!$D$3:$E$7,2,FALSE),0)+IFERROR(VLOOKUP(T81,Paramètres!$D$3:$E$7,2,FALSE),0)+IFERROR(VLOOKUP(V81,Paramètres!$D$3:$E$7,2,FALSE),0)+IFERROR(VLOOKUP(X81,Paramètres!$D$3:$E$7,2,FALSE),0) -> 0 | AA81: 0 | AB81: |020|999|999|999|999|999|999|999 | AC81: 131
A82: 91.0128 | B82: 77 | C82: 91.0128 | D82: 77 | E82: 1269 | F82: BENON | G82: Enzo | H82: VELO CLUB TOURNUS | I82: H(U9) | K82: =LOOKUP(J82,Paramètres!$A$3:$A$102,Paramètres!$B$3:$B$102) -> 0 | M82: =LOOKUP(L82,Paramètres!$A$3:$A$102,Paramètres!$B$3:$B$102) -> 0 | O82: =LOOKUP(N82,Paramètres!$A$3:$A$102,Paramètres!$B$3:$B$102) -> 0 | P82: 21 | Q82: =LOOKUP(P82,Paramètres!$A$3:$A$102,Paramètres!$B$3:$B$102) -> 90 | R82: ABD | S82: =LOOKUP(R82,Paramètres!$A$3:$A$102,Paramètres!$B$3:$B$102) -> 1 | U82: =LOOKUP(T82,Paramètres!$A$3:$A$102,Paramètres!$B$3:$B$102) -> 0 | W82: =LOOKUP(V82,Paramètres!$A$3:$A$102,Paramètres!$B$3:$B$102) -> 0 | Y82: =LOOKUP(X82,Paramètres!$A$3:$A$102,Paramètres!$B$3:$B$102)*Paramètres!$H$5 -> 0 | Z82: =IFERROR(VLOOKUP(J82,Paramètres!$D$3:$E$7,2,FALSE),0)+IFERROR(VLOOKUP(L82,Paramètres!$D$3:$E$7,2,FALSE),0)+IFERROR(VLOOKUP(N82,Paramètres!$D$3:$E$7,2,FALSE),0)+IFERROR(VLOOKUP(P82,Paramètres!$D$3:$E$7,2,FALSE),0)+IFERROR(VLOOKUP(R82,Paramètres!$D$3:$E$7,2,FALSE),0)+IFERROR(VLOOKUP(T82,Paramètres!$D$3:$E$7,2,FALSE),0)+IFERROR(VLOOKUP(V82,Paramètres!$D$3:$E$7,2,FALSE),0)+IFERROR(VLOOKUP(X82,Paramètres!$D$3:$E$7,2,FALSE),0) -> 0 | AA82: 0 | AB82: |021|999|999|999|999|999|999|999 | AC82: 128
A83: 90.0128 | B83: 78 | C83: 90.0128 | D83: 78 | E83: 1293 | F83: THOMET | G83: Hugo | H83: LES FOURGS SINGLETRACK | I83: H(U9) | K83: =LOOKUP(J83,Paramètres!$A$3:$A$102,Paramètres!$B$3:$B$102) -> 0 | M83: =LOOKUP(L83,Paramètres!$A$3:$A$102,Paramètres!$B$3:$B$102) -> 0 | O83: =LOOKUP(N83,Paramètres!$A$3:$A$102,Paramètres!$B$3:$B$102) -> 0 | Q83: =LOOKUP(P83,Paramètres!$A$3:$A$102,Paramètres!$B$3:$B$102) -> 0 | S83: =LOOKUP(R83,Paramètres!$A$3:$A$102,Paramètres!$B$3:$B$102) -> 0 | T83: 21 | U83: =LOOKUP(T83,Paramètres!$A$3:$A$102,Paramètres!$B$3:$B$102) -> 90 | W83: =LOOKUP(V83,Paramètres!$A$3:$A$102,Paramètres!$B$3:$B$102) -> 0 | Y83: =LOOKUP(X83,Paramètres!$A$3:$A$102,Paramètres!$B$3:$B$102)*Paramètres!$H$5 -> 0 | Z83: =IFERROR(VLOOKUP(J83,Paramètres!$D$3:$E$7,2,FALSE),0)+IFERROR(VLOOKUP(L83,Paramètres!$D$3:$E$7,2,FALSE),0)+IFERROR(VLOOKUP(N83,Paramètres!$D$3:$E$7,2,FALSE),0)+IFERROR(VLOOKUP(P83,Paramètres!$D$3:$E$7,2,FALSE),0)+IFERROR(VLOOKUP(R83,Paramètres!$D$3:$E$7,2,FALSE),0)+IFERROR(VLOOKUP(T83,Paramètres!$D$3:$E$7,2,FALSE),0)+IFERROR(VLOOKUP(V83,Paramètres!$D$3:$E$7,2,FALSE),0)+IFERROR(VLOOKUP(X83,Paramètres!$D$3:$E$7,2,FALSE),0) -> 0 | AA83: 0 | AB83: |021|999|999|999|999|999|999|999 | AC83: 128
A84: 87.0127 | B84: 79 | C84: 87.0127 | D84: 79 | E84: 1239 | F84: ARSCHOOT | G84: Paul | H84: ROUE D'OR NOIDANS | I84: H(U9) | K84: =LOOKUP(J84,Paramètres!$A$3:$A$102,Paramètres!$B$3:$B$102) -> 0 | L84: 22 | M84: =LOOKUP(L84,Paramètres!$A$3:$A$102,Paramètres!$B$3:$B$102) -> 87 | O84: =LOOKUP(N84,Paramètres!$A$3:$A$102,Paramètres!$B$3:$B$102) -> 0 | Q84: =LOOKUP(P84,Paramètres!$A$3:$A$102,Paramètres!$B$3:$B$102) -> 0 | S84: =LOOKUP(R84,Paramètres!$A$3:$A$102,Paramètres!$B$3:$B$102) -> 0 | U84: =LOOKUP(T84,Paramètres!$A$3:$A$102,Paramètres!$B$3:$B$102) -> 0 | W84: =LOOKUP(V84,Paramètres!$A$3:$A$102,Paramètres!$B$3:$B$102) -> 0 | Y84: =LOOKUP(X84,Paramètres!$A$3:$A$102,Paramètres!$B$3:$B$102)*Paramètres!$H$5 -> 0 | Z84: =IFERROR(VLOOKUP(J84,Paramètres!$D$3:$E$7,2,FALSE),0)+IFERROR(VLOOKUP(L84,Paramètres!$D$3:$E$7,2,FALSE),0)+IFERROR(VLOOKUP(N84,Paramètres!$D$3:$E$7,2,FALSE),0)+IFERROR(VLOOKUP(P84,Paramètres!$D$3:$E$7,2,FALSE),0)+IFERROR(VLOOKUP(R84,Paramètres!$D$3:$E$7,2,FALSE),0)+IFERROR(VLOOKUP(T84,Paramètres!$D$3:$E$7,2,FALSE),0)+IFERROR(VLOOKUP(V84,Paramètres!$D$3:$E$7,2,FALSE),0)+IFERROR(VLOOKUP(X84,Paramètres!$D$3:$E$7,2,FALSE),0) -> 0 | AA84: 0 | AB84: |022|999|999|999|999|999|999|999 | AC84: 127
A85: 84.0126 | B85: 80 | C85: 84.0126 | D85: 80 | E85: 1253 | F85: CHEVASSUS | G85: Arthur | H85: U.C. MOREZ | I85: H(U9) | K85: =LOOKUP(J85,Paramètres!$A$3:$A$102,Paramètres!$B$3:$B$102) -> 0 | M85: =LOOKUP(L85,Paramètres!$A$3:$A$102,Paramètres!$B$3:$B$102) -> 0 | N85: 23 | O85: =LOOKUP(N85,Paramètres!$A$3:$A$102,Paramètres!$B$3:$B$102) -> 84 | Q85: =LOOKUP(P85,Paramètres!$A$3:$A$102,Paramètres!$B$3:$B$102) -> 0 | S85: =LOOKUP(R85,Paramètres!$A$3:$A$102,Paramètres!$B$3:$B$102) -> 0 | U85: =LOOKUP(T85,Paramètres!$A$3:$A$102,Paramètres!$B$3:$B$102) -> 0 | W85: =LOOKUP(V85,Paramètres!$A$3:$A$102,Paramètres!$B$3:$B$102) -> 0 | Y85: =LOOKUP(X85,Paramètres!$A$3:$A$102,Paramètres!$B$3:$B$102)*Paramètres!$H$5 -> 0 | Z85: =IFERROR(VLOOKUP(J85,Paramètres!$D$3:$E$7,2,FALSE),0)+IFERROR(VLOOKUP(L85,Paramètres!$D$3:$E$7,2,FALSE),0)+IFERROR(VLOOKUP(N85,Paramètres!$D$3:$E$7,2,FALSE),0)+IFERROR(VLOOKUP(P85,Paramètres!$D$3:$E$7,2,FALSE),0)+IFERROR(VLOOKUP(R85,Paramètres!$D$3:$E$7,2,FALSE),0)+IFERROR(VLOOKUP(T85,Paramètres!$D$3:$E$7,2,FALSE),0)+IFERROR(VLOOKUP(V85,Paramètres!$D$3:$E$7,2,FALSE),0)+IFERROR(VLOOKUP(X85,Paramètres!$D$3:$E$7,2,FALSE),0) -> 0 | AA85: 0 | AB85: |023|999|999|999|999|999|999|999 | AC85: 126
A86: 81.0124 | B86: 81 | C86: 81.0124 | D86: 81 | E86: 1230 | F86: VALENTIN | G86: Eloy | H86: VESOUL VTT | I86: H(U9) | K86: =LOOKUP(J86,Paramètres!$A$3:$A$102,Paramètres!$B$3:$B$102) -> 0 | L86: 24 | M86: =LOOKUP(L86,Paramètres!$A$3:$A$102,Paramètres!$B$3:$B$102) -> 81 | O86: =LOOKUP(N86,Paramètres!$A$3:$A$102,Paramètres!$B$3:$B$102) -> 0 | Q86: =LOOKUP(P86,Paramètres!$A$3:$A$102,Paramètres!$B$3:$B$102) -> 0 | S86: =LOOKUP(R86,Paramètres!$A$3:$A$102,Paramètres!$B$3:$B$102) -> 0 | U86: =LOOKUP(T86,Paramètres!$A$3:$A$102,Paramètres!$B$3:$B$102) -> 0 | W86: =LOOKUP(V86,Paramètres!$A$3:$A$102,Paramètres!$B$3:$B$102) -> 0 | Y86: =LOOKUP(X86,Paramètres!$A$3:$A$102,Paramètres!$B$3:$B$102)*Paramètres!$H$5 -> 0 | Z86: =IFERROR(VLOOKUP(J86,Paramètres!$D$3:$E$7,2,FALSE),0)+IFERROR(VLOOKUP(L86,Paramètres!$D$3:$E$7,2,FALSE),0)+IFERROR(VLOOKUP(N86,Paramètres!$D$3:$E$7,2,FALSE),0)+IFERROR(VLOOKUP(P86,Paramètres!$D$3:$E$7,2,FALSE),0)+IFERROR(VLOOKUP(R86,Paramètres!$D$3:$E$7,2,FALSE),0)+IFERROR(VLOOKUP(T86,Paramètres!$D$3:$E$7,2,FALSE),0)+IFERROR(VLOOKUP(V86,Paramètres!$D$3:$E$7,2,FALSE),0)+IFERROR(VLOOKUP(X86,Paramètres!$D$3:$E$7,2,FALSE),0) -> 0 | AA86: 0 | AB86: |024|999|999|999|999|999|999|999 | AC86: 124
A87: 81.0124 | B87: 81 | C87: 81.0124 | D87: 81 | E87: 1283 | F87: GRANDCHAMP | G87: Ilan | H87: VC VTT MONT D'OR | I87: H(U9) | K87: =LOOKUP(J87,Paramètres!$A$3:$A$102,Paramètres!$B$3:$B$102) -> 0 | M87: =LOOKUP(L87,Paramètres!$A$3:$A$102,Paramètres!$B$3:$B$102) -> 0 | O87: =LOOKUP(N87,Paramètres!$A$3:$A$102,Paramètres!$B$3:$B$102) -> 0 | Q87: =LOOKUP(P87,Paramètres!$A$3:$A$102,Paramètres!$B$3:$B$102) -> 0 | S87: =LOOKUP(R87,Paramètres!$A$3:$A$102,Paramètres!$B$3:$B$102) -> 0 | T87: 24 | U87: =LOOKUP(T87,Paramètres!$A$3:$A$102,Paramètres!$B$3:$B$102) -> 81 | W87: =LOOKUP(V87,Paramètres!$A$3:$A$102,Paramètres!$B$3:$B$102) -> 0 | Y87: =LOOKUP(X87,Paramètres!$A$3:$A$102,Paramètres!$B$3:$B$102)*Paramètres!$H$5 -> 0 | Z87: =IFERROR(VLOOKUP(J87,Paramètres!$D$3:$E$7,2,FALSE),0)+IFERROR(VLOOKUP(L87,Paramètres!$D$3:$E$7,2,FALSE),0)+IFERROR(VLOOKUP(N87,Paramètres!$D$3:$E$7,2,FALSE),0)+IFERROR(VLOOKUP(P87,Paramètres!$D$3:$E$7,2,FALSE),0)+IFERROR(VLOOKUP(R87,Paramètres!$D$3:$E$7,2,FALSE),0)+IFERROR(VLOOKUP(T87,Paramètres!$D$3:$E$7,2,FALSE),0)+IFERROR(VLOOKUP(V87,Paramètres!$D$3:$E$7,2,FALSE),0)+IFERROR(VLOOKUP(X87,Paramètres!$D$3:$E$7,2,FALSE),0) -> 0 | AA87: 0 | AB87: |024|999|999|999|999|999|999|999 | AC87: 124
A88: 78.0122 | B88: 83 | C88: 78.0122 | D88: 83 | E88: 1229 | F88: BUTSCHER | G88: Stanislas | H88: VESOUL VTT | I88: H(U9) | K88: =LOOKUP(J88,Paramètres!$A$3:$A$102,Paramètres!$B$3:$B$102) -> 0 | L88: 25 | M88: =LOOKUP(L88,Paramètres!$A$3:$A$102,Paramètres!$B$3:$B$102) -> 78 | O88: =LOOKUP(N88,Paramètres!$A$3:$A$102,Paramètres!$B$3:$B$102) -> 0 | Q88: =LOOKUP(P88,Paramètres!$A$3:$A$102,Paramètres!$B$3:$B$102) -> 0 | S88: =LOOKUP(R88,Paramètres!$A$3:$A$102,Paramètres!$B$3:$B$102) -> 0 | U88: =LOOKUP(T88,Paramètres!$A$3:$A$102,Paramètres!$B$3:$B$102) -> 0 | W88: =LOOKUP(V88,Paramètres!$A$3:$A$102,Paramètres!$B$3:$B$102) -> 0 | Y88: =LOOKUP(X88,Paramètres!$A$3:$A$102,Paramètres!$B$3:$B$102)*Paramètres!$H$5 -> 0 | Z88: =IFERROR(VLOOKUP(J88,Paramètres!$D$3:$E$7,2,FALSE),0)+IFERROR(VLOOKUP(L88,Paramètres!$D$3:$E$7,2,FALSE),0)+IFERROR(VLOOKUP(N88,Paramètres!$D$3:$E$7,2,FALSE),0)+IFERROR(VLOOKUP(P88,Paramètres!$D$3:$E$7,2,FALSE),0)+IFERROR(VLOOKUP(R88,Paramètres!$D$3:$E$7,2,FALSE),0)+IFERROR(VLOOKUP(T88,Paramètres!$D$3:$E$7,2,FALSE),0)+IFERROR(VLOOKUP(V88,Paramètres!$D$3:$E$7,2,FALSE),0)+IFERROR(VLOOKUP(X88,Paramètres!$D$3:$E$7,2,FALSE),0) -> 0 | AA88: 0 | AB88: |025|999|999|999|999|999|999|999 | AC88: 122
A89: 78.0122 | B89: 83 | C89: 78.0122 | D89: 83 | E89: 1279 | F89: BAVEREL | G89: Eloi | H89: VC VTT MONT D'OR | I89: H(U9) | K89: =LOOKUP(J89,Paramètres!$A$3:$A$102,Paramètres!$B$3:$B$102) -> 0 | M89: =LOOKUP(L89,Paramètres!$A$3:$A$102,Paramètres!$B$3:$B$102) -> 0 | O89: =LOOKUP(N89,Paramètres!$A$3:$A$102,Paramètres!$B$3:$B$102) -> 0 | Q89: =LOOKUP(P89,Paramètres!$A$3:$A$102,Paramètres!$B$3:$B$102) -> 0 | S89: =LOOKUP(R89,Paramètres!$A$3:$A$102,Paramètres!$B$3:$B$102) -> 0 | T89: 25 | U89: =LOOKUP(T89,Paramètres!$A$3:$A$102,Paramètres!$B$3:$B$102) -> 78 | W89: =LOOKUP(V89,Paramètres!$A$3:$A$102,Paramètres!$B$3:$B$102) -> 0 | Y89: =LOOKUP(X89,Paramètres!$A$3:$A$102,Paramètres!$B$3:$B$102)*Paramètres!$H$5 -> 0 | Z89: =IFERROR(VLOOKUP(J89,Paramètres!$D$3:$E$7,2,FALSE),0)+IFERROR(VLOOKUP(L89,Paramètres!$D$3:$E$7,2,FALSE),0)+IFERROR(VLOOKUP(N89,Paramètres!$D$3:$E$7,2,FALSE),0)+IFERROR(VLOOKUP(P89,Paramètres!$D$3:$E$7,2,FALSE),0)+IFERROR(VLOOKUP(R89,Paramètres!$D$3:$E$7,2,FALSE),0)+IFERROR(VLOOKUP(T89,Paramètres!$D$3:$E$7,2,FALSE),0)+IFERROR(VLOOKUP(V89,Paramètres!$D$3:$E$7,2,FALSE),0)+IFERROR(VLOOKUP(X89,Paramètres!$D$3:$E$7,2,FALSE),0) -> 0 | AA89: 0 | AB89: |025|999|999|999|999|999|999|999 | AC89: 122
A90: 75.0121 | B90: 85 | C90: 75.0121 | D90: 85 | E90: 1273 | F90: FEVRE | G90: Noelie | H90: VELO SPORT CLUB BEAUNOIS | I90: F(U9) | K90: =LOOKUP(J90,Paramètres!$A$3:$A$102,Paramètres!$B$3:$B$102) -> 0 | M90: =LOOKUP(L90,Paramètres!$A$3:$A$102,Paramètres!$B$3:$B$102) -> 0 | O90: =LOOKUP(N90,Paramètres!$A$3:$A$102,Paramètres!$B$3:$B$102) -> 0 | P90: 26 | Q90: =LOOKUP(P90,Paramètres!$A$3:$A$102,Paramètres!$B$3:$B$102) -> 75 | S90: =LOOKUP(R90,Paramètres!$A$3:$A$102,Paramètres!$B$3:$B$102) -> 0 | U90: =LOOKUP(T90,Paramètres!$A$3:$A$102,Paramètres!$B$3:$B$102) -> 0 | W90: =LOOKUP(V90,Paramètres!$A$3:$A$102,Paramètres!$B$3:$B$102) -> 0 | Y90: =LOOKUP(X90,Paramètres!$A$3:$A$102,Paramètres!$B$3:$B$102)*Paramètres!$H$5 -> 0 | Z90: =IFERROR(VLOOKUP(J90,Paramètres!$D$3:$E$7,2,FALSE),0)+IFERROR(VLOOKUP(L90,Paramètres!$D$3:$E$7,2,FALSE),0)+IFERROR(VLOOKUP(N90,Paramètres!$D$3:$E$7,2,FALSE),0)+IFERROR(VLOOKUP(P90,Paramètres!$D$3:$E$7,2,FALSE),0)+IFERROR(VLOOKUP(R90,Paramètres!$D$3:$E$7,2,FALSE),0)+IFERROR(VLOOKUP(T90,Paramètres!$D$3:$E$7,2,FALSE),0)+IFERROR(VLOOKUP(V90,Paramètres!$D$3:$E$7,2,FALSE),0)+IFERROR(VLOOKUP(X90,Paramètres!$D$3:$E$7,2,FALSE),0) -> 0 | AA90: 0 | AB90: |026|999|999|999|999|999|999|999 | AC90: 121
A91: 72.012 | B91: 86 | C91: 72.012 | D91: 86 | E91: 1258 | F91: MAPELLI | G91: Enzo | H91: U.C. MOREZ | I91: H(U9) | K91: =LOOKUP(J91,Paramètres!$A$3:$A$102,Paramètres!$B$3:$B$102) -> 0 | M91: =LOOKUP(L91,Paramètres!$A$3:$A$102,Paramètres!$B$3:$B$102) -> 0 | O91: =LOOKUP(N91,Paramètres!$A$3:$A$102,Paramètres!$B$3:$B$102) -> 0 | Q91: =LOOKUP(P91,Paramètres!$A$3:$A$102,Paramètres!$B$3:$B$102) -> 0 | S91: =LOOKUP(R91,Paramètres!$A$3:$A$102,Paramètres!$B$3:$B$102) -> 0 | T91: 27 | U91: =LOOKUP(T91,Paramètres!$A$3:$A$102,Paramètres!$B$3:$B$102) -> 72 | W91: =LOOKUP(V91,Paramètres!$A$3:$A$102,Paramètres!$B$3:$B$102) -> 0 | Y91: =LOOKUP(X91,Paramètres!$A$3:$A$102,Paramètres!$B$3:$B$102)*Paramètres!$H$5 -> 0 | Z91: =IFERROR(VLOOKUP(J91,Paramètres!$D$3:$E$7,2,FALSE),0)+IFERROR(VLOOKUP(L91,Paramètres!$D$3:$E$7,2,FALSE),0)+IFERROR(VLOOKUP(N91,Paramètres!$D$3:$E$7,2,FALSE),0)+IFERROR(VLOOKUP(P91,Paramètres!$D$3:$E$7,2,FALSE),0)+IFERROR(VLOOKUP(R91,Paramètres!$D$3:$E$7,2,FALSE),0)+IFERROR(VLOOKUP(T91,Paramètres!$D$3:$E$7,2,FALSE),0)+IFERROR(VLOOKUP(V91,Paramètres!$D$3:$E$7,2,FALSE),0)+IFERROR(VLOOKUP(X91,Paramètres!$D$3:$E$7,2,FALSE),0) -> 0 | AA91: 0 | AB91: |027|999|999|999|999|999|999|999 | AC91: 120
A92: =K92+M92+O92+S92+U92+W92+Y92+Q92+AC92/10000 -> 0 | B92: =IF(E92,RANK(A92,$A$6:$A$211),"") ->  | C92: =A92-MINA(K92,M92,O92,S92,U92,W92,Y92,Q92) -> 0 | D92: =IF(E92,RANK(C92,$C$6:$C$211),"") ->  | K92: =LOOKUP(J92,Paramètres!$A$3:$A$102,Paramètres!$B$3:$B$102) -> 0 | M92: =LOOKUP(L92,Paramètres!$A$3:$A$102,Paramètres!$B$3:$B$102) -> 0 | O92: =LOOKUP(N92,Paramètres!$A$3:$A$102,Paramètres!$B$3:$B$102) -> 0 | Q92: =LOOKUP(P92,Paramètres!$A$3:$A$102,Paramètres!$B$3:$B$102) -> 0 | S92: =LOOKUP(R92,Paramètres!$A$3:$A$102,Paramètres!$B$3:$B$102) -> 0 | U92: =LOOKUP(T92,Paramètres!$A$3:$A$102,Paramètres!$B$3:$B$102) -> 0 | W92: =LOOKUP(V92,Paramètres!$A$3:$A$102,Paramètres!$B$3:$B$102) -> 0 | Y92: =LOOKUP(X92,Paramètres!$A$3:$A$102,Paramètres!$B$3:$B$102)*Paramètres!$H$5 -> 0 | Z92: =IFERROR(VLOOKUP(J92,Paramètres!$D$3:$E$7,2,FALSE),0)+IFERROR(VLOOKUP(L92,Paramètres!$D$3:$E$7,2,FALSE),0)+IFERROR(VLOOKUP(N92,Paramètres!$D$3:$E$7,2,FALSE),0)+IFERROR(VLOOKUP(P92,Paramètres!$D$3:$E$7,2,FALSE),0)+IFERROR(VLOOKUP(R92,Paramètres!$D$3:$E$7,2,FALSE),0)+IFERROR(VLOOKUP(T92,Paramètres!$D$3:$E$7,2,FALSE),0)+IFERROR(VLOOKUP(V92,Paramètres!$D$3:$E$7,2,FALSE),0)+IFERROR(VLOOKUP(X92,Paramètres!$D$3:$E$7,2,FALSE),0) -> 0 | AA92: =MINA(K92,M92,O92,S92,Y92,U92,W92,Q92) -> 0 | AB92: |999|999|999|999|999|999|999|999 | AC92: 0
A93: 0 | C93: 0 | K93: =LOOKUP(J93,Paramètres!$A$3:$A$102,Paramètres!$B$3:$B$102) -> 0 | M93: =LOOKUP(L93,Paramètres!$A$3:$A$102,Paramètres!$B$3:$B$102) -> 0 | O93: =LOOKUP(N93,Paramètres!$A$3:$A$102,Paramètres!$B$3:$B$102) -> 0 | Q93: =LOOKUP(P93,Paramètres!$A$3:$A$102,Paramètres!$B$3:$B$102) -> 0 | S93: =LOOKUP(R93,Paramètres!$A$3:$A$102,Paramètres!$B$3:$B$102) -> 0 | U93: =LOOKUP(T93,Paramètres!$A$3:$A$102,Paramètres!$B$3:$B$102) -> 0 | W93: =LOOKUP(V93,Paramètres!$A$3:$A$102,Paramètres!$B$3:$B$102) -> 0 | Y93: =LOOKUP(X93,Paramètres!$A$3:$A$102,Paramètres!$B$3:$B$102)*Paramètres!$H$5 -> 0 | Z93: =IFERROR(VLOOKUP(J93,Paramètres!$D$3:$E$7,2,FALSE),0)+IFERROR(VLOOKUP(L93,Paramètres!$D$3:$E$7,2,FALSE),0)+IFERROR(VLOOKUP(N93,Paramètres!$D$3:$E$7,2,FALSE),0)+IFERROR(VLOOKUP(P93,Paramètres!$D$3:$E$7,2,FALSE),0)+IFERROR(VLOOKUP(R93,Paramètres!$D$3:$E$7,2,FALSE),0)+IFERROR(VLOOKUP(T93,Paramètres!$D$3:$E$7,2,FALSE),0)+IFERROR(VLOOKUP(V93,Paramètres!$D$3:$E$7,2,FALSE),0)+IFERROR(VLOOKUP(X93,Paramètres!$D$3:$E$7,2,FALSE),0) -> 0 | AA93: 0 | AB93: |999|999|999|999|999|999|999|999 | AC93: 0
A94: 0 | C94: 0 | K94: =LOOKUP(J94,Paramètres!$A$3:$A$102,Paramètres!$B$3:$B$102) -> 0 | M94: =LOOKUP(L94,Paramètres!$A$3:$A$102,Paramètres!$B$3:$B$102) -> 0 | O94: =LOOKUP(N94,Paramètres!$A$3:$A$102,Paramètres!$B$3:$B$102) -> 0 | Q94: =LOOKUP(P94,Paramètres!$A$3:$A$102,Paramètres!$B$3:$B$102) -> 0 | S94: =LOOKUP(R94,Paramètres!$A$3:$A$102,Paramètres!$B$3:$B$102) -> 0 | U94: =LOOKUP(T94,Paramètres!$A$3:$A$102,Paramètres!$B$3:$B$102) -> 0 | W94: =LOOKUP(V94,Paramètres!$A$3:$A$102,Paramètres!$B$3:$B$102) -> 0 | Y94: =LOOKUP(X94,Paramètres!$A$3:$A$102,Paramètres!$B$3:$B$102)*Paramètres!$H$5 -> 0 | Z94: =IFERROR(VLOOKUP(J94,Paramètres!$D$3:$E$7,2,FALSE),0)+IFERROR(VLOOKUP(L94,Paramètres!$D$3:$E$7,2,FALSE),0)+IFERROR(VLOOKUP(N94,Paramètres!$D$3:$E$7,2,FALSE),0)+IFERROR(VLOOKUP(P94,Paramètres!$D$3:$E$7,2,FALSE),0)+IFERROR(VLOOKUP(R94,Paramètres!$D$3:$E$7,2,FALSE),0)+IFERROR(VLOOKUP(T94,Paramètres!$D$3:$E$7,2,FALSE),0)+IFERROR(VLOOKUP(V94,Paramètres!$D$3:$E$7,2,FALSE),0)+IFERROR(VLOOKUP(X94,Paramètres!$D$3:$E$7,2,FALSE),0) -> 0 | AA94: 0 | AB94: |999|999|999|999|999|999|999|999 | AC94: 0
A95: 0 | C95: 0 | K95: =LOOKUP(J95,Paramètres!$A$3:$A$102,Paramètres!$B$3:$B$102) -> 0 | M95: =LOOKUP(L95,Paramètres!$A$3:$A$102,Paramètres!$B$3:$B$102) -> 0 | O95: =LOOKUP(N95,Paramètres!$A$3:$A$102,Paramètres!$B$3:$B$102) -> 0 | Q95: =LOOKUP(P95,Paramètres!$A$3:$A$102,Paramètres!$B$3:$B$102) -> 0 | S95: =LOOKUP(R95,Paramètres!$A$3:$A$102,Paramètres!$B$3:$B$102) -> 0 | U95: =LOOKUP(T95,Paramètres!$A$3:$A$102,Paramètres!$B$3:$B$102) -> 0 | W95: =LOOKUP(V95,Paramètres!$A$3:$A$102,Paramètres!$B$3:$B$102) -> 0 | Y95: =LOOKUP(X95,Paramètres!$A$3:$A$102,Paramètres!$B$3:$B$102)*Paramètres!$H$5 -> 0 | Z95: =IFERROR(VLOOKUP(J95,Paramètres!$D$3:$E$7,2,FALSE),0)+IFERROR(VLOOKUP(L95,Paramètres!$D$3:$E$7,2,FALSE),0)+IFERROR(VLOOKUP(N95,Paramètres!$D$3:$E$7,2,FALSE),0)+IFERROR(VLOOKUP(P95,Paramètres!$D$3:$E$7,2,FALSE),0)+IFERROR(VLOOKUP(R95,Paramètres!$D$3:$E$7,2,FALSE),0)+IFERROR(VLOOKUP(T95,Paramètres!$D$3:$E$7,2,FALSE),0)+IFERROR(VLOOKUP(V95,Paramètres!$D$3:$E$7,2,FALSE),0)+IFERROR(VLOOKUP(X95,Paramètres!$D$3:$E$7,2,FALSE),0) -> 0 | AA95: 0 | AB95: |999|999|999|999|999|999|999|999 | AC95: 0
A96: 0 | C96: 0 | K96: =LOOKUP(J96,Paramètres!$A$3:$A$102,Paramètres!$B$3:$B$102) -> 0 | M96: =LOOKUP(L96,Paramètres!$A$3:$A$102,Paramètres!$B$3:$B$102) -> 0 | O96: =LOOKUP(N96,Paramètres!$A$3:$A$102,Paramètres!$B$3:$B$102) -> 0 | Q96: =LOOKUP(P96,Paramètres!$A$3:$A$102,Paramètres!$B$3:$B$102) -> 0 | S96: =LOOKUP(R96,Paramètres!$A$3:$A$102,Paramètres!$B$3:$B$102) -> 0 | U96: =LOOKUP(T96,Paramètres!$A$3:$A$102,Paramètres!$B$3:$B$102) -> 0 | W96: =LOOKUP(V96,Paramètres!$A$3:$A$102,Paramètres!$B$3:$B$102) -> 0 | Y96: =LOOKUP(X96,Paramètres!$A$3:$A$102,Paramètres!$B$3:$B$102)*Paramètres!$H$5 -> 0 | Z96: =IFERROR(VLOOKUP(J96,Paramètres!$D$3:$E$7,2,FALSE),0)+IFERROR(VLOOKUP(L96,Paramètres!$D$3:$E$7,2,FALSE),0)+IFERROR(VLOOKUP(N96,Paramètres!$D$3:$E$7,2,FALSE),0)+IFERROR(VLOOKUP(P96,Paramètres!$D$3:$E$7,2,FALSE),0)+IFERROR(VLOOKUP(R96,Paramètres!$D$3:$E$7,2,FALSE),0)+IFERROR(VLOOKUP(T96,Paramètres!$D$3:$E$7,2,FALSE),0)+IFERROR(VLOOKUP(V96,Paramètres!$D$3:$E$7,2,FALSE),0)+IFERROR(VLOOKUP(X96,Paramètres!$D$3:$E$7,2,FALSE),0) -> 0 | AA96: 0 | AB96: |999|999|999|999|999|999|999|999 | AC96: 0
A97: 0 | C97: 0 | K97: =LOOKUP(J97,Paramètres!$A$3:$A$102,Paramètres!$B$3:$B$102) -> 0 | M97: =LOOKUP(L97,Paramètres!$A$3:$A$102,Paramètres!$B$3:$B$102) -> 0 | O97: =LOOKUP(N97,Paramètres!$A$3:$A$102,Paramètres!$B$3:$B$102) -> 0 | Q97: =LOOKUP(P97,Paramètres!$A$3:$A$102,Paramètres!$B$3:$B$102) -> 0 | S97: =LOOKUP(R97,Paramètres!$A$3:$A$102,Paramètres!$B$3:$B$102) -> 0 | U97: =LOOKUP(T97,Paramètres!$A$3:$A$102,Paramètres!$B$3:$B$102) -> 0 | W97: =LOOKUP(V97,Paramètres!$A$3:$A$102,Paramètres!$B$3:$B$102) -> 0 | Y97: =LOOKUP(X97,Paramètres!$A$3:$A$102,Paramètres!$B$3:$B$102)*Paramètres!$H$5 -> 0 | Z97: =IFERROR(VLOOKUP(J97,Paramètres!$D$3:$E$7,2,FALSE),0)+IFERROR(VLOOKUP(L97,Paramètres!$D$3:$E$7,2,FALSE),0)+IFERROR(VLOOKUP(N97,Paramètres!$D$3:$E$7,2,FALSE),0)+IFERROR(VLOOKUP(P97,Paramètres!$D$3:$E$7,2,FALSE),0)+IFERROR(VLOOKUP(R97,Paramètres!$D$3:$E$7,2,FALSE),0)+IFERROR(VLOOKUP(T97,Paramètres!$D$3:$E$7,2,FALSE),0)+IFERROR(VLOOKUP(V97,Paramètres!$D$3:$E$7,2,FALSE),0)+IFERROR(VLOOKUP(X97,Paramètres!$D$3:$E$7,2,FALSE),0) -> 0 | AA97: 0 | AB97: |999|999|999|999|999|999|999|999 | AC97: 0
A98: 0 | C98: 0 | K98: =LOOKUP(J98,Paramètres!$A$3:$A$102,Paramètres!$B$3:$B$102) -> 0 | M98: =LOOKUP(L98,Paramètres!$A$3:$A$102,Paramètres!$B$3:$B$102) -> 0 | O98: =LOOKUP(N98,Paramètres!$A$3:$A$102,Paramètres!$B$3:$B$102) -> 0 | Q98: =LOOKUP(P98,Paramètres!$A$3:$A$102,Paramètres!$B$3:$B$102) -> 0 | S98: =LOOKUP(R98,Paramètres!$A$3:$A$102,Paramètres!$B$3:$B$102) -> 0 | U98: =LOOKUP(T98,Paramètres!$A$3:$A$102,Paramètres!$B$3:$B$102) -> 0 | W98: =LOOKUP(V98,Paramètres!$A$3:$A$102,Paramètres!$B$3:$B$102) -> 0 | Y98: =LOOKUP(X98,Paramètres!$A$3:$A$102,Paramètres!$B$3:$B$102)*Paramètres!$H$5 -> 0 | Z98: =IFERROR(VLOOKUP(J98,Paramètres!$D$3:$E$7,2,FALSE),0)+IFERROR(VLOOKUP(L98,Paramètres!$D$3:$E$7,2,FALSE),0)+IFERROR(VLOOKUP(N98,Paramètres!$D$3:$E$7,2,FALSE),0)+IFERROR(VLOOKUP(P98,Paramètres!$D$3:$E$7,2,FALSE),0)+IFERROR(VLOOKUP(R98,Paramètres!$D$3:$E$7,2,FALSE),0)+IFERROR(VLOOKUP(T98,Paramètres!$D$3:$E$7,2,FALSE),0)+IFERROR(VLOOKUP(V98,Paramètres!$D$3:$E$7,2,FALSE),0)+IFERROR(VLOOKUP(X98,Paramètres!$D$3:$E$7,2,FALSE),0) -> 0 | AA98: 0 | AB98: |999|999|999|999|999|999|999|999 | AC98: 0
A99: 0 | C99: 0 | K99: =LOOKUP(J99,Paramètres!$A$3:$A$102,Paramètres!$B$3:$B$102) -> 0 | M99: =LOOKUP(L99,Paramètres!$A$3:$A$102,Paramètres!$B$3:$B$102) -> 0 | O99: =LOOKUP(N99,Paramètres!$A$3:$A$102,Paramètres!$B$3:$B$102) -> 0 | Q99: =LOOKUP(P99,Paramètres!$A$3:$A$102,Paramètres!$B$3:$B$102) -> 0 | S99: =LOOKUP(R99,Paramètres!$A$3:$A$102,Paramètres!$B$3:$B$102) -> 0 | U99: =LOOKUP(T99,Paramètres!$A$3:$A$102,Paramètres!$B$3:$B$102) -> 0 | W99: =LOOKUP(V99,Paramètres!$A$3:$A$102,Paramètres!$B$3:$B$102) -> 0 | Y99: =LOOKUP(X99,Paramètres!$A$3:$A$102,Paramètres!$B$3:$B$102)*Paramètres!$H$5 -> 0 | Z99: =IFERROR(VLOOKUP(J99,Paramètres!$D$3:$E$7,2,FALSE),0)+IFERROR(VLOOKUP(L99,Paramètres!$D$3:$E$7,2,FALSE),0)+IFERROR(VLOOKUP(N99,Paramètres!$D$3:$E$7,2,FALSE),0)+IFERROR(VLOOKUP(P99,Paramètres!$D$3:$E$7,2,FALSE),0)+IFERROR(VLOOKUP(R99,Paramètres!$D$3:$E$7,2,FALSE),0)+IFERROR(VLOOKUP(T99,Paramètres!$D$3:$E$7,2,FALSE),0)+IFERROR(VLOOKUP(V99,Paramètres!$D$3:$E$7,2,FALSE),0)+IFERROR(VLOOKUP(X99,Paramètres!$D$3:$E$7,2,FALSE),0) -> 0 | AA99: 0 | AB99: |999|999|999|999|999|999|999|999 | AC99: 0
A100: 0 | C100: 0 | K100: =LOOKUP(J100,Paramètres!$A$3:$A$102,Paramètres!$B$3:$B$102) -> 0 | M100: =LOOKUP(L100,Paramètres!$A$3:$A$102,Paramètres!$B$3:$B$102) -> 0 | O100: =LOOKUP(N100,Paramètres!$A$3:$A$102,Paramètres!$B$3:$B$102) -> 0 | Q100: =LOOKUP(P100,Paramètres!$A$3:$A$102,Paramètres!$B$3:$B$102) -> 0 | S100: =LOOKUP(R100,Paramètres!$A$3:$A$102,Paramètres!$B$3:$B$102) -> 0 | U100: =LOOKUP(T100,Paramètres!$A$3:$A$102,Paramètres!$B$3:$B$102) -> 0 | W100: =LOOKUP(V100,Paramètres!$A$3:$A$102,Paramètres!$B$3:$B$102) -> 0 | Y100: =LOOKUP(X100,Paramètres!$A$3:$A$102,Paramètres!$B$3:$B$102)*Paramètres!$H$5 -> 0 | Z100: =IFERROR(VLOOKUP(J100,Paramètres!$D$3:$E$7,2,FALSE),0)+IFERROR(VLOOKUP(L100,Paramètres!$D$3:$E$7,2,FALSE),0)+IFERROR(VLOOKUP(N100,Paramètres!$D$3:$E$7,2,FALSE),0)+IFERROR(VLOOKUP(P100,Paramètres!$D$3:$E$7,2,FALSE),0)+IFERROR(VLOOKUP(R100,Paramètres!$D$3:$E$7,2,FALSE),0)+IFERROR(VLOOKUP(T100,Paramètres!$D$3:$E$7,2,FALSE),0)+IFERROR(VLOOKUP(V100,Paramètres!$D$3:$E$7,2,FALSE),0)+IFERROR(VLOOKUP(X100,Paramètres!$D$3:$E$7,2,FALSE),0) -> 0 | AA100: 0 | AB100: |999|999|999|999|999|999|999|999 | AC100: 0
A101: 0 | C101: 0 | K101: =LOOKUP(J101,Paramètres!$A$3:$A$102,Paramètres!$B$3:$B$102) -> 0 | M101: =LOOKUP(L101,Paramètres!$A$3:$A$102,Paramètres!$B$3:$B$102) -> 0 | O101: =LOOKUP(N101,Paramètres!$A$3:$A$102,Paramètres!$B$3:$B$102) -> 0 | Q101: =LOOKUP(P101,Paramètres!$A$3:$A$102,Paramètres!$B$3:$B$102) -> 0 | S101: =LOOKUP(R101,Paramètres!$A$3:$A$102,Paramètres!$B$3:$B$102) -> 0 | U101: =LOOKUP(T101,Paramètres!$A$3:$A$102,Paramètres!$B$3:$B$102) -> 0 | W101: =LOOKUP(V101,Paramètres!$A$3:$A$102,Paramètres!$B$3:$B$102) -> 0 | Y101: =LOOKUP(X101,Paramètres!$A$3:$A$102,Paramètres!$B$3:$B$102)*Paramètres!$H$5 -> 0 | Z101: =IFERROR(VLOOKUP(J101,Paramètres!$D$3:$E$7,2,FALSE),0)+IFERROR(VLOOKUP(L101,Paramètres!$D$3:$E$7,2,FALSE),0)+IFERROR(VLOOKUP(N101,Paramètres!$D$3:$E$7,2,FALSE),0)+IFERROR(VLOOKUP(P101,Paramètres!$D$3:$E$7,2,FALSE),0)+IFERROR(VLOOKUP(R101,Paramètres!$D$3:$E$7,2,FALSE),0)+IFERROR(VLOOKUP(T101,Paramètres!$D$3:$E$7,2,FALSE),0)+IFERROR(VLOOKUP(V101,Paramètres!$D$3:$E$7,2,FALSE),0)+IFERROR(VLOOKUP(X101,Paramètres!$D$3:$E$7,2,FALSE),0) -> 0 | AA101: 0 | AB101: |999|999|999|999|999|999|999|999 | AC101: 0
A102: 0 | B102: =IF(E102,RANK(A102,$A$6:$A$211),"") ->  | C102: 0 | D102: =IF(E102,RANK(C102,$C$6:$C$211),"") ->  | K102: =LOOKUP(J102,Paramètres!$A$3:$A$102,Paramètres!$B$3:$B$102) -> 0 | M102: =LOOKUP(L102,Paramètres!$A$3:$A$102,Paramètres!$B$3:$B$102) -> 0 | O102: =LOOKUP(N102,Paramètres!$A$3:$A$102,Paramètres!$B$3:$B$102) -> 0 | Q102: =LOOKUP(P102,Paramètres!$A$3:$A$102,Paramètres!$B$3:$B$102) -> 0 | S102: =LOOKUP(R102,Paramètres!$A$3:$A$102,Paramètres!$B$3:$B$102) -> 0 | U102: =LOOKUP(T102,Paramètres!$A$3:$A$102,Paramètres!$B$3:$B$102) -> 0 | W102: =LOOKUP(V102,Paramètres!$A$3:$A$102,Paramètres!$B$3:$B$102) -> 0 | Y102: =LOOKUP(X102,Paramètres!$A$3:$A$102,Paramètres!$B$3:$B$102)*Paramètres!$H$5 -> 0 | Z102: =IFERROR(VLOOKUP(J102,Paramètres!$D$3:$E$7,2,FALSE),0)+IFERROR(VLOOKUP(L102,Paramètres!$D$3:$E$7,2,FALSE),0)+IFERROR(VLOOKUP(N102,Paramètres!$D$3:$E$7,2,FALSE),0)+IFERROR(VLOOKUP(P102,Paramètres!$D$3:$E$7,2,FALSE),0)+IFERROR(VLOOKUP(R102,Paramètres!$D$3:$E$7,2,FALSE),0)+IFERROR(VLOOKUP(T102,Paramètres!$D$3:$E$7,2,FALSE),0)+IFERROR(VLOOKUP(V102,Paramètres!$D$3:$E$7,2,FALSE),0)+IFERROR(VLOOKUP(X102,Paramètres!$D$3:$E$7,2,FALSE),0) -> 0 | AA102: 0 | AB102: |999|999|999|999|999|999|999|999 | AC102: 0
A103: 0 | C103: 0 | K103: =LOOKUP(J103,Paramètres!$A$3:$A$102,Paramètres!$B$3:$B$102) -> 0 | M103: =LOOKUP(L103,Paramètres!$A$3:$A$102,Paramètres!$B$3:$B$102) -> 0 | O103: =LOOKUP(N103,Paramètres!$A$3:$A$102,Paramètres!$B$3:$B$102) -> 0 | Q103: =LOOKUP(P103,Paramètres!$A$3:$A$102,Paramètres!$B$3:$B$102) -> 0 | S103: =LOOKUP(R103,Paramètres!$A$3:$A$102,Paramètres!$B$3:$B$102) -> 0 | U103: =LOOKUP(T103,Paramètres!$A$3:$A$102,Paramètres!$B$3:$B$102) -> 0 | W103: =LOOKUP(V103,Paramètres!$A$3:$A$102,Paramètres!$B$3:$B$102) -> 0 | Y103: =LOOKUP(X103,Paramètres!$A$3:$A$102,Paramètres!$B$3:$B$102)*Paramètres!$H$5 -> 0 | Z103: =IFERROR(VLOOKUP(J103,Paramètres!$D$3:$E$7,2,FALSE),0)+IFERROR(VLOOKUP(L103,Paramètres!$D$3:$E$7,2,FALSE),0)+IFERROR(VLOOKUP(N103,Paramètres!$D$3:$E$7,2,FALSE),0)+IFERROR(VLOOKUP(P103,Paramètres!$D$3:$E$7,2,FALSE),0)+IFERROR(VLOOKUP(R103,Paramètres!$D$3:$E$7,2,FALSE),0)+IFERROR(VLOOKUP(T103,Paramètres!$D$3:$E$7,2,FALSE),0)+IFERROR(VLOOKUP(V103,Paramètres!$D$3:$E$7,2,FALSE),0)+IFERROR(VLOOKUP(X103,Paramètres!$D$3:$E$7,2,FALSE),0) -> 0 | AA103: 0 | AB103: |999|999|999|999|999|999|999|999 | AC103: 0
A104: 0 | C104: 0 | K104: =LOOKUP(J104,Paramètres!$A$3:$A$102,Paramètres!$B$3:$B$102) -> 0 | M104: =LOOKUP(L104,Paramètres!$A$3:$A$102,Paramètres!$B$3:$B$102) -> 0 | O104: =LOOKUP(N104,Paramètres!$A$3:$A$102,Paramètres!$B$3:$B$102) -> 0 | Q104: =LOOKUP(P104,Paramètres!$A$3:$A$102,Paramètres!$B$3:$B$102) -> 0 | S104: =LOOKUP(R104,Paramètres!$A$3:$A$102,Paramètres!$B$3:$B$102) -> 0 | U104: =LOOKUP(T104,Paramètres!$A$3:$A$102,Paramètres!$B$3:$B$102) -> 0 | W104: =LOOKUP(V104,Paramètres!$A$3:$A$102,Paramètres!$B$3:$B$102) -> 0 | Y104: =LOOKUP(X104,Paramètres!$A$3:$A$102,Paramètres!$B$3:$B$102)*Paramètres!$H$5 -> 0 | Z104: =IFERROR(VLOOKUP(J104,Paramètres!$D$3:$E$7,2,FALSE),0)+IFERROR(VLOOKUP(L104,Paramètres!$D$3:$E$7,2,FALSE),0)+IFERROR(VLOOKUP(N104,Paramètres!$D$3:$E$7,2,FALSE),0)+IFERROR(VLOOKUP(P104,Paramètres!$D$3:$E$7,2,FALSE),0)+IFERROR(VLOOKUP(R104,Paramètres!$D$3:$E$7,2,FALSE),0)+IFERROR(VLOOKUP(T104,Paramètres!$D$3:$E$7,2,FALSE),0)+IFERROR(VLOOKUP(V104,Paramètres!$D$3:$E$7,2,FALSE),0)+IFERROR(VLOOKUP(X104,Paramètres!$D$3:$E$7,2,FALSE),0) -> 0 | AA104: 0 | AB104: |999|999|999|999|999|999|999|999 | AC104: 0
A105: 0 | C105: 0 | K105: =LOOKUP(J105,Paramètres!$A$3:$A$102,Paramètres!$B$3:$B$102) -> 0 | M105: =LOOKUP(L105,Paramètres!$A$3:$A$102,Paramètres!$B$3:$B$102) -> 0 | O105: =LOOKUP(N105,Paramètres!$A$3:$A$102,Paramètres!$B$3:$B$102) -> 0 | Q105: =LOOKUP(P105,Paramètres!$A$3:$A$102,Paramètres!$B$3:$B$102) -> 0 | S105: =LOOKUP(R105,Paramètres!$A$3:$A$102,Paramètres!$B$3:$B$102) -> 0 | U105: =LOOKUP(T105,Paramètres!$A$3:$A$102,Paramètres!$B$3:$B$102) -> 0 | W105: =LOOKUP(V105,Paramètres!$A$3:$A$102,Paramètres!$B$3:$B$102) -> 0 | Y105: =LOOKUP(X105,Paramètres!$A$3:$A$102,Paramètres!$B$3:$B$102)*Paramètres!$H$5 -> 0 | Z105: =IFERROR(VLOOKUP(J105,Paramètres!$D$3:$E$7,2,FALSE),0)+IFERROR(VLOOKUP(L105,Paramètres!$D$3:$E$7,2,FALSE),0)+IFERROR(VLOOKUP(N105,Paramètres!$D$3:$E$7,2,FALSE),0)+IFERROR(VLOOKUP(P105,Paramètres!$D$3:$E$7,2,FALSE),0)+IFERROR(VLOOKUP(R105,Paramètres!$D$3:$E$7,2,FALSE),0)+IFERROR(VLOOKUP(T105,Paramètres!$D$3:$E$7,2,FALSE),0)+IFERROR(VLOOKUP(V105,Paramètres!$D$3:$E$7,2,FALSE),0)+IFERROR(VLOOKUP(X105,Paramètres!$D$3:$E$7,2,FALSE),0) -> 0 | AA105: 0 | AB105: |999|999|999|999|999|999|999|999 | AC105: 0
A106: 0 | C106: 0 | K106: =LOOKUP(J106,Paramètres!$A$3:$A$102,Paramètres!$B$3:$B$102) -> 0 | M106: =LOOKUP(L106,Paramètres!$A$3:$A$102,Paramètres!$B$3:$B$102) -> 0 | O106: =LOOKUP(N106,Paramètres!$A$3:$A$102,Paramètres!$B$3:$B$102) -> 0 | Q106: =LOOKUP(P106,Paramètres!$A$3:$A$102,Paramètres!$B$3:$B$102) -> 0 | S106: =LOOKUP(R106,Paramètres!$A$3:$A$102,Paramètres!$B$3:$B$102) -> 0 | U106: =LOOKUP(T106,Paramètres!$A$3:$A$102,Paramètres!$B$3:$B$102) -> 0 | W106: =LOOKUP(V106,Paramètres!$A$3:$A$102,Paramètres!$B$3:$B$102) -> 0 | Y106: =LOOKUP(X106,Paramètres!$A$3:$A$102,Paramètres!$B$3:$B$102)*Paramètres!$H$5 -> 0 | Z106: =IFERROR(VLOOKUP(J106,Paramètres!$D$3:$E$7,2,FALSE),0)+IFERROR(VLOOKUP(L106,Paramètres!$D$3:$E$7,2,FALSE),0)+IFERROR(VLOOKUP(N106,Paramètres!$D$3:$E$7,2,FALSE),0)+IFERROR(VLOOKUP(P106,Paramètres!$D$3:$E$7,2,FALSE),0)+IFERROR(VLOOKUP(R106,Paramètres!$D$3:$E$7,2,FALSE),0)+IFERROR(VLOOKUP(T106,Paramètres!$D$3:$E$7,2,FALSE),0)+IFERROR(VLOOKUP(V106,Paramètres!$D$3:$E$7,2,FALSE),0)+IFERROR(VLOOKUP(X106,Paramètres!$D$3:$E$7,2,FALSE),0) -> 0 | AA106: 0 | AB106: |999|999|999|999|999|999|999|999 | AC106: 0
A107: 0 | C107: 0 | K107: =LOOKUP(J107,Paramètres!$A$3:$A$102,Paramètres!$B$3:$B$102) -> 0 | M107: =LOOKUP(L107,Paramètres!$A$3:$A$102,Paramètres!$B$3:$B$102) -> 0 | O107: =LOOKUP(N107,Paramètres!$A$3:$A$102,Paramètres!$B$3:$B$102) -> 0 | Q107: =LOOKUP(P107,Paramètres!$A$3:$A$102,Paramètres!$B$3:$B$102) -> 0 | S107: =LOOKUP(R107,Paramètres!$A$3:$A$102,Paramètres!$B$3:$B$102) -> 0 | U107: =LOOKUP(T107,Paramètres!$A$3:$A$102,Paramètres!$B$3:$B$102) -> 0 | W107: =LOOKUP(V107,Paramètres!$A$3:$A$102,Paramètres!$B$3:$B$102) -> 0 | Y107: =LOOKUP(X107,Paramètres!$A$3:$A$102,Paramètres!$B$3:$B$102)*Paramètres!$H$5 -> 0 | Z107: =IFERROR(VLOOKUP(J107,Paramètres!$D$3:$E$7,2,FALSE),0)+IFERROR(VLOOKUP(L107,Paramètres!$D$3:$E$7,2,FALSE),0)+IFERROR(VLOOKUP(N107,Paramètres!$D$3:$E$7,2,FALSE),0)+IFERROR(VLOOKUP(P107,Paramètres!$D$3:$E$7,2,FALSE),0)+IFERROR(VLOOKUP(R107,Paramètres!$D$3:$E$7,2,FALSE),0)+IFERROR(VLOOKUP(T107,Paramètres!$D$3:$E$7,2,FALSE),0)+IFERROR(VLOOKUP(V107,Paramètres!$D$3:$E$7,2,FALSE),0)+IFERROR(VLOOKUP(X107,Paramètres!$D$3:$E$7,2,FALSE),0) -> 0 | AA107: 0 | AB107: |999|999|999|999|999|999|999|999 | AC107: 0
A108: 0 | C108: 0 | K108: =LOOKUP(J108,Paramètres!$A$3:$A$102,Paramètres!$B$3:$B$102) -> 0 | M108: =LOOKUP(L108,Paramètres!$A$3:$A$102,Paramètres!$B$3:$B$102) -> 0 | O108: =LOOKUP(N108,Paramètres!$A$3:$A$102,Paramètres!$B$3:$B$102) -> 0 | Q108: =LOOKUP(P108,Paramètres!$A$3:$A$102,Paramètres!$B$3:$B$102) -> 0 | S108: =LOOKUP(R108,Paramètres!$A$3:$A$102,Paramètres!$B$3:$B$102) -> 0 | U108: =LOOKUP(T108,Paramètres!$A$3:$A$102,Paramètres!$B$3:$B$102) -> 0 | W108: =LOOKUP(V108,Paramètres!$A$3:$A$102,Paramètres!$B$3:$B$102) -> 0 | Y108: =LOOKUP(X108,Paramètres!$A$3:$A$102,Paramètres!$B$3:$B$102)*Paramètres!$H$5 -> 0 | Z108: =IFERROR(VLOOKUP(J108,Paramètres!$D$3:$E$7,2,FALSE),0)+IFERROR(VLOOKUP(L108,Paramètres!$D$3:$E$7,2,FALSE),0)+IFERROR(VLOOKUP(N108,Paramètres!$D$3:$E$7,2,FALSE),0)+IFERROR(VLOOKUP(P108,Paramètres!$D$3:$E$7,2,FALSE),0)+IFERROR(VLOOKUP(R108,Paramètres!$D$3:$E$7,2,FALSE),0)+IFERROR(VLOOKUP(T108,Paramètres!$D$3:$E$7,2,FALSE),0)+IFERROR(VLOOKUP(V108,Paramètres!$D$3:$E$7,2,FALSE),0)+IFERROR(VLOOKUP(X108,Paramètres!$D$3:$E$7,2,FALSE),0) -> 0 | AA108: 0 | AB108: |999|999|999|999|999|999|999|999 | AC108: 0
A109: 0 | C109: 0 | K109: =LOOKUP(J109,Paramètres!$A$3:$A$102,Paramètres!$B$3:$B$102) -> 0 | M109: =LOOKUP(L109,Paramètres!$A$3:$A$102,Paramètres!$B$3:$B$102) -> 0 | O109: =LOOKUP(N109,Paramètres!$A$3:$A$102,Paramètres!$B$3:$B$102) -> 0 | Q109: =LOOKUP(P109,Paramètres!$A$3:$A$102,Paramètres!$B$3:$B$102) -> 0 | S109: =LOOKUP(R109,Paramètres!$A$3:$A$102,Paramètres!$B$3:$B$102) -> 0 | U109: =LOOKUP(T109,Paramètres!$A$3:$A$102,Paramètres!$B$3:$B$102) -> 0 | W109: =LOOKUP(V109,Paramètres!$A$3:$A$102,Paramètres!$B$3:$B$102) -> 0 | Y109: =LOOKUP(X109,Paramètres!$A$3:$A$102,Paramètres!$B$3:$B$102)*Paramètres!$H$5 -> 0 | Z109: =IFERROR(VLOOKUP(J109,Paramètres!$D$3:$E$7,2,FALSE),0)+IFERROR(VLOOKUP(L109,Paramètres!$D$3:$E$7,2,FALSE),0)+IFERROR(VLOOKUP(N109,Paramètres!$D$3:$E$7,2,FALSE),0)+IFERROR(VLOOKUP(P109,Paramètres!$D$3:$E$7,2,FALSE),0)+IFERROR(VLOOKUP(R109,Paramètres!$D$3:$E$7,2,FALSE),0)+IFERROR(VLOOKUP(T109,Paramètres!$D$3:$E$7,2,FALSE),0)+IFERROR(VLOOKUP(V109,Paramètres!$D$3:$E$7,2,FALSE),0)+IFERROR(VLOOKUP(X109,Paramètres!$D$3:$E$7,2,FALSE),0) -> 0 | AA109: 0 | AB109: |999|999|999|999|999|999|999|999 | AC109: 0
A110: 0 | C110: 0 | K110: =LOOKUP(J110,Paramètres!$A$3:$A$102,Paramètres!$B$3:$B$102) -> 0 | M110: =LOOKUP(L110,Paramètres!$A$3:$A$102,Paramètres!$B$3:$B$102) -> 0 | O110: =LOOKUP(N110,Paramètres!$A$3:$A$102,Paramètres!$B$3:$B$102) -> 0 | Q110: =LOOKUP(P110,Paramètres!$A$3:$A$102,Paramètres!$B$3:$B$102) -> 0 | S110: =LOOKUP(R110,Paramètres!$A$3:$A$102,Paramètres!$B$3:$B$102) -> 0 | U110: =LOOKUP(T110,Paramètres!$A$3:$A$102,Paramètres!$B$3:$B$102) -> 0 | W110: =LOOKUP(V110,Paramètres!$A$3:$A$102,Paramètres!$B$3:$B$102) -> 0 | Y110: =LOOKUP(X110,Paramètres!$A$3:$A$102,Paramètres!$B$3:$B$102)*Paramètres!$H$5 -> 0 | Z110: =IFERROR(VLOOKUP(J110,Paramètres!$D$3:$E$7,2,FALSE),0)+IFERROR(VLOOKUP(L110,Paramètres!$D$3:$E$7,2,FALSE),0)+IFERROR(VLOOKUP(N110,Paramètres!$D$3:$E$7,2,FALSE),0)+IFERROR(VLOOKUP(P110,Paramètres!$D$3:$E$7,2,FALSE),0)+IFERROR(VLOOKUP(R110,Paramètres!$D$3:$E$7,2,FALSE),0)+IFERROR(VLOOKUP(T110,Paramètres!$D$3:$E$7,2,FALSE),0)+IFERROR(VLOOKUP(V110,Paramètres!$D$3:$E$7,2,FALSE),0)+IFERROR(VLOOKUP(X110,Paramètres!$D$3:$E$7,2,FALSE),0) -> 0 | AA110: 0 | AB110: |999|999|999|999|999|999|999|999 | AC110: 0
A111: 0 | C111: 0 | K111: =LOOKUP(J111,Paramètres!$A$3:$A$102,Paramètres!$B$3:$B$102) -> 0 | M111: =LOOKUP(L111,Paramètres!$A$3:$A$102,Paramètres!$B$3:$B$102) -> 0 | O111: =LOOKUP(N111,Paramètres!$A$3:$A$102,Paramètres!$B$3:$B$102) -> 0 | Q111: =LOOKUP(P111,Paramètres!$A$3:$A$102,Paramètres!$B$3:$B$102) -> 0 | S111: =LOOKUP(R111,Paramètres!$A$3:$A$102,Paramètres!$B$3:$B$102) -> 0 | U111: =LOOKUP(T111,Paramètres!$A$3:$A$102,Paramètres!$B$3:$B$102) -> 0 | W111: =LOOKUP(V111,Paramètres!$A$3:$A$102,Paramètres!$B$3:$B$102) -> 0 | Y111: =LOOKUP(X111,Paramètres!$A$3:$A$102,Paramètres!$B$3:$B$102)*Paramètres!$H$5 -> 0 | Z111: =IFERROR(VLOOKUP(J111,Paramètres!$D$3:$E$7,2,FALSE),0)+IFERROR(VLOOKUP(L111,Paramètres!$D$3:$E$7,2,FALSE),0)+IFERROR(VLOOKUP(N111,Paramètres!$D$3:$E$7,2,FALSE),0)+IFERROR(VLOOKUP(P111,Paramètres!$D$3:$E$7,2,FALSE),0)+IFERROR(VLOOKUP(R111,Paramètres!$D$3:$E$7,2,FALSE),0)+IFERROR(VLOOKUP(T111,Paramètres!$D$3:$E$7,2,FALSE),0)+IFERROR(VLOOKUP(V111,Paramètres!$D$3:$E$7,2,FALSE),0)+IFERROR(VLOOKUP(X111,Paramètres!$D$3:$E$7,2,FALSE),0) -> 0 | AA111: 0 | AB111: |999|999|999|999|999|999|999|999 | AC111: 0
A112: 0 | C112: 0 | K112: =LOOKUP(J112,Paramètres!$A$3:$A$102,Paramètres!$B$3:$B$102) -> 0 | M112: =LOOKUP(L112,Paramètres!$A$3:$A$102,Paramètres!$B$3:$B$102) -> 0 | O112: =LOOKUP(N112,Paramètres!$A$3:$A$102,Paramètres!$B$3:$B$102) -> 0 | Q112: =LOOKUP(P112,Paramètres!$A$3:$A$102,Paramètres!$B$3:$B$102) -> 0 | S112: =LOOKUP(R112,Paramètres!$A$3:$A$102,Paramètres!$B$3:$B$102) -> 0 | U112: =LOOKUP(T112,Paramètres!$A$3:$A$102,Paramètres!$B$3:$B$102) -> 0 | W112: =LOOKUP(V112,Paramètres!$A$3:$A$102,Paramètres!$B$3:$B$102) -> 0 | Y112: =LOOKUP(X112,Paramètres!$A$3:$A$102,Paramètres!$B$3:$B$102)*Paramètres!$H$5 -> 0 | Z112: =IFERROR(VLOOKUP(J112,Paramètres!$D$3:$E$7,2,FALSE),0)+IFERROR(VLOOKUP(L112,Paramètres!$D$3:$E$7,2,FALSE),0)+IFERROR(VLOOKUP(N112,Paramètres!$D$3:$E$7,2,FALSE),0)+IFERROR(VLOOKUP(P112,Paramètres!$D$3:$E$7,2,FALSE),0)+IFERROR(VLOOKUP(R112,Paramètres!$D$3:$E$7,2,FALSE),0)+IFERROR(VLOOKUP(T112,Paramètres!$D$3:$E$7,2,FALSE),0)+IFERROR(VLOOKUP(V112,Paramètres!$D$3:$E$7,2,FALSE),0)+IFERROR(VLOOKUP(X112,Paramètres!$D$3:$E$7,2,FALSE),0) -> 0 | AA112: 0 | AB112: |999|999|999|999|999|999|999|999 | AC112: 0
A113: 0 | C113: 0 | K113: =LOOKUP(J113,Paramètres!$A$3:$A$102,Paramètres!$B$3:$B$102) -> 0 | M113: =LOOKUP(L113,Paramètres!$A$3:$A$102,Paramètres!$B$3:$B$102) -> 0 | O113: =LOOKUP(N113,Paramètres!$A$3:$A$102,Paramètres!$B$3:$B$102) -> 0 | Q113: =LOOKUP(P113,Paramètres!$A$3:$A$102,Paramètres!$B$3:$B$102) -> 0 | S113: =LOOKUP(R113,Paramètres!$A$3:$A$102,Paramètres!$B$3:$B$102) -> 0 | U113: =LOOKUP(T113,Paramètres!$A$3:$A$102,Paramètres!$B$3:$B$102) -> 0 | W113: =LOOKUP(V113,Paramètres!$A$3:$A$102,Paramètres!$B$3:$B$102) -> 0 | Y113: =LOOKUP(X113,Paramètres!$A$3:$A$102,Paramètres!$B$3:$B$102)*Paramètres!$H$5 -> 0 | Z113: =IFERROR(VLOOKUP(J113,Paramètres!$D$3:$E$7,2,FALSE),0)+IFERROR(VLOOKUP(L113,Paramètres!$D$3:$E$7,2,FALSE),0)+IFERROR(VLOOKUP(N113,Paramètres!$D$3:$E$7,2,FALSE),0)+IFERROR(VLOOKUP(P113,Paramètres!$D$3:$E$7,2,FALSE),0)+IFERROR(VLOOKUP(R113,Paramètres!$D$3:$E$7,2,FALSE),0)+IFERROR(VLOOKUP(T113,Paramètres!$D$3:$E$7,2,FALSE),0)+IFERROR(VLOOKUP(V113,Paramètres!$D$3:$E$7,2,FALSE),0)+IFERROR(VLOOKUP(X113,Paramètres!$D$3:$E$7,2,FALSE),0) -> 0 | AA113: 0 | AB113: |999|999|999|999|999|999|999|999 | AC113: 0
A114: 0 | C114: 0 | K114: =LOOKUP(J114,Paramètres!$A$3:$A$102,Paramètres!$B$3:$B$102) -> 0 | M114: =LOOKUP(L114,Paramètres!$A$3:$A$102,Paramètres!$B$3:$B$102) -> 0 | O114: =LOOKUP(N114,Paramètres!$A$3:$A$102,Paramètres!$B$3:$B$102) -> 0 | Q114: =LOOKUP(P114,Paramètres!$A$3:$A$102,Paramètres!$B$3:$B$102) -> 0 | S114: =LOOKUP(R114,Paramètres!$A$3:$A$102,Paramètres!$B$3:$B$102) -> 0 | U114: =LOOKUP(T114,Paramètres!$A$3:$A$102,Paramètres!$B$3:$B$102) -> 0 | W114: =LOOKUP(V114,Paramètres!$A$3:$A$102,Paramètres!$B$3:$B$102) -> 0 | Y114: =LOOKUP(X114,Paramètres!$A$3:$A$102,Paramètres!$B$3:$B$102)*Paramètres!$H$5 -> 0 | Z114: =IFERROR(VLOOKUP(J114,Paramètres!$D$3:$E$7,2,FALSE),0)+IFERROR(VLOOKUP(L114,Paramètres!$D$3:$E$7,2,FALSE),0)+IFERROR(VLOOKUP(N114,Paramètres!$D$3:$E$7,2,FALSE),0)+IFERROR(VLOOKUP(P114,Paramètres!$D$3:$E$7,2,FALSE),0)+IFERROR(VLOOKUP(R114,Paramètres!$D$3:$E$7,2,FALSE),0)+IFERROR(VLOOKUP(T114,Paramètres!$D$3:$E$7,2,FALSE),0)+IFERROR(VLOOKUP(V114,Paramètres!$D$3:$E$7,2,FALSE),0)+IFERROR(VLOOKUP(X114,Paramètres!$D$3:$E$7,2,FALSE),0) -> 0 | AA114: 0 | AB114: |999|999|999|999|999|999|999|999 | AC114: 0
A115: 0 | C115: 0 | K115: =LOOKUP(J115,Paramètres!$A$3:$A$102,Paramètres!$B$3:$B$102) -> 0 | M115: =LOOKUP(L115,Paramètres!$A$3:$A$102,Paramètres!$B$3:$B$102) -> 0 | O115: =LOOKUP(N115,Paramètres!$A$3:$A$102,Paramètres!$B$3:$B$102) -> 0 | Q115: =LOOKUP(P115,Paramètres!$A$3:$A$102,Paramètres!$B$3:$B$102) -> 0 | S115: =LOOKUP(R115,Paramètres!$A$3:$A$102,Paramètres!$B$3:$B$102) -> 0 | U115: =LOOKUP(T115,Paramètres!$A$3:$A$102,Paramètres!$B$3:$B$102) -> 0 | W115: =LOOKUP(V115,Paramètres!$A$3:$A$102,Paramètres!$B$3:$B$102) -> 0 | Y115: =LOOKUP(X115,Paramètres!$A$3:$A$102,Paramètres!$B$3:$B$102)*Paramètres!$H$5 -> 0 | Z115: =IFERROR(VLOOKUP(J115,Paramètres!$D$3:$E$7,2,FALSE),0)+IFERROR(VLOOKUP(L115,Paramètres!$D$3:$E$7,2,FALSE),0)+IFERROR(VLOOKUP(N115,Paramètres!$D$3:$E$7,2,FALSE),0)+IFERROR(VLOOKUP(P115,Paramètres!$D$3:$E$7,2,FALSE),0)+IFERROR(VLOOKUP(R115,Paramètres!$D$3:$E$7,2,FALSE),0)+IFERROR(VLOOKUP(T115,Paramètres!$D$3:$E$7,2,FALSE),0)+IFERROR(VLOOKUP(V115,Paramètres!$D$3:$E$7,2,FALSE),0)+IFERROR(VLOOKUP(X115,Paramètres!$D$3:$E$7,2,FALSE),0) -> 0 | AA115: 0 | AB115: |999|999|999|999|999|999|999|999 | AC115: 0
A116: 0 | C116: 0 | K116: =LOOKUP(J116,Paramètres!$A$3:$A$102,Paramètres!$B$3:$B$102) -> 0 | M116: =LOOKUP(L116,Paramètres!$A$3:$A$102,Paramètres!$B$3:$B$102) -> 0 | O116: =LOOKUP(N116,Paramètres!$A$3:$A$102,Paramètres!$B$3:$B$102) -> 0 | Q116: =LOOKUP(P116,Paramètres!$A$3:$A$102,Paramètres!$B$3:$B$102) -> 0 | S116: =LOOKUP(R116,Paramètres!$A$3:$A$102,Paramètres!$B$3:$B$102) -> 0 | U116: =LOOKUP(T116,Paramètres!$A$3:$A$102,Paramètres!$B$3:$B$102) -> 0 | W116: =LOOKUP(V116,Paramètres!$A$3:$A$102,Paramètres!$B$3:$B$102) -> 0 | Y116: =LOOKUP(X116,Paramètres!$A$3:$A$102,Paramètres!$B$3:$B$102)*Paramètres!$H$5 -> 0 | Z116: =IFERROR(VLOOKUP(J116,Paramètres!$D$3:$E$7,2,FALSE),0)+IFERROR(VLOOKUP(L116,Paramètres!$D$3:$E$7,2,FALSE),0)+IFERROR(VLOOKUP(N116,Paramètres!$D$3:$E$7,2,FALSE),0)+IFERROR(VLOOKUP(P116,Paramètres!$D$3:$E$7,2,FALSE),0)+IFERROR(VLOOKUP(R116,Paramètres!$D$3:$E$7,2,FALSE),0)+IFERROR(VLOOKUP(T116,Paramètres!$D$3:$E$7,2,FALSE),0)+IFERROR(VLOOKUP(V116,Paramètres!$D$3:$E$7,2,FALSE),0)+IFERROR(VLOOKUP(X116,Paramètres!$D$3:$E$7,2,FALSE),0) -> 0 | AA116: 0 | AB116: |999|999|999|999|999|999|999|999 | AC116: 0
A117: 0 | C117: 0 | K117: =LOOKUP(J117,Paramètres!$A$3:$A$102,Paramètres!$B$3:$B$102) -> 0 | M117: =LOOKUP(L117,Paramètres!$A$3:$A$102,Paramètres!$B$3:$B$102) -> 0 | O117: =LOOKUP(N117,Paramètres!$A$3:$A$102,Paramètres!$B$3:$B$102) -> 0 | Q117: =LOOKUP(P117,Paramètres!$A$3:$A$102,Paramètres!$B$3:$B$102) -> 0 | S117: =LOOKUP(R117,Paramètres!$A$3:$A$102,Paramètres!$B$3:$B$102) -> 0 | U117: =LOOKUP(T117,Paramètres!$A$3:$A$102,Paramètres!$B$3:$B$102) -> 0 | W117: =LOOKUP(V117,Paramètres!$A$3:$A$102,Paramètres!$B$3:$B$102) -> 0 | Y117: =LOOKUP(X117,Paramètres!$A$3:$A$102,Paramètres!$B$3:$B$102)*Paramètres!$H$5 -> 0 | Z117: =IFERROR(VLOOKUP(J117,Paramètres!$D$3:$E$7,2,FALSE),0)+IFERROR(VLOOKUP(L117,Paramètres!$D$3:$E$7,2,FALSE),0)+IFERROR(VLOOKUP(N117,Paramètres!$D$3:$E$7,2,FALSE),0)+IFERROR(VLOOKUP(P117,Paramètres!$D$3:$E$7,2,FALSE),0)+IFERROR(VLOOKUP(R117,Paramètres!$D$3:$E$7,2,FALSE),0)+IFERROR(VLOOKUP(T117,Paramètres!$D$3:$E$7,2,FALSE),0)+IFERROR(VLOOKUP(V117,Paramètres!$D$3:$E$7,2,FALSE),0)+IFERROR(VLOOKUP(X117,Paramètres!$D$3:$E$7,2,FALSE),0) -> 0 | AA117: 0 | AB117: |999|999|999|999|999|999|999|999 | AC117: 0
A118: 0 | C118: 0 | K118: =LOOKUP(J118,Paramètres!$A$3:$A$102,Paramètres!$B$3:$B$102) -> 0 | M118: =LOOKUP(L118,Paramètres!$A$3:$A$102,Paramètres!$B$3:$B$102) -> 0 | O118: =LOOKUP(N118,Paramètres!$A$3:$A$102,Paramètres!$B$3:$B$102) -> 0 | Q118: =LOOKUP(P118,Paramètres!$A$3:$A$102,Paramètres!$B$3:$B$102) -> 0 | S118: =LOOKUP(R118,Paramètres!$A$3:$A$102,Paramètres!$B$3:$B$102) -> 0 | U118: =LOOKUP(T118,Paramètres!$A$3:$A$102,Paramètres!$B$3:$B$102) -> 0 | W118: =LOOKUP(V118,Paramètres!$A$3:$A$102,Paramètres!$B$3:$B$102) -> 0 | Y118: =LOOKUP(X118,Paramètres!$A$3:$A$102,Paramètres!$B$3:$B$102)*Paramètres!$H$5 -> 0 | Z118: =IFERROR(VLOOKUP(J118,Paramètres!$D$3:$E$7,2,FALSE),0)+IFERROR(VLOOKUP(L118,Paramètres!$D$3:$E$7,2,FALSE),0)+IFERROR(VLOOKUP(N118,Paramètres!$D$3:$E$7,2,FALSE),0)+IFERROR(VLOOKUP(P118,Paramètres!$D$3:$E$7,2,FALSE),0)+IFERROR(VLOOKUP(R118,Paramètres!$D$3:$E$7,2,FALSE),0)+IFERROR(VLOOKUP(T118,Paramètres!$D$3:$E$7,2,FALSE),0)+IFERROR(VLOOKUP(V118,Paramètres!$D$3:$E$7,2,FALSE),0)+IFERROR(VLOOKUP(X118,Paramètres!$D$3:$E$7,2,FALSE),0) -> 0 | AA118: 0 | AB118: |999|999|999|999|999|999|999|999 | AC118: 0
A119: 0 | C119: 0 | K119: =LOOKUP(J119,Paramètres!$A$3:$A$102,Paramètres!$B$3:$B$102) -> 0 | M119: =LOOKUP(L119,Paramètres!$A$3:$A$102,Paramètres!$B$3:$B$102) -> 0 | O119: =LOOKUP(N119,Paramètres!$A$3:$A$102,Paramètres!$B$3:$B$102) -> 0 | Q119: =LOOKUP(P119,Paramètres!$A$3:$A$102,Paramètres!$B$3:$B$102) -> 0 | S119: =LOOKUP(R119,Paramètres!$A$3:$A$102,Paramètres!$B$3:$B$102) -> 0 | U119: =LOOKUP(T119,Paramètres!$A$3:$A$102,Paramètres!$B$3:$B$102) -> 0 | W119: =LOOKUP(V119,Paramètres!$A$3:$A$102,Paramètres!$B$3:$B$102) -> 0 | Y119: =LOOKUP(X119,Paramètres!$A$3:$A$102,Paramètres!$B$3:$B$102)*Paramètres!$H$5 -> 0 | Z119: =IFERROR(VLOOKUP(J119,Paramètres!$D$3:$E$7,2,FALSE),0)+IFERROR(VLOOKUP(L119,Paramètres!$D$3:$E$7,2,FALSE),0)+IFERROR(VLOOKUP(N119,Paramètres!$D$3:$E$7,2,FALSE),0)+IFERROR(VLOOKUP(P119,Paramètres!$D$3:$E$7,2,FALSE),0)+IFERROR(VLOOKUP(R119,Paramètres!$D$3:$E$7,2,FALSE),0)+IFERROR(VLOOKUP(T119,Paramètres!$D$3:$E$7,2,FALSE),0)+IFERROR(VLOOKUP(V119,Paramètres!$D$3:$E$7,2,FALSE),0)+IFERROR(VLOOKUP(X119,Paramètres!$D$3:$E$7,2,FALSE),0) -> 0 | AA119: 0 | AB119: |999|999|999|999|999|999|999|999 | AC119: 0
A120: 0 | C120: 0 | K120: =LOOKUP(J120,Paramètres!$A$3:$A$102,Paramètres!$B$3:$B$102) -> 0 | M120: =LOOKUP(L120,Paramètres!$A$3:$A$102,Paramètres!$B$3:$B$102) -> 0 | O120: =LOOKUP(N120,Paramètres!$A$3:$A$102,Paramètres!$B$3:$B$102) -> 0 | Q120: =LOOKUP(P120,Paramètres!$A$3:$A$102,Paramètres!$B$3:$B$102) -> 0 | S120: =LOOKUP(R120,Paramètres!$A$3:$A$102,Paramètres!$B$3:$B$102) -> 0 | U120: =LOOKUP(T120,Paramètres!$A$3:$A$102,Paramètres!$B$3:$B$102) -> 0 | W120: =LOOKUP(V120,Paramètres!$A$3:$A$102,Paramètres!$B$3:$B$102) -> 0 | Y120: =LOOKUP(X120,Paramètres!$A$3:$A$102,Paramètres!$B$3:$B$102)*Paramètres!$H$5 -> 0 | Z120: =IFERROR(VLOOKUP(J120,Paramètres!$D$3:$E$7,2,FALSE),0)+IFERROR(VLOOKUP(L120,Paramètres!$D$3:$E$7,2,FALSE),0)+IFERROR(VLOOKUP(N120,Paramètres!$D$3:$E$7,2,FALSE),0)+IFERROR(VLOOKUP(P120,Paramètres!$D$3:$E$7,2,FALSE),0)+IFERROR(VLOOKUP(R120,Paramètres!$D$3:$E$7,2,FALSE),0)+IFERROR(VLOOKUP(T120,Paramètres!$D$3:$E$7,2,FALSE),0)+IFERROR(VLOOKUP(V120,Paramètres!$D$3:$E$7,2,FALSE),0)+IFERROR(VLOOKUP(X120,Paramètres!$D$3:$E$7,2,FALSE),0) -> 0 | AA120: 0 | AB120: |999|999|999|999|999|999|999|999 | AC120: 0
A121: 0 | C121: 0 | K121: =LOOKUP(J121,Paramètres!$A$3:$A$102,Paramètres!$B$3:$B$102) -> 0 | M121: =LOOKUP(L121,Paramètres!$A$3:$A$102,Paramètres!$B$3:$B$102) -> 0 | O121: =LOOKUP(N121,Paramètres!$A$3:$A$102,Paramètres!$B$3:$B$102) -> 0 | Q121: =LOOKUP(P121,Paramètres!$A$3:$A$102,Paramètres!$B$3:$B$102) -> 0 | S121: =LOOKUP(R121,Paramètres!$A$3:$A$102,Paramètres!$B$3:$B$102) -> 0 | U121: =LOOKUP(T121,Paramètres!$A$3:$A$102,Paramètres!$B$3:$B$102) -> 0 | W121: =LOOKUP(V121,Paramètres!$A$3:$A$102,Paramètres!$B$3:$B$102) -> 0 | Y121: =LOOKUP(X121,Paramètres!$A$3:$A$102,Paramètres!$B$3:$B$102)*Paramètres!$H$5 -> 0 | Z121: =IFERROR(VLOOKUP(J121,Paramètres!$D$3:$E$7,2,FALSE),0)+IFERROR(VLOOKUP(L121,Paramètres!$D$3:$E$7,2,FALSE),0)+IFERROR(VLOOKUP(N121,Paramètres!$D$3:$E$7,2,FALSE),0)+IFERROR(VLOOKUP(P121,Paramètres!$D$3:$E$7,2,FALSE),0)+IFERROR(VLOOKUP(R121,Paramètres!$D$3:$E$7,2,FALSE),0)+IFERROR(VLOOKUP(T121,Paramètres!$D$3:$E$7,2,FALSE),0)+IFERROR(VLOOKUP(V121,Paramètres!$D$3:$E$7,2,FALSE),0)+IFERROR(VLOOKUP(X121,Paramètres!$D$3:$E$7,2,FALSE),0) -> 0 | AA121: 0 | AB121: |999|999|999|999|999|999|999|999 | AC121: 0
A122: 0 | C122: 0 | K122: =LOOKUP(J122,Paramètres!$A$3:$A$102,Paramètres!$B$3:$B$102) -> 0 | M122: =LOOKUP(L122,Paramètres!$A$3:$A$102,Paramètres!$B$3:$B$102) -> 0 | O122: =LOOKUP(N122,Paramètres!$A$3:$A$102,Paramètres!$B$3:$B$102) -> 0 | Q122: =LOOKUP(P122,Paramètres!$A$3:$A$102,Paramètres!$B$3:$B$102) -> 0 | S122: =LOOKUP(R122,Paramètres!$A$3:$A$102,Paramètres!$B$3:$B$102) -> 0 | U122: =LOOKUP(T122,Paramètres!$A$3:$A$102,Paramètres!$B$3:$B$102) -> 0 | W122: =LOOKUP(V122,Paramètres!$A$3:$A$102,Paramètres!$B$3:$B$102) -> 0 | Y122: =LOOKUP(X122,Paramètres!$A$3:$A$102,Paramètres!$B$3:$B$102)*Paramètres!$H$5 -> 0 | Z122: =IFERROR(VLOOKUP(J122,Paramètres!$D$3:$E$7,2,FALSE),0)+IFERROR(VLOOKUP(L122,Paramètres!$D$3:$E$7,2,FALSE),0)+IFERROR(VLOOKUP(N122,Paramètres!$D$3:$E$7,2,FALSE),0)+IFERROR(VLOOKUP(P122,Paramètres!$D$3:$E$7,2,FALSE),0)+IFERROR(VLOOKUP(R122,Paramètres!$D$3:$E$7,2,FALSE),0)+IFERROR(VLOOKUP(T122,Paramètres!$D$3:$E$7,2,FALSE),0)+IFERROR(VLOOKUP(V122,Paramètres!$D$3:$E$7,2,FALSE),0)+IFERROR(VLOOKUP(X122,Paramètres!$D$3:$E$7,2,FALSE),0) -> 0 | AA122: 0 | AB122: |999|999|999|999|999|999|999|999 | AC122: 0
A123: 0 | C123: 0 | K123: =LOOKUP(J123,Paramètres!$A$3:$A$102,Paramètres!$B$3:$B$102) -> 0 | M123: =LOOKUP(L123,Paramètres!$A$3:$A$102,Paramètres!$B$3:$B$102) -> 0 | O123: =LOOKUP(N123,Paramètres!$A$3:$A$102,Paramètres!$B$3:$B$102) -> 0 | Q123: =LOOKUP(P123,Paramètres!$A$3:$A$102,Paramètres!$B$3:$B$102) -> 0 | S123: =LOOKUP(R123,Paramètres!$A$3:$A$102,Paramètres!$B$3:$B$102) -> 0 | U123: =LOOKUP(T123,Paramètres!$A$3:$A$102,Paramètres!$B$3:$B$102) -> 0 | W123: =LOOKUP(V123,Paramètres!$A$3:$A$102,Paramètres!$B$3:$B$102) -> 0 | Y123: =LOOKUP(X123,Paramètres!$A$3:$A$102,Paramètres!$B$3:$B$102)*Paramètres!$H$5 -> 0 | Z123: =IFERROR(VLOOKUP(J123,Paramètres!$D$3:$E$7,2,FALSE),0)+IFERROR(VLOOKUP(L123,Paramètres!$D$3:$E$7,2,FALSE),0)+IFERROR(VLOOKUP(N123,Paramètres!$D$3:$E$7,2,FALSE),0)+IFERROR(VLOOKUP(P123,Paramètres!$D$3:$E$7,2,FALSE),0)+IFERROR(VLOOKUP(R123,Paramètres!$D$3:$E$7,2,FALSE),0)+IFERROR(VLOOKUP(T123,Paramètres!$D$3:$E$7,2,FALSE),0)+IFERROR(VLOOKUP(V123,Paramètres!$D$3:$E$7,2,FALSE),0)+IFERROR(VLOOKUP(X123,Paramètres!$D$3:$E$7,2,FALSE),0) -> 0 | AA123: 0 | AB123: |999|999|999|999|999|999|999|999 | AC123: 0
A124: 0 | C124: 0 | K124: =LOOKUP(J124,Paramètres!$A$3:$A$102,Paramètres!$B$3:$B$102) -> 0 | M124: =LOOKUP(L124,Paramètres!$A$3:$A$102,Paramètres!$B$3:$B$102) -> 0 | O124: =LOOKUP(N124,Paramètres!$A$3:$A$102,Paramètres!$B$3:$B$102) -> 0 | Q124: =LOOKUP(P124,Paramètres!$A$3:$A$102,Paramètres!$B$3:$B$102) -> 0 | S124: =LOOKUP(R124,Paramètres!$A$3:$A$102,Paramètres!$B$3:$B$102) -> 0 | U124: =LOOKUP(T124,Paramètres!$A$3:$A$102,Paramètres!$B$3:$B$102) -> 0 | W124: =LOOKUP(V124,Paramètres!$A$3:$A$102,Paramètres!$B$3:$B$102) -> 0 | Y124: =LOOKUP(X124,Paramètres!$A$3:$A$102,Paramètres!$B$3:$B$102)*Paramètres!$H$5 -> 0 | Z124: =IFERROR(VLOOKUP(J124,Paramètres!$D$3:$E$7,2,FALSE),0)+IFERROR(VLOOKUP(L124,Paramètres!$D$3:$E$7,2,FALSE),0)+IFERROR(VLOOKUP(N124,Paramètres!$D$3:$E$7,2,FALSE),0)+IFERROR(VLOOKUP(P124,Paramètres!$D$3:$E$7,2,FALSE),0)+IFERROR(VLOOKUP(R124,Paramètres!$D$3:$E$7,2,FALSE),0)+IFERROR(VLOOKUP(T124,Paramètres!$D$3:$E$7,2,FALSE),0)+IFERROR(VLOOKUP(V124,Paramètres!$D$3:$E$7,2,FALSE),0)+IFERROR(VLOOKUP(X124,Paramètres!$D$3:$E$7,2,FALSE),0) -> 0 | AA124: 0 | AB124: |999|999|999|999|999|999|999|999 | AC124: 0
A125: 0 | C125: 0 | K125: =LOOKUP(J125,Paramètres!$A$3:$A$102,Paramètres!$B$3:$B$102) -> 0 | M125: =LOOKUP(L125,Paramètres!$A$3:$A$102,Paramètres!$B$3:$B$102) -> 0 | O125: =LOOKUP(N125,Paramètres!$A$3:$A$102,Paramètres!$B$3:$B$102) -> 0 | Q125: =LOOKUP(P125,Paramètres!$A$3:$A$102,Paramètres!$B$3:$B$102) -> 0 | S125: =LOOKUP(R125,Paramètres!$A$3:$A$102,Paramètres!$B$3:$B$102) -> 0 | U125: =LOOKUP(T125,Paramètres!$A$3:$A$102,Paramètres!$B$3:$B$102) -> 0 | W125: =LOOKUP(V125,Paramètres!$A$3:$A$102,Paramètres!$B$3:$B$102) -> 0 | Y125: =LOOKUP(X125,Paramètres!$A$3:$A$102,Paramètres!$B$3:$B$102)*Paramètres!$H$5 -> 0 | Z125: =IFERROR(VLOOKUP(J125,Paramètres!$D$3:$E$7,2,FALSE),0)+IFERROR(VLOOKUP(L125,Paramètres!$D$3:$E$7,2,FALSE),0)+IFERROR(VLOOKUP(N125,Paramètres!$D$3:$E$7,2,FALSE),0)+IFERROR(VLOOKUP(P125,Paramètres!$D$3:$E$7,2,FALSE),0)+IFERROR(VLOOKUP(R125,Paramètres!$D$3:$E$7,2,FALSE),0)+IFERROR(VLOOKUP(T125,Paramètres!$D$3:$E$7,2,FALSE),0)+IFERROR(VLOOKUP(V125,Paramètres!$D$3:$E$7,2,FALSE),0)+IFERROR(VLOOKUP(X125,Paramètres!$D$3:$E$7,2,FALSE),0) -> 0 | AA125: 0 | AB125: |999|999|999|999|999|999|999|999 | AC125: 0
A126: 0 | C126: 0 | K126: =LOOKUP(J126,Paramètres!$A$3:$A$102,Paramètres!$B$3:$B$102) -> 0 | M126: =LOOKUP(L126,Paramètres!$A$3:$A$102,Paramètres!$B$3:$B$102) -> 0 | O126: =LOOKUP(N126,Paramètres!$A$3:$A$102,Paramètres!$B$3:$B$102) -> 0 | Q126: =LOOKUP(P126,Paramètres!$A$3:$A$102,Paramètres!$B$3:$B$102) -> 0 | S126: =LOOKUP(R126,Paramètres!$A$3:$A$102,Paramètres!$B$3:$B$102) -> 0 | U126: =LOOKUP(T126,Paramètres!$A$3:$A$102,Paramètres!$B$3:$B$102) -> 0 | W126: =LOOKUP(V126,Paramètres!$A$3:$A$102,Paramètres!$B$3:$B$102) -> 0 | Y126: =LOOKUP(X126,Paramètres!$A$3:$A$102,Paramètres!$B$3:$B$102)*Paramètres!$H$5 -> 0 | Z126: =IFERROR(VLOOKUP(J126,Paramètres!$D$3:$E$7,2,FALSE),0)+IFERROR(VLOOKUP(L126,Paramètres!$D$3:$E$7,2,FALSE),0)+IFERROR(VLOOKUP(N126,Paramètres!$D$3:$E$7,2,FALSE),0)+IFERROR(VLOOKUP(P126,Paramètres!$D$3:$E$7,2,FALSE),0)+IFERROR(VLOOKUP(R126,Paramètres!$D$3:$E$7,2,FALSE),0)+IFERROR(VLOOKUP(T126,Paramètres!$D$3:$E$7,2,FALSE),0)+IFERROR(VLOOKUP(V126,Paramètres!$D$3:$E$7,2,FALSE),0)+IFERROR(VLOOKUP(X126,Paramètres!$D$3:$E$7,2,FALSE),0) -> 0 | AA126: 0 | AB126: |999|999|999|999|999|999|999|999 | AC126: 0
A127: 0 | C127: 0 | K127: =LOOKUP(J127,Paramètres!$A$3:$A$102,Paramètres!$B$3:$B$102) -> 0 | M127: =LOOKUP(L127,Paramètres!$A$3:$A$102,Paramètres!$B$3:$B$102) -> 0 | O127: =LOOKUP(N127,Paramètres!$A$3:$A$102,Paramètres!$B$3:$B$102) -> 0 | Q127: =LOOKUP(P127,Paramètres!$A$3:$A$102,Paramètres!$B$3:$B$102) -> 0 | S127: =LOOKUP(R127,Paramètres!$A$3:$A$102,Paramètres!$B$3:$B$102) -> 0 | U127: =LOOKUP(T127,Paramètres!$A$3:$A$102,Paramètres!$B$3:$B$102) -> 0 | W127: =LOOKUP(V127,Paramètres!$A$3:$A$102,Paramètres!$B$3:$B$102) -> 0 | Y127: =LOOKUP(X127,Paramètres!$A$3:$A$102,Paramètres!$B$3:$B$102)*Paramètres!$H$5 -> 0 | Z127: =IFERROR(VLOOKUP(J127,Paramètres!$D$3:$E$7,2,FALSE),0)+IFERROR(VLOOKUP(L127,Paramètres!$D$3:$E$7,2,FALSE),0)+IFERROR(VLOOKUP(N127,Paramètres!$D$3:$E$7,2,FALSE),0)+IFERROR(VLOOKUP(P127,Paramètres!$D$3:$E$7,2,FALSE),0)+IFERROR(VLOOKUP(R127,Paramètres!$D$3:$E$7,2,FALSE),0)+IFERROR(VLOOKUP(T127,Paramètres!$D$3:$E$7,2,FALSE),0)+IFERROR(VLOOKUP(V127,Paramètres!$D$3:$E$7,2,FALSE),0)+IFERROR(VLOOKUP(X127,Paramètres!$D$3:$E$7,2,FALSE),0) -> 0 | AA127: 0 | AB127: |999|999|999|999|999|999|999|999 | AC127: 0
A128: 0 | C128: 0 | K128: =LOOKUP(J128,Paramètres!$A$3:$A$102,Paramètres!$B$3:$B$102) -> 0 | M128: =LOOKUP(L128,Paramètres!$A$3:$A$102,Paramètres!$B$3:$B$102) -> 0 | O128: =LOOKUP(N128,Paramètres!$A$3:$A$102,Paramètres!$B$3:$B$102) -> 0 | Q128: =LOOKUP(P128,Paramètres!$A$3:$A$102,Paramètres!$B$3:$B$102) -> 0 | S128: =LOOKUP(R128,Paramètres!$A$3:$A$102,Paramètres!$B$3:$B$102) -> 0 | U128: =LOOKUP(T128,Paramètres!$A$3:$A$102,Paramètres!$B$3:$B$102) -> 0 | W128: =LOOKUP(V128,Paramètres!$A$3:$A$102,Paramètres!$B$3:$B$102) -> 0 | Y128: =LOOKUP(X128,Paramètres!$A$3:$A$102,Paramètres!$B$3:$B$102)*Paramètres!$H$5 -> 0 | Z128: =IFERROR(VLOOKUP(J128,Paramètres!$D$3:$E$7,2,FALSE),0)+IFERROR(VLOOKUP(L128,Paramètres!$D$3:$E$7,2,FALSE),0)+IFERROR(VLOOKUP(N128,Paramètres!$D$3:$E$7,2,FALSE),0)+IFERROR(VLOOKUP(P128,Paramètres!$D$3:$E$7,2,FALSE),0)+IFERROR(VLOOKUP(R128,Paramètres!$D$3:$E$7,2,FALSE),0)+IFERROR(VLOOKUP(T128,Paramètres!$D$3:$E$7,2,FALSE),0)+IFERROR(VLOOKUP(V128,Paramètres!$D$3:$E$7,2,FALSE),0)+IFERROR(VLOOKUP(X128,Paramètres!$D$3:$E$7,2,FALSE),0) -> 0 | AA128: 0 | AB128: |999|999|999|999|999|999|999|999 | AC128: 0
A129: 0 | C129: 0 | K129: =LOOKUP(J129,Paramètres!$A$3:$A$102,Paramètres!$B$3:$B$102) -> 0 | M129: =LOOKUP(L129,Paramètres!$A$3:$A$102,Paramètres!$B$3:$B$102) -> 0 | O129: =LOOKUP(N129,Paramètres!$A$3:$A$102,Paramètres!$B$3:$B$102) -> 0 | Q129: =LOOKUP(P129,Paramètres!$A$3:$A$102,Paramètres!$B$3:$B$102) -> 0 | S129: =LOOKUP(R129,Paramètres!$A$3:$A$102,Paramètres!$B$3:$B$102) -> 0 | U129: =LOOKUP(T129,Paramètres!$A$3:$A$102,Paramètres!$B$3:$B$102) -> 0 | W129: =LOOKUP(V129,Paramètres!$A$3:$A$102,Paramètres!$B$3:$B$102) -> 0 | Y129: =LOOKUP(X129,Paramètres!$A$3:$A$102,Paramètres!$B$3:$B$102)*Paramètres!$H$5 -> 0 | Z129: =IFERROR(VLOOKUP(J129,Paramètres!$D$3:$E$7,2,FALSE),0)+IFERROR(VLOOKUP(L129,Paramètres!$D$3:$E$7,2,FALSE),0)+IFERROR(VLOOKUP(N129,Paramètres!$D$3:$E$7,2,FALSE),0)+IFERROR(VLOOKUP(P129,Paramètres!$D$3:$E$7,2,FALSE),0)+IFERROR(VLOOKUP(R129,Paramètres!$D$3:$E$7,2,FALSE),0)+IFERROR(VLOOKUP(T129,Paramètres!$D$3:$E$7,2,FALSE),0)+IFERROR(VLOOKUP(V129,Paramètres!$D$3:$E$7,2,FALSE),0)+IFERROR(VLOOKUP(X129,Paramètres!$D$3:$E$7,2,FALSE),0) -> 0 | AA129: 0 | AB129: |999|999|999|999|999|999|999|999 | AC129: 0
A130: 0 | C130: 0 | K130: =LOOKUP(J130,Paramètres!$A$3:$A$102,Paramètres!$B$3:$B$102) -> 0 | M130: =LOOKUP(L130,Paramètres!$A$3:$A$102,Paramètres!$B$3:$B$102) -> 0 | O130: =LOOKUP(N130,Paramètres!$A$3:$A$102,Paramètres!$B$3:$B$102) -> 0 | Q130: =LOOKUP(P130,Paramètres!$A$3:$A$102,Paramètres!$B$3:$B$102) -> 0 | S130: =LOOKUP(R130,Paramètres!$A$3:$A$102,Paramètres!$B$3:$B$102) -> 0 | U130: =LOOKUP(T130,Paramètres!$A$3:$A$102,Paramètres!$B$3:$B$102) -> 0 | W130: =LOOKUP(V130,Paramètres!$A$3:$A$102,Paramètres!$B$3:$B$102) -> 0 | Y130: =LOOKUP(X130,Paramètres!$A$3:$A$102,Paramètres!$B$3:$B$102)*Paramètres!$H$5 -> 0 | Z130: =IFERROR(VLOOKUP(J130,Paramètres!$D$3:$E$7,2,FALSE),0)+IFERROR(VLOOKUP(L130,Paramètres!$D$3:$E$7,2,FALSE),0)+IFERROR(VLOOKUP(N130,Paramètres!$D$3:$E$7,2,FALSE),0)+IFERROR(VLOOKUP(P130,Paramètres!$D$3:$E$7,2,FALSE),0)+IFERROR(VLOOKUP(R130,Paramètres!$D$3:$E$7,2,FALSE),0)+IFERROR(VLOOKUP(T130,Paramètres!$D$3:$E$7,2,FALSE),0)+IFERROR(VLOOKUP(V130,Paramètres!$D$3:$E$7,2,FALSE),0)+IFERROR(VLOOKUP(X130,Paramètres!$D$3:$E$7,2,FALSE),0) -> 0 | AA130: 0 | AB130: |999|999|999|999|999|999|999|999 | AC130: 0
A131: 0 | C131: 0 | K131: =LOOKUP(J131,Paramètres!$A$3:$A$102,Paramètres!$B$3:$B$102) -> 0 | M131: =LOOKUP(L131,Paramètres!$A$3:$A$102,Paramètres!$B$3:$B$102) -> 0 | O131: =LOOKUP(N131,Paramètres!$A$3:$A$102,Paramètres!$B$3:$B$102) -> 0 | Q131: =LOOKUP(P131,Paramètres!$A$3:$A$102,Paramètres!$B$3:$B$102) -> 0 | S131: =LOOKUP(R131,Paramètres!$A$3:$A$102,Paramètres!$B$3:$B$102) -> 0 | U131: =LOOKUP(T131,Paramètres!$A$3:$A$102,Paramètres!$B$3:$B$102) -> 0 | W131: =LOOKUP(V131,Paramètres!$A$3:$A$102,Paramètres!$B$3:$B$102) -> 0 | Y131: =LOOKUP(X131,Paramètres!$A$3:$A$102,Paramètres!$B$3:$B$102)*Paramètres!$H$5 -> 0 | Z131: =IFERROR(VLOOKUP(J131,Paramètres!$D$3:$E$7,2,FALSE),0)+IFERROR(VLOOKUP(L131,Paramètres!$D$3:$E$7,2,FALSE),0)+IFERROR(VLOOKUP(N131,Paramètres!$D$3:$E$7,2,FALSE),0)+IFERROR(VLOOKUP(P131,Paramètres!$D$3:$E$7,2,FALSE),0)+IFERROR(VLOOKUP(R131,Paramètres!$D$3:$E$7,2,FALSE),0)+IFERROR(VLOOKUP(T131,Paramètres!$D$3:$E$7,2,FALSE),0)+IFERROR(VLOOKUP(V131,Paramètres!$D$3:$E$7,2,FALSE),0)+IFERROR(VLOOKUP(X131,Paramètres!$D$3:$E$7,2,FALSE),0) -> 0 | AA131: 0 | AB131: |999|999|999|999|999|999|999|999 | AC131: 0
A132: 0 | C132: 0 | K132: =LOOKUP(J132,Paramètres!$A$3:$A$102,Paramètres!$B$3:$B$102) -> 0 | M132: =LOOKUP(L132,Paramètres!$A$3:$A$102,Paramètres!$B$3:$B$102) -> 0 | O132: =LOOKUP(N132,Paramètres!$A$3:$A$102,Paramètres!$B$3:$B$102) -> 0 | Q132: =LOOKUP(P132,Paramètres!$A$3:$A$102,Paramètres!$B$3:$B$102) -> 0 | S132: =LOOKUP(R132,Paramètres!$A$3:$A$102,Paramètres!$B$3:$B$102) -> 0 | U132: =LOOKUP(T132,Paramètres!$A$3:$A$102,Paramètres!$B$3:$B$102) -> 0 | W132: =LOOKUP(V132,Paramètres!$A$3:$A$102,Paramètres!$B$3:$B$102) -> 0 | Y132: =LOOKUP(X132,Paramètres!$A$3:$A$102,Paramètres!$B$3:$B$102)*Paramètres!$H$5 -> 0 | Z132: =IFERROR(VLOOKUP(J132,Paramètres!$D$3:$E$7,2,FALSE),0)+IFERROR(VLOOKUP(L132,Paramètres!$D$3:$E$7,2,FALSE),0)+IFERROR(VLOOKUP(N132,Paramètres!$D$3:$E$7,2,FALSE),0)+IFERROR(VLOOKUP(P132,Paramètres!$D$3:$E$7,2,FALSE),0)+IFERROR(VLOOKUP(R132,Paramètres!$D$3:$E$7,2,FALSE),0)+IFERROR(VLOOKUP(T132,Paramètres!$D$3:$E$7,2,FALSE),0)+IFERROR(VLOOKUP(V132,Paramètres!$D$3:$E$7,2,FALSE),0)+IFERROR(VLOOKUP(X132,Paramètres!$D$3:$E$7,2,FALSE),0) -> 0 | AA132: 0 | AB132: |999|999|999|999|999|999|999|999 | AC132: 0
A133: 0 | C133: 0 | K133: =LOOKUP(J133,Paramètres!$A$3:$A$102,Paramètres!$B$3:$B$102) -> 0 | M133: =LOOKUP(L133,Paramètres!$A$3:$A$102,Paramètres!$B$3:$B$102) -> 0 | O133: =LOOKUP(N133,Paramètres!$A$3:$A$102,Paramètres!$B$3:$B$102) -> 0 | Q133: =LOOKUP(P133,Paramètres!$A$3:$A$102,Paramètres!$B$3:$B$102) -> 0 | S133: =LOOKUP(R133,Paramètres!$A$3:$A$102,Paramètres!$B$3:$B$102) -> 0 | U133: =LOOKUP(T133,Paramètres!$A$3:$A$102,Paramètres!$B$3:$B$102) -> 0 | W133: =LOOKUP(V133,Paramètres!$A$3:$A$102,Paramètres!$B$3:$B$102) -> 0 | Y133: =LOOKUP(X133,Paramètres!$A$3:$A$102,Paramètres!$B$3:$B$102)*Paramètres!$H$5 -> 0 | Z133: =IFERROR(VLOOKUP(J133,Paramètres!$D$3:$E$7,2,FALSE),0)+IFERROR(VLOOKUP(L133,Paramètres!$D$3:$E$7,2,FALSE),0)+IFERROR(VLOOKUP(N133,Paramètres!$D$3:$E$7,2,FALSE),0)+IFERROR(VLOOKUP(P133,Paramètres!$D$3:$E$7,2,FALSE),0)+IFERROR(VLOOKUP(R133,Paramètres!$D$3:$E$7,2,FALSE),0)+IFERROR(VLOOKUP(T133,Paramètres!$D$3:$E$7,2,FALSE),0)+IFERROR(VLOOKUP(V133,Paramètres!$D$3:$E$7,2,FALSE),0)+IFERROR(VLOOKUP(X133,Paramètres!$D$3:$E$7,2,FALSE),0) -> 0 | AA133: 0 | AB133: |999|999|999|999|999|999|999|999 | AC133: 0
A134: 0 | B134: =IF(E134,RANK(A134,$A$6:$A$211),"") ->  | C134: =A134-MINA(K134,M134,O134,S134,U134,W134,Y134,Q134) -> 0 | D134: =IF(E134,RANK(C134,$C$6:$C$211),"") ->  | K134: =LOOKUP(J134,Paramètres!$A$3:$A$102,Paramètres!$B$3:$B$102) -> 0 | M134: =LOOKUP(L134,Paramètres!$A$3:$A$102,Paramètres!$B$3:$B$102) -> 0 | O134: =LOOKUP(N134,Paramètres!$A$3:$A$102,Paramètres!$B$3:$B$102) -> 0 | Q134: =LOOKUP(P134,Paramètres!$A$3:$A$102,Paramètres!$B$3:$B$102) -> 0 | S134: =LOOKUP(R134,Paramètres!$A$3:$A$102,Paramètres!$B$3:$B$102) -> 0 | U134: =LOOKUP(T134,Paramètres!$A$3:$A$102,Paramètres!$B$3:$B$102) -> 0 | W134: =LOOKUP(V134,Paramètres!$A$3:$A$102,Paramètres!$B$3:$B$102) -> 0 | Y134: =LOOKUP(X134,Paramètres!$A$3:$A$102,Paramètres!$B$3:$B$102)*Paramètres!$H$5 -> 0 | Z134: =IFERROR(VLOOKUP(J134,Paramètres!$D$3:$E$7,2,FALSE),0)+IFERROR(VLOOKUP(L134,Paramètres!$D$3:$E$7,2,FALSE),0)+IFERROR(VLOOKUP(N134,Paramètres!$D$3:$E$7,2,FALSE),0)+IFERROR(VLOOKUP(P134,Paramètres!$D$3:$E$7,2,FALSE),0)+IFERROR(VLOOKUP(R134,Paramètres!$D$3:$E$7,2,FALSE),0)+IFERROR(VLOOKUP(T134,Paramètres!$D$3:$E$7,2,FALSE),0)+IFERROR(VLOOKUP(V134,Paramètres!$D$3:$E$7,2,FALSE),0)+IFERROR(VLOOKUP(X134,Paramètres!$D$3:$E$7,2,FALSE),0) -> 0 | AA134: 0 | AB134: |999|999|999|999|999|999|999|999 | AC134: 0
A135: =K135+M135+O135+S135+U135+W135+Y135+Q135+AC135/10000 -> 0 | C135: 0 | K135: =LOOKUP(J135,Paramètres!$A$3:$A$102,Paramètres!$B$3:$B$102) -> 0 | M135: =LOOKUP(L135,Paramètres!$A$3:$A$102,Paramètres!$B$3:$B$102) -> 0 | O135: =LOOKUP(N135,Paramètres!$A$3:$A$102,Paramètres!$B$3:$B$102) -> 0 | Q135: =LOOKUP(P135,Paramètres!$A$3:$A$102,Paramètres!$B$3:$B$102) -> 0 | S135: =LOOKUP(R135,Paramètres!$A$3:$A$102,Paramètres!$B$3:$B$102) -> 0 | U135: =LOOKUP(T135,Paramètres!$A$3:$A$102,Paramètres!$B$3:$B$102) -> 0 | W135: =LOOKUP(V135,Paramètres!$A$3:$A$102,Paramètres!$B$3:$B$102) -> 0 | Y135: =LOOKUP(X135,Paramètres!$A$3:$A$102,Paramètres!$B$3:$B$102)*Paramètres!$H$5 -> 0 | Z135: =IFERROR(VLOOKUP(J135,Paramètres!$D$3:$E$7,2,FALSE),0)+IFERROR(VLOOKUP(L135,Paramètres!$D$3:$E$7,2,FALSE),0)+IFERROR(VLOOKUP(N135,Paramètres!$D$3:$E$7,2,FALSE),0)+IFERROR(VLOOKUP(P135,Paramètres!$D$3:$E$7,2,FALSE),0)+IFERROR(VLOOKUP(R135,Paramètres!$D$3:$E$7,2,FALSE),0)+IFERROR(VLOOKUP(T135,Paramètres!$D$3:$E$7,2,FALSE),0)+IFERROR(VLOOKUP(V135,Paramètres!$D$3:$E$7,2,FALSE),0)+IFERROR(VLOOKUP(X135,Paramètres!$D$3:$E$7,2,FALSE),0) -> 0 | AA135: 0 | AB135: =Classement(J135:Y135,$J$5:$Y$5) -> |999|999|999|999|999|999|999|999 | AC135: =COUNTIF($AB$6:$AB$211,">"&AB135) -> 0
A136: 0 | C136: 0 | K136: =LOOKUP(J136,Paramètres!$A$3:$A$102,Paramètres!$B$3:$B$102) -> 0 | M136: =LOOKUP(L136,Paramètres!$A$3:$A$102,Paramètres!$B$3:$B$102) -> 0 | O136: =LOOKUP(N136,Paramètres!$A$3:$A$102,Paramètres!$B$3:$B$102) -> 0 | Q136: =LOOKUP(P136,Paramètres!$A$3:$A$102,Paramètres!$B$3:$B$102) -> 0 | S136: =LOOKUP(R136,Paramètres!$A$3:$A$102,Paramètres!$B$3:$B$102) -> 0 | U136: =LOOKUP(T136,Paramètres!$A$3:$A$102,Paramètres!$B$3:$B$102) -> 0 | W136: =LOOKUP(V136,Paramètres!$A$3:$A$102,Paramètres!$B$3:$B$102) -> 0 | Y136: =LOOKUP(X136,Paramètres!$A$3:$A$102,Paramètres!$B$3:$B$102)*Paramètres!$H$5 -> 0 | Z136: =IFERROR(VLOOKUP(J136,Paramètres!$D$3:$E$7,2,FALSE),0)+IFERROR(VLOOKUP(L136,Paramètres!$D$3:$E$7,2,FALSE),0)+IFERROR(VLOOKUP(N136,Paramètres!$D$3:$E$7,2,FALSE),0)+IFERROR(VLOOKUP(P136,Paramètres!$D$3:$E$7,2,FALSE),0)+IFERROR(VLOOKUP(R136,Paramètres!$D$3:$E$7,2,FALSE),0)+IFERROR(VLOOKUP(T136,Paramètres!$D$3:$E$7,2,FALSE),0)+IFERROR(VLOOKUP(V136,Paramètres!$D$3:$E$7,2,FALSE),0)+IFERROR(VLOOKUP(X136,Paramètres!$D$3:$E$7,2,FALSE),0) -> 0 | AA136: 0 | AB136: |999|999|999|999|999|999|999|999 | AC136: 0
A137: 0 | C137: 0 | K137: =LOOKUP(J137,Paramètres!$A$3:$A$102,Paramètres!$B$3:$B$102) -> 0 | M137: =LOOKUP(L137,Paramètres!$A$3:$A$102,Paramètres!$B$3:$B$102) -> 0 | O137: =LOOKUP(N137,Paramètres!$A$3:$A$102,Paramètres!$B$3:$B$102) -> 0 | Q137: =LOOKUP(P137,Paramètres!$A$3:$A$102,Paramètres!$B$3:$B$102) -> 0 | S137: =LOOKUP(R137,Paramètres!$A$3:$A$102,Paramètres!$B$3:$B$102) -> 0 | U137: =LOOKUP(T137,Paramètres!$A$3:$A$102,Paramètres!$B$3:$B$102) -> 0 | W137: =LOOKUP(V137,Paramètres!$A$3:$A$102,Paramètres!$B$3:$B$102) -> 0 | Y137: =LOOKUP(X137,Paramètres!$A$3:$A$102,Paramètres!$B$3:$B$102)*Paramètres!$H$5 -> 0 | Z137: =IFERROR(VLOOKUP(J137,Paramètres!$D$3:$E$7,2,FALSE),0)+IFERROR(VLOOKUP(L137,Paramètres!$D$3:$E$7,2,FALSE),0)+IFERROR(VLOOKUP(N137,Paramètres!$D$3:$E$7,2,FALSE),0)+IFERROR(VLOOKUP(P137,Paramètres!$D$3:$E$7,2,FALSE),0)+IFERROR(VLOOKUP(R137,Paramètres!$D$3:$E$7,2,FALSE),0)+IFERROR(VLOOKUP(T137,Paramètres!$D$3:$E$7,2,FALSE),0)+IFERROR(VLOOKUP(V137,Paramètres!$D$3:$E$7,2,FALSE),0)+IFERROR(VLOOKUP(X137,Paramètres!$D$3:$E$7,2,FALSE),0) -> 0 | AA137: 0 | AB137: |999|999|999|999|999|999|999|999 | AC137: 0
A138: 0 | C138: 0 | K138: =LOOKUP(J138,Paramètres!$A$3:$A$102,Paramètres!$B$3:$B$102) -> 0 | M138: =LOOKUP(L138,Paramètres!$A$3:$A$102,Paramètres!$B$3:$B$102) -> 0 | O138: =LOOKUP(N138,Paramètres!$A$3:$A$102,Paramètres!$B$3:$B$102) -> 0 | Q138: =LOOKUP(P138,Paramètres!$A$3:$A$102,Paramètres!$B$3:$B$102) -> 0 | S138: =LOOKUP(R138,Paramètres!$A$3:$A$102,Paramètres!$B$3:$B$102) -> 0 | U138: =LOOKUP(T138,Paramètres!$A$3:$A$102,Paramètres!$B$3:$B$102) -> 0 | W138: =LOOKUP(V138,Paramètres!$A$3:$A$102,Paramètres!$B$3:$B$102) -> 0 | Y138: =LOOKUP(X138,Paramètres!$A$3:$A$102,Paramètres!$B$3:$B$102)*Paramètres!$H$5 -> 0 | Z138: =IFERROR(VLOOKUP(J138,Paramètres!$D$3:$E$7,2,FALSE),0)+IFERROR(VLOOKUP(L138,Paramètres!$D$3:$E$7,2,FALSE),0)+IFERROR(VLOOKUP(N138,Paramètres!$D$3:$E$7,2,FALSE),0)+IFERROR(VLOOKUP(P138,Paramètres!$D$3:$E$7,2,FALSE),0)+IFERROR(VLOOKUP(R138,Paramètres!$D$3:$E$7,2,FALSE),0)+IFERROR(VLOOKUP(T138,Paramètres!$D$3:$E$7,2,FALSE),0)+IFERROR(VLOOKUP(V138,Paramètres!$D$3:$E$7,2,FALSE),0)+IFERROR(VLOOKUP(X138,Paramètres!$D$3:$E$7,2,FALSE),0) -> 0 | AA138: 0 | AB138: |999|999|999|999|999|999|999|999 | AC138: 0
A139: 0 | C139: 0 | K139: =LOOKUP(J139,Paramètres!$A$3:$A$102,Paramètres!$B$3:$B$102) -> 0 | M139: =LOOKUP(L139,Paramètres!$A$3:$A$102,Paramètres!$B$3:$B$102) -> 0 | O139: =LOOKUP(N139,Paramètres!$A$3:$A$102,Paramètres!$B$3:$B$102) -> 0 | Q139: =LOOKUP(P139,Paramètres!$A$3:$A$102,Paramètres!$B$3:$B$102) -> 0 | S139: =LOOKUP(R139,Paramètres!$A$3:$A$102,Paramètres!$B$3:$B$102) -> 0 | U139: =LOOKUP(T139,Paramètres!$A$3:$A$102,Paramètres!$B$3:$B$102) -> 0 | W139: =LOOKUP(V139,Paramètres!$A$3:$A$102,Paramètres!$B$3:$B$102) -> 0 | Y139: =LOOKUP(X139,Paramètres!$A$3:$A$102,Paramètres!$B$3:$B$102)*Paramètres!$H$5 -> 0 | Z139: =IFERROR(VLOOKUP(J139,Paramètres!$D$3:$E$7,2,FALSE),0)+IFERROR(VLOOKUP(L139,Paramètres!$D$3:$E$7,2,FALSE),0)+IFERROR(VLOOKUP(N139,Paramètres!$D$3:$E$7,2,FALSE),0)+IFERROR(VLOOKUP(P139,Paramètres!$D$3:$E$7,2,FALSE),0)+IFERROR(VLOOKUP(R139,Paramètres!$D$3:$E$7,2,FALSE),0)+IFERROR(VLOOKUP(T139,Paramètres!$D$3:$E$7,2,FALSE),0)+IFERROR(VLOOKUP(V139,Paramètres!$D$3:$E$7,2,FALSE),0)+IFERROR(VLOOKUP(X139,Paramètres!$D$3:$E$7,2,FALSE),0) -> 0 | AA139: 0 | AB139: |999|999|999|999|999|999|999|999 | AC139: 0
A140: 0 | C140: 0 | K140: =LOOKUP(J140,Paramètres!$A$3:$A$102,Paramètres!$B$3:$B$102) -> 0 | M140: =LOOKUP(L140,Paramètres!$A$3:$A$102,Paramètres!$B$3:$B$102) -> 0 | O140: =LOOKUP(N140,Paramètres!$A$3:$A$102,Paramètres!$B$3:$B$102) -> 0 | Q140: =LOOKUP(P140,Paramètres!$A$3:$A$102,Paramètres!$B$3:$B$102) -> 0 | S140: =LOOKUP(R140,Paramètres!$A$3:$A$102,Paramètres!$B$3:$B$102) -> 0 | U140: =LOOKUP(T140,Paramètres!$A$3:$A$102,Paramètres!$B$3:$B$102) -> 0 | W140: =LOOKUP(V140,Paramètres!$A$3:$A$102,Paramètres!$B$3:$B$102) -> 0 | Y140: =LOOKUP(X140,Paramètres!$A$3:$A$102,Paramètres!$B$3:$B$102)*Paramètres!$H$5 -> 0 | Z140: =IFERROR(VLOOKUP(J140,Paramètres!$D$3:$E$7,2,FALSE),0)+IFERROR(VLOOKUP(L140,Paramètres!$D$3:$E$7,2,FALSE),0)+IFERROR(VLOOKUP(N140,Paramètres!$D$3:$E$7,2,FALSE),0)+IFERROR(VLOOKUP(P140,Paramètres!$D$3:$E$7,2,FALSE),0)+IFERROR(VLOOKUP(R140,Paramètres!$D$3:$E$7,2,FALSE),0)+IFERROR(VLOOKUP(T140,Paramètres!$D$3:$E$7,2,FALSE),0)+IFERROR(VLOOKUP(V140,Paramètres!$D$3:$E$7,2,FALSE),0)+IFERROR(VLOOKUP(X140,Paramètres!$D$3:$E$7,2,FALSE),0) -> 0 | AA140: 0 | AB140: |999|999|999|999|999|999|999|999 | AC140: 0
A141: 0 | C141: 0 | K141: =LOOKUP(J141,Paramètres!$A$3:$A$102,Paramètres!$B$3:$B$102) -> 0 | M141: =LOOKUP(L141,Paramètres!$A$3:$A$102,Paramètres!$B$3:$B$102) -> 0 | O141: =LOOKUP(N141,Paramètres!$A$3:$A$102,Paramètres!$B$3:$B$102) -> 0 | Q141: =LOOKUP(P141,Paramètres!$A$3:$A$102,Paramètres!$B$3:$B$102) -> 0 | S141: =LOOKUP(R141,Paramètres!$A$3:$A$102,Paramètres!$B$3:$B$102) -> 0 | U141: =LOOKUP(T141,Paramètres!$A$3:$A$102,Paramètres!$B$3:$B$102) -> 0 | W141: =LOOKUP(V141,Paramètres!$A$3:$A$102,Paramètres!$B$3:$B$102) -> 0 | Y141: =LOOKUP(X141,Paramètres!$A$3:$A$102,Paramètres!$B$3:$B$102)*Paramètres!$H$5 -> 0 | Z141: =IFERROR(VLOOKUP(J141,Paramètres!$D$3:$E$7,2,FALSE),0)+IFERROR(VLOOKUP(L141,Paramètres!$D$3:$E$7,2,FALSE),0)+IFERROR(VLOOKUP(N141,Paramètres!$D$3:$E$7,2,FALSE),0)+IFERROR(VLOOKUP(P141,Paramètres!$D$3:$E$7,2,FALSE),0)+IFERROR(VLOOKUP(R141,Paramètres!$D$3:$E$7,2,FALSE),0)+IFERROR(VLOOKUP(T141,Paramètres!$D$3:$E$7,2,FALSE),0)+IFERROR(VLOOKUP(V141,Paramètres!$D$3:$E$7,2,FALSE),0)+IFERROR(VLOOKUP(X141,Paramètres!$D$3:$E$7,2,FALSE),0) -> 0 | AA141: 0 | AB141: |999|999|999|999|999|999|999|999 | AC141: 0
A142: 0 | C142: 0 | K142: =LOOKUP(J142,Paramètres!$A$3:$A$102,Paramètres!$B$3:$B$102) -> 0 | M142: =LOOKUP(L142,Paramètres!$A$3:$A$102,Paramètres!$B$3:$B$102) -> 0 | O142: =LOOKUP(N142,Paramètres!$A$3:$A$102,Paramètres!$B$3:$B$102) -> 0 | Q142: =LOOKUP(P142,Paramètres!$A$3:$A$102,Paramètres!$B$3:$B$102) -> 0 | S142: =LOOKUP(R142,Paramètres!$A$3:$A$102,Paramètres!$B$3:$B$102) -> 0 | U142: =LOOKUP(T142,Paramètres!$A$3:$A$102,Paramètres!$B$3:$B$102) -> 0 | W142: =LOOKUP(V142,Paramètres!$A$3:$A$102,Paramètres!$B$3:$B$102) -> 0 | Y142: =LOOKUP(X142,Paramètres!$A$3:$A$102,Paramètres!$B$3:$B$102)*Paramètres!$H$5 -> 0 | Z142: =IFERROR(VLOOKUP(J142,Paramètres!$D$3:$E$7,2,FALSE),0)+IFERROR(VLOOKUP(L142,Paramètres!$D$3:$E$7,2,FALSE),0)+IFERROR(VLOOKUP(N142,Paramètres!$D$3:$E$7,2,FALSE),0)+IFERROR(VLOOKUP(P142,Paramètres!$D$3:$E$7,2,FALSE),0)+IFERROR(VLOOKUP(R142,Paramètres!$D$3:$E$7,2,FALSE),0)+IFERROR(VLOOKUP(T142,Paramètres!$D$3:$E$7,2,FALSE),0)+IFERROR(VLOOKUP(V142,Paramètres!$D$3:$E$7,2,FALSE),0)+IFERROR(VLOOKUP(X142,Paramètres!$D$3:$E$7,2,FALSE),0) -> 0 | AA142: 0 | AB142: |999|999|999|999|999|999|999|999 | AC142: 0
A143: 0 | B143: =IF(E143,RANK(A143,$A$6:$A$211),"") ->  | C143: 0 | D143: =IF(E143,RANK(C143,$C$6:$C$211),"") ->  | K143: =LOOKUP(J143,Paramètres!$A$3:$A$102,Paramètres!$B$3:$B$102) -> 0 | M143: =LOOKUP(L143,Paramètres!$A$3:$A$102,Paramètres!$B$3:$B$102) -> 0 | O143: =LOOKUP(N143,Paramètres!$A$3:$A$102,Paramètres!$B$3:$B$102) -> 0 | Q143: =LOOKUP(P143,Paramètres!$A$3:$A$102,Paramètres!$B$3:$B$102) -> 0 | S143: =LOOKUP(R143,Paramètres!$A$3:$A$102,Paramètres!$B$3:$B$102) -> 0 | U143: =LOOKUP(T143,Paramètres!$A$3:$A$102,Paramètres!$B$3:$B$102) -> 0 | W143: =LOOKUP(V143,Paramètres!$A$3:$A$102,Paramètres!$B$3:$B$102) -> 0 | Y143: =LOOKUP(X143,Paramètres!$A$3:$A$102,Paramètres!$B$3:$B$102)*Paramètres!$H$5 -> 0 | Z143: =IFERROR(VLOOKUP(J143,Paramètres!$D$3:$E$7,2,FALSE),0)+IFERROR(VLOOKUP(L143,Paramètres!$D$3:$E$7,2,FALSE),0)+IFERROR(VLOOKUP(N143,Paramètres!$D$3:$E$7,2,FALSE),0)+IFERROR(VLOOKUP(P143,Paramètres!$D$3:$E$7,2,FALSE),0)+IFERROR(VLOOKUP(R143,Paramètres!$D$3:$E$7,2,FALSE),0)+IFERROR(VLOOKUP(T143,Paramètres!$D$3:$E$7,2,FALSE),0)+IFERROR(VLOOKUP(V143,Paramètres!$D$3:$E$7,2,FALSE),0)+IFERROR(VLOOKUP(X143,Paramètres!$D$3:$E$7,2,FALSE),0) -> 0 | AA143: 0 | AB143: |999|999|999|999|999|999|999|999 | AC143: 0
A144: 0 | C144: 0 | K144: =LOOKUP(J144,Paramètres!$A$3:$A$102,Paramètres!$B$3:$B$102) -> 0 | M144: =LOOKUP(L144,Paramètres!$A$3:$A$102,Paramètres!$B$3:$B$102) -> 0 | O144: =LOOKUP(N144,Paramètres!$A$3:$A$102,Paramètres!$B$3:$B$102) -> 0 | Q144: =LOOKUP(P144,Paramètres!$A$3:$A$102,Paramètres!$B$3:$B$102) -> 0 | S144: =LOOKUP(R144,Paramètres!$A$3:$A$102,Paramètres!$B$3:$B$102) -> 0 | U144: =LOOKUP(T144,Paramètres!$A$3:$A$102,Paramètres!$B$3:$B$102) -> 0 | W144: =LOOKUP(V144,Paramètres!$A$3:$A$102,Paramètres!$B$3:$B$102) -> 0 | Y144: =LOOKUP(X144,Paramètres!$A$3:$A$102,Paramètres!$B$3:$B$102)*Paramètres!$H$5 -> 0 | Z144: =IFERROR(VLOOKUP(J144,Paramètres!$D$3:$E$7,2,FALSE),0)+IFERROR(VLOOKUP(L144,Paramètres!$D$3:$E$7,2,FALSE),0)+IFERROR(VLOOKUP(N144,Paramètres!$D$3:$E$7,2,FALSE),0)+IFERROR(VLOOKUP(P144,Paramètres!$D$3:$E$7,2,FALSE),0)+IFERROR(VLOOKUP(R144,Paramètres!$D$3:$E$7,2,FALSE),0)+IFERROR(VLOOKUP(T144,Paramètres!$D$3:$E$7,2,FALSE),0)+IFERROR(VLOOKUP(V144,Paramètres!$D$3:$E$7,2,FALSE),0)+IFERROR(VLOOKUP(X144,Paramètres!$D$3:$E$7,2,FALSE),0) -> 0 | AA144: 0 | AB144: |999|999|999|999|999|999|999|999 | AC144: 0
A145: 0 | C145: 0 | K145: =LOOKUP(J145,Paramètres!$A$3:$A$102,Paramètres!$B$3:$B$102) -> 0 | M145: =LOOKUP(L145,Paramètres!$A$3:$A$102,Paramètres!$B$3:$B$102) -> 0 | O145: =LOOKUP(N145,Paramètres!$A$3:$A$102,Paramètres!$B$3:$B$102) -> 0 | Q145: =LOOKUP(P145,Paramètres!$A$3:$A$102,Paramètres!$B$3:$B$102) -> 0 | S145: =LOOKUP(R145,Paramètres!$A$3:$A$102,Paramètres!$B$3:$B$102) -> 0 | U145: =LOOKUP(T145,Paramètres!$A$3:$A$102,Paramètres!$B$3:$B$102) -> 0 | W145: =LOOKUP(V145,Paramètres!$A$3:$A$102,Paramètres!$B$3:$B$102) -> 0 | Y145: =LOOKUP(X145,Paramètres!$A$3:$A$102,Paramètres!$B$3:$B$102)*Paramètres!$H$5 -> 0 | Z145: =IFERROR(VLOOKUP(J145,Paramètres!$D$3:$E$7,2,FALSE),0)+IFERROR(VLOOKUP(L145,Paramètres!$D$3:$E$7,2,FALSE),0)+IFERROR(VLOOKUP(N145,Paramètres!$D$3:$E$7,2,FALSE),0)+IFERROR(VLOOKUP(P145,Paramètres!$D$3:$E$7,2,FALSE),0)+IFERROR(VLOOKUP(R145,Paramètres!$D$3:$E$7,2,FALSE),0)+IFERROR(VLOOKUP(T145,Paramètres!$D$3:$E$7,2,FALSE),0)+IFERROR(VLOOKUP(V145,Paramètres!$D$3:$E$7,2,FALSE),0)+IFERROR(VLOOKUP(X145,Paramètres!$D$3:$E$7,2,FALSE),0) -> 0 | AA145: 0 | AB145: |999|999|999|999|999|999|999|999 | AC145: 0
A146: 0 | C146: 0 | K146: =LOOKUP(J146,Paramètres!$A$3:$A$102,Paramètres!$B$3:$B$102) -> 0 | M146: =LOOKUP(L146,Paramètres!$A$3:$A$102,Paramètres!$B$3:$B$102) -> 0 | O146: =LOOKUP(N146,Paramètres!$A$3:$A$102,Paramètres!$B$3:$B$102) -> 0 | Q146: =LOOKUP(P146,Paramètres!$A$3:$A$102,Paramètres!$B$3:$B$102) -> 0 | S146: =LOOKUP(R146,Paramètres!$A$3:$A$102,Paramètres!$B$3:$B$102) -> 0 | U146: =LOOKUP(T146,Paramètres!$A$3:$A$102,Paramètres!$B$3:$B$102) -> 0 | W146: =LOOKUP(V146,Paramètres!$A$3:$A$102,Paramètres!$B$3:$B$102) -> 0 | Y146: =LOOKUP(X146,Paramètres!$A$3:$A$102,Paramètres!$B$3:$B$102)*Paramètres!$H$5 -> 0 | Z146: =IFERROR(VLOOKUP(J146,Paramètres!$D$3:$E$7,2,FALSE),0)+IFERROR(VLOOKUP(L146,Paramètres!$D$3:$E$7,2,FALSE),0)+IFERROR(VLOOKUP(N146,Paramètres!$D$3:$E$7,2,FALSE),0)+IFERROR(VLOOKUP(P146,Paramètres!$D$3:$E$7,2,FALSE),0)+IFERROR(VLOOKUP(R146,Paramètres!$D$3:$E$7,2,FALSE),0)+IFERROR(VLOOKUP(T146,Paramètres!$D$3:$E$7,2,FALSE),0)+IFERROR(VLOOKUP(V146,Paramètres!$D$3:$E$7,2,FALSE),0)+IFERROR(VLOOKUP(X146,Paramètres!$D$3:$E$7,2,FALSE),0) -> 0 | AA146: 0 | AB146: |999|999|999|999|999|999|999|999 | AC146: 0
A147: 0 | C147: 0 | K147: =LOOKUP(J147,Paramètres!$A$3:$A$102,Paramètres!$B$3:$B$102) -> 0 | M147: =LOOKUP(L147,Paramètres!$A$3:$A$102,Paramètres!$B$3:$B$102) -> 0 | O147: =LOOKUP(N147,Paramètres!$A$3:$A$102,Paramètres!$B$3:$B$102) -> 0 | Q147: =LOOKUP(P147,Paramètres!$A$3:$A$102,Paramètres!$B$3:$B$102) -> 0 | S147: =LOOKUP(R147,Paramètres!$A$3:$A$102,Paramètres!$B$3:$B$102) -> 0 | U147: =LOOKUP(T147,Paramètres!$A$3:$A$102,Paramètres!$B$3:$B$102) -> 0 | W147: =LOOKUP(V147,Paramètres!$A$3:$A$102,Paramètres!$B$3:$B$102) -> 0 | Y147: =LOOKUP(X147,Paramètres!$A$3:$A$102,Paramètres!$B$3:$B$102)*Paramètres!$H$5 -> 0 | Z147: =IFERROR(VLOOKUP(J147,Paramètres!$D$3:$E$7,2,FALSE),0)+IFERROR(VLOOKUP(L147,Paramètres!$D$3:$E$7,2,FALSE),0)+IFERROR(VLOOKUP(N147,Paramètres!$D$3:$E$7,2,FALSE),0)+IFERROR(VLOOKUP(P147,Paramètres!$D$3:$E$7,2,FALSE),0)+IFERROR(VLOOKUP(R147,Paramètres!$D$3:$E$7,2,FALSE),0)+IFERROR(VLOOKUP(T147,Paramètres!$D$3:$E$7,2,FALSE),0)+IFERROR(VLOOKUP(V147,Paramètres!$D$3:$E$7,2,FALSE),0)+IFERROR(VLOOKUP(X147,Paramètres!$D$3:$E$7,2,FALSE),0) -> 0 | AA147: 0 | AB147: |999|999|999|999|999|999|999|999 | AC147: 0
A148: 0 | C148: 0 | K148: =LOOKUP(J148,Paramètres!$A$3:$A$102,Paramètres!$B$3:$B$102) -> 0 | M148: =LOOKUP(L148,Paramètres!$A$3:$A$102,Paramètres!$B$3:$B$102) -> 0 | O148: =LOOKUP(N148,Paramètres!$A$3:$A$102,Paramètres!$B$3:$B$102) -> 0 | Q148: =LOOKUP(P148,Paramètres!$A$3:$A$102,Paramètres!$B$3:$B$102) -> 0 | S148: =LOOKUP(R148,Paramètres!$A$3:$A$102,Paramètres!$B$3:$B$102) -> 0 | U148: =LOOKUP(T148,Paramètres!$A$3:$A$102,Paramètres!$B$3:$B$102) -> 0 | W148: =LOOKUP(V148,Paramètres!$A$3:$A$102,Paramètres!$B$3:$B$102) -> 0 | Y148: =LOOKUP(X148,Paramètres!$A$3:$A$102,Paramètres!$B$3:$B$102)*Paramètres!$H$5 -> 0 | Z148: =IFERROR(VLOOKUP(J148,Paramètres!$D$3:$E$7,2,FALSE),0)+IFERROR(VLOOKUP(L148,Paramètres!$D$3:$E$7,2,FALSE),0)+IFERROR(VLOOKUP(N148,Paramètres!$D$3:$E$7,2,FALSE),0)+IFERROR(VLOOKUP(P148,Paramètres!$D$3:$E$7,2,FALSE),0)+IFERROR(VLOOKUP(R148,Paramètres!$D$3:$E$7,2,FALSE),0)+IFERROR(VLOOKUP(T148,Paramètres!$D$3:$E$7,2,FALSE),0)+IFERROR(VLOOKUP(V148,Paramètres!$D$3:$E$7,2,FALSE),0)+IFERROR(VLOOKUP(X148,Paramètres!$D$3:$E$7,2,FALSE),0) -> 0 | AA148: 0 | AB148: |999|999|999|999|999|999|999|999 | AC148: 0
A149: 0 | C149: 0 | K149: =LOOKUP(J149,Paramètres!$A$3:$A$102,Paramètres!$B$3:$B$102) -> 0 | M149: =LOOKUP(L149,Paramètres!$A$3:$A$102,Paramètres!$B$3:$B$102) -> 0 | O149: =LOOKUP(N149,Paramètres!$A$3:$A$102,Paramètres!$B$3:$B$102) -> 0 | Q149: =LOOKUP(P149,Paramètres!$A$3:$A$102,Paramètres!$B$3:$B$102) -> 0 | S149: =LOOKUP(R149,Paramètres!$A$3:$A$102,Paramètres!$B$3:$B$102) -> 0 | U149: =LOOKUP(T149,Paramètres!$A$3:$A$102,Paramètres!$B$3:$B$102) -> 0 | W149: =LOOKUP(V149,Paramètres!$A$3:$A$102,Paramètres!$B$3:$B$102) -> 0 | Y149: =LOOKUP(X149,Paramètres!$A$3:$A$102,Paramètres!$B$3:$B$102)*Paramètres!$H$5 -> 0 | Z149: =IFERROR(VLOOKUP(J149,Paramètres!$D$3:$E$7,2,FALSE),0)+IFERROR(VLOOKUP(L149,Paramètres!$D$3:$E$7,2,FALSE),0)+IFERROR(VLOOKUP(N149,Paramètres!$D$3:$E$7,2,FALSE),0)+IFERROR(VLOOKUP(P149,Paramètres!$D$3:$E$7,2,FALSE),0)+IFERROR(VLOOKUP(R149,Paramètres!$D$3:$E$7,2,FALSE),0)+IFERROR(VLOOKUP(T149,Paramètres!$D$3:$E$7,2,FALSE),0)+IFERROR(VLOOKUP(V149,Paramètres!$D$3:$E$7,2,FALSE),0)+IFERROR(VLOOKUP(X149,Paramètres!$D$3:$E$7,2,FALSE),0) -> 0 | AA149: 0 | AB149: |999|999|999|999|999|999|999|999 | AC149: 0
A150: 0 | C150: 0 | K150: =LOOKUP(J150,Paramètres!$A$3:$A$102,Paramètres!$B$3:$B$102) -> 0 | M150: =LOOKUP(L150,Paramètres!$A$3:$A$102,Paramètres!$B$3:$B$102) -> 0 | O150: =LOOKUP(N150,Paramètres!$A$3:$A$102,Paramètres!$B$3:$B$102) -> 0 | Q150: =LOOKUP(P150,Paramètres!$A$3:$A$102,Paramètres!$B$3:$B$102) -> 0 | S150: =LOOKUP(R150,Paramètres!$A$3:$A$102,Paramètres!$B$3:$B$102) -> 0 | U150: =LOOKUP(T150,Paramètres!$A$3:$A$102,Paramètres!$B$3:$B$102) -> 0 | W150: =LOOKUP(V150,Paramètres!$A$3:$A$102,Paramètres!$B$3:$B$102) -> 0 | Y150: =LOOKUP(X150,Paramètres!$A$3:$A$102,Paramètres!$B$3:$B$102)*Paramètres!$H$5 -> 0 | Z150: =IFERROR(VLOOKUP(J150,Paramètres!$D$3:$E$7,2,FALSE),0)+IFERROR(VLOOKUP(L150,Paramètres!$D$3:$E$7,2,FALSE),0)+IFERROR(VLOOKUP(N150,Paramètres!$D$3:$E$7,2,FALSE),0)+IFERROR(VLOOKUP(P150,Paramètres!$D$3:$E$7,2,FALSE),0)+IFERROR(VLOOKUP(R150,Paramètres!$D$3:$E$7,2,FALSE),0)+IFERROR(VLOOKUP(T150,Paramètres!$D$3:$E$7,2,FALSE),0)+IFERROR(VLOOKUP(V150,Paramètres!$D$3:$E$7,2,FALSE),0)+IFERROR(VLOOKUP(X150,Paramètres!$D$3:$E$7,2,FALSE),0) -> 0 | AA150: =MINA(K150,M150,O150,S150,Y150,U150,W150,Q150) -> 0 | AB150: |999|999|999|999|999|999|999|999 | AC150: 0
A151: 0 | C151: 0 | K151: =LOOKUP(J151,Paramètres!$A$3:$A$102,Paramètres!$B$3:$B$102) -> 0 | M151: =LOOKUP(L151,Paramètres!$A$3:$A$102,Paramètres!$B$3:$B$102) -> 0 | O151: =LOOKUP(N151,Paramètres!$A$3:$A$102,Paramètres!$B$3:$B$102) -> 0 | Q151: =LOOKUP(P151,Paramètres!$A$3:$A$102,Paramètres!$B$3:$B$102) -> 0 | S151: =LOOKUP(R151,Paramètres!$A$3:$A$102,Paramètres!$B$3:$B$102) -> 0 | U151: =LOOKUP(T151,Paramètres!$A$3:$A$102,Paramètres!$B$3:$B$102) -> 0 | W151: =LOOKUP(V151,Paramètres!$A$3:$A$102,Paramètres!$B$3:$B$102) -> 0 | Y151: =LOOKUP(X151,Paramètres!$A$3:$A$102,Paramètres!$B$3:$B$102)*Paramètres!$H$5 -> 0 | Z151: =IFERROR(VLOOKUP(J151,Paramètres!$D$3:$E$7,2,FALSE),0)+IFERROR(VLOOKUP(L151,Paramètres!$D$3:$E$7,2,FALSE),0)+IFERROR(VLOOKUP(N151,Paramètres!$D$3:$E$7,2,FALSE),0)+IFERROR(VLOOKUP(P151,Paramètres!$D$3:$E$7,2,FALSE),0)+IFERROR(VLOOKUP(R151,Paramètres!$D$3:$E$7,2,FALSE),0)+IFERROR(VLOOKUP(T151,Paramètres!$D$3:$E$7,2,FALSE),0)+IFERROR(VLOOKUP(V151,Paramètres!$D$3:$E$7,2,FALSE),0)+IFERROR(VLOOKUP(X151,Paramètres!$D$3:$E$7,2,FALSE),0) -> 0 | AA151: 0 | AB151: |999|999|999|999|999|999|999|999 | AC151: 0
A152: 0 | C152: 0 | K152: =LOOKUP(J152,Paramètres!$A$3:$A$102,Paramètres!$B$3:$B$102) -> 0 | M152: =LOOKUP(L152,Paramètres!$A$3:$A$102,Paramètres!$B$3:$B$102) -> 0 | O152: =LOOKUP(N152,Paramètres!$A$3:$A$102,Paramètres!$B$3:$B$102) -> 0 | Q152: =LOOKUP(P152,Paramètres!$A$3:$A$102,Paramètres!$B$3:$B$102) -> 0 | S152: =LOOKUP(R152,Paramètres!$A$3:$A$102,Paramètres!$B$3:$B$102) -> 0 | U152: =LOOKUP(T152,Paramètres!$A$3:$A$102,Paramètres!$B$3:$B$102) -> 0 | W152: =LOOKUP(V152,Paramètres!$A$3:$A$102,Paramètres!$B$3:$B$102) -> 0 | Y152: =LOOKUP(X152,Paramètres!$A$3:$A$102,Paramètres!$B$3:$B$102)*Paramètres!$H$5 -> 0 | Z152: =IFERROR(VLOOKUP(J152,Paramètres!$D$3:$E$7,2,FALSE),0)+IFERROR(VLOOKUP(L152,Paramètres!$D$3:$E$7,2,FALSE),0)+IFERROR(VLOOKUP(N152,Paramètres!$D$3:$E$7,2,FALSE),0)+IFERROR(VLOOKUP(P152,Paramètres!$D$3:$E$7,2,FALSE),0)+IFERROR(VLOOKUP(R152,Paramètres!$D$3:$E$7,2,FALSE),0)+IFERROR(VLOOKUP(T152,Paramètres!$D$3:$E$7,2,FALSE),0)+IFERROR(VLOOKUP(V152,Paramètres!$D$3:$E$7,2,FALSE),0)+IFERROR(VLOOKUP(X152,Paramètres!$D$3:$E$7,2,FALSE),0) -> 0 | AA152: 0 | AB152: |999|999|999|999|999|999|999|999 | AC152: 0
A153: 0 | C153: 0 | K153: =LOOKUP(J153,Paramètres!$A$3:$A$102,Paramètres!$B$3:$B$102) -> 0 | M153: =LOOKUP(L153,Paramètres!$A$3:$A$102,Paramètres!$B$3:$B$102) -> 0 | O153: =LOOKUP(N153,Paramètres!$A$3:$A$102,Paramètres!$B$3:$B$102) -> 0 | Q153: =LOOKUP(P153,Paramètres!$A$3:$A$102,Paramètres!$B$3:$B$102) -> 0 | S153: =LOOKUP(R153,Paramètres!$A$3:$A$102,Paramètres!$B$3:$B$102) -> 0 | U153: =LOOKUP(T153,Paramètres!$A$3:$A$102,Paramètres!$B$3:$B$102) -> 0 | W153: =LOOKUP(V153,Paramètres!$A$3:$A$102,Paramètres!$B$3:$B$102) -> 0 | Y153: =LOOKUP(X153,Paramètres!$A$3:$A$102,Paramètres!$B$3:$B$102)*Paramètres!$H$5 -> 0 | Z153: =IFERROR(VLOOKUP(J153,Paramètres!$D$3:$E$7,2,FALSE),0)+IFERROR(VLOOKUP(L153,Paramètres!$D$3:$E$7,2,FALSE),0)+IFERROR(VLOOKUP(N153,Paramètres!$D$3:$E$7,2,FALSE),0)+IFERROR(VLOOKUP(P153,Paramètres!$D$3:$E$7,2,FALSE),0)+IFERROR(VLOOKUP(R153,Paramètres!$D$3:$E$7,2,FALSE),0)+IFERROR(VLOOKUP(T153,Paramètres!$D$3:$E$7,2,FALSE),0)+IFERROR(VLOOKUP(V153,Paramètres!$D$3:$E$7,2,FALSE),0)+IFERROR(VLOOKUP(X153,Paramètres!$D$3:$E$7,2,FALSE),0) -> 0 | AA153: 0 | AB153: |999|999|999|999|999|999|999|999 | AC153: 0
A154: 0 | C154: 0 | K154: =LOOKUP(J154,Paramètres!$A$3:$A$102,Paramètres!$B$3:$B$102) -> 0 | M154: =LOOKUP(L154,Paramètres!$A$3:$A$102,Paramètres!$B$3:$B$102) -> 0 | O154: =LOOKUP(N154,Paramètres!$A$3:$A$102,Paramètres!$B$3:$B$102) -> 0 | Q154: =LOOKUP(P154,Paramètres!$A$3:$A$102,Paramètres!$B$3:$B$102) -> 0 | S154: =LOOKUP(R154,Paramètres!$A$3:$A$102,Paramètres!$B$3:$B$102) -> 0 | U154: =LOOKUP(T154,Paramètres!$A$3:$A$102,Paramètres!$B$3:$B$102) -> 0 | W154: =LOOKUP(V154,Paramètres!$A$3:$A$102,Paramètres!$B$3:$B$102) -> 0 | Y154: =LOOKUP(X154,Paramètres!$A$3:$A$102,Paramètres!$B$3:$B$102)*Paramètres!$H$5 -> 0 | Z154: =IFERROR(VLOOKUP(J154,Paramètres!$D$3:$E$7,2,FALSE),0)+IFERROR(VLOOKUP(L154,Paramètres!$D$3:$E$7,2,FALSE),0)+IFERROR(VLOOKUP(N154,Paramètres!$D$3:$E$7,2,FALSE),0)+IFERROR(VLOOKUP(P154,Paramètres!$D$3:$E$7,2,FALSE),0)+IFERROR(VLOOKUP(R154,Paramètres!$D$3:$E$7,2,FALSE),0)+IFERROR(VLOOKUP(T154,Paramètres!$D$3:$E$7,2,FALSE),0)+IFERROR(VLOOKUP(V154,Paramètres!$D$3:$E$7,2,FALSE),0)+IFERROR(VLOOKUP(X154,Paramètres!$D$3:$E$7,2,FALSE),0) -> 0 | AA154: 0 | AB154: |999|999|999|999|999|999|999|999 | AC154: 0
A155: 0 | C155: 0 | K155: =LOOKUP(J155,Paramètres!$A$3:$A$102,Paramètres!$B$3:$B$102) -> 0 | M155: =LOOKUP(L155,Paramètres!$A$3:$A$102,Paramètres!$B$3:$B$102) -> 0 | O155: =LOOKUP(N155,Paramètres!$A$3:$A$102,Paramètres!$B$3:$B$102) -> 0 | Q155: =LOOKUP(P155,Paramètres!$A$3:$A$102,Paramètres!$B$3:$B$102) -> 0 | S155: =LOOKUP(R155,Paramètres!$A$3:$A$102,Paramètres!$B$3:$B$102) -> 0 | U155: =LOOKUP(T155,Paramètres!$A$3:$A$102,Paramètres!$B$3:$B$102) -> 0 | W155: =LOOKUP(V155,Paramètres!$A$3:$A$102,Paramètres!$B$3:$B$102) -> 0 | Y155: =LOOKUP(X155,Paramètres!$A$3:$A$102,Paramètres!$B$3:$B$102)*Paramètres!$H$5 -> 0 | Z155: =IFERROR(VLOOKUP(J155,Paramètres!$D$3:$E$7,2,FALSE),0)+IFERROR(VLOOKUP(L155,Paramètres!$D$3:$E$7,2,FALSE),0)+IFERROR(VLOOKUP(N155,Paramètres!$D$3:$E$7,2,FALSE),0)+IFERROR(VLOOKUP(P155,Paramètres!$D$3:$E$7,2,FALSE),0)+IFERROR(VLOOKUP(R155,Paramètres!$D$3:$E$7,2,FALSE),0)+IFERROR(VLOOKUP(T155,Paramètres!$D$3:$E$7,2,FALSE),0)+IFERROR(VLOOKUP(V155,Paramètres!$D$3:$E$7,2,FALSE),0)+IFERROR(VLOOKUP(X155,Paramètres!$D$3:$E$7,2,FALSE),0) -> 0 | AA155: 0 | AB155: |999|999|999|999|999|999|999|999 | AC155: 0
A156: 0 | C156: 0 | K156: =LOOKUP(J156,Paramètres!$A$3:$A$102,Paramètres!$B$3:$B$102) -> 0 | M156: =LOOKUP(L156,Paramètres!$A$3:$A$102,Paramètres!$B$3:$B$102) -> 0 | O156: =LOOKUP(N156,Paramètres!$A$3:$A$102,Paramètres!$B$3:$B$102) -> 0 | Q156: =LOOKUP(P156,Paramètres!$A$3:$A$102,Paramètres!$B$3:$B$102) -> 0 | S156: =LOOKUP(R156,Paramètres!$A$3:$A$102,Paramètres!$B$3:$B$102) -> 0 | U156: =LOOKUP(T156,Paramètres!$A$3:$A$102,Paramètres!$B$3:$B$102) -> 0 | W156: =LOOKUP(V156,Paramètres!$A$3:$A$102,Paramètres!$B$3:$B$102) -> 0 | Y156: =LOOKUP(X156,Paramètres!$A$3:$A$102,Paramètres!$B$3:$B$102)*Paramètres!$H$5 -> 0 | Z156: =IFERROR(VLOOKUP(J156,Paramètres!$D$3:$E$7,2,FALSE),0)+IFERROR(VLOOKUP(L156,Paramètres!$D$3:$E$7,2,FALSE),0)+IFERROR(VLOOKUP(N156,Paramètres!$D$3:$E$7,2,FALSE),0)+IFERROR(VLOOKUP(P156,Paramètres!$D$3:$E$7,2,FALSE),0)+IFERROR(VLOOKUP(R156,Paramètres!$D$3:$E$7,2,FALSE),0)+IFERROR(VLOOKUP(T156,Paramètres!$D$3:$E$7,2,FALSE),0)+IFERROR(VLOOKUP(V156,Paramètres!$D$3:$E$7,2,FALSE),0)+IFERROR(VLOOKUP(X156,Paramètres!$D$3:$E$7,2,FALSE),0) -> 0 | AA156: 0 | AB156: |999|999|999|999|999|999|999|999 | AC156: 0
A157: 0 | C157: 0 | K157: =LOOKUP(J157,Paramètres!$A$3:$A$102,Paramètres!$B$3:$B$102) -> 0 | M157: =LOOKUP(L157,Paramètres!$A$3:$A$102,Paramètres!$B$3:$B$102) -> 0 | O157: =LOOKUP(N157,Paramètres!$A$3:$A$102,Paramètres!$B$3:$B$102) -> 0 | Q157: =LOOKUP(P157,Paramètres!$A$3:$A$102,Paramètres!$B$3:$B$102) -> 0 | S157: =LOOKUP(R157,Paramètres!$A$3:$A$102,Paramètres!$B$3:$B$102) -> 0 | U157: =LOOKUP(T157,Paramètres!$A$3:$A$102,Paramètres!$B$3:$B$102) -> 0 | W157: =LOOKUP(V157,Paramètres!$A$3:$A$102,Paramètres!$B$3:$B$102) -> 0 | Y157: =LOOKUP(X157,Paramètres!$A$3:$A$102,Paramètres!$B$3:$B$102)*Paramètres!$H$5 -> 0 | Z157: =IFERROR(VLOOKUP(J157,Paramètres!$D$3:$E$7,2,FALSE),0)+IFERROR(VLOOKUP(L157,Paramètres!$D$3:$E$7,2,FALSE),0)+IFERROR(VLOOKUP(N157,Paramètres!$D$3:$E$7,2,FALSE),0)+IFERROR(VLOOKUP(P157,Paramètres!$D$3:$E$7,2,FALSE),0)+IFERROR(VLOOKUP(R157,Paramètres!$D$3:$E$7,2,FALSE),0)+IFERROR(VLOOKUP(T157,Paramètres!$D$3:$E$7,2,FALSE),0)+IFERROR(VLOOKUP(V157,Paramètres!$D$3:$E$7,2,FALSE),0)+IFERROR(VLOOKUP(X157,Paramètres!$D$3:$E$7,2,FALSE),0) -> 0 | AA157: 0 | AB157: |999|999|999|999|999|999|999|999 | AC157: 0
A158: 0 | C158: 0 | K158: =LOOKUP(J158,Paramètres!$A$3:$A$102,Paramètres!$B$3:$B$102) -> 0 | M158: =LOOKUP(L158,Paramètres!$A$3:$A$102,Paramètres!$B$3:$B$102) -> 0 | O158: =LOOKUP(N158,Paramètres!$A$3:$A$102,Paramètres!$B$3:$B$102) -> 0 | Q158: =LOOKUP(P158,Paramètres!$A$3:$A$102,Paramètres!$B$3:$B$102) -> 0 | S158: =LOOKUP(R158,Paramètres!$A$3:$A$102,Paramètres!$B$3:$B$102) -> 0 | U158: =LOOKUP(T158,Paramètres!$A$3:$A$102,Paramètres!$B$3:$B$102) -> 0 | W158: =LOOKUP(V158,Paramètres!$A$3:$A$102,Paramètres!$B$3:$B$102) -> 0 | Y158: =LOOKUP(X158,Paramètres!$A$3:$A$102,Paramètres!$B$3:$B$102)*Paramètres!$H$5 -> 0 | Z158: =IFERROR(VLOOKUP(J158,Paramètres!$D$3:$E$7,2,FALSE),0)+IFERROR(VLOOKUP(L158,Paramètres!$D$3:$E$7,2,FALSE),0)+IFERROR(VLOOKUP(N158,Paramètres!$D$3:$E$7,2,FALSE),0)+IFERROR(VLOOKUP(P158,Paramètres!$D$3:$E$7,2,FALSE),0)+IFERROR(VLOOKUP(R158,Paramètres!$D$3:$E$7,2,FALSE),0)+IFERROR(VLOOKUP(T158,Paramètres!$D$3:$E$7,2,FALSE),0)+IFERROR(VLOOKUP(V158,Paramètres!$D$3:$E$7,2,FALSE),0)+IFERROR(VLOOKUP(X158,Paramètres!$D$3:$E$7,2,FALSE),0) -> 0 | AA158: 0 | AB158: |999|999|999|999|999|999|999|999 | AC158: 0
A159: 0 | C159: 0 | K159: =LOOKUP(J159,Paramètres!$A$3:$A$102,Paramètres!$B$3:$B$102) -> 0 | M159: =LOOKUP(L159,Paramètres!$A$3:$A$102,Paramètres!$B$3:$B$102) -> 0 | O159: =LOOKUP(N159,Paramètres!$A$3:$A$102,Paramètres!$B$3:$B$102) -> 0 | Q159: =LOOKUP(P159,Paramètres!$A$3:$A$102,Paramètres!$B$3:$B$102) -> 0 | S159: =LOOKUP(R159,Paramètres!$A$3:$A$102,Paramètres!$B$3:$B$102) -> 0 | U159: =LOOKUP(T159,Paramètres!$A$3:$A$102,Paramètres!$B$3:$B$102) -> 0 | W159: =LOOKUP(V159,Paramètres!$A$3:$A$102,Paramètres!$B$3:$B$102) -> 0 | Y159: =LOOKUP(X159,Paramètres!$A$3:$A$102,Paramètres!$B$3:$B$102)*Paramètres!$H$5 -> 0 | Z159: =IFERROR(VLOOKUP(J159,Paramètres!$D$3:$E$7,2,FALSE),0)+IFERROR(VLOOKUP(L159,Paramètres!$D$3:$E$7,2,FALSE),0)+IFERROR(VLOOKUP(N159,Paramètres!$D$3:$E$7,2,FALSE),0)+IFERROR(VLOOKUP(P159,Paramètres!$D$3:$E$7,2,FALSE),0)+IFERROR(VLOOKUP(R159,Paramètres!$D$3:$E$7,2,FALSE),0)+IFERROR(VLOOKUP(T159,Paramètres!$D$3:$E$7,2,FALSE),0)+IFERROR(VLOOKUP(V159,Paramètres!$D$3:$E$7,2,FALSE),0)+IFERROR(VLOOKUP(X159,Paramètres!$D$3:$E$7,2,FALSE),0) -> 0 | AA159: 0 | AB159: |999|999|999|999|999|999|999|999 | AC159: 0
A160: 0 | C160: 0 | K160: =LOOKUP(J160,Paramètres!$A$3:$A$102,Paramètres!$B$3:$B$102) -> 0 | M160: =LOOKUP(L160,Paramètres!$A$3:$A$102,Paramètres!$B$3:$B$102) -> 0 | O160: =LOOKUP(N160,Paramètres!$A$3:$A$102,Paramètres!$B$3:$B$102) -> 0 | Q160: =LOOKUP(P160,Paramètres!$A$3:$A$102,Paramètres!$B$3:$B$102) -> 0 | S160: =LOOKUP(R160,Paramètres!$A$3:$A$102,Paramètres!$B$3:$B$102) -> 0 | U160: =LOOKUP(T160,Paramètres!$A$3:$A$102,Paramètres!$B$3:$B$102) -> 0 | W160: =LOOKUP(V160,Paramètres!$A$3:$A$102,Paramètres!$B$3:$B$102) -> 0 | Y160: =LOOKUP(X160,Paramètres!$A$3:$A$102,Paramètres!$B$3:$B$102)*Paramètres!$H$5 -> 0 | Z160: =IFERROR(VLOOKUP(J160,Paramètres!$D$3:$E$7,2,FALSE),0)+IFERROR(VLOOKUP(L160,Paramètres!$D$3:$E$7,2,FALSE),0)+IFERROR(VLOOKUP(N160,Paramètres!$D$3:$E$7,2,FALSE),0)+IFERROR(VLOOKUP(P160,Paramètres!$D$3:$E$7,2,FALSE),0)+IFERROR(VLOOKUP(R160,Paramètres!$D$3:$E$7,2,FALSE),0)+IFERROR(VLOOKUP(T160,Paramètres!$D$3:$E$7,2,FALSE),0)+IFERROR(VLOOKUP(V160,Paramètres!$D$3:$E$7,2,FALSE),0)+IFERROR(VLOOKUP(X160,Paramètres!$D$3:$E$7,2,FALSE),0) -> 0 | AA160: 0 | AB160: |999|999|999|999|999|999|999|999 | AC160: 0
A161: 0 | C161: 0 | K161: =LOOKUP(J161,Paramètres!$A$3:$A$102,Paramètres!$B$3:$B$102) -> 0 | M161: =LOOKUP(L161,Paramètres!$A$3:$A$102,Paramètres!$B$3:$B$102) -> 0 | O161: =LOOKUP(N161,Paramètres!$A$3:$A$102,Paramètres!$B$3:$B$102) -> 0 | Q161: =LOOKUP(P161,Paramètres!$A$3:$A$102,Paramètres!$B$3:$B$102) -> 0 | S161: =LOOKUP(R161,Paramètres!$A$3:$A$102,Paramètres!$B$3:$B$102) -> 0 | U161: =LOOKUP(T161,Paramètres!$A$3:$A$102,Paramètres!$B$3:$B$102) -> 0 | W161: =LOOKUP(V161,Paramètres!$A$3:$A$102,Paramètres!$B$3:$B$102) -> 0 | Y161: =LOOKUP(X161,Paramètres!$A$3:$A$102,Paramètres!$B$3:$B$102)*Paramètres!$H$5 -> 0 | Z161: =IFERROR(VLOOKUP(J161,Paramètres!$D$3:$E$7,2,FALSE),0)+IFERROR(VLOOKUP(L161,Paramètres!$D$3:$E$7,2,FALSE),0)+IFERROR(VLOOKUP(N161,Paramètres!$D$3:$E$7,2,FALSE),0)+IFERROR(VLOOKUP(P161,Paramètres!$D$3:$E$7,2,FALSE),0)+IFERROR(VLOOKUP(R161,Paramètres!$D$3:$E$7,2,FALSE),0)+IFERROR(VLOOKUP(T161,Paramètres!$D$3:$E$7,2,FALSE),0)+IFERROR(VLOOKUP(V161,Paramètres!$D$3:$E$7,2,FALSE),0)+IFERROR(VLOOKUP(X161,Paramètres!$D$3:$E$7,2,FALSE),0) -> 0 | AA161: 0 | AB161: |999|999|999|999|999|999|999|999 | AC161: 0
A162: 0 | C162: 0 | K162: =LOOKUP(J162,Paramètres!$A$3:$A$102,Paramètres!$B$3:$B$102) -> 0 | M162: =LOOKUP(L162,Paramètres!$A$3:$A$102,Paramètres!$B$3:$B$102) -> 0 | O162: =LOOKUP(N162,Paramètres!$A$3:$A$102,Paramètres!$B$3:$B$102) -> 0 | Q162: =LOOKUP(P162,Paramètres!$A$3:$A$102,Paramètres!$B$3:$B$102) -> 0 | S162: =LOOKUP(R162,Paramètres!$A$3:$A$102,Paramètres!$B$3:$B$102) -> 0 | U162: =LOOKUP(T162,Paramètres!$A$3:$A$102,Paramètres!$B$3:$B$102) -> 0 | W162: =LOOKUP(V162,Paramètres!$A$3:$A$102,Paramètres!$B$3:$B$102) -> 0 | Y162: =LOOKUP(X162,Paramètres!$A$3:$A$102,Paramètres!$B$3:$B$102)*Paramètres!$H$5 -> 0 | Z162: =IFERROR(VLOOKUP(J162,Paramètres!$D$3:$E$7,2,FALSE),0)+IFERROR(VLOOKUP(L162,Paramètres!$D$3:$E$7,2,FALSE),0)+IFERROR(VLOOKUP(N162,Paramètres!$D$3:$E$7,2,FALSE),0)+IFERROR(VLOOKUP(P162,Paramètres!$D$3:$E$7,2,FALSE),0)+IFERROR(VLOOKUP(R162,Paramètres!$D$3:$E$7,2,FALSE),0)+IFERROR(VLOOKUP(T162,Paramètres!$D$3:$E$7,2,FALSE),0)+IFERROR(VLOOKUP(V162,Paramètres!$D$3:$E$7,2,FALSE),0)+IFERROR(VLOOKUP(X162,Paramètres!$D$3:$E$7,2,FALSE),0) -> 0 | AA162: 0 | AB162: |999|999|999|999|999|999|999|999 | AC162: 0
A163: 0 | C163: 0 | K163: =LOOKUP(J163,Paramètres!$A$3:$A$102,Paramètres!$B$3:$B$102) -> 0 | M163: =LOOKUP(L163,Paramètres!$A$3:$A$102,Paramètres!$B$3:$B$102) -> 0 | O163: =LOOKUP(N163,Paramètres!$A$3:$A$102,Paramètres!$B$3:$B$102) -> 0 | Q163: =LOOKUP(P163,Paramètres!$A$3:$A$102,Paramètres!$B$3:$B$102) -> 0 | S163: =LOOKUP(R163,Paramètres!$A$3:$A$102,Paramètres!$B$3:$B$102) -> 0 | U163: =LOOKUP(T163,Paramètres!$A$3:$A$102,Paramètres!$B$3:$B$102) -> 0 | W163: =LOOKUP(V163,Paramètres!$A$3:$A$102,Paramètres!$B$3:$B$102) -> 0 | Y163: =LOOKUP(X163,Paramètres!$A$3:$A$102,Paramètres!$B$3:$B$102)*Paramètres!$H$5 -> 0 | Z163: =IFERROR(VLOOKUP(J163,Paramètres!$D$3:$E$7,2,FALSE),0)+IFERROR(VLOOKUP(L163,Paramètres!$D$3:$E$7,2,FALSE),0)+IFERROR(VLOOKUP(N163,Paramètres!$D$3:$E$7,2,FALSE),0)+IFERROR(VLOOKUP(P163,Paramètres!$D$3:$E$7,2,FALSE),0)+IFERROR(VLOOKUP(R163,Paramètres!$D$3:$E$7,2,FALSE),0)+IFERROR(VLOOKUP(T163,Paramètres!$D$3:$E$7,2,FALSE),0)+IFERROR(VLOOKUP(V163,Paramètres!$D$3:$E$7,2,FALSE),0)+IFERROR(VLOOKUP(X163,Paramètres!$D$3:$E$7,2,FALSE),0) -> 0 | AA163: 0 | AB163: |999|999|999|999|999|999|999|999 | AC163: 0
A164: 0 | C164: 0 | K164: =LOOKUP(J164,Paramètres!$A$3:$A$102,Paramètres!$B$3:$B$102) -> 0 | M164: =LOOKUP(L164,Paramètres!$A$3:$A$102,Paramètres!$B$3:$B$102) -> 0 | O164: =LOOKUP(N164,Paramètres!$A$3:$A$102,Paramètres!$B$3:$B$102) -> 0 | Q164: =LOOKUP(P164,Paramètres!$A$3:$A$102,Paramètres!$B$3:$B$102) -> 0 | S164: =LOOKUP(R164,Paramètres!$A$3:$A$102,Paramètres!$B$3:$B$102) -> 0 | U164: =LOOKUP(T164,Paramètres!$A$3:$A$102,Paramètres!$B$3:$B$102) -> 0 | W164: =LOOKUP(V164,Paramètres!$A$3:$A$102,Paramètres!$B$3:$B$102) -> 0 | Y164: =LOOKUP(X164,Paramètres!$A$3:$A$102,Paramètres!$B$3:$B$102)*Paramètres!$H$5 -> 0 | Z164: =IFERROR(VLOOKUP(J164,Paramètres!$D$3:$E$7,2,FALSE),0)+IFERROR(VLOOKUP(L164,Paramètres!$D$3:$E$7,2,FALSE),0)+IFERROR(VLOOKUP(N164,Paramètres!$D$3:$E$7,2,FALSE),0)+IFERROR(VLOOKUP(P164,Paramètres!$D$3:$E$7,2,FALSE),0)+IFERROR(VLOOKUP(R164,Paramètres!$D$3:$E$7,2,FALSE),0)+IFERROR(VLOOKUP(T164,Paramètres!$D$3:$E$7,2,FALSE),0)+IFERROR(VLOOKUP(V164,Paramètres!$D$3:$E$7,2,FALSE),0)+IFERROR(VLOOKUP(X164,Paramètres!$D$3:$E$7,2,FALSE),0) -> 0 | AA164: 0 | AB164: |999|999|999|999|999|999|999|999 | AC164: 0
A165: 0 | C165: 0 | K165: =LOOKUP(J165,Paramètres!$A$3:$A$102,Paramètres!$B$3:$B$102) -> 0 | M165: =LOOKUP(L165,Paramètres!$A$3:$A$102,Paramètres!$B$3:$B$102) -> 0 | O165: =LOOKUP(N165,Paramètres!$A$3:$A$102,Paramètres!$B$3:$B$102) -> 0 | Q165: =LOOKUP(P165,Paramètres!$A$3:$A$102,Paramètres!$B$3:$B$102) -> 0 | S165: =LOOKUP(R165,Paramètres!$A$3:$A$102,Paramètres!$B$3:$B$102) -> 0 | U165: =LOOKUP(T165,Paramètres!$A$3:$A$102,Paramètres!$B$3:$B$102) -> 0 | W165: =LOOKUP(V165,Paramètres!$A$3:$A$102,Paramètres!$B$3:$B$102) -> 0 | Y165: =LOOKUP(X165,Paramètres!$A$3:$A$102,Paramètres!$B$3:$B$102)*Paramètres!$H$5 -> 0 | Z165: =IFERROR(VLOOKUP(J165,Paramètres!$D$3:$E$7,2,FALSE),0)+IFERROR(VLOOKUP(L165,Paramètres!$D$3:$E$7,2,FALSE),0)+IFERROR(VLOOKUP(N165,Paramètres!$D$3:$E$7,2,FALSE),0)+IFERROR(VLOOKUP(P165,Paramètres!$D$3:$E$7,2,FALSE),0)+IFERROR(VLOOKUP(R165,Paramètres!$D$3:$E$7,2,FALSE),0)+IFERROR(VLOOKUP(T165,Paramètres!$D$3:$E$7,2,FALSE),0)+IFERROR(VLOOKUP(V165,Paramètres!$D$3:$E$7,2,FALSE),0)+IFERROR(VLOOKUP(X165,Paramètres!$D$3:$E$7,2,FALSE),0) -> 0 | AA165: 0 | AB165: |999|999|999|999|999|999|999|999 | AC165: 0
A166: 0 | C166: 0 | K166: =LOOKUP(J166,Paramètres!$A$3:$A$102,Paramètres!$B$3:$B$102) -> 0 | M166: =LOOKUP(L166,Paramètres!$A$3:$A$102,Paramètres!$B$3:$B$102) -> 0 | O166: =LOOKUP(N166,Paramètres!$A$3:$A$102,Paramètres!$B$3:$B$102) -> 0 | Q166: =LOOKUP(P166,Paramètres!$A$3:$A$102,Paramètres!$B$3:$B$102) -> 0 | S166: =LOOKUP(R166,Paramètres!$A$3:$A$102,Paramètres!$B$3:$B$102) -> 0 | U166: =LOOKUP(T166,Paramètres!$A$3:$A$102,Paramètres!$B$3:$B$102) -> 0 | W166: =LOOKUP(V166,Paramètres!$A$3:$A$102,Paramètres!$B$3:$B$102) -> 0 | Y166: =LOOKUP(X166,Paramètres!$A$3:$A$102,Paramètres!$B$3:$B$102)*Paramètres!$H$5 -> 0 | Z166: =IFERROR(VLOOKUP(J166,Paramètres!$D$3:$E$7,2,FALSE),0)+IFERROR(VLOOKUP(L166,Paramètres!$D$3:$E$7,2,FALSE),0)+IFERROR(VLOOKUP(N166,Paramètres!$D$3:$E$7,2,FALSE),0)+IFERROR(VLOOKUP(P166,Paramètres!$D$3:$E$7,2,FALSE),0)+IFERROR(VLOOKUP(R166,Paramètres!$D$3:$E$7,2,FALSE),0)+IFERROR(VLOOKUP(T166,Paramètres!$D$3:$E$7,2,FALSE),0)+IFERROR(VLOOKUP(V166,Paramètres!$D$3:$E$7,2,FALSE),0)+IFERROR(VLOOKUP(X166,Paramètres!$D$3:$E$7,2,FALSE),0) -> 0 | AA166: 0 | AB166: |999|999|999|999|999|999|999|999 | AC166: 0
A167: 0 | C167: 0 | K167: =LOOKUP(J167,Paramètres!$A$3:$A$102,Paramètres!$B$3:$B$102) -> 0 | M167: =LOOKUP(L167,Paramètres!$A$3:$A$102,Paramètres!$B$3:$B$102) -> 0 | O167: =LOOKUP(N167,Paramètres!$A$3:$A$102,Paramètres!$B$3:$B$102) -> 0 | Q167: =LOOKUP(P167,Paramètres!$A$3:$A$102,Paramètres!$B$3:$B$102) -> 0 | S167: =LOOKUP(R167,Paramètres!$A$3:$A$102,Paramètres!$B$3:$B$102) -> 0 | U167: =LOOKUP(T167,Paramètres!$A$3:$A$102,Paramètres!$B$3:$B$102) -> 0 | W167: =LOOKUP(V167,Paramètres!$A$3:$A$102,Paramètres!$B$3:$B$102) -> 0 | Y167: =LOOKUP(X167,Paramètres!$A$3:$A$102,Paramètres!$B$3:$B$102)*Paramètres!$H$5 -> 0 | Z167: =IFERROR(VLOOKUP(J167,Paramètres!$D$3:$E$7,2,FALSE),0)+IFERROR(VLOOKUP(L167,Paramètres!$D$3:$E$7,2,FALSE),0)+IFERROR(VLOOKUP(N167,Paramètres!$D$3:$E$7,2,FALSE),0)+IFERROR(VLOOKUP(P167,Paramètres!$D$3:$E$7,2,FALSE),0)+IFERROR(VLOOKUP(R167,Paramètres!$D$3:$E$7,2,FALSE),0)+IFERROR(VLOOKUP(T167,Paramètres!$D$3:$E$7,2,FALSE),0)+IFERROR(VLOOKUP(V167,Paramètres!$D$3:$E$7,2,FALSE),0)+IFERROR(VLOOKUP(X167,Paramètres!$D$3:$E$7,2,FALSE),0) -> 0 | AA167: 0 | AB167: |999|999|999|999|999|999|999|999 | AC167: 0
A168: 0 | C168: 0 | K168: =LOOKUP(J168,Paramètres!$A$3:$A$102,Paramètres!$B$3:$B$102) -> 0 | M168: =LOOKUP(L168,Paramètres!$A$3:$A$102,Paramètres!$B$3:$B$102) -> 0 | O168: =LOOKUP(N168,Paramètres!$A$3:$A$102,Paramètres!$B$3:$B$102) -> 0 | Q168: =LOOKUP(P168,Paramètres!$A$3:$A$102,Paramètres!$B$3:$B$102) -> 0 | S168: =LOOKUP(R168,Paramètres!$A$3:$A$102,Paramètres!$B$3:$B$102) -> 0 | U168: =LOOKUP(T168,Paramètres!$A$3:$A$102,Paramètres!$B$3:$B$102) -> 0 | W168: =LOOKUP(V168,Paramètres!$A$3:$A$102,Paramètres!$B$3:$B$102) -> 0 | Y168: =LOOKUP(X168,Paramètres!$A$3:$A$102,Paramètres!$B$3:$B$102)*Paramètres!$H$5 -> 0 | Z168: =IFERROR(VLOOKUP(J168,Paramètres!$D$3:$E$7,2,FALSE),0)+IFERROR(VLOOKUP(L168,Paramètres!$D$3:$E$7,2,FALSE),0)+IFERROR(VLOOKUP(N168,Paramètres!$D$3:$E$7,2,FALSE),0)+IFERROR(VLOOKUP(P168,Paramètres!$D$3:$E$7,2,FALSE),0)+IFERROR(VLOOKUP(R168,Paramètres!$D$3:$E$7,2,FALSE),0)+IFERROR(VLOOKUP(T168,Paramètres!$D$3:$E$7,2,FALSE),0)+IFERROR(VLOOKUP(V168,Paramètres!$D$3:$E$7,2,FALSE),0)+IFERROR(VLOOKUP(X168,Paramètres!$D$3:$E$7,2,FALSE),0) -> 0 | AA168: 0 | AB168: |999|999|999|999|999|999|999|999 | AC168: 0
A169: 0 | C169: 0 | K169: =LOOKUP(J169,Paramètres!$A$3:$A$102,Paramètres!$B$3:$B$102) -> 0 | M169: =LOOKUP(L169,Paramètres!$A$3:$A$102,Paramètres!$B$3:$B$102) -> 0 | O169: =LOOKUP(N169,Paramètres!$A$3:$A$102,Paramètres!$B$3:$B$102) -> 0 | Q169: =LOOKUP(P169,Paramètres!$A$3:$A$102,Paramètres!$B$3:$B$102) -> 0 | S169: =LOOKUP(R169,Paramètres!$A$3:$A$102,Paramètres!$B$3:$B$102) -> 0 | U169: =LOOKUP(T169,Paramètres!$A$3:$A$102,Paramètres!$B$3:$B$102) -> 0 | W169: =LOOKUP(V169,Paramètres!$A$3:$A$102,Paramètres!$B$3:$B$102) -> 0 | Y169: =LOOKUP(X169,Paramètres!$A$3:$A$102,Paramètres!$B$3:$B$102)*Paramètres!$H$5 -> 0 | Z169: =IFERROR(VLOOKUP(J169,Paramètres!$D$3:$E$7,2,FALSE),0)+IFERROR(VLOOKUP(L169,Paramètres!$D$3:$E$7,2,FALSE),0)+IFERROR(VLOOKUP(N169,Paramètres!$D$3:$E$7,2,FALSE),0)+IFERROR(VLOOKUP(P169,Paramètres!$D$3:$E$7,2,FALSE),0)+IFERROR(VLOOKUP(R169,Paramètres!$D$3:$E$7,2,FALSE),0)+IFERROR(VLOOKUP(T169,Paramètres!$D$3:$E$7,2,FALSE),0)+IFERROR(VLOOKUP(V169,Paramètres!$D$3:$E$7,2,FALSE),0)+IFERROR(VLOOKUP(X169,Paramètres!$D$3:$E$7,2,FALSE),0) -> 0 | AA169: 0 | AB169: |999|999|999|999|999|999|999|999 | AC169: 0
A170: 0 | C170: 0 | K170: =LOOKUP(J170,Paramètres!$A$3:$A$102,Paramètres!$B$3:$B$102) -> 0 | M170: =LOOKUP(L170,Paramètres!$A$3:$A$102,Paramètres!$B$3:$B$102) -> 0 | O170: =LOOKUP(N170,Paramètres!$A$3:$A$102,Paramètres!$B$3:$B$102) -> 0 | Q170: =LOOKUP(P170,Paramètres!$A$3:$A$102,Paramètres!$B$3:$B$102) -> 0 | S170: =LOOKUP(R170,Paramètres!$A$3:$A$102,Paramètres!$B$3:$B$102) -> 0 | U170: =LOOKUP(T170,Paramètres!$A$3:$A$102,Paramètres!$B$3:$B$102) -> 0 | W170: =LOOKUP(V170,Paramètres!$A$3:$A$102,Paramètres!$B$3:$B$102) -> 0 | Y170: =LOOKUP(X170,Paramètres!$A$3:$A$102,Paramètres!$B$3:$B$102)*Paramètres!$H$5 -> 0 | Z170: =IFERROR(VLOOKUP(J170,Paramètres!$D$3:$E$7,2,FALSE),0)+IFERROR(VLOOKUP(L170,Paramètres!$D$3:$E$7,2,FALSE),0)+IFERROR(VLOOKUP(N170,Paramètres!$D$3:$E$7,2,FALSE),0)+IFERROR(VLOOKUP(P170,Paramètres!$D$3:$E$7,2,FALSE),0)+IFERROR(VLOOKUP(R170,Paramètres!$D$3:$E$7,2,FALSE),0)+IFERROR(VLOOKUP(T170,Paramètres!$D$3:$E$7,2,FALSE),0)+IFERROR(VLOOKUP(V170,Paramètres!$D$3:$E$7,2,FALSE),0)+IFERROR(VLOOKUP(X170,Paramètres!$D$3:$E$7,2,FALSE),0) -> 0 | AA170: 0 | AB170: |999|999|999|999|999|999|999|999 | AC170: 0
A171: 0 | C171: 0 | K171: =LOOKUP(J171,Paramètres!$A$3:$A$102,Paramètres!$B$3:$B$102) -> 0 | M171: =LOOKUP(L171,Paramètres!$A$3:$A$102,Paramètres!$B$3:$B$102) -> 0 | O171: =LOOKUP(N171,Paramètres!$A$3:$A$102,Paramètres!$B$3:$B$102) -> 0 | Q171: =LOOKUP(P171,Paramètres!$A$3:$A$102,Paramètres!$B$3:$B$102) -> 0 | S171: =LOOKUP(R171,Paramètres!$A$3:$A$102,Paramètres!$B$3:$B$102) -> 0 | U171: =LOOKUP(T171,Paramètres!$A$3:$A$102,Paramètres!$B$3:$B$102) -> 0 | W171: =LOOKUP(V171,Paramètres!$A$3:$A$102,Paramètres!$B$3:$B$102) -> 0 | Y171: =LOOKUP(X171,Paramètres!$A$3:$A$102,Paramètres!$B$3:$B$102)*Paramètres!$H$5 -> 0 | Z171: =IFERROR(VLOOKUP(J171,Paramètres!$D$3:$E$7,2,FALSE),0)+IFERROR(VLOOKUP(L171,Paramètres!$D$3:$E$7,2,FALSE),0)+IFERROR(VLOOKUP(N171,Paramètres!$D$3:$E$7,2,FALSE),0)+IFERROR(VLOOKUP(P171,Paramètres!$D$3:$E$7,2,FALSE),0)+IFERROR(VLOOKUP(R171,Paramètres!$D$3:$E$7,2,FALSE),0)+IFERROR(VLOOKUP(T171,Paramètres!$D$3:$E$7,2,FALSE),0)+IFERROR(VLOOKUP(V171,Paramètres!$D$3:$E$7,2,FALSE),0)+IFERROR(VLOOKUP(X171,Paramètres!$D$3:$E$7,2,FALSE),0) -> 0 | AA171: 0 | AB171: |999|999|999|999|999|999|999|999 | AC171: 0
A172: 0 | C172: 0 | K172: =LOOKUP(J172,Paramètres!$A$3:$A$102,Paramètres!$B$3:$B$102) -> 0 | M172: =LOOKUP(L172,Paramètres!$A$3:$A$102,Paramètres!$B$3:$B$102) -> 0 | O172: =LOOKUP(N172,Paramètres!$A$3:$A$102,Paramètres!$B$3:$B$102) -> 0 | Q172: =LOOKUP(P172,Paramètres!$A$3:$A$102,Paramètres!$B$3:$B$102) -> 0 | S172: =LOOKUP(R172,Paramètres!$A$3:$A$102,Paramètres!$B$3:$B$102) -> 0 | U172: =LOOKUP(T172,Paramètres!$A$3:$A$102,Paramètres!$B$3:$B$102) -> 0 | W172: =LOOKUP(V172,Paramètres!$A$3:$A$102,Paramètres!$B$3:$B$102) -> 0 | Y172: =LOOKUP(X172,Paramètres!$A$3:$A$102,Paramètres!$B$3:$B$102)*Paramètres!$H$5 -> 0 | Z172: =IFERROR(VLOOKUP(J172,Paramètres!$D$3:$E$7,2,FALSE),0)+IFERROR(VLOOKUP(L172,Paramètres!$D$3:$E$7,2,FALSE),0)+IFERROR(VLOOKUP(N172,Paramètres!$D$3:$E$7,2,FALSE),0)+IFERROR(VLOOKUP(P172,Paramètres!$D$3:$E$7,2,FALSE),0)+IFERROR(VLOOKUP(R172,Paramètres!$D$3:$E$7,2,FALSE),0)+IFERROR(VLOOKUP(T172,Paramètres!$D$3:$E$7,2,FALSE),0)+IFERROR(VLOOKUP(V172,Paramètres!$D$3:$E$7,2,FALSE),0)+IFERROR(VLOOKUP(X172,Paramètres!$D$3:$E$7,2,FALSE),0) -> 0 | AA172: 0 | AB172: |999|999|999|999|999|999|999|999 | AC172: 0
A173: 0 | C173: 0 | K173: =LOOKUP(J173,Paramètres!$A$3:$A$102,Paramètres!$B$3:$B$102) -> 0 | M173: =LOOKUP(L173,Paramètres!$A$3:$A$102,Paramètres!$B$3:$B$102) -> 0 | O173: =LOOKUP(N173,Paramètres!$A$3:$A$102,Paramètres!$B$3:$B$102) -> 0 | Q173: =LOOKUP(P173,Paramètres!$A$3:$A$102,Paramètres!$B$3:$B$102) -> 0 | S173: =LOOKUP(R173,Paramètres!$A$3:$A$102,Paramètres!$B$3:$B$102) -> 0 | U173: =LOOKUP(T173,Paramètres!$A$3:$A$102,Paramètres!$B$3:$B$102) -> 0 | W173: =LOOKUP(V173,Paramètres!$A$3:$A$102,Paramètres!$B$3:$B$102) -> 0 | Y173: =LOOKUP(X173,Paramètres!$A$3:$A$102,Paramètres!$B$3:$B$102)*Paramètres!$H$5 -> 0 | Z173: =IFERROR(VLOOKUP(J173,Paramètres!$D$3:$E$7,2,FALSE),0)+IFERROR(VLOOKUP(L173,Paramètres!$D$3:$E$7,2,FALSE),0)+IFERROR(VLOOKUP(N173,Paramètres!$D$3:$E$7,2,FALSE),0)+IFERROR(VLOOKUP(P173,Paramètres!$D$3:$E$7,2,FALSE),0)+IFERROR(VLOOKUP(R173,Paramètres!$D$3:$E$7,2,FALSE),0)+IFERROR(VLOOKUP(T173,Paramètres!$D$3:$E$7,2,FALSE),0)+IFERROR(VLOOKUP(V173,Paramètres!$D$3:$E$7,2,FALSE),0)+IFERROR(VLOOKUP(X173,Paramètres!$D$3:$E$7,2,FALSE),0) -> 0 | AA173: 0 | AB173: |999|999|999|999|999|999|999|999 | AC173: 0
A174: 0 | C174: 0 | K174: =LOOKUP(J174,Paramètres!$A$3:$A$102,Paramètres!$B$3:$B$102) -> 0 | M174: =LOOKUP(L174,Paramètres!$A$3:$A$102,Paramètres!$B$3:$B$102) -> 0 | O174: =LOOKUP(N174,Paramètres!$A$3:$A$102,Paramètres!$B$3:$B$102) -> 0 | Q174: =LOOKUP(P174,Paramètres!$A$3:$A$102,Paramètres!$B$3:$B$102) -> 0 | S174: =LOOKUP(R174,Paramètres!$A$3:$A$102,Paramètres!$B$3:$B$102) -> 0 | U174: =LOOKUP(T174,Paramètres!$A$3:$A$102,Paramètres!$B$3:$B$102) -> 0 | W174: =LOOKUP(V174,Paramètres!$A$3:$A$102,Paramètres!$B$3:$B$102) -> 0 | Y174: =LOOKUP(X174,Paramètres!$A$3:$A$102,Paramètres!$B$3:$B$102)*Paramètres!$H$5 -> 0 | Z174: =IFERROR(VLOOKUP(J174,Paramètres!$D$3:$E$7,2,FALSE),0)+IFERROR(VLOOKUP(L174,Paramètres!$D$3:$E$7,2,FALSE),0)+IFERROR(VLOOKUP(N174,Paramètres!$D$3:$E$7,2,FALSE),0)+IFERROR(VLOOKUP(P174,Paramètres!$D$3:$E$7,2,FALSE),0)+IFERROR(VLOOKUP(R174,Paramètres!$D$3:$E$7,2,FALSE),0)+IFERROR(VLOOKUP(T174,Paramètres!$D$3:$E$7,2,FALSE),0)+IFERROR(VLOOKUP(V174,Paramètres!$D$3:$E$7,2,FALSE),0)+IFERROR(VLOOKUP(X174,Paramètres!$D$3:$E$7,2,FALSE),0) -> 0 | AA174: 0 | AB174: |999|999|999|999|999|999|999|999 | AC174: 0
A175: 0 | C175: 0 | K175: =LOOKUP(J175,Paramètres!$A$3:$A$102,Paramètres!$B$3:$B$102) -> 0 | M175: =LOOKUP(L175,Paramètres!$A$3:$A$102,Paramètres!$B$3:$B$102) -> 0 | O175: =LOOKUP(N175,Paramètres!$A$3:$A$102,Paramètres!$B$3:$B$102) -> 0 | Q175: =LOOKUP(P175,Paramètres!$A$3:$A$102,Paramètres!$B$3:$B$102) -> 0 | S175: =LOOKUP(R175,Paramètres!$A$3:$A$102,Paramètres!$B$3:$B$102) -> 0 | U175: =LOOKUP(T175,Paramètres!$A$3:$A$102,Paramètres!$B$3:$B$102) -> 0 | W175: =LOOKUP(V175,Paramètres!$A$3:$A$102,Paramètres!$B$3:$B$102) -> 0 | Y175: =LOOKUP(X175,Paramètres!$A$3:$A$102,Paramètres!$B$3:$B$102)*Paramètres!$H$5 -> 0 | Z175: =IFERROR(VLOOKUP(J175,Paramètres!$D$3:$E$7,2,FALSE),0)+IFERROR(VLOOKUP(L175,Paramètres!$D$3:$E$7,2,FALSE),0)+IFERROR(VLOOKUP(N175,Paramètres!$D$3:$E$7,2,FALSE),0)+IFERROR(VLOOKUP(P175,Paramètres!$D$3:$E$7,2,FALSE),0)+IFERROR(VLOOKUP(R175,Paramètres!$D$3:$E$7,2,FALSE),0)+IFERROR(VLOOKUP(T175,Paramètres!$D$3:$E$7,2,FALSE),0)+IFERROR(VLOOKUP(V175,Paramètres!$D$3:$E$7,2,FALSE),0)+IFERROR(VLOOKUP(X175,Paramètres!$D$3:$E$7,2,FALSE),0) -> 0 | AA175: 0 | AB175: |999|999|999|999|999|999|999|999 | AC175: 0
A176: 0 | C176: 0 | K176: =LOOKUP(J176,Paramètres!$A$3:$A$102,Paramètres!$B$3:$B$102) -> 0 | M176: =LOOKUP(L176,Paramètres!$A$3:$A$102,Paramètres!$B$3:$B$102) -> 0 | O176: =LOOKUP(N176,Paramètres!$A$3:$A$102,Paramètres!$B$3:$B$102) -> 0 | Q176: =LOOKUP(P176,Paramètres!$A$3:$A$102,Paramètres!$B$3:$B$102) -> 0 | S176: =LOOKUP(R176,Paramètres!$A$3:$A$102,Paramètres!$B$3:$B$102) -> 0 | U176: =LOOKUP(T176,Paramètres!$A$3:$A$102,Paramètres!$B$3:$B$102) -> 0 | W176: =LOOKUP(V176,Paramètres!$A$3:$A$102,Paramètres!$B$3:$B$102) -> 0 | Y176: =LOOKUP(X176,Paramètres!$A$3:$A$102,Paramètres!$B$3:$B$102)*Paramètres!$H$5 -> 0 | Z176: =IFERROR(VLOOKUP(J176,Paramètres!$D$3:$E$7,2,FALSE),0)+IFERROR(VLOOKUP(L176,Paramètres!$D$3:$E$7,2,FALSE),0)+IFERROR(VLOOKUP(N176,Paramètres!$D$3:$E$7,2,FALSE),0)+IFERROR(VLOOKUP(P176,Paramètres!$D$3:$E$7,2,FALSE),0)+IFERROR(VLOOKUP(R176,Paramètres!$D$3:$E$7,2,FALSE),0)+IFERROR(VLOOKUP(T176,Paramètres!$D$3:$E$7,2,FALSE),0)+IFERROR(VLOOKUP(V176,Paramètres!$D$3:$E$7,2,FALSE),0)+IFERROR(VLOOKUP(X176,Paramètres!$D$3:$E$7,2,FALSE),0) -> 0 | AA176: 0 | AB176: |999|999|999|999|999|999|999|999 | AC176: 0
A177: 0 | C177: 0 | K177: =LOOKUP(J177,Paramètres!$A$3:$A$102,Paramètres!$B$3:$B$102) -> 0 | M177: =LOOKUP(L177,Paramètres!$A$3:$A$102,Paramètres!$B$3:$B$102) -> 0 | O177: =LOOKUP(N177,Paramètres!$A$3:$A$102,Paramètres!$B$3:$B$102) -> 0 | Q177: =LOOKUP(P177,Paramètres!$A$3:$A$102,Paramètres!$B$3:$B$102) -> 0 | S177: =LOOKUP(R177,Paramètres!$A$3:$A$102,Paramètres!$B$3:$B$102) -> 0 | U177: =LOOKUP(T177,Paramètres!$A$3:$A$102,Paramètres!$B$3:$B$102) -> 0 | W177: =LOOKUP(V177,Paramètres!$A$3:$A$102,Paramètres!$B$3:$B$102) -> 0 | Y177: =LOOKUP(X177,Paramètres!$A$3:$A$102,Paramètres!$B$3:$B$102)*Paramètres!$H$5 -> 0 | Z177: =IFERROR(VLOOKUP(J177,Paramètres!$D$3:$E$7,2,FALSE),0)+IFERROR(VLOOKUP(L177,Paramètres!$D$3:$E$7,2,FALSE),0)+IFERROR(VLOOKUP(N177,Paramètres!$D$3:$E$7,2,FALSE),0)+IFERROR(VLOOKUP(P177,Paramètres!$D$3:$E$7,2,FALSE),0)+IFERROR(VLOOKUP(R177,Paramètres!$D$3:$E$7,2,FALSE),0)+IFERROR(VLOOKUP(T177,Paramètres!$D$3:$E$7,2,FALSE),0)+IFERROR(VLOOKUP(V177,Paramètres!$D$3:$E$7,2,FALSE),0)+IFERROR(VLOOKUP(X177,Paramètres!$D$3:$E$7,2,FALSE),0) -> 0 | AA177: 0 | AB177: |999|999|999|999|999|999|999|999 | AC177: 0
A178: 0 | C178: 0 | K178: =LOOKUP(J178,Paramètres!$A$3:$A$102,Paramètres!$B$3:$B$102) -> 0 | M178: =LOOKUP(L178,Paramètres!$A$3:$A$102,Paramètres!$B$3:$B$102) -> 0 | O178: =LOOKUP(N178,Paramètres!$A$3:$A$102,Paramètres!$B$3:$B$102) -> 0 | Q178: =LOOKUP(P178,Paramètres!$A$3:$A$102,Paramètres!$B$3:$B$102) -> 0 | S178: =LOOKUP(R178,Paramètres!$A$3:$A$102,Paramètres!$B$3:$B$102) -> 0 | U178: =LOOKUP(T178,Paramètres!$A$3:$A$102,Paramètres!$B$3:$B$102) -> 0 | W178: =LOOKUP(V178,Paramètres!$A$3:$A$102,Paramètres!$B$3:$B$102) -> 0 | Y178: =LOOKUP(X178,Paramètres!$A$3:$A$102,Paramètres!$B$3:$B$102)*Paramètres!$H$5 -> 0 | Z178: =IFERROR(VLOOKUP(J178,Paramètres!$D$3:$E$7,2,FALSE),0)+IFERROR(VLOOKUP(L178,Paramètres!$D$3:$E$7,2,FALSE),0)+IFERROR(VLOOKUP(N178,Paramètres!$D$3:$E$7,2,FALSE),0)+IFERROR(VLOOKUP(P178,Paramètres!$D$3:$E$7,2,FALSE),0)+IFERROR(VLOOKUP(R178,Paramètres!$D$3:$E$7,2,FALSE),0)+IFERROR(VLOOKUP(T178,Paramètres!$D$3:$E$7,2,FALSE),0)+IFERROR(VLOOKUP(V178,Paramètres!$D$3:$E$7,2,FALSE),0)+IFERROR(VLOOKUP(X178,Paramètres!$D$3:$E$7,2,FALSE),0) -> 0 | AA178: 0 | AB178: |999|999|999|999|999|999|999|999 | AC178: 0
A179: 0 | C179: 0 | K179: =LOOKUP(J179,Paramètres!$A$3:$A$102,Paramètres!$B$3:$B$102) -> 0 | M179: =LOOKUP(L179,Paramètres!$A$3:$A$102,Paramètres!$B$3:$B$102) -> 0 | O179: =LOOKUP(N179,Paramètres!$A$3:$A$102,Paramètres!$B$3:$B$102) -> 0 | Q179: =LOOKUP(P179,Paramètres!$A$3:$A$102,Paramètres!$B$3:$B$102) -> 0 | S179: =LOOKUP(R179,Paramètres!$A$3:$A$102,Paramètres!$B$3:$B$102) -> 0 | U179: =LOOKUP(T179,Paramètres!$A$3:$A$102,Paramètres!$B$3:$B$102) -> 0 | W179: =LOOKUP(V179,Paramètres!$A$3:$A$102,Paramètres!$B$3:$B$102) -> 0 | Y179: =LOOKUP(X179,Paramètres!$A$3:$A$102,Paramètres!$B$3:$B$102)*Paramètres!$H$5 -> 0 | Z179: =IFERROR(VLOOKUP(J179,Paramètres!$D$3:$E$7,2,FALSE),0)+IFERROR(VLOOKUP(L179,Paramètres!$D$3:$E$7,2,FALSE),0)+IFERROR(VLOOKUP(N179,Paramètres!$D$3:$E$7,2,FALSE),0)+IFERROR(VLOOKUP(P179,Paramètres!$D$3:$E$7,2,FALSE),0)+IFERROR(VLOOKUP(R179,Paramètres!$D$3:$E$7,2,FALSE),0)+IFERROR(VLOOKUP(T179,Paramètres!$D$3:$E$7,2,FALSE),0)+IFERROR(VLOOKUP(V179,Paramètres!$D$3:$E$7,2,FALSE),0)+IFERROR(VLOOKUP(X179,Paramètres!$D$3:$E$7,2,FALSE),0) -> 0 | AA179: 0 | AB179: |999|999|999|999|999|999|999|999 | AC179: 0
A180: 0 | C180: 0 | K180: =LOOKUP(J180,Paramètres!$A$3:$A$102,Paramètres!$B$3:$B$102) -> 0 | M180: =LOOKUP(L180,Paramètres!$A$3:$A$102,Paramètres!$B$3:$B$102) -> 0 | O180: =LOOKUP(N180,Paramètres!$A$3:$A$102,Paramètres!$B$3:$B$102) -> 0 | Q180: =LOOKUP(P180,Paramètres!$A$3:$A$102,Paramètres!$B$3:$B$102) -> 0 | S180: =LOOKUP(R180,Paramètres!$A$3:$A$102,Paramètres!$B$3:$B$102) -> 0 | U180: =LOOKUP(T180,Paramètres!$A$3:$A$102,Paramètres!$B$3:$B$102) -> 0 | W180: =LOOKUP(V180,Paramètres!$A$3:$A$102,Paramètres!$B$3:$B$102) -> 0 | Y180: =LOOKUP(X180,Paramètres!$A$3:$A$102,Paramètres!$B$3:$B$102)*Paramètres!$H$5 -> 0 | Z180: =IFERROR(VLOOKUP(J180,Paramètres!$D$3:$E$7,2,FALSE),0)+IFERROR(VLOOKUP(L180,Paramètres!$D$3:$E$7,2,FALSE),0)+IFERROR(VLOOKUP(N180,Paramètres!$D$3:$E$7,2,FALSE),0)+IFERROR(VLOOKUP(P180,Paramètres!$D$3:$E$7,2,FALSE),0)+IFERROR(VLOOKUP(R180,Paramètres!$D$3:$E$7,2,FALSE),0)+IFERROR(VLOOKUP(T180,Paramètres!$D$3:$E$7,2,FALSE),0)+IFERROR(VLOOKUP(V180,Paramètres!$D$3:$E$7,2,FALSE),0)+IFERROR(VLOOKUP(X180,Paramètres!$D$3:$E$7,2,FALSE),0) -> 0 | AA180: 0 | AB180: |999|999|999|999|999|999|999|999 | AC180: 0
A181: 0 | C181: 0 | K181: =LOOKUP(J181,Paramètres!$A$3:$A$102,Paramètres!$B$3:$B$102) -> 0 | M181: =LOOKUP(L181,Paramètres!$A$3:$A$102,Paramètres!$B$3:$B$102) -> 0 | O181: =LOOKUP(N181,Paramètres!$A$3:$A$102,Paramètres!$B$3:$B$102) -> 0 | Q181: =LOOKUP(P181,Paramètres!$A$3:$A$102,Paramètres!$B$3:$B$102) -> 0 | S181: =LOOKUP(R181,Paramètres!$A$3:$A$102,Paramètres!$B$3:$B$102) -> 0 | U181: =LOOKUP(T181,Paramètres!$A$3:$A$102,Paramètres!$B$3:$B$102) -> 0 | W181: =LOOKUP(V181,Paramètres!$A$3:$A$102,Paramètres!$B$3:$B$102) -> 0 | Y181: =LOOKUP(X181,Paramètres!$A$3:$A$102,Paramètres!$B$3:$B$102)*Paramètres!$H$5 -> 0 | Z181: =IFERROR(VLOOKUP(J181,Paramètres!$D$3:$E$7,2,FALSE),0)+IFERROR(VLOOKUP(L181,Paramètres!$D$3:$E$7,2,FALSE),0)+IFERROR(VLOOKUP(N181,Paramètres!$D$3:$E$7,2,FALSE),0)+IFERROR(VLOOKUP(P181,Paramètres!$D$3:$E$7,2,FALSE),0)+IFERROR(VLOOKUP(R181,Paramètres!$D$3:$E$7,2,FALSE),0)+IFERROR(VLOOKUP(T181,Paramètres!$D$3:$E$7,2,FALSE),0)+IFERROR(VLOOKUP(V181,Paramètres!$D$3:$E$7,2,FALSE),0)+IFERROR(VLOOKUP(X181,Paramètres!$D$3:$E$7,2,FALSE),0) -> 0 | AA181: 0 | AB181: |999|999|999|999|999|999|999|999 | AC181: 0
A182: 0 | C182: 0 | K182: =LOOKUP(J182,Paramètres!$A$3:$A$102,Paramètres!$B$3:$B$102) -> 0 | M182: =LOOKUP(L182,Paramètres!$A$3:$A$102,Paramètres!$B$3:$B$102) -> 0 | O182: =LOOKUP(N182,Paramètres!$A$3:$A$102,Paramètres!$B$3:$B$102) -> 0 | Q182: =LOOKUP(P182,Paramètres!$A$3:$A$102,Paramètres!$B$3:$B$102) -> 0 | S182: =LOOKUP(R182,Paramètres!$A$3:$A$102,Paramètres!$B$3:$B$102) -> 0 | U182: =LOOKUP(T182,Paramètres!$A$3:$A$102,Paramètres!$B$3:$B$102) -> 0 | W182: =LOOKUP(V182,Paramètres!$A$3:$A$102,Paramètres!$B$3:$B$102) -> 0 | Y182: =LOOKUP(X182,Paramètres!$A$3:$A$102,Paramètres!$B$3:$B$102)*Paramètres!$H$5 -> 0 | Z182: =IFERROR(VLOOKUP(J182,Paramètres!$D$3:$E$7,2,FALSE),0)+IFERROR(VLOOKUP(L182,Paramètres!$D$3:$E$7,2,FALSE),0)+IFERROR(VLOOKUP(N182,Paramètres!$D$3:$E$7,2,FALSE),0)+IFERROR(VLOOKUP(P182,Paramètres!$D$3:$E$7,2,FALSE),0)+IFERROR(VLOOKUP(R182,Paramètres!$D$3:$E$7,2,FALSE),0)+IFERROR(VLOOKUP(T182,Paramètres!$D$3:$E$7,2,FALSE),0)+IFERROR(VLOOKUP(V182,Paramètres!$D$3:$E$7,2,FALSE),0)+IFERROR(VLOOKUP(X182,Paramètres!$D$3:$E$7,2,FALSE),0) -> 0 | AA182: 0 | AB182: |999|999|999|999|999|999|999|999 | AC182: 0
A183: 0 | C183: 0 | K183: =LOOKUP(J183,Paramètres!$A$3:$A$102,Paramètres!$B$3:$B$102) -> 0 | M183: =LOOKUP(L183,Paramètres!$A$3:$A$102,Paramètres!$B$3:$B$102) -> 0 | O183: =LOOKUP(N183,Paramètres!$A$3:$A$102,Paramètres!$B$3:$B$102) -> 0 | Q183: =LOOKUP(P183,Paramètres!$A$3:$A$102,Paramètres!$B$3:$B$102) -> 0 | S183: =LOOKUP(R183,Paramètres!$A$3:$A$102,Paramètres!$B$3:$B$102) -> 0 | U183: =LOOKUP(T183,Paramètres!$A$3:$A$102,Paramètres!$B$3:$B$102) -> 0 | W183: =LOOKUP(V183,Paramètres!$A$3:$A$102,Paramètres!$B$3:$B$102) -> 0 | Y183: =LOOKUP(X183,Paramètres!$A$3:$A$102,Paramètres!$B$3:$B$102)*Paramètres!$H$5 -> 0 | Z183: =IFERROR(VLOOKUP(J183,Paramètres!$D$3:$E$7,2,FALSE),0)+IFERROR(VLOOKUP(L183,Paramètres!$D$3:$E$7,2,FALSE),0)+IFERROR(VLOOKUP(N183,Paramètres!$D$3:$E$7,2,FALSE),0)+IFERROR(VLOOKUP(P183,Paramètres!$D$3:$E$7,2,FALSE),0)+IFERROR(VLOOKUP(R183,Paramètres!$D$3:$E$7,2,FALSE),0)+IFERROR(VLOOKUP(T183,Paramètres!$D$3:$E$7,2,FALSE),0)+IFERROR(VLOOKUP(V183,Paramètres!$D$3:$E$7,2,FALSE),0)+IFERROR(VLOOKUP(X183,Paramètres!$D$3:$E$7,2,FALSE),0) -> 0 | AA183: 0 | AB183: |999|999|999|999|999|999|999|999 | AC183: 0
A184: 0 | C184: 0 | K184: =LOOKUP(J184,Paramètres!$A$3:$A$102,Paramètres!$B$3:$B$102) -> 0 | M184: =LOOKUP(L184,Paramètres!$A$3:$A$102,Paramètres!$B$3:$B$102) -> 0 | O184: =LOOKUP(N184,Paramètres!$A$3:$A$102,Paramètres!$B$3:$B$102) -> 0 | Q184: =LOOKUP(P184,Paramètres!$A$3:$A$102,Paramètres!$B$3:$B$102) -> 0 | S184: =LOOKUP(R184,Paramètres!$A$3:$A$102,Paramètres!$B$3:$B$102) -> 0 | U184: =LOOKUP(T184,Paramètres!$A$3:$A$102,Paramètres!$B$3:$B$102) -> 0 | W184: =LOOKUP(V184,Paramètres!$A$3:$A$102,Paramètres!$B$3:$B$102) -> 0 | Y184: =LOOKUP(X184,Paramètres!$A$3:$A$102,Paramètres!$B$3:$B$102)*Paramètres!$H$5 -> 0 | Z184: =IFERROR(VLOOKUP(J184,Paramètres!$D$3:$E$7,2,FALSE),0)+IFERROR(VLOOKUP(L184,Paramètres!$D$3:$E$7,2,FALSE),0)+IFERROR(VLOOKUP(N184,Paramètres!$D$3:$E$7,2,FALSE),0)+IFERROR(VLOOKUP(P184,Paramètres!$D$3:$E$7,2,FALSE),0)+IFERROR(VLOOKUP(R184,Paramètres!$D$3:$E$7,2,FALSE),0)+IFERROR(VLOOKUP(T184,Paramètres!$D$3:$E$7,2,FALSE),0)+IFERROR(VLOOKUP(V184,Paramètres!$D$3:$E$7,2,FALSE),0)+IFERROR(VLOOKUP(X184,Paramètres!$D$3:$E$7,2,FALSE),0) -> 0 | AA184: 0 | AB184: |999|999|999|999|999|999|999|999 | AC184: 0
A185: 0 | C185: 0 | K185: =LOOKUP(J185,Paramètres!$A$3:$A$102,Paramètres!$B$3:$B$102) -> 0 | M185: =LOOKUP(L185,Paramètres!$A$3:$A$102,Paramètres!$B$3:$B$102) -> 0 | O185: =LOOKUP(N185,Paramètres!$A$3:$A$102,Paramètres!$B$3:$B$102) -> 0 | Q185: =LOOKUP(P185,Paramètres!$A$3:$A$102,Paramètres!$B$3:$B$102) -> 0 | S185: =LOOKUP(R185,Paramètres!$A$3:$A$102,Paramètres!$B$3:$B$102) -> 0 | U185: =LOOKUP(T185,Paramètres!$A$3:$A$102,Paramètres!$B$3:$B$102) -> 0 | W185: =LOOKUP(V185,Paramètres!$A$3:$A$102,Paramètres!$B$3:$B$102) -> 0 | Y185: =LOOKUP(X185,Paramètres!$A$3:$A$102,Paramètres!$B$3:$B$102)*Paramètres!$H$5 -> 0 | Z185: =IFERROR(VLOOKUP(J185,Paramètres!$D$3:$E$7,2,FALSE),0)+IFERROR(VLOOKUP(L185,Paramètres!$D$3:$E$7,2,FALSE),0)+IFERROR(VLOOKUP(N185,Paramètres!$D$3:$E$7,2,FALSE),0)+IFERROR(VLOOKUP(P185,Paramètres!$D$3:$E$7,2,FALSE),0)+IFERROR(VLOOKUP(R185,Paramètres!$D$3:$E$7,2,FALSE),0)+IFERROR(VLOOKUP(T185,Paramètres!$D$3:$E$7,2,FALSE),0)+IFERROR(VLOOKUP(V185,Paramètres!$D$3:$E$7,2,FALSE),0)+IFERROR(VLOOKUP(X185,Paramètres!$D$3:$E$7,2,FALSE),0) -> 0 | AA185: 0 | AB185: |999|999|999|999|999|999|999|999 | AC185: 0
A186: 0 | C186: 0 | K186: =LOOKUP(J186,Paramètres!$A$3:$A$102,Paramètres!$B$3:$B$102) -> 0 | M186: =LOOKUP(L186,Paramètres!$A$3:$A$102,Paramètres!$B$3:$B$102) -> 0 | O186: =LOOKUP(N186,Paramètres!$A$3:$A$102,Paramètres!$B$3:$B$102) -> 0 | Q186: =LOOKUP(P186,Paramètres!$A$3:$A$102,Paramètres!$B$3:$B$102) -> 0 | S186: =LOOKUP(R186,Paramètres!$A$3:$A$102,Paramètres!$B$3:$B$102) -> 0 | U186: =LOOKUP(T186,Paramètres!$A$3:$A$102,Paramètres!$B$3:$B$102) -> 0 | W186: =LOOKUP(V186,Paramètres!$A$3:$A$102,Paramètres!$B$3:$B$102) -> 0 | Y186: =LOOKUP(X186,Paramètres!$A$3:$A$102,Paramètres!$B$3:$B$102)*Paramètres!$H$5 -> 0 | Z186: =IFERROR(VLOOKUP(J186,Paramètres!$D$3:$E$7,2,FALSE),0)+IFERROR(VLOOKUP(L186,Paramètres!$D$3:$E$7,2,FALSE),0)+IFERROR(VLOOKUP(N186,Paramètres!$D$3:$E$7,2,FALSE),0)+IFERROR(VLOOKUP(P186,Paramètres!$D$3:$E$7,2,FALSE),0)+IFERROR(VLOOKUP(R186,Paramètres!$D$3:$E$7,2,FALSE),0)+IFERROR(VLOOKUP(T186,Paramètres!$D$3:$E$7,2,FALSE),0)+IFERROR(VLOOKUP(V186,Paramètres!$D$3:$E$7,2,FALSE),0)+IFERROR(VLOOKUP(X186,Paramètres!$D$3:$E$7,2,FALSE),0) -> 0 | AA186: 0 | AB186: |999|999|999|999|999|999|999|999 | AC186: 0
A187: 0 | C187: 0 | K187: =LOOKUP(J187,Paramètres!$A$3:$A$102,Paramètres!$B$3:$B$102) -> 0 | M187: =LOOKUP(L187,Paramètres!$A$3:$A$102,Paramètres!$B$3:$B$102) -> 0 | O187: =LOOKUP(N187,Paramètres!$A$3:$A$102,Paramètres!$B$3:$B$102) -> 0 | Q187: =LOOKUP(P187,Paramètres!$A$3:$A$102,Paramètres!$B$3:$B$102) -> 0 | S187: =LOOKUP(R187,Paramètres!$A$3:$A$102,Paramètres!$B$3:$B$102) -> 0 | U187: =LOOKUP(T187,Paramètres!$A$3:$A$102,Paramètres!$B$3:$B$102) -> 0 | W187: =LOOKUP(V187,Paramètres!$A$3:$A$102,Paramètres!$B$3:$B$102) -> 0 | Y187: =LOOKUP(X187,Paramètres!$A$3:$A$102,Paramètres!$B$3:$B$102)*Paramètres!$H$5 -> 0 | Z187: =IFERROR(VLOOKUP(J187,Paramètres!$D$3:$E$7,2,FALSE),0)+IFERROR(VLOOKUP(L187,Paramètres!$D$3:$E$7,2,FALSE),0)+IFERROR(VLOOKUP(N187,Paramètres!$D$3:$E$7,2,FALSE),0)+IFERROR(VLOOKUP(P187,Paramètres!$D$3:$E$7,2,FALSE),0)+IFERROR(VLOOKUP(R187,Paramètres!$D$3:$E$7,2,FALSE),0)+IFERROR(VLOOKUP(T187,Paramètres!$D$3:$E$7,2,FALSE),0)+IFERROR(VLOOKUP(V187,Paramètres!$D$3:$E$7,2,FALSE),0)+IFERROR(VLOOKUP(X187,Paramètres!$D$3:$E$7,2,FALSE),0) -> 0 | AA187: 0 | AB187: |999|999|999|999|999|999|999|999 | AC187: 0
A188: 0 | C188: 0 | K188: =LOOKUP(J188,Paramètres!$A$3:$A$102,Paramètres!$B$3:$B$102) -> 0 | M188: =LOOKUP(L188,Paramètres!$A$3:$A$102,Paramètres!$B$3:$B$102) -> 0 | O188: =LOOKUP(N188,Paramètres!$A$3:$A$102,Paramètres!$B$3:$B$102) -> 0 | Q188: =LOOKUP(P188,Paramètres!$A$3:$A$102,Paramètres!$B$3:$B$102) -> 0 | S188: =LOOKUP(R188,Paramètres!$A$3:$A$102,Paramètres!$B$3:$B$102) -> 0 | U188: =LOOKUP(T188,Paramètres!$A$3:$A$102,Paramètres!$B$3:$B$102) -> 0 | W188: =LOOKUP(V188,Paramètres!$A$3:$A$102,Paramètres!$B$3:$B$102) -> 0 | Y188: =LOOKUP(X188,Paramètres!$A$3:$A$102,Paramètres!$B$3:$B$102)*Paramètres!$H$5 -> 0 | Z188: =IFERROR(VLOOKUP(J188,Paramètres!$D$3:$E$7,2,FALSE),0)+IFERROR(VLOOKUP(L188,Paramètres!$D$3:$E$7,2,FALSE),0)+IFERROR(VLOOKUP(N188,Paramètres!$D$3:$E$7,2,FALSE),0)+IFERROR(VLOOKUP(P188,Paramètres!$D$3:$E$7,2,FALSE),0)+IFERROR(VLOOKUP(R188,Paramètres!$D$3:$E$7,2,FALSE),0)+IFERROR(VLOOKUP(T188,Paramètres!$D$3:$E$7,2,FALSE),0)+IFERROR(VLOOKUP(V188,Paramètres!$D$3:$E$7,2,FALSE),0)+IFERROR(VLOOKUP(X188,Paramètres!$D$3:$E$7,2,FALSE),0) -> 0 | AA188: 0 | AB188: |999|999|999|999|999|999|999|999 | AC188: 0
A189: 0 | C189: 0 | K189: =LOOKUP(J189,Paramètres!$A$3:$A$102,Paramètres!$B$3:$B$102) -> 0 | M189: =LOOKUP(L189,Paramètres!$A$3:$A$102,Paramètres!$B$3:$B$102) -> 0 | O189: =LOOKUP(N189,Paramètres!$A$3:$A$102,Paramètres!$B$3:$B$102) -> 0 | Q189: =LOOKUP(P189,Paramètres!$A$3:$A$102,Paramètres!$B$3:$B$102) -> 0 | S189: =LOOKUP(R189,Paramètres!$A$3:$A$102,Paramètres!$B$3:$B$102) -> 0 | U189: =LOOKUP(T189,Paramètres!$A$3:$A$102,Paramètres!$B$3:$B$102) -> 0 | W189: =LOOKUP(V189,Paramètres!$A$3:$A$102,Paramètres!$B$3:$B$102) -> 0 | Y189: =LOOKUP(X189,Paramètres!$A$3:$A$102,Paramètres!$B$3:$B$102)*Paramètres!$H$5 -> 0 | Z189: =IFERROR(VLOOKUP(J189,Paramètres!$D$3:$E$7,2,FALSE),0)+IFERROR(VLOOKUP(L189,Paramètres!$D$3:$E$7,2,FALSE),0)+IFERROR(VLOOKUP(N189,Paramètres!$D$3:$E$7,2,FALSE),0)+IFERROR(VLOOKUP(P189,Paramètres!$D$3:$E$7,2,FALSE),0)+IFERROR(VLOOKUP(R189,Paramètres!$D$3:$E$7,2,FALSE),0)+IFERROR(VLOOKUP(T189,Paramètres!$D$3:$E$7,2,FALSE),0)+IFERROR(VLOOKUP(V189,Paramètres!$D$3:$E$7,2,FALSE),0)+IFERROR(VLOOKUP(X189,Paramètres!$D$3:$E$7,2,FALSE),0) -> 0 | AA189: 0 | AB189: |999|999|999|999|999|999|999|999 | AC189: 0
A190: 0 | C190: 0 | K190: =LOOKUP(J190,Paramètres!$A$3:$A$102,Paramètres!$B$3:$B$102) -> 0 | M190: =LOOKUP(L190,Paramètres!$A$3:$A$102,Paramètres!$B$3:$B$102) -> 0 | O190: =LOOKUP(N190,Paramètres!$A$3:$A$102,Paramètres!$B$3:$B$102) -> 0 | Q190: =LOOKUP(P190,Paramètres!$A$3:$A$102,Paramètres!$B$3:$B$102) -> 0 | S190: =LOOKUP(R190,Paramètres!$A$3:$A$102,Paramètres!$B$3:$B$102) -> 0 | U190: =LOOKUP(T190,Paramètres!$A$3:$A$102,Paramètres!$B$3:$B$102) -> 0 | W190: =LOOKUP(V190,Paramètres!$A$3:$A$102,Paramètres!$B$3:$B$102) -> 0 | Y190: =LOOKUP(X190,Paramètres!$A$3:$A$102,Paramètres!$B$3:$B$102)*Paramètres!$H$5 -> 0 | Z190: =IFERROR(VLOOKUP(J190,Paramètres!$D$3:$E$7,2,FALSE),0)+IFERROR(VLOOKUP(L190,Paramètres!$D$3:$E$7,2,FALSE),0)+IFERROR(VLOOKUP(N190,Paramètres!$D$3:$E$7,2,FALSE),0)+IFERROR(VLOOKUP(P190,Paramètres!$D$3:$E$7,2,FALSE),0)+IFERROR(VLOOKUP(R190,Paramètres!$D$3:$E$7,2,FALSE),0)+IFERROR(VLOOKUP(T190,Paramètres!$D$3:$E$7,2,FALSE),0)+IFERROR(VLOOKUP(V190,Paramètres!$D$3:$E$7,2,FALSE),0)+IFERROR(VLOOKUP(X190,Paramètres!$D$3:$E$7,2,FALSE),0) -> 0 | AA190: 0 | AB190: |999|999|999|999|999|999|999|999 | AC190: 0
A191: 0 | C191: 0 | K191: =LOOKUP(J191,Paramètres!$A$3:$A$102,Paramètres!$B$3:$B$102) -> 0 | M191: =LOOKUP(L191,Paramètres!$A$3:$A$102,Paramètres!$B$3:$B$102) -> 0 | O191: =LOOKUP(N191,Paramètres!$A$3:$A$102,Paramètres!$B$3:$B$102) -> 0 | Q191: =LOOKUP(P191,Paramètres!$A$3:$A$102,Paramètres!$B$3:$B$102) -> 0 | S191: =LOOKUP(R191,Paramètres!$A$3:$A$102,Paramètres!$B$3:$B$102) -> 0 | U191: =LOOKUP(T191,Paramètres!$A$3:$A$102,Paramètres!$B$3:$B$102) -> 0 | W191: =LOOKUP(V191,Paramètres!$A$3:$A$102,Paramètres!$B$3:$B$102) -> 0 | Y191: =LOOKUP(X191,Paramètres!$A$3:$A$102,Paramètres!$B$3:$B$102)*Paramètres!$H$5 -> 0 | Z191: =IFERROR(VLOOKUP(J191,Paramètres!$D$3:$E$7,2,FALSE),0)+IFERROR(VLOOKUP(L191,Paramètres!$D$3:$E$7,2,FALSE),0)+IFERROR(VLOOKUP(N191,Paramètres!$D$3:$E$7,2,FALSE),0)+IFERROR(VLOOKUP(P191,Paramètres!$D$3:$E$7,2,FALSE),0)+IFERROR(VLOOKUP(R191,Paramètres!$D$3:$E$7,2,FALSE),0)+IFERROR(VLOOKUP(T191,Paramètres!$D$3:$E$7,2,FALSE),0)+IFERROR(VLOOKUP(V191,Paramètres!$D$3:$E$7,2,FALSE),0)+IFERROR(VLOOKUP(X191,Paramètres!$D$3:$E$7,2,FALSE),0) -> 0 | AA191: 0 | AB191: |999|999|999|999|999|999|999|999 | AC191: 0
A192: 0 | C192: 0 | K192: =LOOKUP(J192,Paramètres!$A$3:$A$102,Paramètres!$B$3:$B$102) -> 0 | M192: =LOOKUP(L192,Paramètres!$A$3:$A$102,Paramètres!$B$3:$B$102) -> 0 | O192: =LOOKUP(N192,Paramètres!$A$3:$A$102,Paramètres!$B$3:$B$102) -> 0 | Q192: =LOOKUP(P192,Paramètres!$A$3:$A$102,Paramètres!$B$3:$B$102) -> 0 | S192: =LOOKUP(R192,Paramètres!$A$3:$A$102,Paramètres!$B$3:$B$102) -> 0 | U192: =LOOKUP(T192,Paramètres!$A$3:$A$102,Paramètres!$B$3:$B$102) -> 0 | W192: =LOOKUP(V192,Paramètres!$A$3:$A$102,Paramètres!$B$3:$B$102) -> 0 | Y192: =LOOKUP(X192,Paramètres!$A$3:$A$102,Paramètres!$B$3:$B$102)*Paramètres!$H$5 -> 0 | Z192: =IFERROR(VLOOKUP(J192,Paramètres!$D$3:$E$7,2,FALSE),0)+IFERROR(VLOOKUP(L192,Paramètres!$D$3:$E$7,2,FALSE),0)+IFERROR(VLOOKUP(N192,Paramètres!$D$3:$E$7,2,FALSE),0)+IFERROR(VLOOKUP(P192,Paramètres!$D$3:$E$7,2,FALSE),0)+IFERROR(VLOOKUP(R192,Paramètres!$D$3:$E$7,2,FALSE),0)+IFERROR(VLOOKUP(T192,Paramètres!$D$3:$E$7,2,FALSE),0)+IFERROR(VLOOKUP(V192,Paramètres!$D$3:$E$7,2,FALSE),0)+IFERROR(VLOOKUP(X192,Paramètres!$D$3:$E$7,2,FALSE),0) -> 0 | AA192: 0 | AB192: |999|999|999|999|999|999|999|999 | AC192: 0
A193: 0 | C193: 0 | K193: =LOOKUP(J193,Paramètres!$A$3:$A$102,Paramètres!$B$3:$B$102) -> 0 | M193: =LOOKUP(L193,Paramètres!$A$3:$A$102,Paramètres!$B$3:$B$102) -> 0 | O193: =LOOKUP(N193,Paramètres!$A$3:$A$102,Paramètres!$B$3:$B$102) -> 0 | Q193: =LOOKUP(P193,Paramètres!$A$3:$A$102,Paramètres!$B$3:$B$102) -> 0 | S193: =LOOKUP(R193,Paramètres!$A$3:$A$102,Paramètres!$B$3:$B$102) -> 0 | U193: =LOOKUP(T193,Paramètres!$A$3:$A$102,Paramètres!$B$3:$B$102) -> 0 | W193: =LOOKUP(V193,Paramètres!$A$3:$A$102,Paramètres!$B$3:$B$102) -> 0 | Y193: =LOOKUP(X193,Paramètres!$A$3:$A$102,Paramètres!$B$3:$B$102)*Paramètres!$H$5 -> 0 | Z193: =IFERROR(VLOOKUP(J193,Paramètres!$D$3:$E$7,2,FALSE),0)+IFERROR(VLOOKUP(L193,Paramètres!$D$3:$E$7,2,FALSE),0)+IFERROR(VLOOKUP(N193,Paramètres!$D$3:$E$7,2,FALSE),0)+IFERROR(VLOOKUP(P193,Paramètres!$D$3:$E$7,2,FALSE),0)+IFERROR(VLOOKUP(R193,Paramètres!$D$3:$E$7,2,FALSE),0)+IFERROR(VLOOKUP(T193,Paramètres!$D$3:$E$7,2,FALSE),0)+IFERROR(VLOOKUP(V193,Paramètres!$D$3:$E$7,2,FALSE),0)+IFERROR(VLOOKUP(X193,Paramètres!$D$3:$E$7,2,FALSE),0) -> 0 | AA193: 0 | AB193: |999|999|999|999|999|999|999|999 | AC193: 0
A194: 0 | C194: 0 | K194: =LOOKUP(J194,Paramètres!$A$3:$A$102,Paramètres!$B$3:$B$102) -> 0 | M194: =LOOKUP(L194,Paramètres!$A$3:$A$102,Paramètres!$B$3:$B$102) -> 0 | O194: =LOOKUP(N194,Paramètres!$A$3:$A$102,Paramètres!$B$3:$B$102) -> 0 | Q194: =LOOKUP(P194,Paramètres!$A$3:$A$102,Paramètres!$B$3:$B$102) -> 0 | S194: =LOOKUP(R194,Paramètres!$A$3:$A$102,Paramètres!$B$3:$B$102) -> 0 | U194: =LOOKUP(T194,Paramètres!$A$3:$A$102,Paramètres!$B$3:$B$102) -> 0 | W194: =LOOKUP(V194,Paramètres!$A$3:$A$102,Paramètres!$B$3:$B$102) -> 0 | Y194: =LOOKUP(X194,Paramètres!$A$3:$A$102,Paramètres!$B$3:$B$102)*Paramètres!$H$5 -> 0 | Z194: =IFERROR(VLOOKUP(J194,Paramètres!$D$3:$E$7,2,FALSE),0)+IFERROR(VLOOKUP(L194,Paramètres!$D$3:$E$7,2,FALSE),0)+IFERROR(VLOOKUP(N194,Paramètres!$D$3:$E$7,2,FALSE),0)+IFERROR(VLOOKUP(P194,Paramètres!$D$3:$E$7,2,FALSE),0)+IFERROR(VLOOKUP(R194,Paramètres!$D$3:$E$7,2,FALSE),0)+IFERROR(VLOOKUP(T194,Paramètres!$D$3:$E$7,2,FALSE),0)+IFERROR(VLOOKUP(V194,Paramètres!$D$3:$E$7,2,FALSE),0)+IFERROR(VLOOKUP(X194,Paramètres!$D$3:$E$7,2,FALSE),0) -> 0 | AA194: 0 | AB194: |999|999|999|999|999|999|999|999 | AC194: 0
A195: 0 | C195: 0 | K195: =LOOKUP(J195,Paramètres!$A$3:$A$102,Paramètres!$B$3:$B$102) -> 0 | M195: =LOOKUP(L195,Paramètres!$A$3:$A$102,Paramètres!$B$3:$B$102) -> 0 | O195: =LOOKUP(N195,Paramètres!$A$3:$A$102,Paramètres!$B$3:$B$102) -> 0 | Q195: =LOOKUP(P195,Paramètres!$A$3:$A$102,Paramètres!$B$3:$B$102) -> 0 | S195: =LOOKUP(R195,Paramètres!$A$3:$A$102,Paramètres!$B$3:$B$102) -> 0 | U195: =LOOKUP(T195,Paramètres!$A$3:$A$102,Paramètres!$B$3:$B$102) -> 0 | W195: =LOOKUP(V195,Paramètres!$A$3:$A$102,Paramètres!$B$3:$B$102) -> 0 | Y195: =LOOKUP(X195,Paramètres!$A$3:$A$102,Paramètres!$B$3:$B$102)*Paramètres!$H$5 -> 0 | Z195: =IFERROR(VLOOKUP(J195,Paramètres!$D$3:$E$7,2,FALSE),0)+IFERROR(VLOOKUP(L195,Paramètres!$D$3:$E$7,2,FALSE),0)+IFERROR(VLOOKUP(N195,Paramètres!$D$3:$E$7,2,FALSE),0)+IFERROR(VLOOKUP(P195,Paramètres!$D$3:$E$7,2,FALSE),0)+IFERROR(VLOOKUP(R195,Paramètres!$D$3:$E$7,2,FALSE),0)+IFERROR(VLOOKUP(T195,Paramètres!$D$3:$E$7,2,FALSE),0)+IFERROR(VLOOKUP(V195,Paramètres!$D$3:$E$7,2,FALSE),0)+IFERROR(VLOOKUP(X195,Paramètres!$D$3:$E$7,2,FALSE),0) -> 0 | AA195: 0 | AB195: |999|999|999|999|999|999|999|999 | AC195: 0
A196: 0 | C196: 0 | K196: =LOOKUP(J196,Paramètres!$A$3:$A$102,Paramètres!$B$3:$B$102) -> 0 | M196: =LOOKUP(L196,Paramètres!$A$3:$A$102,Paramètres!$B$3:$B$102) -> 0 | O196: =LOOKUP(N196,Paramètres!$A$3:$A$102,Paramètres!$B$3:$B$102) -> 0 | Q196: =LOOKUP(P196,Paramètres!$A$3:$A$102,Paramètres!$B$3:$B$102) -> 0 | S196: =LOOKUP(R196,Paramètres!$A$3:$A$102,Paramètres!$B$3:$B$102) -> 0 | U196: =LOOKUP(T196,Paramètres!$A$3:$A$102,Paramètres!$B$3:$B$102) -> 0 | W196: =LOOKUP(V196,Paramètres!$A$3:$A$102,Paramètres!$B$3:$B$102) -> 0 | Y196: =LOOKUP(X196,Paramètres!$A$3:$A$102,Paramètres!$B$3:$B$102)*Paramètres!$H$5 -> 0 | Z196: =IFERROR(VLOOKUP(J196,Paramètres!$D$3:$E$7,2,FALSE),0)+IFERROR(VLOOKUP(L196,Paramètres!$D$3:$E$7,2,FALSE),0)+IFERROR(VLOOKUP(N196,Paramètres!$D$3:$E$7,2,FALSE),0)+IFERROR(VLOOKUP(P196,Paramètres!$D$3:$E$7,2,FALSE),0)+IFERROR(VLOOKUP(R196,Paramètres!$D$3:$E$7,2,FALSE),0)+IFERROR(VLOOKUP(T196,Paramètres!$D$3:$E$7,2,FALSE),0)+IFERROR(VLOOKUP(V196,Paramètres!$D$3:$E$7,2,FALSE),0)+IFERROR(VLOOKUP(X196,Paramètres!$D$3:$E$7,2,FALSE),0) -> 0 | AA196: 0 | AB196: |999|999|999|999|999|999|999|999 | AC196: 0
A197: 0 | C197: 0 | K197: =LOOKUP(J197,Paramètres!$A$3:$A$102,Paramètres!$B$3:$B$102) -> 0 | M197: =LOOKUP(L197,Paramètres!$A$3:$A$102,Paramètres!$B$3:$B$102) -> 0 | O197: =LOOKUP(N197,Paramètres!$A$3:$A$102,Paramètres!$B$3:$B$102) -> 0 | Q197: =LOOKUP(P197,Paramètres!$A$3:$A$102,Paramètres!$B$3:$B$102) -> 0 | S197: =LOOKUP(R197,Paramètres!$A$3:$A$102,Paramètres!$B$3:$B$102) -> 0 | U197: =LOOKUP(T197,Paramètres!$A$3:$A$102,Paramètres!$B$3:$B$102) -> 0 | W197: =LOOKUP(V197,Paramètres!$A$3:$A$102,Paramètres!$B$3:$B$102) -> 0 | Y197: =LOOKUP(X197,Paramètres!$A$3:$A$102,Paramètres!$B$3:$B$102)*Paramètres!$H$5 -> 0 | Z197: =IFERROR(VLOOKUP(J197,Paramètres!$D$3:$E$7,2,FALSE),0)+IFERROR(VLOOKUP(L197,Paramètres!$D$3:$E$7,2,FALSE),0)+IFERROR(VLOOKUP(N197,Paramètres!$D$3:$E$7,2,FALSE),0)+IFERROR(VLOOKUP(P197,Paramètres!$D$3:$E$7,2,FALSE),0)+IFERROR(VLOOKUP(R197,Paramètres!$D$3:$E$7,2,FALSE),0)+IFERROR(VLOOKUP(T197,Paramètres!$D$3:$E$7,2,FALSE),0)+IFERROR(VLOOKUP(V197,Paramètres!$D$3:$E$7,2,FALSE),0)+IFERROR(VLOOKUP(X197,Paramètres!$D$3:$E$7,2,FALSE),0) -> 0 | AA197: 0 | AB197: |999|999|999|999|999|999|999|999 | AC197: 0
A198: 0 | B198: =IF(E198,RANK(A198,$A$6:$A$211),"") ->  | C198: =A198-MINA(K198,M198,O198,S198,U198,W198,Y198,Q198) -> 0 | D198: =IF(E198,RANK(C198,$C$6:$C$211),"") ->  | K198: =LOOKUP(J198,Paramètres!$A$3:$A$102,Paramètres!$B$3:$B$102) -> 0 | M198: =LOOKUP(L198,Paramètres!$A$3:$A$102,Paramètres!$B$3:$B$102) -> 0 | O198: =LOOKUP(N198,Paramètres!$A$3:$A$102,Paramètres!$B$3:$B$102) -> 0 | Q198: =LOOKUP(P198,Paramètres!$A$3:$A$102,Paramètres!$B$3:$B$102) -> 0 | S198: =LOOKUP(R198,Paramètres!$A$3:$A$102,Paramètres!$B$3:$B$102) -> 0 | U198: =LOOKUP(T198,Paramètres!$A$3:$A$102,Paramètres!$B$3:$B$102) -> 0 | W198: =LOOKUP(V198,Paramètres!$A$3:$A$102,Paramètres!$B$3:$B$102) -> 0 | Y198: =LOOKUP(X198,Paramètres!$A$3:$A$102,Paramètres!$B$3:$B$102)*Paramètres!$H$5 -> 0 | Z198: =IFERROR(VLOOKUP(J198,Paramètres!$D$3:$E$7,2,FALSE),0)+IFERROR(VLOOKUP(L198,Paramètres!$D$3:$E$7,2,FALSE),0)+IFERROR(VLOOKUP(N198,Paramètres!$D$3:$E$7,2,FALSE),0)+IFERROR(VLOOKUP(P198,Paramètres!$D$3:$E$7,2,FALSE),0)+IFERROR(VLOOKUP(R198,Paramètres!$D$3:$E$7,2,FALSE),0)+IFERROR(VLOOKUP(T198,Paramètres!$D$3:$E$7,2,FALSE),0)+IFERROR(VLOOKUP(V198,Paramètres!$D$3:$E$7,2,FALSE),0)+IFERROR(VLOOKUP(X198,Paramètres!$D$3:$E$7,2,FALSE),0) -> 0 | AA198: 0 | AB198: |999|999|999|999|999|999|999|999 | AC198: 0
A199: =K199+M199+O199+S199+U199+W199+Y199+Q199+AC199/10000 -> 0 | C199: 0 | K199: =LOOKUP(J199,Paramètres!$A$3:$A$102,Paramètres!$B$3:$B$102) -> 0 | M199: =LOOKUP(L199,Paramètres!$A$3:$A$102,Paramètres!$B$3:$B$102) -> 0 | O199: =LOOKUP(N199,Paramètres!$A$3:$A$102,Paramètres!$B$3:$B$102) -> 0 | Q199: =LOOKUP(P199,Paramètres!$A$3:$A$102,Paramètres!$B$3:$B$102) -> 0 | S199: =LOOKUP(R199,Paramètres!$A$3:$A$102,Paramètres!$B$3:$B$102) -> 0 | U199: =LOOKUP(T199,Paramètres!$A$3:$A$102,Paramètres!$B$3:$B$102) -> 0 | W199: =LOOKUP(V199,Paramètres!$A$3:$A$102,Paramètres!$B$3:$B$102) -> 0 | Y199: =LOOKUP(X199,Paramètres!$A$3:$A$102,Paramètres!$B$3:$B$102)*Paramètres!$H$5 -> 0 | Z199: =IFERROR(VLOOKUP(J199,Paramètres!$D$3:$E$7,2,FALSE),0)+IFERROR(VLOOKUP(L199,Paramètres!$D$3:$E$7,2,FALSE),0)+IFERROR(VLOOKUP(N199,Paramètres!$D$3:$E$7,2,FALSE),0)+IFERROR(VLOOKUP(P199,Paramètres!$D$3:$E$7,2,FALSE),0)+IFERROR(VLOOKUP(R199,Paramètres!$D$3:$E$7,2,FALSE),0)+IFERROR(VLOOKUP(T199,Paramètres!$D$3:$E$7,2,FALSE),0)+IFERROR(VLOOKUP(V199,Paramètres!$D$3:$E$7,2,FALSE),0)+IFERROR(VLOOKUP(X199,Paramètres!$D$3:$E$7,2,FALSE),0) -> 0 | AA199: 0 | AB199: =Classement(J199:Y199,$J$5:$Y$5) -> |999|999|999|999|999|999|999|999 | AC199: =COUNTIF($AB$6:$AB$211,">"&AB199) -> 0
A200: 0 | C200: 0 | K200: =LOOKUP(J200,Paramètres!$A$3:$A$102,Paramètres!$B$3:$B$102) -> 0 | M200: =LOOKUP(L200,Paramètres!$A$3:$A$102,Paramètres!$B$3:$B$102) -> 0 | O200: =LOOKUP(N200,Paramètres!$A$3:$A$102,Paramètres!$B$3:$B$102) -> 0 | Q200: =LOOKUP(P200,Paramètres!$A$3:$A$102,Paramètres!$B$3:$B$102) -> 0 | S200: =LOOKUP(R200,Paramètres!$A$3:$A$102,Paramètres!$B$3:$B$102) -> 0 | U200: =LOOKUP(T200,Paramètres!$A$3:$A$102,Paramètres!$B$3:$B$102) -> 0 | W200: =LOOKUP(V200,Paramètres!$A$3:$A$102,Paramètres!$B$3:$B$102) -> 0 | Y200: =LOOKUP(X200,Paramètres!$A$3:$A$102,Paramètres!$B$3:$B$102)*Paramètres!$H$5 -> 0 | Z200: =IFERROR(VLOOKUP(J200,Paramètres!$D$3:$E$7,2,FALSE),0)+IFERROR(VLOOKUP(L200,Paramètres!$D$3:$E$7,2,FALSE),0)+IFERROR(VLOOKUP(N200,Paramètres!$D$3:$E$7,2,FALSE),0)+IFERROR(VLOOKUP(P200,Paramètres!$D$3:$E$7,2,FALSE),0)+IFERROR(VLOOKUP(R200,Paramètres!$D$3:$E$7,2,FALSE),0)+IFERROR(VLOOKUP(T200,Paramètres!$D$3:$E$7,2,FALSE),0)+IFERROR(VLOOKUP(V200,Paramètres!$D$3:$E$7,2,FALSE),0)+IFERROR(VLOOKUP(X200,Paramètres!$D$3:$E$7,2,FALSE),0) -> 0 | AA200: 0 | AB200: |999|999|999|999|999|999|999|999 | AC200: 0
A201: 0 | C201: 0 | K201: =LOOKUP(J201,Paramètres!$A$3:$A$102,Paramètres!$B$3:$B$102) -> 0 | M201: =LOOKUP(L201,Paramètres!$A$3:$A$102,Paramètres!$B$3:$B$102) -> 0 | O201: =LOOKUP(N201,Paramètres!$A$3:$A$102,Paramètres!$B$3:$B$102) -> 0 | Q201: =LOOKUP(P201,Paramètres!$A$3:$A$102,Paramètres!$B$3:$B$102) -> 0 | S201: =LOOKUP(R201,Paramètres!$A$3:$A$102,Paramètres!$B$3:$B$102) -> 0 | U201: =LOOKUP(T201,Paramètres!$A$3:$A$102,Paramètres!$B$3:$B$102) -> 0 | W201: =LOOKUP(V201,Paramètres!$A$3:$A$102,Paramètres!$B$3:$B$102) -> 0 | Y201: =LOOKUP(X201,Paramètres!$A$3:$A$102,Paramètres!$B$3:$B$102)*Paramètres!$H$5 -> 0 | Z201: =IFERROR(VLOOKUP(J201,Paramètres!$D$3:$E$7,2,FALSE),0)+IFERROR(VLOOKUP(L201,Paramètres!$D$3:$E$7,2,FALSE),0)+IFERROR(VLOOKUP(N201,Paramètres!$D$3:$E$7,2,FALSE),0)+IFERROR(VLOOKUP(P201,Paramètres!$D$3:$E$7,2,FALSE),0)+IFERROR(VLOOKUP(R201,Paramètres!$D$3:$E$7,2,FALSE),0)+IFERROR(VLOOKUP(T201,Paramètres!$D$3:$E$7,2,FALSE),0)+IFERROR(VLOOKUP(V201,Paramètres!$D$3:$E$7,2,FALSE),0)+IFERROR(VLOOKUP(X201,Paramètres!$D$3:$E$7,2,FALSE),0) -> 0 | AA201: 0 | AB201: |999|999|999|999|999|999|999|999 | AC201: 0
A202: 0 | C202: 0 | K202: =LOOKUP(J202,Paramètres!$A$3:$A$102,Paramètres!$B$3:$B$102) -> 0 | M202: =LOOKUP(L202,Paramètres!$A$3:$A$102,Paramètres!$B$3:$B$102) -> 0 | O202: =LOOKUP(N202,Paramètres!$A$3:$A$102,Paramètres!$B$3:$B$102) -> 0 | Q202: =LOOKUP(P202,Paramètres!$A$3:$A$102,Paramètres!$B$3:$B$102) -> 0 | S202: =LOOKUP(R202,Paramètres!$A$3:$A$102,Paramètres!$B$3:$B$102) -> 0 | U202: =LOOKUP(T202,Paramètres!$A$3:$A$102,Paramètres!$B$3:$B$102) -> 0 | W202: =LOOKUP(V202,Paramètres!$A$3:$A$102,Paramètres!$B$3:$B$102) -> 0 | Y202: =LOOKUP(X202,Paramètres!$A$3:$A$102,Paramètres!$B$3:$B$102)*Paramètres!$H$5 -> 0 | Z202: =IFERROR(VLOOKUP(J202,Paramètres!$D$3:$E$7,2,FALSE),0)+IFERROR(VLOOKUP(L202,Paramètres!$D$3:$E$7,2,FALSE),0)+IFERROR(VLOOKUP(N202,Paramètres!$D$3:$E$7,2,FALSE),0)+IFERROR(VLOOKUP(P202,Paramètres!$D$3:$E$7,2,FALSE),0)+IFERROR(VLOOKUP(R202,Paramètres!$D$3:$E$7,2,FALSE),0)+IFERROR(VLOOKUP(T202,Paramètres!$D$3:$E$7,2,FALSE),0)+IFERROR(VLOOKUP(V202,Paramètres!$D$3:$E$7,2,FALSE),0)+IFERROR(VLOOKUP(X202,Paramètres!$D$3:$E$7,2,FALSE),0) -> 0 | AA202: 0 | AB202: |999|999|999|999|999|999|999|999 | AC202: 0
... 9 more rows

Sheet U11 H + F
E3: =SUBTOTAL(3,F6:F670) -> 98 | J3: Uchizy | L3: Vesoul | N3: Andelot-Morval | P3: Montceau | R3: Montbard | T3: Les Fourgs | V3: Mesvres | X3: Pont de Roide | AA3: Joker
A4: POINTS TOTAUX | C4: AVEC JOKER
A5: Point | B5: Classement | C5: Point | D5: Classement | E5: N° | F5: NOM | G5: Prénom | H5: Club | I5: Sexe | J5: Clt | K5: pts | L5: Clt | M5: pts | N5: Clt | O5: pts | P5: Clt | Q5: pts | R5: Clt | S5: pts | T5: Clt | U5: pts | V5: Clt | W5: pts | X5: Clt | Y5: pts | Z5: Points clubs
A6: =K6+M6+O6+S6+U6+W6+Y6+Q6+AC6/10000 -> 1188.0205 | B6: =IF(E6,RANK(A6,$A$6:$A$211),"") -> 1 | C6: =A6-MINA(K6,M6,O6,S6,U6,W6,Y6,Q6) -> 1041.0205 | D6: =IF(E6,RANK(C6,$C$6:$C$211),"") -> 1 | E6: 1022 | F6: TINGUELY | G6: Félix | H6: AC DAMPARIS TAVAUX | I6: H | J6: 1 | K6: =LOOKUP(J6,Paramètres!$A$3:$A$102,Paramètres!$B$3:$B$102) -> 150 | L6: 1 | M6: =LOOKUP(L6,Paramètres!$A$3:$A$102,Paramètres!$B$3:$B$102) -> 150 | N6: 2 | O6: =LOOKUP(N6,Paramètres!$A$3:$A$102,Paramètres!$B$3:$B$102) -> 147 | P6: 2 | Q6: =LOOKUP(P6,Paramètres!$A$3:$A$102,Paramètres!$B$3:$B$102) -> 147 | R6: 1 | S6: =LOOKUP(R6,Paramètres!$A$3:$A$102,Paramètres!$B$3:$B$102) -> 150 | T6: 1 | U6: =LOOKUP(T6,Paramètres!$A$3:$A$102,Paramètres!$B$3:$B$102) -> 150 | V6: 2 | W6: =LOOKUP(V6,Paramètres!$A$3:$A$102,Paramètres!$B$3:$B$102) -> 147 | X6: 2 | Y6: =LOOKUP(X6,Paramètres!$A$3:$A$102,Paramètres!$B$3:$B$102) -> 147 | Z6: =IFERROR(VLOOKUP(J6,Paramètres!$D$3:$E$7,2,FALSE),0)+IFERROR(VLOOKUP(L6,Paramètres!$D$3:$E$7,2,FALSE),0)+IFERROR(VLOOKUP(N6,Paramètres!$D$3:$E$7,2,FALSE),0)+IFERROR(VLOOKUP(P6,Paramètres!$D$3:$E$7,2,FALSE),0)+IFERROR(VLOOKUP(R6,Paramètres!$D$3:$E$7,2,FALSE),0)+IFERROR(VLOOKUP(T6,Paramètres!$D$3:$E$7,2,FALSE),0)+IFERROR(VLOOKUP(V6,Paramètres!$D$3:$E$7,2,FALSE),0)+IFERROR(VLOOKUP(X6,Paramètres!$D$3:$E$7,2,FALSE),0) -> 36 | AA6: =MINA(K6,M6,O6,S6,Y6,U6,W6,Q6) -> 147 | AB6: =Classement(J6:Y6,$J$5:$Y$5) -> |001|001|001|001|002|002|002|002 | AC6: =COUNTIF($AB$6:$AB$211,">"&AB6) -> 205
A7: 1002.0204 | B7: 3 | C7: 1002.0204 | D7: 2 | E7: 1024 | F7: MEJEAN | G7: Felix | H7: LES FOURGS SINGLETRACK | I7: H | J7: 8 | K7: =LOOKUP(J7,Paramètres!$A$3:$A$102,Paramètres!$B$3:$B$102) -> 129 | L7: 2 | M7: =LOOKUP(L7,Paramètres!$A$3:$A$102,Paramètres!$B$3:$B$102) -> 147 | N7: 5 | O7: =LOOKUP(N7,Paramètres!$A$3:$A$102,Paramètres!$B$3:$B$102) -> 138 | P7: 3 | Q7: =LOOKUP(P7,Paramètres!$A$3:$A$102,Paramètres!$B$3:$B$102) -> 144 | S7: =LOOKUP(R7,Paramètres!$A$3:$A$102,Paramètres!$B$3:$B$102) -> 0 | T7: 3 | U7: =LOOKUP(T7,Paramètres!$A$3:$A$102,Paramètres!$B$3:$B$102) -> 144 | V7: 1 | W7: =LOOKUP(V7,Paramètres!$A$3:$A$102,Paramètres!$B$3:$B$102) -> 150 | X7: 1 | Y7: =LOOKUP(X7,Paramètres!$A$3:$A$102,Paramètres!$B$3:$B$102) -> 150 | Z7: =IFERROR(VLOOKUP(J7,Paramètres!$D$3:$E$7,2,FALSE),0)+IFERROR(VLOOKUP(L7,Paramètres!$D$3:$E$7,2,FALSE),0)+IFERROR(VLOOKUP(N7,Paramètres!$D$3:$E$7,2,FALSE),0)+IFERROR(VLOOKUP(P7,Paramètres!$D$3:$E$7,2,FALSE),0)+IFERROR(VLOOKUP(R7,Paramètres!$D$3:$E$7,2,FALSE),0)+IFERROR(VLOOKUP(T7,Paramètres!$D$3:$E$7,2,FALSE),0)+IFERROR(VLOOKUP(V7,Paramètres!$D$3:$E$7,2,FALSE),0)+IFERROR(VLOOKUP(X7,Paramètres!$D$3:$E$7,2,FALSE),0) -> 21 | AA7: 0 | AB7: =Classement(J7:Y7,$J$5:$Y$5) -> |001|001|002|003|003|005|008|999 | AC7: =COUNTIF($AB$6:$AB$211,">"&AB7) -> 204
A8: 1131.0201 | B8: 2 | C8: 996.0201 | D8: 3 | E8: 1032 | F8: COLOMBATTO | G8: Maël | H8: VELO CLUB ORNANS | I8: H | J8: 2 | K8: =LOOKUP(J8,Paramètres!$A$3:$A$102,Paramètres!$B$3:$B$102) -> 147 | L8: 3 | M8: =LOOKUP(L8,Paramètres!$A$3:$A$102,Paramètres!$B$3:$B$102) -> 144 | N8: 6 | O8: =LOOKUP(N8,Paramètres!$A$3:$A$102,Paramètres!$B$3:$B$102) -> 135 | P8: 6 | Q8: =LOOKUP(P8,Paramètres!$A$3:$A$102,Paramètres!$B$3:$B$102) -> 135 | R8: 2 | S8: =LOOKUP(R8,Paramètres!$A$3:$A$102,Paramètres!$B$3:$B$102) -> 147 | T8: 5 | U8: =LOOKUP(T8,Paramètres!$A$3:$A$102,Paramètres!$B$3:$B$102) -> 138 | V8: 3 | W8: =LOOKUP(V8,Paramètres!$A$3:$A$102,Paramètres!$B$3:$B$102) -> 144 | X8: 4 | Y8: =LOOKUP(X8,Paramètres!$A$3:$A$102,Paramètres!$B$3:$B$102) -> 141 | Z8: =IFERROR(VLOOKUP(J8,Paramètres!$D$3:$E$7,2,FALSE),0)+IFERROR(VLOOKUP(L8,Paramètres!$D$3:$E$7,2,FALSE),0)+IFERROR(VLOOKUP(N8,Paramètres!$D$3:$E$7,2,FALSE),0)+IFERROR(VLOOKUP(P8,Paramètres!$D$3:$E$7,2,FALSE),0)+IFERROR(VLOOKUP(R8,Paramètres!$D$3:$E$7,2,FALSE),0)+IFERROR(VLOOKUP(T8,Paramètres!$D$3:$E$7,2,FALSE),0)+IFERROR(VLOOKUP(V8,Paramètres!$D$3:$E$7,2,FALSE),0)+IFERROR(VLOOKUP(X8,Paramètres!$D$3:$E$7,2,FALSE),0) -> 17 | AA8: 135 | AB8: |002|002|003|003|004|005|006|006 | AC8: 201
A9: 946.0197 | B9: 4 | C9: 945.0197 | D9: 4 | E9: 1026 | F9: GREVOT | G9: Louis | H9: PULSION VTT | I9: H | J9: 5 | K9: =LOOKUP(J9,Paramètres!$A$3:$A$102,Paramètres!$B$3:$B$102) -> 138 | L9: 5 | M9: =LOOKUP(L9,Paramètres!$A$3:$A$102,Paramètres!$B$3:$B$102) -> 138 | N9: ABD | O9: =LOOKUP(N9,Paramètres!$A$3:$A$102,Paramètres!$B$3:$B$102) -> 1 | P9: 7 | Q9: =LOOKUP(P9,Paramètres!$A$3:$A$102,Paramètres!$B$3:$B$102) -> 132 | R9: 5 | S9: =LOOKUP(R9,Paramètres!$A$3:$A$102,Paramètres!$B$3:$B$102) -> 138 | T9: 9 | U9: =LOOKUP(T9,Paramètres!$A$3:$A$102,Paramètres!$B$3:$B$102) -> 126 | V9: 4 | W9: =LOOKUP(V9,Paramètres!$A$3:$A$102,Paramètres!$B$3:$B$102) -> 141 | X9: 7 | Y9: =LOOKUP(X9,Paramètres!$A$3:$A$102,Paramètres!$B$3:$B$102) -> 132 | Z9: =IFERROR(VLOOKUP(J9,Paramètres!$D$3:$E$7,2,FALSE),0)+IFERROR(VLOOKUP(L9,Paramètres!$D$3:$E$7,2,FALSE),0)+IFERROR(VLOOKUP(N9,Paramètres!$D$3:$E$7,2,FALSE),0)+IFERROR(VLOOKUP(P9,Paramètres!$D$3:$E$7,2,FALSE),0)+IFERROR(VLOOKUP(R9,Paramètres!$D$3:$E$7,2,FALSE),0)+IFERROR(VLOOKUP(T9,Paramètres!$D$3:$E$7,2,FALSE),0)+IFERROR(VLOOKUP(V9,Paramètres!$D$3:$E$7,2,FALSE),0)+IFERROR(VLOOKUP(X9,Paramètres!$D$3:$E$7,2,FALSE),0) -> 5 | AA9: 1 | AB9: |004|005|005|005|007|007|009|999 | AC9: 197
A10: 855.0196 | B10: 7 | C10: 855.0196 | D10: 5 | E10: 1047 | F10: VIROT | G10: Antoine | H10: VESOUL VTT | I10: H | K10: =LOOKUP(J10,Paramètres!$A$3:$A$102,Paramètres!$B$3:$B$102) -> 0 | L10: 14 | M10: =LOOKUP(L10,Paramètres!$A$3:$A$102,Paramètres!$B$3:$B$102) -> 111 | N10: 20 | O10: =LOOKUP(N10,Paramètres!$A$3:$A$102,Paramètres!$B$3:$B$102) -> 93 | P10: 10 | Q10: =LOOKUP(P10,Paramètres!$A$3:$A$102,Paramètres!$B$3:$B$102) -> 123 | R10: 4 | S10: =LOOKUP(R10,Paramètres!$A$3:$A$102,Paramètres!$B$3:$B$102) -> 141 | T10: 8 | U10: =LOOKUP(T10,Paramètres!$A$3:$A$102,Paramètres!$B$3:$B$102) -> 129 | V10: 7 | W10: =LOOKUP(V10,Paramètres!$A$3:$A$102,Paramètres!$B$3:$B$102) -> 132 | X10: 9 | Y10: =LOOKUP(X10,Paramètres!$A$3:$A$102,Paramètres!$B$3:$B$102) -> 126 | Z10: =IFERROR(VLOOKUP(J10,Paramètres!$D$3:$E$7,2,FALSE),0)+IFERROR(VLOOKUP(L10,Paramètres!$D$3:$E$7,2,FALSE),0)+IFERROR(VLOOKUP(N10,Paramètres!$D$3:$E$7,2,FALSE),0)+IFERROR(VLOOKUP(P10,Paramètres!$D$3:$E$7,2,FALSE),0)+IFERROR(VLOOKUP(R10,Paramètres!$D$3:$E$7,2,FALSE),0)+IFERROR(VLOOKUP(T10,Paramètres!$D$3:$E$7,2,FALSE),0)+IFERROR(VLOOKUP(V10,Paramètres!$D$3:$E$7,2,FALSE),0)+IFERROR(VLOOKUP(X10,Paramètres!$D$3:$E$7,2,FALSE),0) -> 2 | AA10: 0 | AB10: |004|007|008|009|010|014|020|999 | AC10: 196
A11: 855.0189 | B11: 8 | C11: 855.0189 | D11: 6 | E11: 1019 | F11: DUBRION | G11: Amaël | H11: PARAY LE MONIAL CYCLISME | I11: H | J11: 13 | K11: =LOOKUP(J11,Paramètres!$A$3:$A$102,Paramètres!$B$3:$B$102) -> 114 | L11: 10 | M11: =LOOKUP(L11,Paramètres!$A$3:$A$102,Paramètres!$B$3:$B$102) -> 123 | N11: 10 | O11: =LOOKUP(N11,Paramètres!$A$3:$A$102,Paramètres!$B$3:$B$102) -> 123 | P11: 12 | Q11: =LOOKUP(P11,Paramètres!$A$3:$A$102,Paramètres!$B$3:$B$102) -> 117 | R11: 7 | S11: =LOOKUP(R11,Paramètres!$A$3:$A$102,Paramètres!$B$3:$B$102) -> 132 | U11: =LOOKUP(T11,Paramètres!$A$3:$A$102,Paramètres!$B$3:$B$102) -> 0 | V11: 9 | W11: =LOOKUP(V11,Paramètres!$A$3:$A$102,Paramètres!$B$3:$B$102) -> 126 | X11: 11 | Y11: =LOOKUP(X11,Paramètres!$A$3:$A$102,Paramètres!$B$3:$B$102) -> 120 | Z11: =IFERROR(VLOOKUP(J11,Paramètres!$D$3:$E$7,2,FALSE),0)+IFERROR(VLOOKUP(L11,Paramètres!$D$3:$E$7,2,FALSE),0)+IFERROR(VLOOKUP(N11,Paramètres!$D$3:$E$7,2,FALSE),0)+IFERROR(VLOOKUP(P11,Paramètres!$D$3:$E$7,2,FALSE),0)+IFERROR(VLOOKUP(R11,Paramètres!$D$3:$E$7,2,FALSE),0)+IFERROR(VLOOKUP(T11,Paramètres!$D$3:$E$7,2,FALSE),0)+IFERROR(VLOOKUP(V11,Paramètres!$D$3:$E$7,2,FALSE),0)+IFERROR(VLOOKUP(X11,Paramètres!$D$3:$E$7,2,FALSE),0) -> 0 | AA11: 0 | AB11: |007|009|010|010|011|012|013|999 | AC11: 189
A12: 906.0188 | B12: 5 | C12: 819.0188 | D12: 7 | E12: 1025 | F12: FATET | G12: Jules | H12: PULSION VTT | I12: H | J12: 10 | K12: =LOOKUP(J12,Paramètres!$A$3:$A$102,Paramètres!$B$3:$B$102) -> 123 | L12: 12 | M12: =LOOKUP(L12,Paramètres!$A$3:$A$102,Paramètres!$B$3:$B$102) -> 117 | N12: 11 | O12: =LOOKUP(N12,Paramètres!$A$3:$A$102,Paramètres!$B$3:$B$102) -> 120 | P12: 9 | Q12: =LOOKUP(P12,Paramètres!$A$3:$A$102,Paramètres!$B$3:$B$102) -> 126 | R12: 8 | S12: =LOOKUP(R12,Paramètres!$A$3:$A$102,Paramètres!$B$3:$B$102) -> 129 | T12: 13 | U12: =LOOKUP(T12,Paramètres!$A$3:$A$102,Paramètres!$B$3:$B$102) -> 114 | V12: 22 | W12: =LOOKUP(V12,Paramètres!$A$3:$A$102,Paramètres!$B$3:$B$102) -> 87 | X12: 21 | Y12: =LOOKUP(X12,Paramètres!$A$3:$A$102,Paramètres!$B$3:$B$102) -> 90 | Z12: =IFERROR(VLOOKUP(J12,Paramètres!$D$3:$E$7,2,FALSE),0)+IFERROR(VLOOKUP(L12,Paramètres!$D$3:$E$7,2,FALSE),0)+IFERROR(VLOOKUP(N12,Paramètres!$D$3:$E$7,2,FALSE),0)+IFERROR(VLOOKUP(P12,Paramètres!$D$3:$E$7,2,FALSE),0)+IFERROR(VLOOKUP(R12,Paramètres!$D$3:$E$7,2,FALSE),0)+IFERROR(VLOOKUP(T12,Paramètres!$D$3:$E$7,2,FALSE),0)+IFERROR(VLOOKUP(V12,Paramètres!$D$3:$E$7,2,FALSE),0)+IFERROR(VLOOKUP(X12,Paramètres!$D$3:$E$7,2,FALSE),0) -> 0 | AA12: 87 | AB12: |008|009|010|011|012|013|021|022 | AC12: 188
A13: 807.0195 | B13: 9 | C13: 807.0195 | D13: 8 | E13: 1051 | F13: GAUTHIER | G13: Marius | H13: VTT CONLIEGE | I13: H | K13: =LOOKUP(J13,Paramètres!$A$3:$A$102,Paramètres!$B$3:$B$102) -> 0 | L13: 7 | M13: =LOOKUP(L13,Paramètres!$A$3:$A$102,Paramètres!$B$3:$B$102) -> 132 | N13: 8 | O13: =LOOKUP(N13,Paramètres!$A$3:$A$102,Paramètres!$B$3:$B$102) -> 129 | P13: 5 | Q13: =LOOKUP(P13,Paramètres!$A$3:$A$102,Paramètres!$B$3:$B$102) -> 138 | R13: 6 | S13: =LOOKUP(R13,Paramètres!$A$3:$A$102,Paramètres!$B$3:$B$102) -> 135 | U13: =LOOKUP(T13,Paramètres!$A$3:$A$102,Paramètres!$B$3:$B$102) -> 0 | V13: 5 | W13: =LOOKUP(V13,Paramètres!$A$3:$A$102,Paramètres!$B$3:$B$102) -> 138 | X13: 6 | Y13: =LOOKUP(X13,Paramètres!$A$3:$A$102,Paramètres!$B$3:$B$102) -> 135 | Z13: =IFERROR(VLOOKUP(J13,Paramètres!$D$3:$E$7,2,FALSE),0)+IFERROR(VLOOKUP(L13,Paramètres!$D$3:$E$7,2,FALSE),0)+IFERROR(VLOOKUP(N13,Paramètres!$D$3:$E$7,2,FALSE),0)+IFERROR(VLOOKUP(P13,Paramètres!$D$3:$E$7,2,FALSE),0)+IFERROR(VLOOKUP(R13,Paramètres!$D$3:$E$7,2,FALSE),0)+IFERROR(VLOOKUP(T13,Paramètres!$D$3:$E$7,2,FALSE),0)+IFERROR(VLOOKUP(V13,Paramètres!$D$3:$E$7,2,FALSE),0)+IFERROR(VLOOKUP(X13,Paramètres!$D$3:$E$7,2,FALSE),0) -> 2 | AA13: 0 | AB13: |005|005|006|006|007|008|999|999 | AC13: 195
A14: 897.0183 | B14: 6 | C14: 801.0183 | D14: 9 | E14: 1027 | F14: ROTA | G14: Margaux | H14: PULSION VTT | I14: F | J14: 15 | K14: =LOOKUP(J14,Paramètres!$A$3:$A$102,Paramètres!$B$3:$B$102) -> 108 | L14: 13 | M14: =LOOKUP(L14,Paramètres!$A$3:$A$102,Paramètres!$B$3:$B$102) -> 114 | N14: 19 | O14: =LOOKUP(N14,Paramètres!$A$3:$A$102,Paramètres!$B$3:$B$102) -> 96 | P14: 11 | Q14: =LOOKUP(P14,Paramètres!$A$3:$A$102,Paramètres!$B$3:$B$102) -> 120 | R14: 12 | S14: =LOOKUP(R14,Paramètres!$A$3:$A$102,Paramètres!$B$3:$B$102) -> 117 | T14: 18 | U14: =LOOKUP(T14,Paramètres!$A$3:$A$102,Paramètres!$B$3:$B$102) -> 99 | V14: 11 | W14: =LOOKUP(V14,Paramètres!$A$3:$A$102,Paramètres!$B$3:$B$102) -> 120 | X14: 10 | Y14: =LOOKUP(X14,Paramètres!$A$3:$A$102,Paramètres!$B$3:$B$102) -> 123 | Z14: =IFERROR(VLOOKUP(J14,Paramètres!$D$3:$E$7,2,FALSE),0)+IFERROR(VLOOKUP(L14,Paramètres!$D$3:$E$7,2,FALSE),0)+IFERROR(VLOOKUP(N14,Paramètres!$D$3:$E$7,2,FALSE),0)+IFERROR(VLOOKUP(P14,Paramètres!$D$3:$E$7,2,FALSE),0)+IFERROR(VLOOKUP(R14,Paramètres!$D$3:$E$7,2,FALSE),0)+IFERROR(VLOOKUP(T14,Paramètres!$D$3:$E$7,2,FALSE),0)+IFERROR(VLOOKUP(V14,Paramètres!$D$3:$E$7,2,FALSE),0)+IFERROR(VLOOKUP(X14,Paramètres!$D$3:$E$7,2,FALSE),0) -> 0 | AA14: 96 | AB14: |010|011|011|012|013|015|018|019 | AC14: 183
A15: 675.02 | B15: 11 | C15: 675.02 | D15: 10 | E15: 1030 | F15: DESSEIGNE | G15: Noa | H15: VELO CLUB DOLOIS | I15: H | J15: 4 | K15: =LOOKUP(J15,Paramètres!$A$3:$A$102,Paramètres!$B$3:$B$102) -> 141 | M15: =LOOKUP(L15,Paramètres!$A$3:$A$102,Paramètres!$B$3:$B$102) -> 0 | N15: 7 | O15: =LOOKUP(N15,Paramètres!$A$3:$A$102,Paramètres!$B$3:$B$102) -> 132 | P15: 4 | Q15: =LOOKUP(P15,Paramètres!$A$3:$A$102,Paramètres!$B$3:$B$102) -> 141 | R15: 3 | S15: =LOOKUP(R15,Paramètres!$A$3:$A$102,Paramètres!$B$3:$B$102) -> 144 | T15: 12 | U15: =LOOKUP(T15,Paramètres!$A$3:$A$102,Paramètres!$B$3:$B$102) -> 117 | W15: =LOOKUP(V15,Paramètres!$A$3:$A$102,Paramètres!$B$3:$B$102) -> 0 | Y15: =LOOKUP(X15,Paramètres!$A$3:$A$102,Paramètres!$B$3:$B$102) -> 0 | Z15: =IFERROR(VLOOKUP(J15,Paramètres!$D$3:$E$7,2,FALSE),0)+IFERROR(VLOOKUP(L15,Paramètres!$D$3:$E$7,2,FALSE),0)+IFERROR(VLOOKUP(N15,Paramètres!$D$3:$E$7,2,FALSE),0)+IFERROR(VLOOKUP(P15,Paramètres!$D$3:$E$7,2,FALSE),0)+IFERROR(VLOOKUP(R15,Paramètres!$D$3:$E$7,2,FALSE),0)+IFERROR(VLOOKUP(T15,Paramètres!$D$3:$E$7,2,FALSE),0)+IFERROR(VLOOKUP(V15,Paramètres!$D$3:$E$7,2,FALSE),0)+IFERROR(VLOOKUP(X15,Paramètres!$D$3:$E$7,2,FALSE),0) -> 7 | AA15: 0 | AB15: |003|004|004|007|012|999|999|999 | AC15: 200
A16: 705.0167 | B16: 10 | C16: 651.0167 | D16: 11 | E16: 1034 | F16: ALVES | G16: Lena | H16: VTT MASSIF JURA | I16: F | J16: 28 | K16: =LOOKUP(J16,Paramètres!$A$3:$A$102,Paramètres!$B$3:$B$102) -> 69 | L16: 18 | M16: =LOOKUP(L16,Paramètres!$A$3:$A$102,Paramètres!$B$3:$B$102) -> 99 | N16: 32 | O16: =LOOKUP(N16,Paramètres!$A$3:$A$102,Paramètres!$B$3:$B$102) -> 57 | P16: 17 | Q16: =LOOKUP(P16,Paramètres!$A$3:$A$102,Paramètres!$B$3:$B$102) -> 102 | R16: 15 | S16: =LOOKUP(R16,Paramètres!$A$3:$A$102,Paramètres!$B$3:$B$102) -> 108 | T16: 33 | U16: =LOOKUP(T16,Paramètres!$A$3:$A$102,Paramètres!$B$3:$B$102) -> 54 | V16: 15 | W16: =LOOKUP(V16,Paramètres!$A$3:$A$102,Paramètres!$B$3:$B$102) -> 108 | X16: 15 | Y16: =LOOKUP(X16,Paramètres!$A$3:$A$102,Paramètres!$B$3:$B$102) -> 108 | Z16: =IFERROR(VLOOKUP(J16,Paramètres!$D$3:$E$7,2,FALSE),0)+IFERROR(VLOOKUP(L16,Paramètres!$D$3:$E$7,2,FALSE),0)+IFERROR(VLOOKUP(N16,Paramètres!$D$3:$E$7,2,FALSE),0)+IFERROR(VLOOKUP(P16,Paramètres!$D$3:$E$7,2,FALSE),0)+IFERROR(VLOOKUP(R16,Paramètres!$D$3:$E$7,2,FALSE),0)+IFERROR(VLOOKUP(T16,Paramètres!$D$3:$E$7,2,FALSE),0)+IFERROR(VLOOKUP(V16,Paramètres!$D$3:$E$7,2,FALSE),0)+IFERROR(VLOOKUP(X16,Paramètres!$D$3:$E$7,2,FALSE),0) -> 0 | AA16: 54 | AB16: |015|015|015|017|018|028|032|033 | AC16: 167
A17: 624.0186 | B17: 12 | C17: 624.0186 | D17: 12 | E17: 1038 | F17: HUMBERT | G17: Paul | H17: VTT CONLIEGE | I17: H | J17: 16 | K17: =LOOKUP(J17,Paramètres!$A$3:$A$102,Paramètres!$B$3:$B$102) -> 105 | L17: 9 | M17: =LOOKUP(L17,Paramètres!$A$3:$A$102,Paramètres!$B$3:$B$102) -> 126 | N17: 12 | O17: =LOOKUP(N17,Paramètres!$A$3:$A$102,Paramètres!$B$3:$B$102) -> 117 | P17: 35 | Q17: =LOOKUP(P17,Paramètres!$A$3:$A$102,Paramètres!$B$3:$B$102) -> 48 | S17: =LOOKUP(R17,Paramètres!$A$3:$A$102,Paramètres!$B$3:$B$102) -> 0 | T17: 14 | U17: =LOOKUP(T17,Paramètres!$A$3:$A$102,Paramètres!$B$3:$B$102) -> 111 | W17: =LOOKUP(V17,Paramètres!$A$3:$A$102,Paramètres!$B$3:$B$102) -> 0 | X17: 12 | Y17: =LOOKUP(X17,Paramètres!$A$3:$A$102,Paramètres!$B$3:$B$102) -> 117 | Z17: =IFERROR(VLOOKUP(J17,Paramètres!$D$3:$E$7,2,FALSE),0)+IFERROR(VLOOKUP(L17,Paramètres!$D$3:$E$7,2,FALSE),0)+IFERROR(VLOOKUP(N17,Paramètres!$D$3:$E$7,2,FALSE),0)+IFERROR(VLOOKUP(P17,Paramètres!$D$3:$E$7,2,FALSE),0)+IFERROR(VLOOKUP(R17,Paramètres!$D$3:$E$7,2,FALSE),0)+IFERROR(VLOOKUP(T17,Paramètres!$D$3:$E$7,2,FALSE),0)+IFERROR(VLOOKUP(V17,Paramètres!$D$3:$E$7,2,FALSE),0)+IFERROR(VLOOKUP(X17,Paramètres!$D$3:$E$7,2,FALSE),0) -> 0 | AA17: 0 | AB17: |009|012|012|014|016|035|999|999 | AC17: 186
A18: 528.0194 | B18: 13 | C18: 528.0194 | D18: 13 | E18: 1043 | F18: PERRY | G18: Sacha | H18: LES FOURGS SINGLETRACK | I18: H | K18: =LOOKUP(J18,Paramètres!$A$3:$A$102,Paramètres!$B$3:$B$102) -> 0 | L18: 8 | M18: =LOOKUP(L18,Paramètres!$A$3:$A$102,Paramètres!$B$3:$B$102) -> 129 | N18: 9 | O18: =LOOKUP(N18,Paramètres!$A$3:$A$102,Paramètres!$B$3:$B$102) -> 126 | Q18: =LOOKUP(P18,Paramètres!$A$3:$A$102,Paramètres!$B$3:$B$102) -> 0 | S18: =LOOKUP(R18,Paramètres!$A$3:$A$102,Paramètres!$B$3:$B$102) -> 0 | T18: 6 | U18: =LOOKUP(T18,Paramètres!$A$3:$A$102,Paramètres!$B$3:$B$102) -> 135 | W18: =LOOKUP(V18,Paramètres!$A$3:$A$102,Paramètres!$B$3:$B$102) -> 0 | X18: 5 | Y18: =LOOKUP(X18,Paramètres!$A$3:$A$102,Paramètres!$B$3:$B$102) -> 138 | Z18: =IFERROR(VLOOKUP(J18,Paramètres!$D$3:$E$7,2,FALSE),0)+IFERROR(VLOOKUP(L18,Paramètres!$D$3:$E$7,2,FALSE),0)+IFERROR(VLOOKUP(N18,Paramètres!$D$3:$E$7,2,FALSE),0)+IFERROR(VLOOKUP(P18,Paramètres!$D$3:$E$7,2,FALSE),0)+IFERROR(VLOOKUP(R18,Paramètres!$D$3:$E$7,2,FALSE),0)+IFERROR(VLOOKUP(T18,Paramètres!$D$3:$E$7,2,FALSE),0)+IFERROR(VLOOKUP(V18,Paramètres!$D$3:$E$7,2,FALSE),0)+IFERROR(VLOOKUP(X18,Paramètres!$D$3:$E$7,2,FALSE),0) -> 1 | AA18: 0 | AB18: |005|006|008|009|999|999|999|999 | AC18: 194
A19: 528.0159 | B19: 14 | C19: 528.0159 | D19: 14 | E19: 1045 | F19: SCHUMMER | G19: Alexis | I19: H | K19: =LOOKUP(J19,Paramètres!$A$3:$A$102,Paramètres!$B$3:$B$102) -> 0 | L19: 22 | M19: =LOOKUP(L19,Paramètres!$A$3:$A$102,Paramètres!$B$3:$B$102) -> 87 | N19: 31 | O19: =LOOKUP(N19,Paramètres!$A$3:$A$102,Paramètres!$B$3:$B$102) -> 60 | P19: 30 | Q19: =LOOKUP(P19,Paramètres!$A$3:$A$102,Paramètres!$B$3:$B$102) -> 63 | R19: 17 | S19: =LOOKUP(R19,Paramètres!$A$3:$A$102,Paramètres!$B$3:$B$102) -> 102 | T19: 38 | U19: =LOOKUP(T19,Paramètres!$A$3:$A$102,Paramètres!$B$3:$B$102) -> 39 | V19: 20 | W19: =LOOKUP(V19,Paramètres!$A$3:$A$102,Paramètres!$B$3:$B$102) -> 93 | X19: 23 | Y19: =LOOKUP(X19,Paramètres!$A$3:$A$102,Paramètres!$B$3:$B$102) -> 84 | Z19: =IFERROR(VLOOKUP(J19,Paramètres!$D$3:$E$7,2,FALSE),0)+IFERROR(VLOOKUP(L19,Paramètres!$D$3:$E$7,2,FALSE),0)+IFERROR(VLOOKUP(N19,Paramètres!$D$3:$E$7,2,FALSE),0)+IFERROR(VLOOKUP(P19,Paramètres!$D$3:$E$7,2,FALSE),0)+IFERROR(VLOOKUP(R19,Paramètres!$D$3:$E$7,2,FALSE),0)+IFERROR(VLOOKUP(T19,Paramètres!$D$3:$E$7,2,FALSE),0)+IFERROR(VLOOKUP(V19,Paramètres!$D$3:$E$7,2,FALSE),0)+IFERROR(VLOOKUP(X19,Paramètres!$D$3:$E$7,2,FALSE),0) -> 0 | AA19: 0 | AB19: |017|020|022|023|030|031|038|999 | AC19: 159
A20: 486.0157 | B20: 15 | C20: 486.0157 | D20: 15 | E20: 1015 | F20: DESSAGNE | G20: Côme | H20: MONTCEAU VTT | I20: H | J20: 30 | K20: =LOOKUP(J20,Paramètres!$A$3:$A$102,Paramètres!$B$3:$B$102) -> 63 | M20: =LOOKUP(L20,Paramètres!$A$3:$A$102,Paramètres!$B$3:$B$102) -> 0 | N20: 33 | O20: =LOOKUP(N20,Paramètres!$A$3:$A$102,Paramètres!$B$3:$B$102) -> 54 | P20: 28 | Q20: =LOOKUP(P20,Paramètres!$A$3:$A$102,Paramètres!$B$3:$B$102) -> 69 | R20: 19 | S20: =LOOKUP(R20,Paramètres!$A$3:$A$102,Paramètres!$B$3:$B$102) -> 96 | T20: 39 | U20: =LOOKUP(T20,Paramètres!$A$3:$A$102,Paramètres!$B$3:$B$102) -> 36 | V20: 28 | W20: =LOOKUP(V20,Paramètres!$A$3:$A$102,Paramètres!$B$3:$B$102) -> 69 | X20: 18 | Y20: =LOOKUP(X20,Paramètres!$A$3:$A$102,Paramètres!$B$3:$B$102) -> 99 | Z20: =IFERROR(VLOOKUP(J20,Paramètres!$D$3:$E$7,2,FALSE),0)+IFERROR(VLOOKUP(L20,Paramètres!$D$3:$E$7,2,FALSE),0)+IFERROR(VLOOKUP(N20,Paramètres!$D$3:$E$7,2,FALSE),0)+IFERROR(VLOOKUP(P20,Paramètres!$D$3:$E$7,2,FALSE),0)+IFERROR(VLOOKUP(R20,Paramètres!$D$3:$E$7,2,FALSE),0)+IFERROR(VLOOKUP(T20,Paramètres!$D$3:$E$7,2,FALSE),0)+IFERROR(VLOOKUP(V20,Paramètres!$D$3:$E$7,2,FALSE),0)+IFERROR(VLOOKUP(X20,Paramètres!$D$3:$E$7,2,FALSE),0) -> 0 | AA20: 0 | AB20: |018|019|028|028|030|033|039|999 | AC20: 157
A21: 480.0182 | B21: 16 | C21: 480.0182 | D21: 16 | E21: 1041 | F21: MARTIN | G21: Paco | H21: SCO DIJON | I21: H | J21: 19 | K21: =LOOKUP(J21,Paramètres!$A$3:$A$102,Paramètres!$B$3:$B$102) -> 96 | L21: 15 | M21: =LOOKUP(L21,Paramètres!$A$3:$A$102,Paramètres!$B$3:$B$102) -> 108 | N21: 21 | O21: =LOOKUP(N21,Paramètres!$A$3:$A$102,Paramètres!$B$3:$B$102) -> 90 | Q21: =LOOKUP(P21,Paramètres!$A$3:$A$102,Paramètres!$B$3:$B$102) -> 0 | R21: 10 | S21: =LOOKUP(R21,Paramètres!$A$3:$A$102,Paramètres!$B$3:$B$102) -> 123 | T21: 30 | U21: =LOOKUP(T21,Paramètres!$A$3:$A$102,Paramètres!$B$3:$B$102) -> 63 | W21: =LOOKUP(V21,Paramètres!$A$3:$A$102,Paramètres!$B$3:$B$102) -> 0 | Y21: =LOOKUP(X21,Paramètres!$A$3:$A$102,Paramètres!$B$3:$B$102) -> 0 | Z21: =IFERROR(VLOOKUP(J21,Paramètres!$D$3:$E$7,2,FALSE),0)+IFERROR(VLOOKUP(L21,Paramètres!$D$3:$E$7,2,FALSE),0)+IFERROR(VLOOKUP(N21,Paramètres!$D$3:$E$7,2,FALSE),0)+IFERROR(VLOOKUP(P21,Paramètres!$D$3:$E$7,2,FALSE),0)+IFERROR(VLOOKUP(R21,Paramètres!$D$3:$E$7,2,FALSE),0)+IFERROR(VLOOKUP(T21,Paramètres!$D$3:$E$7,2,FALSE),0)+IFERROR(VLOOKUP(V21,Paramètres!$D$3:$E$7,2,FALSE),0)+IFERROR(VLOOKUP(X21,Paramètres!$D$3:$E$7,2,FALSE),0) -> 0 | AA21: 0 | AB21: |010|015|019|021|030|999|999|999 | AC21: 182
A22: 474.0174 | B22: 17 | C22: 474.0174 | D22: 17 | E22: 1088 | F22: LOURO BENGALA | G22: Léandre | H22: VELO SPORT CLUB BEAUNOIS | I22: H | K22: =LOOKUP(J22,Paramètres!$A$3:$A$102,Paramètres!$B$3:$B$102) -> 0 | M22: =LOOKUP(L22,Paramètres!$A$3:$A$102,Paramètres!$B$3:$B$102) -> 0 | O22: =LOOKUP(N22,Paramètres!$A$3:$A$102,Paramètres!$B$3:$B$102) -> 0 | P22: 20 | Q22: =LOOKUP(P22,Paramètres!$A$3:$A$102,Paramètres!$B$3:$B$102) -> 93 | R22: 13 | S22: =LOOKUP(R22,Paramètres!$A$3:$A$102,Paramètres!$B$3:$B$102) -> 114 | T22: 31 | U22: =LOOKUP(T22,Paramètres!$A$3:$A$102,Paramètres!$B$3:$B$102) -> 60 | V22: 17 | W22: =LOOKUP(V22,Paramètres!$A$3:$A$102,Paramètres!$B$3:$B$102) -> 102 | X22: 16 | Y22: =LOOKUP(X22,Paramètres!$A$3:$A$102,Paramètres!$B$3:$B$102) -> 105 | Z22: =IFERROR(VLOOKUP(J22,Paramètres!$D$3:$E$7,2,FALSE),0)+IFERROR(VLOOKUP(L22,Paramètres!$D$3:$E$7,2,FALSE),0)+IFERROR(VLOOKUP(N22,Paramètres!$D$3:$E$7,2,FALSE),0)+IFERROR(VLOOKUP(P22,Paramètres!$D$3:$E$7,2,FALSE),0)+IFERROR(VLOOKUP(R22,Paramètres!$D$3:$E$7,2,FALSE),0)+IFERROR(VLOOKUP(T22,Paramètres!$D$3:$E$7,2,FALSE),0)+IFERROR(VLOOKUP(V22,Paramètres!$D$3:$E$7,2,FALSE),0)+IFERROR(VLOOKUP(X22,Paramètres!$D$3:$E$7,2,FALSE),0) -> 0 | AA22: 0 | AB22: |013|016|017|020|031|999|999|999 | AC22: 174
A23: 474.0172 | B23: 18 | C23: 474.0172 | D23: 18 | E23: 1017 | F23: GAUTHIER | G23: Léo | H23: MONTCEAU VTT | I23: H | J23: 21 | K23: =LOOKUP(J23,Paramètres!$A$3:$A$102,Paramètres!$B$3:$B$102) -> 90 | L23: 16 | M23: =LOOKUP(L23,Paramètres!$A$3:$A$102,Paramètres!$B$3:$B$102) -> 105 | N23: 27 | O23: =LOOKUP(N23,Paramètres!$A$3:$A$102,Paramètres!$B$3:$B$102) -> 72 | P23: 14 | Q23: =LOOKUP(P23,Paramètres!$A$3:$A$102,Paramètres!$B$3:$B$102) -> 111 | S23: =LOOKUP(R23,Paramètres!$A$3:$A$102,Paramètres!$B$3:$B$102) -> 0 | U23: =LOOKUP(T23,Paramètres!$A$3:$A$102,Paramètres!$B$3:$B$102) -> 0 | V23: 19 | W23: =LOOKUP(V23,Paramètres!$A$3:$A$102,Paramètres!$B$3:$B$102) -> 96 | Y23: =LOOKUP(X23,Paramètres!$A$3:$A$102,Paramètres!$B$3:$B$102) -> 0 | Z23: =IFERROR(VLOOKUP(J23,Paramètres!$D$3:$E$7,2,FALSE),0)+IFERROR(VLOOKUP(L23,Paramètres!$D$3:$E$7,2,FALSE),0)+IFERROR(VLOOKUP(N23,Paramètres!$D$3:$E$7,2,FALSE),0)+IFERROR(VLOOKUP(P23,Paramètres!$D$3:$E$7,2,FALSE),0)+IFERROR(VLOOKUP(R23,Paramètres!$D$3:$E$7,2,FALSE),0)+IFERROR(VLOOKUP(T23,Paramètres!$D$3:$E$7,2,FALSE),0)+IFERROR(VLOOKUP(V23,Paramètres!$D$3:$E$7,2,FALSE),0)+IFERROR(VLOOKUP(X23,Paramètres!$D$3:$E$7,2,FALSE),0) -> 0 | AA23: 0 | AB23: |014|016|019|021|027|999|999|999 | AC23: 172
A24: 465.0149 | B24: 19 | C24: 465.0149 | D24: 19 | E24: 1009 | F24: LE LANN | G24: Louise | H24: AVENIR CYCLISTE CHALONNAIS | I24: F | J24: 26 | K24: =LOOKUP(J24,Paramètres!$A$3:$A$102,Paramètres!$B$3:$B$102) -> 75 | M24: =LOOKUP(L24,Paramètres!$A$3:$A$102,Paramètres!$B$3:$B$102) -> 0 | N24: 30 | O24: =LOOKUP(N24,Paramètres!$A$3:$A$102,Paramètres!$B$3:$B$102) -> 63 | P24: 29 | Q24: =LOOKUP(P24,Paramètres!$A$3:$A$102,Paramètres!$B$3:$B$102) -> 66 | R24: 20 | S24: =LOOKUP(R24,Paramètres!$A$3:$A$102,Paramètres!$B$3:$B$102) -> 93 | U24: =LOOKUP(T24,Paramètres!$A$3:$A$102,Paramètres!$B$3:$B$102) -> 0 | V24: 26 | W24: =LOOKUP(V24,Paramètres!$A$3:$A$102,Paramètres!$B$3:$B$102) -> 75 | X24: 20 | Y24: =LOOKUP(X24,Paramètres!$A$3:$A$102,Paramètres!$B$3:$B$102) -> 93 | Z24: =IFERROR(VLOOKUP(J24,Paramètres!$D$3:$E$7,2,FALSE),0)+IFERROR(VLOOKUP(L24,Paramètres!$D$3:$E$7,2,FALSE),0)+IFERROR(VLOOKUP(N24,Paramètres!$D$3:$E$7,2,FALSE),0)+IFERROR(VLOOKUP(P24,Paramètres!$D$3:$E$7,2,FALSE),0)+IFERROR(VLOOKUP(R24,Paramètres!$D$3:$E$7,2,FALSE),0)+IFERROR(VLOOKUP(T24,Paramètres!$D$3:$E$7,2,FALSE),0)+IFERROR(VLOOKUP(V24,Paramètres!$D$3:$E$7,2,FALSE),0)+IFERROR(VLOOKUP(X24,Paramètres!$D$3:$E$7,2,FALSE),0) -> 0 | AA24: 0 | AB24: |020|020|026|026|029|030|999|999 | AC24: 149
A25: 442.0175 | B25: 20 | C25: 442.0175 | D25: 20 | E25: 1033 | F25: LUCA | G25: Louis | H25: VELO SPORT CLUB BEAUNOIS | I25: H | J25: 17 | K25: =LOOKUP(J25,Paramètres!$A$3:$A$102,Paramètres!$B$3:$B$102) -> 102 | M25: =LOOKUP(L25,Paramètres!$A$3:$A$102,Paramètres!$B$3:$B$102) -> 0 | N25: ABD | O25: =LOOKUP(N25,Paramètres!$A$3:$A$102,Paramètres!$B$3:$B$102) -> 1 | P25: 13 | Q25: =LOOKUP(P25,Paramètres!$A$3:$A$102,Paramètres!$B$3:$B$102) -> 114 | S25: =LOOKUP(R25,Paramètres!$A$3:$A$102,Paramètres!$B$3:$B$102) -> 0 | U25: =LOOKUP(T25,Paramètres!$A$3:$A$102,Paramètres!$B$3:$B$102) -> 0 | V25: 13 | W25: =LOOKUP(V25,Paramètres!$A$3:$A$102,Paramètres!$B$3:$B$102) -> 114 | X25: 14 | Y25: =LOOKUP(X25,Paramètres!$A$3:$A$102,Paramètres!$B$3:$B$102) -> 111 | Z25: =IFERROR(VLOOKUP(J25,Paramètres!$D$3:$E$7,2,FALSE),0)+IFERROR(VLOOKUP(L25,Paramètres!$D$3:$E$7,2,FALSE),0)+IFERROR(VLOOKUP(N25,Paramètres!$D$3:$E$7,2,FALSE),0)+IFERROR(VLOOKUP(P25,Paramètres!$D$3:$E$7,2,FALSE),0)+IFERROR(VLOOKUP(R25,Paramètres!$D$3:$E$7,2,FALSE),0)+IFERROR(VLOOKUP(T25,Paramètres!$D$3:$E$7,2,FALSE),0)+IFERROR(VLOOKUP(V25,Paramètres!$D$3:$E$7,2,FALSE),0)+IFERROR(VLOOKUP(X25,Paramètres!$D$3:$E$7,2,FALSE),0) -> 0 | AA25: 0 | AB25: |013|013|014|017|999|999|999|999 | AC25: 175
A26: 441.0203 | B26: 21 | C26: 441.0203 | D26: 21 | E26: 1075 | F26: MONNIER BENOIT | G26: Soren | H26: U.C. MOREZ | I26: H | K26: =LOOKUP(J26,Paramètres!$A$3:$A$102,Paramètres!$B$3:$B$102) -> 0 | M26: =LOOKUP(L26,Paramètres!$A$3:$A$102,Paramètres!$B$3:$B$102) -> 0 | N26: 3 | O26: =LOOKUP(N26,Paramètres!$A$3:$A$102,Paramètres!$B$3:$B$102) -> 144 | P26: 1 | Q26: =LOOKUP(P26,Paramètres!$A$3:$A$102,Paramètres!$B$3:$B$102) -> 150 | S26: =LOOKUP(R26,Paramètres!$A$3:$A$102,Paramètres!$B$3:$B$102) -> 0 | T26: 2 | U26: =LOOKUP(T26,Paramètres!$A$3:$A$102,Paramètres!$B$3:$B$102) -> 147 | W26: =LOOKUP(V26,Paramètres!$A$3:$A$102,Paramètres!$B$3:$B$102) -> 0 | Y26: =LOOKUP(X26,Paramètres!$A$3:$A$102,Paramètres!$B$3:$B$102) -> 0 | Z26: =IFERROR(VLOOKUP(J26,Paramètres!$D$3:$E$7,2,FALSE),0)+IFERROR(VLOOKUP(L26,Paramètres!$D$3:$E$7,2,FALSE),0)+IFERROR(VLOOKUP(N26,Paramètres!$D$3:$E$7,2,FALSE),0)+IFERROR(VLOOKUP(P26,Paramètres!$D$3:$E$7,2,FALSE),0)+IFERROR(VLOOKUP(R26,Paramètres!$D$3:$E$7,2,FALSE),0)+IFERROR(VLOOKUP(T26,Paramètres!$D$3:$E$7,2,FALSE),0)+IFERROR(VLOOKUP(V26,Paramètres!$D$3:$E$7,2,FALSE),0)+IFERROR(VLOOKUP(X26,Paramètres!$D$3:$E$7,2,FALSE),0) -> 12 | AA26: 0 | AB26: |001|002|003|999|999|999|999|999 | AC26: 203
A27: 429.0156 | B27: 22 | C27: 429.0156 | D27: 22 | E27: 1037 | F27: FOURNIER | G27: Ethan | H27: VTT CONLIEGE | I27: H | J27: 31 | K27: =LOOKUP(J27,Paramètres!$A$3:$A$102,Paramètres!$B$3:$B$102) -> 60 | L27: 24 | M27: =LOOKUP(L27,Paramètres!$A$3:$A$102,Paramètres!$B$3:$B$102) -> 81 | N27: 34 | O27: =LOOKUP(N27,Paramètres!$A$3:$A$102,Paramètres!$B$3:$B$102) -> 51 | P27: 36 | Q27: =LOOKUP(P27,Paramètres!$A$3:$A$102,Paramètres!$B$3:$B$102) -> 45 | R27: 18 | S27: =LOOKUP(R27,Paramètres!$A$3:$A$102,Paramètres!$B$3:$B$102) -> 99 | T27: 41 | U27: =LOOKUP(T27,Paramètres!$A$3:$A$102,Paramètres!$B$3:$B$102) -> 30 | V27: 30 | W27: =LOOKUP(V27,Paramètres!$A$3:$A$102,Paramètres!$B$3:$B$102) -> 63 | Y27: =LOOKUP(X27,Paramètres!$A$3:$A$102,Paramètres!$B$3:$B$102) -> 0 | Z27: =IFERROR(VLOOKUP(J27,Paramètres!$D$3:$E$7,2,FALSE),0)+IFERROR(VLOOKUP(L27,Paramètres!$D$3:$E$7,2,FALSE),0)+IFERROR(VLOOKUP(N27,Paramètres!$D$3:$E$7,2,FALSE),0)+IFERROR(VLOOKUP(P27,Paramètres!$D$3:$E$7,2,FALSE),0)+IFERROR(VLOOKUP(R27,Paramètres!$D$3:$E$7,2,FALSE),0)+IFERROR(VLOOKUP(T27,Paramètres!$D$3:$E$7,2,FALSE),0)+IFERROR(VLOOKUP(V27,Paramètres!$D$3:$E$7,2,FALSE),0)+IFERROR(VLOOKUP(X27,Paramètres!$D$3:$E$7,2,FALSE),0) -> 0 | AA27: 0 | AB27: |018|024|030|031|034|036|041|999 | AC27: 156
A28: 417.0199 | B28: 23 | C28: 417.0199 | D28: 23 | E28: 1031 | F28: ZIEGLER | G28: Émeline | H28: VELO CLUB DOLOIS | I28: F | J28: 3 | K28: =LOOKUP(J28,Paramètres!$A$3:$A$102,Paramètres!$B$3:$B$102) -> 144 | L28: 4 | M28: =LOOKUP(L28,Paramètres!$A$3:$A$102,Paramètres!$B$3:$B$102) -> 141 | O28: =LOOKUP(N28,Paramètres!$A$3:$A$102,Paramètres!$B$3:$B$102) -> 0 | Q28: =LOOKUP(P28,Paramètres!$A$3:$A$102,Paramètres!$B$3:$B$102) -> 0 | S28: =LOOKUP(R28,Paramètres!$A$3:$A$102,Paramètres!$B$3:$B$102) -> 0 | T28: 7 | U28: =LOOKUP(T28,Paramètres!$A$3:$A$102,Paramètres!$B$3:$B$102) -> 132 | W28: =LOOKUP(V28,Paramètres!$A$3:$A$102,Paramètres!$B$3:$B$102) -> 0 | Y28: =LOOKUP(X28,Paramètres!$A$3:$A$102,Paramètres!$B$3:$B$102) -> 0 | Z28: =IFERROR(VLOOKUP(J28,Paramètres!$D$3:$E$7,2,FALSE),0)+IFERROR(VLOOKUP(L28,Paramètres!$D$3:$E$7,2,FALSE),0)+IFERROR(VLOOKUP(N28,Paramètres!$D$3:$E$7,2,FALSE),0)+IFERROR(VLOOKUP(P28,Paramètres!$D$3:$E$7,2,FALSE),0)+IFERROR(VLOOKUP(R28,Paramètres!$D$3:$E$7,2,FALSE),0)+IFERROR(VLOOKUP(T28,Paramètres!$D$3:$E$7,2,FALSE),0)+IFERROR(VLOOKUP(V28,Paramètres!$D$3:$E$7,2,FALSE),0)+IFERROR(VLOOKUP(X28,Paramètres!$D$3:$E$7,2,FALSE),0) -> 5 | AA28: 0 | AB28: |003|004|007|999|999|999|999|999 | AC28: 199
A29: 414.0202 | B29: 24 | C29: 414.0202 | D29: 24 | E29: 1053 | F29: CLEMENT | G29: Marius | H29: AMICALE CYCLISTE BISONTINE | I29: H | K29: =LOOKUP(J29,Paramètres!$A$3:$A$102,Paramètres!$B$3:$B$102) -> 0 | L29: 11 | M29: =LOOKUP(L29,Paramètres!$A$3:$A$102,Paramètres!$B$3:$B$102) -> 120 | N29: 1 | O29: =LOOKUP(N29,Paramètres!$A$3:$A$102,Paramètres!$B$3:$B$102) -> 150 | Q29: =LOOKUP(P29,Paramètres!$A$3:$A$102,Paramètres!$B$3:$B$102) -> 0 | S29: =LOOKUP(R29,Paramètres!$A$3:$A$102,Paramètres!$B$3:$B$102) -> 0 | U29: =LOOKUP(T29,Paramètres!$A$3:$A$102,Paramètres!$B$3:$B$102) -> 0 | W29: =LOOKUP(V29,Paramètres!$A$3:$A$102,Paramètres!$B$3:$B$102) -> 0 | X29: 3 | Y29: =LOOKUP(X29,Paramètres!$A$3:$A$102,Paramètres!$B$3:$B$102) -> 144 | Z29: =IFERROR(VLOOKUP(J29,Paramètres!$D$3:$E$7,2,FALSE),0)+IFERROR(VLOOKUP(L29,Paramètres!$D$3:$E$7,2,FALSE),0)+IFERROR(VLOOKUP(N29,Paramètres!$D$3:$E$7,2,FALSE),0)+IFERROR(VLOOKUP(P29,Paramètres!$D$3:$E$7,2,FALSE),0)+IFERROR(VLOOKUP(R29,Paramètres!$D$3:$E$7,2,FALSE),0)+IFERROR(VLOOKUP(T29,Paramètres!$D$3:$E$7,2,FALSE),0)+IFERROR(VLOOKUP(V29,Paramètres!$D$3:$E$7,2,FALSE),0)+IFERROR(VLOOKUP(X29,Paramètres!$D$3:$E$7,2,FALSE),0) -> 8 | AA29: 0 | AB29: |001|003|011|999|999|999|999|999 | AC29: 202
A30: 393.0171 | B30: 25 | C30: 393.0171 | D30: 25 | E30: 1000 | F30: BOIS | G30: Gatien | H30: VELO CLUB TOURNUS | I30: H | J30: 20 | K30: =LOOKUP(J30,Paramètres!$A$3:$A$102,Paramètres!$B$3:$B$102) -> 93 | M30: =LOOKUP(L30,Paramètres!$A$3:$A$102,Paramètres!$B$3:$B$102) -> 0 | N30: 23 | O30: =LOOKUP(N30,Paramètres!$A$3:$A$102,Paramètres!$B$3:$B$102) -> 84 | P30: 16 | Q30: =LOOKUP(P30,Paramètres!$A$3:$A$102,Paramètres!$B$3:$B$102) -> 105 | R30: 14 | S30: =LOOKUP(R30,Paramètres!$A$3:$A$102,Paramètres!$B$3:$B$102) -> 111 | U30: =LOOKUP(T30,Paramètres!$A$3:$A$102,Paramètres!$B$3:$B$102) -> 0 | W30: =LOOKUP(V30,Paramètres!$A$3:$A$102,Paramètres!$B$3:$B$102) -> 0 | Y30: =LOOKUP(X30,Paramètres!$A$3:$A$102,Paramètres!$B$3:$B$102) -> 0 | Z30: =IFERROR(VLOOKUP(J30,Paramètres!$D$3:$E$7,2,FALSE),0)+IFERROR(VLOOKUP(L30,Paramètres!$D$3:$E$7,2,FALSE),0)+IFERROR(VLOOKUP(N30,Paramètres!$D$3:$E$7,2,FALSE),0)+IFERROR(VLOOKUP(P30,Paramètres!$D$3:$E$7,2,FALSE),0)+IFERROR(VLOOKUP(R30,Paramètres!$D$3:$E$7,2,FALSE),0)+IFERROR(VLOOKUP(T30,Paramètres!$D$3:$E$7,2,FALSE),0)+IFERROR(VLOOKUP(V30,Paramètres!$D$3:$E$7,2,FALSE),0)+IFERROR(VLOOKUP(X30,Paramètres!$D$3:$E$7,2,FALSE),0) -> 0 | AA30: 0 | AB30: |014|016|020|023|999|999|999|999 | AC30: 171
A31: 390.019 | B31: 26 | C31: 390.019 | D31: 26 | E31: 1014 | F31: COGNEAU | G31: Mathéo | H31: MONTCEAU VTT | I31: H | J31: 7 | K31: =LOOKUP(J31,Paramètres!$A$3:$A$102,Paramètres!$B$3:$B$102) -> 132 | M31: =LOOKUP(L31,Paramètres!$A$3:$A$102,Paramètres!$B$3:$B$102) -> 0 | O31: =LOOKUP(N31,Paramètres!$A$3:$A$102,Paramètres!$B$3:$B$102) -> 0 | P31: 8 | Q31: =LOOKUP(P31,Paramètres!$A$3:$A$102,Paramètres!$B$3:$B$102) -> 129 | S31: =LOOKUP(R31,Paramètres!$A$3:$A$102,Paramètres!$B$3:$B$102) -> 0 | U31: =LOOKUP(T31,Paramètres!$A$3:$A$102,Paramètres!$B$3:$B$102) -> 0 | V31: 8 | W31: =LOOKUP(V31,Paramètres!$A$3:$A$102,Paramètres!$B$3:$B$102) -> 129 | Y31: =LOOKUP(X31,Paramètres!$A$3:$A$102,Paramètres!$B$3:$B$102) -> 0 | Z31: =IFERROR(VLOOKUP(J31,Paramètres!$D$3:$E$7,2,FALSE),0)+IFERROR(VLOOKUP(L31,Paramètres!$D$3:$E$7,2,FALSE),0)+IFERROR(VLOOKUP(N31,Paramètres!$D$3:$E$7,2,FALSE),0)+IFERROR(VLOOKUP(P31,Paramètres!$D$3:$E$7,2,FALSE),0)+IFERROR(VLOOKUP(R31,Paramètres!$D$3:$E$7,2,FALSE),0)+IFERROR(VLOOKUP(T31,Paramètres!$D$3:$E$7,2,FALSE),0)+IFERROR(VLOOKUP(V31,Paramètres!$D$3:$E$7,2,FALSE),0)+IFERROR(VLOOKUP(X31,Paramètres!$D$3:$E$7,2,FALSE),0) -> 0 | AA31: 0 | AB31: |007|008|008|999|999|999|999|999 | AC31: 190
A32: 366.0146 | B32: 27 | C32: 366.0146 | D32: 27 | E32: 1001 | F32: BOURCET | G32: Ethan | H32: VELO CLUB TOURNUS | I32: H | J32: 34 | K32: =LOOKUP(J32,Paramètres!$A$3:$A$102,Paramètres!$B$3:$B$102) -> 51 | L32: 27 | M32: =LOOKUP(L32,Paramètres!$A$3:$A$102,Paramètres!$B$3:$B$102) -> 72 | N32: 39 | O32: =LOOKUP(N32,Paramètres!$A$3:$A$102,Paramètres!$B$3:$B$102) -> 36 | P32: 31 | Q32: =LOOKUP(P32,Paramètres!$A$3:$A$102,Paramètres!$B$3:$B$102) -> 60 | R32: 22 | S32: =LOOKUP(R32,Paramètres!$A$3:$A$102,Paramètres!$B$3:$B$102) -> 87 | U32: =LOOKUP(T32,Paramètres!$A$3:$A$102,Paramètres!$B$3:$B$102) -> 0 | V32: 31 | W32: =LOOKUP(V32,Paramètres!$A$3:$A$102,Paramètres!$B$3:$B$102) -> 60 | Y32: =LOOKUP(X32,Paramètres!$A$3:$A$102,Paramètres!$B$3:$B$102) -> 0 | Z32: =IFERROR(VLOOKUP(J32,Paramètres!$D$3:$E$7,2,FALSE),0)+IFERROR(VLOOKUP(L32,Paramètres!$D$3:$E$7,2,FALSE),0)+IFERROR(VLOOKUP(N32,Paramètres!$D$3:$E$7,2,FALSE),0)+IFERROR(VLOOKUP(P32,Paramètres!$D$3:$E$7,2,FALSE),0)+IFERROR(VLOOKUP(R32,Paramètres!$D$3:$E$7,2,FALSE),0)+IFERROR(VLOOKUP(T32,Paramètres!$D$3:$E$7,2,FALSE),0)+IFERROR(VLOOKUP(V32,Paramètres!$D$3:$E$7,2,FALSE),0)+IFERROR(VLOOKUP(X32,Paramètres!$D$3:$E$7,2,FALSE),0) -> 0 | AA32: 0 | AB32: |022|027|031|031|034|039|999|999 | AC32: 146
A33: 351.0187 | B33: 28 | C33: 351.0187 | D33: 28 | E33: 1077 | F33: RUTY | G33: Marin | H33: LES FOURGS SINGLETRACK | I33: H | K33: =LOOKUP(J33,Paramètres!$A$3:$A$102,Paramètres!$B$3:$B$102) -> 0 | M33: =LOOKUP(L33,Paramètres!$A$3:$A$102,Paramètres!$B$3:$B$102) -> 0 | N33: 18 | O33: =LOOKUP(N33,Paramètres!$A$3:$A$102,Paramètres!$B$3:$B$102) -> 99 | Q33: =LOOKUP(P33,Paramètres!$A$3:$A$102,Paramètres!$B$3:$B$102) -> 0 | S33: =LOOKUP(R33,Paramètres!$A$3:$A$102,Paramètres!$B$3:$B$102) -> 0 | T33: 10 | U33: =LOOKUP(T33,Paramètres!$A$3:$A$102,Paramètres!$B$3:$B$102) -> 123 | W33: =LOOKUP(V33,Paramètres!$A$3:$A$102,Paramètres!$B$3:$B$102) -> 0 | X33: 8 | Y33: =LOOKUP(X33,Paramètres!$A$3:$A$102,Paramètres!$B$3:$B$102) -> 129 | Z33: =IFERROR(VLOOKUP(J33,Paramètres!$D$3:$E$7,2,FALSE),0)+IFERROR(VLOOKUP(L33,Paramètres!$D$3:$E$7,2,FALSE),0)+IFERROR(VLOOKUP(N33,Paramètres!$D$3:$E$7,2,FALSE),0)+IFERROR(VLOOKUP(P33,Paramètres!$D$3:$E$7,2,FALSE),0)+IFERROR(VLOOKUP(R33,Paramètres!$D$3:$E$7,2,FALSE),0)+IFERROR(VLOOKUP(T33,Paramètres!$D$3:$E$7,2,FALSE),0)+IFERROR(VLOOKUP(V33,Paramètres!$D$3:$E$7,2,FALSE),0)+IFERROR(VLOOKUP(X33,Paramètres!$D$3:$E$7,2,FALSE),0) -> 0 | AA33: 0 | AB33: |008|010|018|999|999|999|999|999 | AC33: 187
A34: 336.0152 | B34: 29 | C34: 336.0152 | D34: 29 | E34: 1023 | F34: FARIN | G34: Nathan | H34: LES FOURGS SINGLETRACK | I34: H | J34: 27 | K34: =LOOKUP(J34,Paramètres!$A$3:$A$102,Paramètres!$B$3:$B$102) -> 72 | L34: 19 | M34: =LOOKUP(L34,Paramètres!$A$3:$A$102,Paramètres!$B$3:$B$102) -> 96 | N34: 25 | O34: =LOOKUP(N34,Paramètres!$A$3:$A$102,Paramètres!$B$3:$B$102) -> 78 | Q34: =LOOKUP(P34,Paramètres!$A$3:$A$102,Paramètres!$B$3:$B$102) -> 0 | S34: =LOOKUP(R34,Paramètres!$A$3:$A$102,Paramètres!$B$3:$B$102) -> 0 | T34: 21 | U34: =LOOKUP(T34,Paramètres!$A$3:$A$102,Paramètres!$B$3:$B$102) -> 90 | W34: =LOOKUP(V34,Paramètres!$A$3:$A$102,Paramètres!$B$3:$B$102) -> 0 | Y34: =LOOKUP(X34,Paramètres!$A$3:$A$102,Paramètres!$B$3:$B$102) -> 0 | Z34: =IFERROR(VLOOKUP(J34,Paramètres!$D$3:$E$7,2,FALSE),0)+IFERROR(VLOOKUP(L34,Paramètres!$D$3:$E$7,2,FALSE),0)+IFERROR(VLOOKUP(N34,Paramètres!$D$3:$E$7,2,FALSE),0)+IFERROR(VLOOKUP(P34,Paramètres!$D$3:$E$7,2,FALSE),0)+IFERROR(VLOOKUP(R34,Paramètres!$D$3:$E$7,2,FALSE),0)+IFERROR(VLOOKUP(T34,Paramètres!$D$3:$E$7,2,FALSE),0)+IFERROR(VLOOKUP(V34,Paramètres!$D$3:$E$7,2,FALSE),0)+IFERROR(VLOOKUP(X34,Paramètres!$D$3:$E$7,2,FALSE),0) -> 0 | AA34: 0 | AB34: |019|021|025|027|999|999|999|999 | AC34: 152
A35: 321.0133 | B35: 30 | C35: 321.0133 | D35: 30 | E35: 1010 | F35: LEFEBVRE | G35: Chloé | H35: AVENIR CYCLISTE CHALONNAIS | I35: F | J35: 35 | K35: =LOOKUP(J35,Paramètres!$A$3:$A$102,Paramètres!$B$3:$B$102) -> 48 | L35: 26 | M35: =LOOKUP(L35,Paramètres!$A$3:$A$102,Paramètres!$B$3:$B$102) -> 75 | N35: 38 | O35: =LOOKUP(N35,Paramètres!$A$3:$A$102,Paramètres!$B$3:$B$102) -> 39 | P35: 40 | Q35: =LOOKUP(P35,Paramètres!$A$3:$A$102,Paramètres!$B$3:$B$102) -> 33 | S35: =LOOKUP(R35,Paramètres!$A$3:$A$102,Paramètres!$B$3:$B$102) -> 0 | U35: =LOOKUP(T35,Paramètres!$A$3:$A$102,Paramètres!$B$3:$B$102) -> 0 | V35: 32 | W35: =LOOKUP(V35,Paramètres!$A$3:$A$102,Paramètres!$B$3:$B$102) -> 57 | X35: 28 | Y35: =LOOKUP(X35,Paramètres!$A$3:$A$102,Paramètres!$B$3:$B$102) -> 69 | Z35: =IFERROR(VLOOKUP(J35,Paramètres!$D$3:$E$7,2,FALSE),0)+IFERROR(VLOOKUP(L35,Paramètres!$D$3:$E$7,2,FALSE),0)+IFERROR(VLOOKUP(N35,Paramètres!$D$3:$E$7,2,FALSE),0)+IFERROR(VLOOKUP(P35,Paramètres!$D$3:$E$7,2,FALSE),0)+IFERROR(VLOOKUP(R35,Paramètres!$D$3:$E$7,2,FALSE),0)+IFERROR(VLOOKUP(T35,Paramètres!$D$3:$E$7,2,FALSE),0)+IFERROR(VLOOKUP(V35,Paramètres!$D$3:$E$7,2,FALSE),0)+IFERROR(VLOOKUP(X35,Paramètres!$D$3:$E$7,2,FALSE),0) -> 0 | AA35: 0 | AB35: |026|028|032|035|038|040|999|999 | AC35: 133
A36: 309.0177 | B36: 31 | C36: 309.0177 | D36: 31 | E36: 1035 | F36: CHEVRON | G36: Eloïs | H36: VTT ORGELET | I36: H | J36: 12 | K36: =LOOKUP(J36,Paramètres!$A$3:$A$102,Paramètres!$B$3:$B$102) -> 117 | M36: =LOOKUP(L36,Paramètres!$A$3:$A$102,Paramètres!$B$3:$B$102) -> 0 | N36: 13 | O36: =LOOKUP(N36,Paramètres!$A$3:$A$102,Paramètres!$B$3:$B$102) -> 114 | Q36: =LOOKUP(P36,Paramètres!$A$3:$A$102,Paramètres!$B$3:$B$102) -> 0 | S36: =LOOKUP(R36,Paramètres!$A$3:$A$102,Paramètres!$B$3:$B$102) -> 0 | T36: 25 | U36: =LOOKUP(T36,Paramètres!$A$3:$A$102,Paramètres!$B$3:$B$102) -> 78 | W36: =LOOKUP(V36,Paramètres!$A$3:$A$102,Paramètres!$B$3:$B$102) -> 0 | Y36: =LOOKUP(X36,Paramètres!$A$3:$A$102,Paramètres!$B$3:$B$102) -> 0 | Z36: =IFERROR(VLOOKUP(J36,Paramètres!$D$3:$E$7,2,FALSE),0)+IFERROR(VLOOKUP(L36,Paramètres!$D$3:$E$7,2,FALSE),0)+IFERROR(VLOOKUP(N36,Paramètres!$D$3:$E$7,2,FALSE),0)+IFERROR(VLOOKUP(P36,Paramètres!$D$3:$E$7,2,FALSE),0)+IFERROR(VLOOKUP(R36,Paramètres!$D$3:$E$7,2,FALSE),0)+IFERROR(VLOOKUP(T36,Paramètres!$D$3:$E$7,2,FALSE),0)+IFERROR(VLOOKUP(V36,Paramètres!$D$3:$E$7,2,FALSE),0)+IFERROR(VLOOKUP(X36,Paramètres!$D$3:$E$7,2,FALSE),0) -> 0 | AA36: 0 | AB36: |012|013|025|999|999|999|999|999 | AC36: 177
A37: 306.0179 | B37: 32 | C37: 306.0179 | D37: 32 | E37: 1040 | F37: MOINE | G37: Soan | H37: VC TORNUS | I37: H | J37: 22 | K37: =LOOKUP(J37,Paramètres!$A$3:$A$102,Paramètres!$B$3:$B$102) -> 87 | M37: =LOOKUP(L37,Paramètres!$A$3:$A$102,Paramètres!$B$3:$B$102) -> 0 | O37: =LOOKUP(N37,Paramètres!$A$3:$A$102,Paramètres!$B$3:$B$102) -> 0 | P37: 18 | Q37: =LOOKUP(P37,Paramètres!$A$3:$A$102,Paramètres!$B$3:$B$102) -> 99 | R37: 11 | S37: =LOOKUP(R37,Paramètres!$A$3:$A$102,Paramètres!$B$3:$B$102) -> 120 | U37: =LOOKUP(T37,Paramètres!$A$3:$A$102,Paramètres!$B$3:$B$102) -> 0 | W37: =LOOKUP(V37,Paramètres!$A$3:$A$102,Paramètres!$B$3:$B$102) -> 0 | Y37: =LOOKUP(X37,Paramètres!$A$3:$A$102,Paramètres!$B$3:$B$102) -> 0 | Z37: =IFERROR(VLOOKUP(J37,Paramètres!$D$3:$E$7,2,FALSE),0)+IFERROR(VLOOKUP(L37,Paramètres!$D$3:$E$7,2,FALSE),0)+IFERROR(VLOOKUP(N37,Paramètres!$D$3:$E$7,2,FALSE),0)+IFERROR(VLOOKUP(P37,Paramètres!$D$3:$E$7,2,FALSE),0)+IFERROR(VLOOKUP(R37,Paramètres!$D$3:$E$7,2,FALSE),0)+IFERROR(VLOOKUP(T37,Paramètres!$D$3:$E$7,2,FALSE),0)+IFERROR(VLOOKUP(V37,Paramètres!$D$3:$E$7,2,FALSE),0)+IFERROR(VLOOKUP(X37,Paramètres!$D$3:$E$7,2,FALSE),0) -> 0 | AA37: 0 | AB37: |011|018|022|999|999|999|999|999 | AC37: 179
A38: =K38+M38+O38+S38+U38+W38+Y38+Q38+AC38/10000 -> 303.0148 | B38: =IF(E38,RANK(A38,$A$6:$A$211),"") -> 33 | C38: 303.0148 | D38: 33 | E38: 1013 | F38: CARNET | G38: Noa | H38: MONTCEAU VTT | I38: H | J38: 29 | K38: =LOOKUP(J38,Paramètres!$A$3:$A$102,Paramètres!$B$3:$B$102) -> 66 | M38: =LOOKUP(L38,Paramètres!$A$3:$A$102,Paramètres!$B$3:$B$102) -> 0 | N38: 29 | O38: =LOOKUP(N38,Paramètres!$A$3:$A$102,Paramètres!$B$3:$B$102) -> 66 | P38: 24 | Q38: =LOOKUP(P38,Paramètres!$A$3:$A$102,Paramètres!$B$3:$B$102) -> 81 | S38: =LOOKUP(R38,Paramètres!$A$3:$A$102,Paramètres!$B$3:$B$102) -> 0 | U38: =LOOKUP(T38,Paramètres!$A$3:$A$102,Paramètres!$B$3:$B$102) -> 0 | V38: 21 | W38: =LOOKUP(V38,Paramètres!$A$3:$A$102,Paramètres!$B$3:$B$102) -> 90 | Y38: =LOOKUP(X38,Paramètres!$A$3:$A$102,Paramètres!$B$3:$B$102) -> 0 | Z38: =IFERROR(VLOOKUP(J38,Paramètres!$D$3:$E$7,2,FALSE),0)+IFERROR(VLOOKUP(L38,Paramètres!$D$3:$E$7,2,FALSE),0)+IFERROR(VLOOKUP(N38,Paramètres!$D$3:$E$7,2,FALSE),0)+IFERROR(VLOOKUP(P38,Paramètres!$D$3:$E$7,2,FALSE),0)+IFERROR(VLOOKUP(R38,Paramètres!$D$3:$E$7,2,FALSE),0)+IFERROR(VLOOKUP(T38,Paramètres!$D$3:$E$7,2,FALSE),0)+IFERROR(VLOOKUP(V38,Paramètres!$D$3:$E$7,2,FALSE),0)+IFERROR(VLOOKUP(X38,Paramètres!$D$3:$E$7,2,FALSE),0) -> 0 | AA38: 0 | AB38: |021|024|029|029|999|999|999|999 | AC38: 148
A39: 294.018 | B39: 34 | C39: 294.018 | D39: 34 | E39: 1039 | F39: GUERIN STRZELECKI | G39: Emrys | H39: VTT CONLIEGE | I39: H | J39: 11 | K39: =LOOKUP(J39,Paramètres!$A$3:$A$102,Paramètres!$B$3:$B$102) -> 120 | M39: =LOOKUP(L39,Paramètres!$A$3:$A$102,Paramètres!$B$3:$B$102) -> 0 | N39: 17 | O39: =LOOKUP(N39,Paramètres!$A$3:$A$102,Paramètres!$B$3:$B$102) -> 102 | Q39: =LOOKUP(P39,Paramètres!$A$3:$A$102,Paramètres!$B$3:$B$102) -> 0 | S39: =LOOKUP(R39,Paramètres!$A$3:$A$102,Paramètres!$B$3:$B$102) -> 0 | T39: 27 | U39: =LOOKUP(T39,Paramètres!$A$3:$A$102,Paramètres!$B$3:$B$102) -> 72 | W39: =LOOKUP(V39,Paramètres!$A$3:$A$102,Paramètres!$B$3:$B$102) -> 0 | Y39: =LOOKUP(X39,Paramètres!$A$3:$A$102,Paramètres!$B$3:$B$102) -> 0 | Z39: =IFERROR(VLOOKUP(J39,Paramètres!$D$3:$E$7,2,FALSE),0)+IFERROR(VLOOKUP(L39,Paramètres!$D$3:$E$7,2,FALSE),0)+IFERROR(VLOOKUP(N39,Paramètres!$D$3:$E$7,2,FALSE),0)+IFERROR(VLOOKUP(P39,Paramètres!$D$3:$E$7,2,FALSE),0)+IFERROR(VLOOKUP(R39,Paramètres!$D$3:$E$7,2,FALSE),0)+IFERROR(VLOOKUP(T39,Paramètres!$D$3:$E$7,2,FALSE),0)+IFERROR(VLOOKUP(V39,Paramètres!$D$3:$E$7,2,FALSE),0)+IFERROR(VLOOKUP(X39,Paramètres!$D$3:$E$7,2,FALSE),0) -> 0 | AA39: 0 | AB39: |011|017|027|999|999|999|999|999 | AC39: 180
A40: 291.0176 | B40: 35 | C40: 291.0176 | D40: 35 | E40: 1056 | F40: BOUDOT | G40: Elie | H40: MESVRIN VTT | I40: H | K40: =LOOKUP(J40,Paramètres!$A$3:$A$102,Paramètres!$B$3:$B$102) -> 0 | M40: =LOOKUP(L40,Paramètres!$A$3:$A$102,Paramètres!$B$3:$B$102) -> 0 | O40: =LOOKUP(N40,Paramètres!$A$3:$A$102,Paramètres!$B$3:$B$102) -> 0 | P40: 21 | Q40: =LOOKUP(P40,Paramètres!$A$3:$A$102,Paramètres!$B$3:$B$102) -> 90 | S40: =LOOKUP(R40,Paramètres!$A$3:$A$102,Paramètres!$B$3:$B$102) -> 0 | T40: 23 | U40: =LOOKUP(T40,Paramètres!$A$3:$A$102,Paramètres!$B$3:$B$102) -> 84 | V40: 12 | W40: =LOOKUP(V40,Paramètres!$A$3:$A$102,Paramètres!$B$3:$B$102) -> 117 | Y40: =LOOKUP(X40,Paramètres!$A$3:$A$102,Paramètres!$B$3:$B$102) -> 0 | Z40: =IFERROR(VLOOKUP(J40,Paramètres!$D$3:$E$7,2,FALSE),0)+IFERROR(VLOOKUP(L40,Paramètres!$D$3:$E$7,2,FALSE),0)+IFERROR(VLOOKUP(N40,Paramètres!$D$3:$E$7,2,FALSE),0)+IFERROR(VLOOKUP(P40,Paramètres!$D$3:$E$7,2,FALSE),0)+IFERROR(VLOOKUP(R40,Paramètres!$D$3:$E$7,2,FALSE),0)+IFERROR(VLOOKUP(T40,Paramètres!$D$3:$E$7,2,FALSE),0)+IFERROR(VLOOKUP(V40,Paramètres!$D$3:$E$7,2,FALSE),0)+IFERROR(VLOOKUP(X40,Paramètres!$D$3:$E$7,2,FALSE),0) -> 0 | AA40: 0 | AB40: |012|021|023|999|999|999|999|999 | AC40: 176
A41: 285.0169 | B41: 36 | C41: 285.0169 | D41: 36 | E41: 1029 | F41: BONNET | G41: Soline | H41: VELO CLUB DOLOIS | I41: F | J41: 14 | K41: =LOOKUP(J41,Paramètres!$A$3:$A$102,Paramètres!$B$3:$B$102) -> 111 | M41: =LOOKUP(L41,Paramètres!$A$3:$A$102,Paramètres!$B$3:$B$102) -> 0 | N41: 22 | O41: =LOOKUP(N41,Paramètres!$A$3:$A$102,Paramètres!$B$3:$B$102) -> 87 | Q41: =LOOKUP(P41,Paramètres!$A$3:$A$102,Paramètres!$B$3:$B$102) -> 0 | S41: =LOOKUP(R41,Paramètres!$A$3:$A$102,Paramètres!$B$3:$B$102) -> 0 | T41: 22 | U41: =LOOKUP(T41,Paramètres!$A$3:$A$102,Paramètres!$B$3:$B$102) -> 87 | W41: =LOOKUP(V41,Paramètres!$A$3:$A$102,Paramètres!$B$3:$B$102) -> 0 | Y41: =LOOKUP(X41,Paramètres!$A$3:$A$102,Paramètres!$B$3:$B$102) -> 0 | Z41: =IFERROR(VLOOKUP(J41,Paramètres!$D$3:$E$7,2,FALSE),0)+IFERROR(VLOOKUP(L41,Paramètres!$D$3:$E$7,2,FALSE),0)+IFERROR(VLOOKUP(N41,Paramètres!$D$3:$E$7,2,FALSE),0)+IFERROR(VLOOKUP(P41,Paramètres!$D$3:$E$7,2,FALSE),0)+IFERROR(VLOOKUP(R41,Paramètres!$D$3:$E$7,2,FALSE),0)+IFERROR(VLOOKUP(T41,Paramètres!$D$3:$E$7,2,FALSE),0)+IFERROR(VLOOKUP(V41,Paramètres!$D$3:$E$7,2,FALSE),0)+IFERROR(VLOOKUP(X41,Paramètres!$D$3:$E$7,2,FALSE),0) -> 0 | AA41: 0 | AB41: |014|022|022|999|999|999|999|999 | AC41: 169
A42: 285.0143 | B42: 37 | C42: 285.0143 | D42: 37 | E42: 1008 | F42: MAGOT | G42: Titouan | H42: VELO CLUB TOURNUS | I42: H | J42: 36 | K42: =LOOKUP(J42,Paramètres!$A$3:$A$102,Paramètres!$B$3:$B$102) -> 45 | M42: =LOOKUP(L42,Paramètres!$A$3:$A$102,Paramètres!$B$3:$B$102) -> 0 | N42: 40 | O42: =LOOKUP(N42,Paramètres!$A$3:$A$102,Paramètres!$B$3:$B$102) -> 33 | P42: 38 | Q42: =LOOKUP(P42,Paramètres!$A$3:$A$102,Paramètres!$B$3:$B$102) -> 39 | R42: 23 | S42: =LOOKUP(R42,Paramètres!$A$3:$A$102,Paramètres!$B$3:$B$102) -> 84 | T42: 45 | U42: =LOOKUP(T42,Paramètres!$A$3:$A$102,Paramètres!$B$3:$B$102) -> 18 | W42: =LOOKUP(V42,Paramètres!$A$3:$A$102,Paramètres!$B$3:$B$102) -> 0 | X42: 29 | Y42: =LOOKUP(X42,Paramètres!$A$3:$A$102,Paramètres!$B$3:$B$102) -> 66 | Z42: =IFERROR(VLOOKUP(J42,Paramètres!$D$3:$E$7,2,FALSE),0)+IFERROR(VLOOKUP(L42,Paramètres!$D$3:$E$7,2,FALSE),0)+IFERROR(VLOOKUP(N42,Paramètres!$D$3:$E$7,2,FALSE),0)+IFERROR(VLOOKUP(P42,Paramètres!$D$3:$E$7,2,FALSE),0)+IFERROR(VLOOKUP(R42,Paramètres!$D$3:$E$7,2,FALSE),0)+IFERROR(VLOOKUP(T42,Paramètres!$D$3:$E$7,2,FALSE),0)+IFERROR(VLOOKUP(V42,Paramètres!$D$3:$E$7,2,FALSE),0)+IFERROR(VLOOKUP(X42,Paramètres!$D$3:$E$7,2,FALSE),0) -> 0 | AA42: 0 | AB42: |023|029|036|038|040|045|999|999 | AC42: 143
A43: 282.0198 | B43: 38 | C43: 282.0198 | D43: 38 | E43: 1065 | F43: POUSSIN | G43: Alix | H43: VTT MASSIF JURA | I43: H | K43: =LOOKUP(J43,Paramètres!$A$3:$A$102,Paramètres!$B$3:$B$102) -> 0 | M43: =LOOKUP(L43,Paramètres!$A$3:$A$102,Paramètres!$B$3:$B$102) -> 0 | N43: 4 | O43: =LOOKUP(N43,Paramètres!$A$3:$A$102,Paramètres!$B$3:$B$102) -> 141 | Q43: =LOOKUP(P43,Paramètres!$A$3:$A$102,Paramètres!$B$3:$B$102) -> 0 | S43: =LOOKUP(R43,Paramètres!$A$3:$A$102,Paramètres!$B$3:$B$102) -> 0 | T43: 4 | U43: =LOOKUP(T43,Paramètres!$A$3:$A$102,Paramètres!$B$3:$B$102) -> 141 | W43: =LOOKUP(V43,Paramètres!$A$3:$A$102,Paramètres!$B$3:$B$102) -> 0 | Y43: =LOOKUP(X43,Paramètres!$A$3:$A$102,Paramètres!$B$3:$B$102) -> 0 | Z43: =IFERROR(VLOOKUP(J43,Paramètres!$D$3:$E$7,2,FALSE),0)+IFERROR(VLOOKUP(L43,Paramètres!$D$3:$E$7,2,FALSE),0)+IFERROR(VLOOKUP(N43,Paramètres!$D$3:$E$7,2,FALSE),0)+IFERROR(VLOOKUP(P43,Paramètres!$D$3:$E$7,2,FALSE),0)+IFERROR(VLOOKUP(R43,Paramètres!$D$3:$E$7,2,FALSE),0)+IFERROR(VLOOKUP(T43,Paramètres!$D$3:$E$7,2,FALSE),0)+IFERROR(VLOOKUP(V43,Paramètres!$D$3:$E$7,2,FALSE),0)+IFERROR(VLOOKUP(X43,Paramètres!$D$3:$E$7,2,FALSE),0) -> 4 | AA43: 0 | AB43: |004|004|999|999|999|999|999|999 | AC43: 198
A44: 282.0168 | B44: 39 | C44: 282.0168 | D44: 39 | E44: 1016 | F44: GAUDILLAT | G44: Robin | H44: MONTCEAU VTT | I44: H | J44: 23 | K44: =LOOKUP(J44,Paramètres!$A$3:$A$102,Paramètres!$B$3:$B$102) -> 84 | M44: =LOOKUP(L44,Paramètres!$A$3:$A$102,Paramètres!$B$3:$B$102) -> 0 | O44: =LOOKUP(N44,Paramètres!$A$3:$A$102,Paramètres!$B$3:$B$102) -> 0 | P44: 22 | Q44: =LOOKUP(P44,Paramètres!$A$3:$A$102,Paramètres!$B$3:$B$102) -> 87 | S44: =LOOKUP(R44,Paramètres!$A$3:$A$102,Paramètres!$B$3:$B$102) -> 0 | U44: =LOOKUP(T44,Paramètres!$A$3:$A$102,Paramètres!$B$3:$B$102) -> 0 | V44: 14 | W44: =LOOKUP(V44,Paramètres!$A$3:$A$102,Paramètres!$B$3:$B$102) -> 111 | Y44: =LOOKUP(X44,Paramètres!$A$3:$A$102,Paramètres!$B$3:$B$102) -> 0 | Z44: =IFERROR(VLOOKUP(J44,Paramètres!$D$3:$E$7,2,FALSE),0)+IFERROR(VLOOKUP(L44,Paramètres!$D$3:$E$7,2,FALSE),0)+IFERROR(VLOOKUP(N44,Paramètres!$D$3:$E$7,2,FALSE),0)+IFERROR(VLOOKUP(P44,Paramètres!$D$3:$E$7,2,FALSE),0)+IFERROR(VLOOKUP(R44,Paramètres!$D$3:$E$7,2,FALSE),0)+IFERROR(VLOOKUP(T44,Paramètres!$D$3:$E$7,2,FALSE),0)+IFERROR(VLOOKUP(V44,Paramètres!$D$3:$E$7,2,FALSE),0)+IFERROR(VLOOKUP(X44,Paramètres!$D$3:$E$7,2,FALSE),0) -> 0 | AA44: 0 | AB44: |014|022|023|999|999|999|999|999 | AC44: 168
A45: 246.0144 | B45: 40 | C45: 246.0144 | D45: 40 | E45: 1021 | F45: PERRIER | G45: Corentin | H45: VC CHAROLLAIS | I45: H | J45: 25 | K45: =LOOKUP(J45,Paramètres!$A$3:$A$102,Paramètres!$B$3:$B$102) -> 78 | M45: =LOOKUP(L45,Paramètres!$A$3:$A$102,Paramètres!$B$3:$B$102) -> 0 | O45: =LOOKUP(N45,Paramètres!$A$3:$A$102,Paramètres!$B$3:$B$102) -> 0 | P45: 23 | Q45: =LOOKUP(P45,Paramètres!$A$3:$A$102,Paramètres!$B$3:$B$102) -> 84 | S45: =LOOKUP(R45,Paramètres!$A$3:$A$102,Paramètres!$B$3:$B$102) -> 0 | U45: =LOOKUP(T45,Paramètres!$A$3:$A$102,Paramètres!$B$3:$B$102) -> 0 | V45: 23 | W45: =LOOKUP(V45,Paramètres!$A$3:$A$102,Paramètres!$B$3:$B$102) -> 84 | Y45: =LOOKUP(X45,Paramètres!$A$3:$A$102,Paramètres!$B$3:$B$102) -> 0 | Z45: =IFERROR(VLOOKUP(J45,Paramètres!$D$3:$E$7,2,FALSE),0)+IFERROR(VLOOKUP(L45,Paramètres!$D$3:$E$7,2,FALSE),0)+IFERROR(VLOOKUP(N45,Paramètres!$D$3:$E$7,2,FALSE),0)+IFERROR(VLOOKUP(P45,Paramètres!$D$3:$E$7,2,FALSE),0)+IFERROR(VLOOKUP(R45,Paramètres!$D$3:$E$7,2,FALSE),0)+IFERROR(VLOOKUP(T45,Paramètres!$D$3:$E$7,2,FALSE),0)+IFERROR(VLOOKUP(V45,Paramètres!$D$3:$E$7,2,FALSE),0)+IFERROR(VLOOKUP(X45,Paramètres!$D$3:$E$7,2,FALSE),0) -> 0 | AA45: 0 | AB45: |023|023|025|999|999|999|999|999 | AC45: 144
A46: 222.0142 | B46: 41 | C46: 222.0142 | D46: 41 | E46: 1020 | F46: FEDERICI | G46: Augustin | H46: VC CHAROLLAIS | I46: H | J46: 24 | K46: =LOOKUP(J46,Paramètres!$A$3:$A$102,Paramètres!$B$3:$B$102) -> 81 | M46: =LOOKUP(L46,Paramètres!$A$3:$A$102,Paramètres!$B$3:$B$102) -> 0 | O46: =LOOKUP(N46,Paramètres!$A$3:$A$102,Paramètres!$B$3:$B$102) -> 0 | P46: 26 | Q46: =LOOKUP(P46,Paramètres!$A$3:$A$102,Paramètres!$B$3:$B$102) -> 75 | S46: =LOOKUP(R46,Paramètres!$A$3:$A$102,Paramètres!$B$3:$B$102) -> 0 | U46: =LOOKUP(T46,Paramètres!$A$3:$A$102,Paramètres!$B$3:$B$102) -> 0 | V46: 29 | W46: =LOOKUP(V46,Paramètres!$A$3:$A$102,Paramètres!$B$3:$B$102) -> 66 | Y46: =LOOKUP(X46,Paramètres!$A$3:$A$102,Paramètres!$B$3:$B$102) -> 0 | Z46: =IFERROR(VLOOKUP(J46,Paramètres!$D$3:$E$7,2,FALSE),0)+IFERROR(VLOOKUP(L46,Paramètres!$D$3:$E$7,2,FALSE),0)+IFERROR(VLOOKUP(N46,Paramètres!$D$3:$E$7,2,FALSE),0)+IFERROR(VLOOKUP(P46,Paramètres!$D$3:$E$7,2,FALSE),0)+IFERROR(VLOOKUP(R46,Paramètres!$D$3:$E$7,2,FALSE),0)+IFERROR(VLOOKUP(T46,Paramètres!$D$3:$E$7,2,FALSE),0)+IFERROR(VLOOKUP(V46,Paramètres!$D$3:$E$7,2,FALSE),0)+IFERROR(VLOOKUP(X46,Paramètres!$D$3:$E$7,2,FALSE),0) -> 0 | AA46: 0 | AB46: |024|026|029|999|999|999|999|999 | AC46: 142
A47: 222.014 | B47: 42 | C47: 222.014 | D47: 42 | E47: 1007 | F47: MAGOT | G47: Lilio | H47: VELO CLUB TOURNUS | I47: H | J47: 42 | K47: =LOOKUP(J47,Paramètres!$A$3:$A$102,Paramètres!$B$3:$B$102) -> 27 | M47: =LOOKUP(L47,Paramètres!$A$3:$A$102,Paramètres!$B$3:$B$102) -> 0 | N47: 36 | O47: =LOOKUP(N47,Paramètres!$A$3:$A$102,Paramètres!$B$3:$B$102) -> 45 | P47: 39 | Q47: =LOOKUP(P47,Paramètres!$A$3:$A$102,Paramètres!$B$3:$B$102) -> 36 | R47: 24 | S47: =LOOKUP(R47,Paramètres!$A$3:$A$102,Paramètres!$B$3:$B$102) -> 81 | T47: 40 | U47: =LOOKUP(T47,Paramètres!$A$3:$A$102,Paramètres!$B$3:$B$102) -> 33 | W47: =LOOKUP(V47,Paramètres!$A$3:$A$102,Paramètres!$B$3:$B$102) -> 0 | Y47: =LOOKUP(X47,Paramètres!$A$3:$A$102,Paramètres!$B$3:$B$102) -> 0 | Z47: =IFERROR(VLOOKUP(J47,Paramètres!$D$3:$E$7,2,FALSE),0)+IFERROR(VLOOKUP(L47,Paramètres!$D$3:$E$7,2,FALSE),0)+IFERROR(VLOOKUP(N47,Paramètres!$D$3:$E$7,2,FALSE),0)+IFERROR(VLOOKUP(P47,Paramètres!$D$3:$E$7,2,FALSE),0)+IFERROR(VLOOKUP(R47,Paramètres!$D$3:$E$7,2,FALSE),0)+IFERROR(VLOOKUP(T47,Paramètres!$D$3:$E$7,2,FALSE),0)+IFERROR(VLOOKUP(V47,Paramètres!$D$3:$E$7,2,FALSE),0)+IFERROR(VLOOKUP(X47,Paramètres!$D$3:$E$7,2,FALSE),0) -> 0 | AA47: 0 | AB47: |024|036|039|040|042|999|999|999 | AC47: 140
A48: 216.0166 | B48: 43 | C48: 216.0166 | D48: 43 | E48: 1054 | F48: CHARLES | G48: Oscar | H48: VELO SPORT CLUB BEAUNOIS | I48: H | K48: =LOOKUP(J48,Paramètres!$A$3:$A$102,Paramètres!$B$3:$B$102) -> 0 | M48: =LOOKUP(L48,Paramètres!$A$3:$A$102,Paramètres!$B$3:$B$102) -> 0 | N48: 15 | O48: =LOOKUP(N48,Paramètres!$A$3:$A$102,Paramètres!$B$3:$B$102) -> 108 | P48: 15 | Q48: =LOOKUP(P48,Paramètres!$A$3:$A$102,Paramètres!$B$3:$B$102) -> 108 | S48: =LOOKUP(R48,Paramètres!$A$3:$A$102,Paramètres!$B$3:$B$102) -> 0 | U48: =LOOKUP(T48,Paramètres!$A$3:$A$102,Paramètres!$B$3:$B$102) -> 0 | W48: =LOOKUP(V48,Paramètres!$A$3:$A$102,Paramètres!$B$3:$B$102) -> 0 | Y48: =LOOKUP(X48,Paramètres!$A$3:$A$102,Paramètres!$B$3:$B$102) -> 0 | Z48: =IFERROR(VLOOKUP(J48,Paramètres!$D$3:$E$7,2,FALSE),0)+IFERROR(VLOOKUP(L48,Paramètres!$D$3:$E$7,2,FALSE),0)+IFERROR(VLOOKUP(N48,Paramètres!$D$3:$E$7,2,FALSE),0)+IFERROR(VLOOKUP(P48,Paramètres!$D$3:$E$7,2,FALSE),0)+IFERROR(VLOOKUP(R48,Paramètres!$D$3:$E$7,2,FALSE),0)+IFERROR(VLOOKUP(T48,Paramètres!$D$3:$E$7,2,FALSE),0)+IFERROR(VLOOKUP(V48,Paramètres!$D$3:$E$7,2,FALSE),0)+IFERROR(VLOOKUP(X48,Paramètres!$D$3:$E$7,2,FALSE),0) -> 0 | AA48: 0 | AB48: |015|015|999|999|999|999|999|999 | AC48: 166
A49: 204.017 | B49: 44 | C49: 204.017 | D49: 44 | E49: 1066 | F49: ROBIN | G49: Mathis | H49: VTT CONLIEGE | I49: H | K49: =LOOKUP(J49,Paramètres!$A$3:$A$102,Paramètres!$B$3:$B$102) -> 0 | M49: =LOOKUP(L49,Paramètres!$A$3:$A$102,Paramètres!$B$3:$B$102) -> 0 | N49: 14 | O49: =LOOKUP(N49,Paramètres!$A$3:$A$102,Paramètres!$B$3:$B$102) -> 111 | Q49: =LOOKUP(P49,Paramètres!$A$3:$A$102,Paramètres!$B$3:$B$102) -> 0 | S49: =LOOKUP(R49,Paramètres!$A$3:$A$102,Paramètres!$B$3:$B$102) -> 0 | T49: 20 | U49: =LOOKUP(T49,Paramètres!$A$3:$A$102,Paramètres!$B$3:$B$102) -> 93 | W49: =LOOKUP(V49,Paramètres!$A$3:$A$102,Paramètres!$B$3:$B$102) -> 0 | Y49: =LOOKUP(X49,Paramètres!$A$3:$A$102,Paramètres!$B$3:$B$102) -> 0 | Z49: =IFERROR(VLOOKUP(J49,Paramètres!$D$3:$E$7,2,FALSE),0)+IFERROR(VLOOKUP(L49,Paramètres!$D$3:$E$7,2,FALSE),0)+IFERROR(VLOOKUP(N49,Paramètres!$D$3:$E$7,2,FALSE),0)+IFERROR(VLOOKUP(P49,Paramètres!$D$3:$E$7,2,FALSE),0)+IFERROR(VLOOKUP(R49,Paramètres!$D$3:$E$7,2,FALSE),0)+IFERROR(VLOOKUP(T49,Paramètres!$D$3:$E$7,2,FALSE),0)+IFERROR(VLOOKUP(V49,Paramètres!$D$3:$E$7,2,FALSE),0)+IFERROR(VLOOKUP(X49,Paramètres!$D$3:$E$7,2,FALSE),0) -> 0 | AA49: 0 | AB49: |014|020|999|999|999|999|999|999 | AC49: 170
A50: 204.016 | B50: 45 | C50: 204.016 | D50: 45 | E50: 1049 | F50: CASSARD | G50: Eliott | H50: CHAZOT VTT | I50: H | K50: =LOOKUP(J50,Paramètres!$A$3:$A$102,Paramètres!$B$3:$B$102) -> 0 | L50: 17 | M50: =LOOKUP(L50,Paramètres!$A$3:$A$102,Paramètres!$B$3:$B$102) -> 102 | O50: =LOOKUP(N50,Paramètres!$A$3:$A$102,Paramètres!$B$3:$B$102) -> 0 | Q50: =LOOKUP(P50,Paramètres!$A$3:$A$102,Paramètres!$B$3:$B$102) -> 0 | S50: =LOOKUP(R50,Paramètres!$A$3:$A$102,Paramètres!$B$3:$B$102) -> 0 | U50: =LOOKUP(T50,Paramètres!$A$3:$A$102,Paramètres!$B$3:$B$102) -> 0 | W50: =LOOKUP(V50,Paramètres!$A$3:$A$102,Paramètres!$B$3:$B$102) -> 0 | X50: 17 | Y50: =LOOKUP(X50,Paramètres!$A$3:$A$102,Paramètres!$B$3:$B$102) -> 102 | Z50: =IFERROR(VLOOKUP(J50,Paramètres!$D$3:$E$7,2,FALSE),0)+IFERROR(VLOOKUP(L50,Paramètres!$D$3:$E$7,2,FALSE),0)+IFERROR(VLOOKUP(N50,Paramètres!$D$3:$E$7,2,FALSE),0)+IFERROR(VLOOKUP(P50,Paramètres!$D$3:$E$7,2,FALSE),0)+IFERROR(VLOOKUP(R50,Paramètres!$D$3:$E$7,2,FALSE),0)+IFERROR(VLOOKUP(T50,Paramètres!$D$3:$E$7,2,FALSE),0)+IFERROR(VLOOKUP(V50,Paramètres!$D$3:$E$7,2,FALSE),0)+IFERROR(VLOOKUP(X50,Paramètres!$D$3:$E$7,2,FALSE),0) -> 0 | AA50: 0 | AB50: |017|017|999|999|999|999|999|999 | AC50: 160
A51: 201.0137 | B51: 46 | C51: 201.0137 | D51: 46 | E51: 1011 | F51: MONTAVON | G51: Clémence | H51: AVENIR CYCLISTE CHALONNAIS | I51: F | J51: 37 | K51: =LOOKUP(J51,Paramètres!$A$3:$A$102,Paramètres!$B$3:$B$102) -> 42 | M51: =LOOKUP(L51,Paramètres!$A$3:$A$102,Paramètres!$B$3:$B$102) -> 0 | O51: =LOOKUP(N51,Paramètres!$A$3:$A$102,Paramètres!$B$3:$B$102) -> 0 | P51: 41 | Q51: =LOOKUP(P51,Paramètres!$A$3:$A$102,Paramètres!$B$3:$B$102) -> 30 | R51: 25 | S51: =LOOKUP(R51,Paramètres!$A$3:$A$102,Paramètres!$B$3:$B$102) -> 78 | U51: =LOOKUP(T51,Paramètres!$A$3:$A$102,Paramètres!$B$3:$B$102) -> 0 | V51: 34 | W51: =LOOKUP(V51,Paramètres!$A$3:$A$102,Paramètres!$B$3:$B$102) -> 51 | Y51: =LOOKUP(X51,Paramètres!$A$3:$A$102,Paramètres!$B$3:$B$102) -> 0 | Z51: =IFERROR(VLOOKUP(J51,Paramètres!$D$3:$E$7,2,FALSE),0)+IFERROR(VLOOKUP(L51,Paramètres!$D$3:$E$7,2,FALSE),0)+IFERROR(VLOOKUP(N51,Paramètres!$D$3:$E$7,2,FALSE),0)+IFERROR(VLOOKUP(P51,Paramètres!$D$3:$E$7,2,FALSE),0)+IFERROR(VLOOKUP(R51,Paramètres!$D$3:$E$7,2,FALSE),0)+IFERROR(VLOOKUP(T51,Paramètres!$D$3:$E$7,2,FALSE),0)+IFERROR(VLOOKUP(V51,Paramètres!$D$3:$E$7,2,FALSE),0)+IFERROR(VLOOKUP(X51,Paramètres!$D$3:$E$7,2,FALSE),0) -> 0 | AA51: 0 | AB51: |025|034|037|041|999|999|999|999 | AC51: 137
A52: 198.0193 | B52: 47 | C52: 198.0193 | D52: 47 | E52: 1036 | F52: CARRARA | G52: Pablo | H52: V.C. VILLEFRANCHE BEAUJOLAIS | I52: H | J52: 6 | K52: =LOOKUP(J52,Paramètres!$A$3:$A$102,Paramètres!$B$3:$B$102) -> 135 | M52: =LOOKUP(L52,Paramètres!$A$3:$A$102,Paramètres!$B$3:$B$102) -> 0 | O52: =LOOKUP(N52,Paramètres!$A$3:$A$102,Paramètres!$B$3:$B$102) -> 0 | Q52: =LOOKUP(P52,Paramètres!$A$3:$A$102,Paramètres!$B$3:$B$102) -> 0 | S52: =LOOKUP(R52,Paramètres!$A$3:$A$102,Paramètres!$B$3:$B$102) -> 0 | U52: =LOOKUP(T52,Paramètres!$A$3:$A$102,Paramètres!$B$3:$B$102) -> 0 | V52: 30 | W52: =LOOKUP(V52,Paramètres!$A$3:$A$102,Paramètres!$B$3:$B$102) -> 63 | Y52: =LOOKUP(X52,Paramètres!$A$3:$A$102,Paramètres!$B$3:$B$102) -> 0 | Z52: =IFERROR(VLOOKUP(J52,Paramètres!$D$3:$E$7,2,FALSE),0)+IFERROR(VLOOKUP(L52,Paramètres!$D$3:$E$7,2,FALSE),0)+IFERROR(VLOOKUP(N52,Paramètres!$D$3:$E$7,2,FALSE),0)+IFERROR(VLOOKUP(P52,Paramètres!$D$3:$E$7,2,FALSE),0)+IFERROR(VLOOKUP(R52,Paramètres!$D$3:$E$7,2,FALSE),0)+IFERROR(VLOOKUP(T52,Paramètres!$D$3:$E$7,2,FALSE),0)+IFERROR(VLOOKUP(V52,Paramètres!$D$3:$E$7,2,FALSE),0)+IFERROR(VLOOKUP(X52,Paramètres!$D$3:$E$7,2,FALSE),0) -> 0 | AA52: 0 | AB52: |006|030|999|999|999|999|999|999 | AC52: 193
A53: 195.0164 | B53: 48 | C53: 195.0164 | D53: 48 | E53: 1048 | F53: BOURDIEU NORMAND | G53: Mael | H53: VELO CLUB SPORT BEAUNE | I53: H | K53: =LOOKUP(J53,Paramètres!$A$3:$A$102,Paramètres!$B$3:$B$102) -> 0 | L53: 21 | M53: =LOOKUP(L53,Paramètres!$A$3:$A$102,Paramètres!$B$3:$B$102) -> 90 | O53: =LOOKUP(N53,Paramètres!$A$3:$A$102,Paramètres!$B$3:$B$102) -> 0 | Q53: =LOOKUP(P53,Paramètres!$A$3:$A$102,Paramètres!$B$3:$B$102) -> 0 | S53: =LOOKUP(R53,Paramètres!$A$3:$A$102,Paramètres!$B$3:$B$102) -> 0 | U53: =LOOKUP(T53,Paramètres!$A$3:$A$102,Paramètres!$B$3:$B$102) -> 0 | V53: 16 | W53: =LOOKUP(V53,Paramètres!$A$3:$A$102,Paramètres!$B$3:$B$102) -> 105 | Y53: =LOOKUP(X53,Paramètres!$A$3:$A$102,Paramètres!$B$3:$B$102) -> 0 | Z53: =IFERROR(VLOOKUP(J53,Paramètres!$D$3:$E$7,2,FALSE),0)+IFERROR(VLOOKUP(L53,Paramètres!$D$3:$E$7,2,FALSE),0)+IFERROR(VLOOKUP(N53,Paramètres!$D$3:$E$7,2,FALSE),0)+IFERROR(VLOOKUP(P53,Paramètres!$D$3:$E$7,2,FALSE),0)+IFERROR(VLOOKUP(R53,Paramètres!$D$3:$E$7,2,FALSE),0)+IFERROR(VLOOKUP(T53,Paramètres!$D$3:$E$7,2,FALSE),0)+IFERROR(VLOOKUP(V53,Paramètres!$D$3:$E$7,2,FALSE),0)+IFERROR(VLOOKUP(X53,Paramètres!$D$3:$E$7,2,FALSE),0) -> 0 | AA53: 0 | AB53: |016|021|999|999|999|999|999|999 | AC53: 164
A54: 189.0163 | B54: 49 | C54: 189.0163 | D54: 49 | E54: 1050 | F54: MOURRE | G54: Paul | H54: MONTBARD VTT 21 | I54: H | K54: =LOOKUP(J54,Paramètres!$A$3:$A$102,Paramètres!$B$3:$B$102) -> 0 | L54: 23 | M54: =LOOKUP(L54,Paramètres!$A$3:$A$102,Paramètres!$B$3:$B$102) -> 84 | O54: =LOOKUP(N54,Paramètres!$A$3:$A$102,Paramètres!$B$3:$B$102) -> 0 | Q54: =LOOKUP(P54,Paramètres!$A$3:$A$102,Paramètres!$B$3:$B$102) -> 0 | R54: 16 | S54: =LOOKUP(R54,Paramètres!$A$3:$A$102,Paramètres!$B$3:$B$102) -> 105 | U54: =LOOKUP(T54,Paramètres!$A$3:$A$102,Paramètres!$B$3:$B$102) -> 0 | W54: =LOOKUP(V54,Paramètres!$A$3:$A$102,Paramètres!$B$3:$B$102) -> 0 | Y54: =LOOKUP(X54,Paramètres!$A$3:$A$102,Paramètres!$B$3:$B$102) -> 0 | Z54: =IFERROR(VLOOKUP(J54,Paramètres!$D$3:$E$7,2,FALSE),0)+IFERROR(VLOOKUP(L54,Paramètres!$D$3:$E$7,2,FALSE),0)+IFERROR(VLOOKUP(N54,Paramètres!$D$3:$E$7,2,FALSE),0)+IFERROR(VLOOKUP(P54,Paramètres!$D$3:$E$7,2,FALSE),0)+IFERROR(VLOOKUP(R54,Paramètres!$D$3:$E$7,2,FALSE),0)+IFERROR(VLOOKUP(T54,Paramètres!$D$3:$E$7,2,FALSE),0)+IFERROR(VLOOKUP(V54,Paramètres!$D$3:$E$7,2,FALSE),0)+IFERROR(VLOOKUP(X54,Paramètres!$D$3:$E$7,2,FALSE),0) -> 0 | AA54: 0 | AB54: |016|023|999|999|999|999|999|999 | AC54: 163
A55: 189.0153 | B55: 50 | C55: 189.0153 | D55: 50 | E55: 1046 | F55: NOIRJEAN | G55: Nina | H55: VC MORTEAU MONTBENOIT | I55: F | K55: =LOOKUP(J55,Paramètres!$A$3:$A$102,Paramètres!$B$3:$B$102) -> 0 | L55: 20 | M55: =LOOKUP(L55,Paramètres!$A$3:$A$102,Paramètres!$B$3:$B$102) -> 93 | O55: =LOOKUP(N55,Paramètres!$A$3:$A$102,Paramètres!$B$3:$B$102) -> 0 | Q55: =LOOKUP(P55,Paramètres!$A$3:$A$102,Paramètres!$B$3:$B$102) -> 0 | S55: =LOOKUP(R55,Paramètres!$A$3:$A$102,Paramètres!$B$3:$B$102) -> 0 | U55: =LOOKUP(T55,Paramètres!$A$3:$A$102,Paramètres!$B$3:$B$102) -> 0 | W55: =LOOKUP(V55,Paramètres!$A$3:$A$102,Paramètres!$B$3:$B$102) -> 0 | X55: 19 | Y55: =LOOKUP(X55,Paramètres!$A$3:$A$102,Paramètres!$B$3:$B$102) -> 96 | Z55: =IFERROR(VLOOKUP(J55,Paramètres!$D$3:$E$7,2,FALSE),0)+IFERROR(VLOOKUP(L55,Paramètres!$D$3:$E$7,2,FALSE),0)+IFERROR(VLOOKUP(N55,Paramètres!$D$3:$E$7,2,FALSE),0)+IFERROR(VLOOKUP(P55,Paramètres!$D$3:$E$7,2,FALSE),0)+IFERROR(VLOOKUP(R55,Paramètres!$D$3:$E$7,2,FALSE),0)+IFERROR(VLOOKUP(T55,Paramètres!$D$3:$E$7,2,FALSE),0)+IFERROR(VLOOKUP(V55,Paramètres!$D$3:$E$7,2,FALSE),0)+IFERROR(VLOOKUP(X55,Paramètres!$D$3:$E$7,2,FALSE),0) -> 0 | AA55: 0 | AB55: |019|020|999|999|999|999|999|999 | AC55: 153
A56: 189.0129 | B56: 51 | C56: 189.0129 | D56: 51 | E56: 1004 | F56: GAUDIN MUGLIARI | G56: Tom | H56: VELO CLUB TOURNUS | I56: H | J56: 33 | K56: =LOOKUP(J56,Paramètres!$A$3:$A$102,Paramètres!$B$3:$B$102) -> 54 | M56: =LOOKUP(L56,Paramètres!$A$3:$A$102,Paramètres!$B$3:$B$102) -> 0 | N56: 35 | O56: =LOOKUP(N56,Paramètres!$A$3:$A$102,Paramètres!$B$3:$B$102) -> 48 | Q56: =LOOKUP(P56,Paramètres!$A$3:$A$102,Paramètres!$B$3:$B$102) -> 0 | S56: =LOOKUP(R56,Paramètres!$A$3:$A$102,Paramètres!$B$3:$B$102) -> 0 | T56: 46 | U56: =LOOKUP(T56,Paramètres!$A$3:$A$102,Paramètres!$B$3:$B$102) -> 15 | V56: 27 | W56: =LOOKUP(V56,Paramètres!$A$3:$A$102,Paramètres!$B$3:$B$102) -> 72 | Y56: =LOOKUP(X56,Paramètres!$A$3:$A$102,Paramètres!$B$3:$B$102) -> 0 | Z56: =IFERROR(VLOOKUP(J56,Paramètres!$D$3:$E$7,2,FALSE),0)+IFERROR(VLOOKUP(L56,Paramètres!$D$3:$E$7,2,FALSE),0)+IFERROR(VLOOKUP(N56,Paramètres!$D$3:$E$7,2,FALSE),0)+IFERROR(VLOOKUP(P56,Paramètres!$D$3:$E$7,2,FALSE),0)+IFERROR(VLOOKUP(R56,Paramètres!$D$3:$E$7,2,FALSE),0)+IFERROR(VLOOKUP(T56,Paramètres!$D$3:$E$7,2,FALSE),0)+IFERROR(VLOOKUP(V56,Paramètres!$D$3:$E$7,2,FALSE),0)+IFERROR(VLOOKUP(X56,Paramètres!$D$3:$E$7,2,FALSE),0) -> 0 | AA56: 0 | AB56: |027|033|035|046|999|999|999|999 | AC56: 129
A57: 186.0162 | B57: 52 | C57: 186.0162 | D57: 52 | E57: 1063 | F57: MONNIER | G57: Gabin | H57: U.C. MOREZ | I57: H | K57: =LOOKUP(J57,Paramètres!$A$3:$A$102,Paramètres!$B$3:$B$102) -> 0 | M57: =LOOKUP(L57,Paramètres!$A$3:$A$102,Paramètres!$B$3:$B$102) -> 0 | N57: 16 | O57: =LOOKUP(N57,Paramètres!$A$3:$A$102,Paramètres!$B$3:$B$102) -> 105 | Q57: =LOOKUP(P57,Paramètres!$A$3:$A$102,Paramètres!$B$3:$B$102) -> 0 | S57: =LOOKUP(R57,Paramètres!$A$3:$A$102,Paramètres!$B$3:$B$102) -> 0 | T57: 24 | U57: =LOOKUP(T57,Paramètres!$A$3:$A$102,Paramètres!$B$3:$B$102) -> 81 | W57: =LOOKUP(V57,Paramètres!$A$3:$A$102,Paramètres!$B$3:$B$102) -> 0 | Y57: =LOOKUP(X57,Paramètres!$A$3:$A$102,Paramètres!$B$3:$B$102) -> 0 | Z57: =IFERROR(VLOOKUP(J57,Paramètres!$D$3:$E$7,2,FALSE),0)+IFERROR(VLOOKUP(L57,Paramètres!$D$3:$E$7,2,FALSE),0)+IFERROR(VLOOKUP(N57,Paramètres!$D$3:$E$7,2,FALSE),0)+IFERROR(VLOOKUP(P57,Paramètres!$D$3:$E$7,2,FALSE),0)+IFERROR(VLOOKUP(R57,Paramètres!$D$3:$E$7,2,FALSE),0)+IFERROR(VLOOKUP(T57,Paramètres!$D$3:$E$7,2,FALSE),0)+IFERROR(VLOOKUP(V57,Paramètres!$D$3:$E$7,2,FALSE),0)+IFERROR(VLOOKUP(X57,Paramètres!$D$3:$E$7,2,FALSE),0) -> 0 | AA57: 0 | AB57: |016|024|999|999|999|999|999|999 | AC57: 162
